{"text_format":"1","workbook":"xlsx","n_sheets":2,"sheets":["F","half degre"],"not_rendered":{"charts":0,"images":1,"macros":1,"external_links":0,"defined_names":5,"comments":0,"pivot_tables":0},"unopened":[],"bounds":{"document_bytes":16777216,"sheet_cells":100000,"rows_first":2000,"rows_last":500,"rows_between":2000,"halvings":0,"cell_chars":16384,"cell_head_chars":4096},"cells_cut":0,"cells_raw":0,"read":"whole","date_system":"1900"}

{"sheet":"F","index":0,"n_rows":1601,"n_cols":203,"rows_kept":281,"cut":true,"hidden":false,"merged":[[1402,194,1402,197],[1403,93,1598,104],[1403,194,1403,195],[1403,196,1403,197],[1403,199,1404,199],[1403,200,1404,200],[1403,201,1404,201],[1403,202,1404,202],[1003,93,1198,104],[1003,194,1003,195],[1003,196,1003,197],[1003,199,1004,199],[1003,200,1004,200],[1003,201,1004,201],[1003,202,1004,202],[1202,194,1202,197],[1203,93,1398,104],[1203,194,1203,195],[1203,196,1203,197],[1203,199,1204,199],[1203,200,1204,200],[1203,201,1204,201],[1203,202,1204,202],[802,194,802,197],[803,93,998,104],[803,194,803,195],[803,196,803,197],[803,199,804,199],[803,200,804,200],[803,201,804,201],[803,202,804,202],[1002,194,1002,197],[403,194,403,195],[403,196,403,197],[403,199,404,199],[403,200,404,200],[403,201,404,201],[403,202,404,202],[602,194,602,197],[603,93,798,104],[603,194,603,195],[603,196,603,197],[603,199,604,199],[603,200,604,200],[603,201,604,201],[603,202,604,202],[202,194,202,197],[203,93,398,104],[203,194,203,195],[203,196,203,197],[203,199,204,199],[203,200,204,200],[203,201,204,201],[203,202,204,202],[402,194,402,197],[1603,39,1603,40],[1603,41,1603,42],[1603,43,1604,43],[1603,45,1603,46],[1603,47,1603,48],[1603,49,1604,49],[1603,51,1604,51],[1603,52,1604,52],[1603,53,1604,53],[1603,21,1603,22],[1603,23,1603,24],[1603,25,1604,25],[1603,27,1603,28],[1603,29,1603,30],[1603,31,1604,31],[1603,33,1603,34],[1603,35,1603,36],[1603,37,1604,37],[1603,3,1603,4],[1603,5,1603,6],[1603,7,1604,7],[1603,9,1603,10],[1603,11,1603,12],[1603,13,1604,13],[1603,15,1603,16],[1603,17,1603,18],[1603,19,1604,19],[1403,41,1403,42],[1403,43,1404,43],[1403,45,1403,46],[1403,47,1403,48],[1403,49,1404,49],[1403,51,1404,51],[1403,52,1404,52],[1403,53,1404,53],[1203,47,1203,48],[1203,49,1204,49],[1203,51,1204,51],[1203,52,1204,52],[1203,53,1204,53],[1203,45,1203,46],[1403,3,1403,4],[1403,5,1403,6],[1403,7,1404,7],[1403,9,1403,10],[1403,11,1403,12],[1403,13,1404,13],[1403,15,1403,16],[1403,17,1403,18],[1403,19,1404,19],[1403,21,1403,22],[1403,23,1403,24],[1403,25,1404,25],[1403,27,1403,28],[1403,29,1403,30],[1403,31,1404,31],[1403,33,1403,34],[1403,35,1403,36],[1403,37,1404,37],[1403,39,1403,40],[1003,52,1004,52],[1003,53,1004,53],[1203,3,1203,4],[1203,5,1203,6],[1203,7,1204,7],[1203,9,1203,10],[1203,11,1203,12],[1203,13,1204,13],[1203,15,1203,16],[1203,17,1203,18],[1203,19,1204,19],[1203,21,1203,22],[1203,23,1203,24],[1203,25,1204,25],[1203,27,1203,28],[1203,29,1203,30],[1203,31,1204,31],[1203,33,1203,34],[1203,35,1203,36],[1203,37,1204,37],[1203,39,1203,40],[1203,41,1203,42],[1203,43,1204,43],[1003,35,1003,36],[1003,37,1004,37],[1003,39,1003,40],[1003,41,1003,42],[1003,43,1004,43],[1003,45,1003,46],[1003,47,1003,48],[1003,49,1004,49],[1003,51,1004,51],[803,41,803,42],[803,43,804,43],[803,45,803,46],[803,47,803,48],[803,49,804,49],[803,51,804,51],[803,52,804,52],[803,53,804,53],[1003,3,1003,4],[1003,5,1003,6],[1003,7,1004,7],[1003,9,1003,10],[1003,11,1003,12],[1003,13,1004,13],[1003,15,1003,16],[1003,17,1003,18],[1003,19,1004,19],[1003,21,1003,22],[1003,23,1003,24],[1003,25,1004,25],[1003,27,1003,28],[1003,29,1003,30],[1003,31,1004,31],[1003,33,1003,34],[603,33,603,34],[603,35,603,36],[603,39,603,40],[803,3,803,4],[803,5,803,6],[803,7,804,7],[803,9,803,10],[803,11,803,12],[803,13,804,13],[803,15,803,16],[803,17,803,18],[803,19,804,19],[803,21,803,22],[803,23,803,24],[803,25,804,25],[803,27,803,28],[803,29,803,30],[803,31,804,31],[803,33,803,34],[803,35,803,36],[803,37,804,37],[803,39,803,40],[603,15,603,16],[603,17,603,18],[603,19,604,19],[603,21,603,22],[603,23,603,24],[603,13,604,13],[603,27,603,28],[603,29,603,30],[603,31,604,31],[403,23,403,24],[403,27,403,28],[603,25,604,25],[403,25,404,25],[203,17,203,18],[203,19,204,19],[203,21,203,22],[203,23,203,24],[403,3,403,4],[403,5,403,6],[403,7,404,7],[403,9,403,10],[403,11,403,12],[403,15,403,16],[403,17,403,18],[403,19,404,19],[403,21,403,22],[203,13,204,13],[403,13,404,13],[203,5,203,6],[203,7,204,7],[203,9,203,10],[203,11,203,12],[203,15,203,16],[603,3,603,4],[603,5,603,6],[603,7,604,7],[603,9,603,10],[603,11,603,12],[1,15,1,21],[1,27,1,33],[1,39,1,45],[203,37,204,37],[3,3,3,4],[3,5,3,6],[3,7,4,7],[3,9,3,10],[3,11,3,12],[3,13,4,13],[3,15,3,16],[3,17,3,18],[3,19,4,19],[203,35,203,36],[203,39,203,40],[203,41,203,42],[203,43,204,43],[203,45,203,46],[203,3,203,4],[203,29,203,30],[203,31,204,31],[203,33,203,34],[403,31,404,31],[403,33,403,34],[403,35,403,36],[403,39,403,40],[403,41,403,42],[3,93,198,104],[3,49,4,49],[203,47,203,48],[203,49,204,49],[403,93,598,104],[0,3,0,7],[403,52,404,52],[403,53,404,53],[3,39,3,40],[3,41,3,42],[3,43,4,43],[3,45,3,46],[3,47,3,48],[403,37,404,37],[403,49,404,49],[403,29,403,30],[3,37,4,37],[403,45,403,46],[403,47,403,48],[3,21,3,22],[3,23,3,24],[3,25,4,25],[3,27,3,28],[3,29,3,30],[3,31,4,31],[3,33,3,34],[3,35,3,36],[203,25,204,25],[203,27,203,28],[3,199,4,199],[3,200,4,200],[3,201,4,201],[3,202,4,202],[3,194,3,195],[3,196,3,197],[2,194,2,197],[603,37,604,37],[603,45,603,46],[603,47,603,48],[603,49,604,49],[603,51,604,51],[603,52,604,52],[603,53,604,53],[3,51,4,51],[3,52,4,52],[3,53,4,53],[203,51,204,51],[203,52,204,52],[203,53,204,53],[403,51,404,51],[403,43,404,43],[603,41,603,42],[603,43,604,43]],"bounds":{"rows_first":125,"rows_last":31,"rows_between":125,"halvings":4}}
[null,null,null,"          هذه أزرار الإنتقالات والترحيل",null,null,null,null,null,null,null,null,null,null,null,null,null,null,null,null,null,null,null,null,null,null,null,null,null,null,null,null,null,null,null,null,null,null,null,null,null,null,null,null,null,null,null,null,null,null,null,null,{"$f":"COLUMN()","v":53},null,null,null,null,null,null,null,null,null,null,null,null,null,null,null,null,null,null,null,null,null,null,null,null,null,null,null,null,null,null,null,null,null,null,null,null,null,null,null,null,null,null,null,null,null,null,null,null,null,null,null,null,null,null,null,null,null,null,null,null,null,null,null,null,null,null,null,null,null,null,null,null,null,null,null,null,null,null,null,null,null,null,null,null,null,null,null,null,null,null,null,null,null,null,null,null,null,null,null,null,null,null,null,null,null,null,null,null,null,null,null,null,null,null,null,null,null,null,null,null,null,null,null,null,null,null,null,null,null,null,null,null,null,null,null,null,null,null,{"$f":"COLUMN()","v":192},null,null,null,null,null,null,null,"ناجح","راسب","غائب"]
[null,null,null,null,null,null,null,null,null,null,null,null,null,null,null,null,null,null,null,null,null,null,null,null,null,null,null,null,null,null,null,null,null,null,null,null,null,null,null,null,null,null,null,null,null,null,null,null,null,null,null,null,null,null,null,null,null,null,null,null,null,null,null,null,null,null,null,null,null,null,null,null,null,null,null,null,null,null,null,null,null,null,null,null,null,null,null,null,null,null,null,null,null,null,null,null,null,null,null,null,null,null,null,null,null,null,null,null,null,null,null,null,null,null,null,null,null,null,null,null,null,null,null,null,null,null,null,null,null,null,null,null,null,null,null,null,null,null,null,null,null,null,null,null,null,null,null,null,null,null,null,null,null,null,null,null,null,null,null,null,null,null,null,null,null,null,null,null,null,null,null,null,null,null,null,null,null,null,null,null,null,null,null,null,null,null,null,null,null,null,null,null,null,null,null,null,null,null,null,"ناجحة","راسبة","غائبة"]
[{"$f":"TEXT(B3, \"dddd\")","v":"dddd"},{"$f":"TODAY()","v":"2020-06-05"},null,"القرآن الكريم",null,null,null,null,null,"التربية الإسلامية",null,null,null,null,null,"اللغة العربية",null,null,null,null,null,"اللغة الإنكليزية",null,null,null,null,null,"الرياضيات",null,null,null,null,null,"العلوم والصحة",null,null,null,null,null,"المواد الاجتماعية",null,null,null,null,null,"السلوك والمواظبة",null,null,null,null,null,"الخلاصة",null,null,null,null,null,null,null,null,null,null,null,null,null,null,null,null,null,null,null,null,null,null,null,null,null,null,null,null,null,null,null,null,null,null,null,null,null,null,null,null,null,null,null,null,null,null,null,null,null,null,null,null,null,null,null,null,null,null,null,null,null,null,null,null,null,null,null,null,null,null,null,null,null,null,null,null,null,null,null,null,null,null,null,null,null,null,null,null,null,null,null,null,null,null,null,null,null,null,null,null,null,null,null,null,null,null,null,null,null,null,null,null,null,null,null,null,null,null,null,null,null,null,null,null,null,null,null,null,null,null,null,null,null,null,null,null,null,null,null,null,null,null,"الترتيـــــــــــــــب ",null,null,null,null,"إحصائية نصفية"]
["الصف 1",null,"الأول أساسي","الفصل الأول",null,"الفصل الثاني",null,"القرآن",null,"الفصل الأول",null,"الفصل الثاني",null,"الإسلامية",null,"الفصل الأول",null,"الفصل الثاني",null,"العربية",null,"الفصل الأول",null,"الفصل الثاني",null,"الإنكليزية",null,"الفصل الأول",null,"الفصل الثاني",null,"الرياضيات",null,"الفصل الأول",null,"الفصل الثاني",null,"العلوم",null,"الفصل الأول",null,"الفصل الثاني",null,"الإجتماعيات",null,"الفصل الأول",null,"الفصل الثاني",null,"السلوك",null,"المجموع الكلي","النتيجة النهائية","الملاحظات",null,null,null,null,null,null,null,null,null,null,null,null,null,null,null,null,null,null,null,null,null,null,null,null,null,null,null,null,null,null,null,null,null,null,null,null,null,null,null,null,null,null,null,null,null,null,null,null,null,null,null,null,null,null,null,null,null,null,null,null,null,null,null,null,null,null,null,null,null,null,null,null,null,null,null,null,null,null,null,null,null,null,null,null,null,null,null,null,null,null,null,null,null,null,null,null,null,null,null,null,null,null,null,null,null,null,null,null,null,null,null,null,null,null,null,null,null,null,null,null,null,null,null,null,null,null,null,null,null,null,"مجموع درجات المواد للفصل الدراسي الأول",null,null,null,null,null,null,null,null,null,"نهاية العام",null,"نصف العام",null,null,"الصف","نجح","رسب","غاب"]
["ت","رقم الجلوس","اسم الطالب","المحصلة الأولى","الإختبار النصفي","المحصلة الثانية","الامتحان النهائي",null,null,"المحصلة الأولى","الإختبار النصفي","المحصلة الثانية","الامتحان النهائي",null,null,"المحصلة الأولى","الإختبار النصفي","المحصلة الثانية","الامتحان النهائي","المجتمع",null,"المحصلة الأولى","الإختبار النصفي","المحصلة الثانية","الامتحان النهائي",null,null,"المحصلة الأولى","الإختبار النصفي","المحصلة الثانية","الامتحان النهائي",null,null,"المحصلة الأولى","الإختبار النصفي","المحصلة الثانية","الامتحان النهائي",null,null,"المحصلة الأولى","الإختبار النصفي","المحصلة الثانية","الامتحان النهائي","المجتمع",null,"المحصلة الأولى","الإختبار النصفي","المحصلة الثانية","الامتحان النهائي",null,null,null,null,null,null,null,null,null,null,null,null,null,null,null,null,null,null,"التاريخ",null,null,null,null,null,null,null,null,null,null,null,null,null,null,null,null,null,null,null,null,null,null,null,null,null,null,null,null,null,null,null,null,null,null,null,null,null,null,null,null,null,null,null,null,null,null,null,null,null,null,null,null,null,null,null,null,null,null,null,null,null,null,null,null,null,null,null,null,null,null,null,null,null,null,null,null,null,null,null,null,null,null,null,null,null,null,null,null,null,null,null,null,null,null,null,null,null,null,null,null,null,null,null,null,null,null,null,null,null,null,null,null,null,null,"قرآن","إسلامية","عربي","إنجليزي","رياضيات","علوم","اجتماعيات","سلوك","المجموع الكلي","النتيجة",null,null,"الترتيب بالأرقام","الترتيب النصي","الترتيب بالأرقام","الترتيب النصي"]
[{"$f":"IF(C6<>\"\",ROW()-5,\"\")","v":1},{"$f":"IF(C6=\"\",\"\",1)","v":1},"صالح1",18,30,null,null,{"$f":"IF(AND(B6>0,C6<>\"\"),IF(AND(G6<>\"غ\"),SUM(D6:G6),0),\"\")","v":48},null,18,30,null,null,{"$f":"IF(AND(B6>0,C6<>\"\"),IF(AND(M6<>\"غ\"),SUM(J6:M6),0),\"\")","v":48},null,19,29,null,null,{"$f":"IF(AND(B6>0,C6<>\"\"),IF(AND(S6<>\"غ\"),SUM(P6:S6),0),\"\")","v":48},null,null,null,null,null,null,null,18,30,null,null,{"$f":"IF(AND(B6>0,C6<>\"\"),IF(AND(AE6<>\"غ\"),SUM(AB6:AE6),0),\"\")","v":48},null,20,28,null,null,{"$f":"IF(AND(B6>0,C6<>\"\"),IF(AND(AK6<>\"غ\"),SUM(AH6:AK6),0),\"\")","v":48},null,null,null,null,null,null,null,20,25,null,null,{"$f":"IF(AND(B6>0,C6<>\"\"),IF(AND(AW6<>\"غ\"),SUM(AT6:AW6),0),\"\")","v":45},null,{"$f":"IF(AND(B6>0,C6<>\"\"),IF(AND(BA6=\"ناجح\"),AX6+AL6+AF6+T6+N6+H6,\"-\"),\"\")","v":"-"},{"$f":"IF(OR(B6<=0,C6=\"\"),\"\",IF(OR(H6=0,N6=0,T6=0,AF6=0,AL6=0,AX6=0),\"غائب\",IF(OR(H6<50,N6<50,T6<50,AF6<50,AL6<50,AX6<50),\"راسب\",IF(AND(H6>=50,N6>49,T6>=50,AF6>=50,AL6>=50,AX6>=50),\"ناجح\",\"\"))))","v":"راسب"},null,null,null,null,null,null,null,null,null,null,null,null,null,null,null,null,null,null,null,null,null,null,null,null,null,null,null,null,null,null,null,null,null,null,null,null,null,null,null,null,null,null,null,null,null,null,null,null,null,null,null,null,null,null,null,null,null,null,null,null,null,null,null,null,null,null,null,null,null,null,null,null,null,null,null,null,null,null,null,null,null,null,null,null,null,null,null,null,null,null,null,null,null,null,null,null,null,null,null,null,null,null,null,null,null,null,null,null,null,null,null,null,null,null,null,null,null,null,null,null,null,null,null,null,null,null,null,null,null,{"$f":"IF(E6=\"غ\",0,IF(E6=\"\",\"\",SUM(D6:E6)))","v":48},{"$f":"IF(K6=\"غ\",0,IF(K6=\"\",\"\",SUM(J6:K6)))","v":48},{"$f":"IF(Q6=\"غ\",0,IF(Q6=\"\",\"\",SUM(P6:Q6)))","v":48},{"$f":"IF(W6=\"غ\",0,IF(W6=\"\",\"\",SUM(V6:W6)))","v":""},{"$f":"IF(AC6=\"غ\",0,IF(AC6=\"\",\"\",SUM(AB6:AC6)))","v":48},{"$f":"IF(AI6=\"غ\",0,IF(AI6=\"\",\"\",SUM(AH6:AI6)))","v":48},{"$f":"IF(AO6=\"غ\",0,IF(AO6=\"\",\"\",SUM(AN6:AO6)))","v":""},{"$f":"IF(AU6=\"غ\",0,IF(AU6=\"\",\"\",SUM(AT6:AU6)))","v":45},{"$f":"IF(OR(B6=\"\",GJ6=\"\"),\"\",IF(OR(GJ6=\"غائب\",GJ6=\"غائبة\",GJ6=\"راسب\",GJ6=\"راسبة\"),\"-\",SUM(GA6:GH6)))","v":285},{"$f":"IF(B6=\"\",\"\",IF(OR(GA6=0,GB6=0,GC6=0,GE6=0,GF6=0,GH6=0),\"غائب\",IF(OR(GA6<25,GB6<25,GC6<25,GE6<25,GF6<25,GH6<25),\"راسب\",IF(AND(GA6>=25,GB6>=25,GC6>=25,GE6>=25,GF6>=25,GH6>=25),\"ناجح\",\"\"))))","v":"ناجح"},null,null,{"$f":"IF(OR(AZ6=\"\",AZ6=\"-\"),\"\",_xlfn.RANK.EQ(AZ6,$AZ$6:$AZ$196,0))","v":""},{"$f":"IF(GM6=\"\",\"\",IF(GM6<=10,OrdeUP10(GM6),\"\"))","v":""},{"$f":"IF(OR(GI6=\"\",GI6=\"-\"),\"\",_xlfn.RANK.EQ(GI6,$GI$6:$GI$196,0))","v":3},"",null,"1-ذ",{"$f":"COUNTIF($GJ$6:$GJ$105,GR$1)","v":19},{"$f":"COUNTIF($GJ$6:$GJ$105,GS$1)","v":1},{"$f":"COUNTIF($GJ$6:$GJ$105,GT$1)","v":0}]
[{"$f":"IF(C7<>\"\",ROW()-5,\"\")","v":2},{"$f":"IF(C7=\"\",\"\",B6+1)","v":2},"صالح2",12,15,null,null,{"$f":"IF(AND(B7>0,C7<>\"\"),IF(AND(G7<>\"غ\"),SUM(D7:G7),0),\"\")","v":27},null,13,15,null,null,{"$f":"IF(AND(B7>0,C7<>\"\"),IF(AND(M7<>\"غ\"),SUM(J7:M7),0),\"\")","v":28},null,13,17,null,null,{"$f":"IF(AND(B7>0,C7<>\"\"),IF(AND(S7<>\"غ\"),SUM(P7:S7),0),\"\")","v":30},null,null,null,null,null,null,null,14,16,null,null,{"$f":"IF(AND(B7>0,C7<>\"\"),IF(AND(AE7<>\"غ\"),SUM(AB7:AE7),0),\"\")","v":30},null,14,20,null,null,{"$f":"IF(AND(B7>0,C7<>\"\"),IF(AND(AK7<>\"غ\"),SUM(AH7:AK7),0),\"\")","v":34},null,null,null,null,null,null,null,15,20,null,null,{"$f":"IF(AND(B7>0,C7<>\"\"),IF(AND(AW7<>\"غ\"),SUM(AT7:AW7),0),\"\")","v":35},null,{"$f":"IF(AND(B7>0,C7<>\"\"),IF(AND(BA7=\"ناجح\"),AX7+AL7+AF7+T7+N7+H7,\"-\"),\"\")","v":"-"},{"$f":"IF(OR(B7<=0,C7=\"\"),\"\",IF(OR(H7=0,N7=0,T7=0,AF7=0,AL7=0,AX7=0),\"غائب\",IF(OR(H7<50,N7<50,T7<50,AF7<50,AL7<50,AX7<50),\"راسب\",IF(AND(H7>=50,N7>49,T7>=50,AF7>=50,AL7>=50,AX7>=50),\"ناجح\",\"\"))))","v":"راسب"},null,null,null,null,null,null,null,null,null,null,null,null,null,null,null,null,null,null,null,null,null,null,null,null,null,null,null,null,null,null,null,null,null,null,null,null,null,null,null,null,null,null,null,null,null,null,null,null,null,null,null,null,null,null,null,null,null,null,null,null,null,null,null,null,null,null,null,null,null,null,null,null,null,null,null,null,null,null,null,null,null,null,null,null,null,null,null,null,null,null,null,null,null,null,null,null,null,null,null,null,null,null,null,null,null,null,null,null,null,null,null,null,null,null,null,null,null,null,null,null,null,null,null,null,null,null,null,null,null,{"$f":"IF(E7=\"غ\",0,IF(E7=\"\",\"\",SUM(D7:E7)))","v":27},{"$f":"IF(K7=\"غ\",0,IF(K7=\"\",\"\",SUM(J7:K7)))","v":28},{"$f":"IF(Q7=\"غ\",0,IF(Q7=\"\",\"\",SUM(P7:Q7)))","v":30},{"$f":"IF(W7=\"غ\",0,IF(W7=\"\",\"\",SUM(V7:W7)))","v":""},{"$f":"IF(AC7=\"غ\",0,IF(AC7=\"\",\"\",SUM(AB7:AC7)))","v":30},{"$f":"IF(AI7=\"غ\",0,IF(AI7=\"\",\"\",SUM(AH7:AI7)))","v":34},{"$f":"IF(AO7=\"غ\",0,IF(AO7=\"\",\"\",SUM(AN7:AO7)))","v":""},{"$f":"IF(AU7=\"غ\",0,IF(AU7=\"\",\"\",SUM(AT7:AU7)))","v":35},{"$f":"IF(OR(B7=\"\",GJ7=\"\"),\"\",IF(OR(GJ7=\"غائب\",GJ7=\"غائبة\",GJ7=\"راسب\",GJ7=\"راسبة\"),\"-\",SUM(GA7:GH7)))","v":184},{"$f":"IF(B7=\"\",\"\",IF(OR(GA7=0,GB7=0,GC7=0,GE7=0,GF7=0,GH7=0),\"غائب\",IF(OR(GA7<25,GB7<25,GC7<25,GE7<25,GF7<25,GH7<25),\"راسب\",IF(AND(GA7>=25,GB7>=25,GC7>=25,GE7>=25,GF7>=25,GH7>=25),\"ناجح\",\"\"))))","v":"ناجح"},null,null,{"$f":"IF(OR(AZ7=\"\",AZ7=\"-\"),\"\",_xlfn.RANK.EQ(AZ7,$AZ$6:$AZ$196,0))","v":""},{"$f":"IF(GM7=\"\",\"\",IF(GM7<=10,OrdeUP10(GM7),\"\"))","v":""},{"$f":"IF(OR(GI7=\"\",GI7=\"-\"),\"\",_xlfn.RANK.EQ(GI7,$GI$6:$GI$196,0))","v":22},"",null,"1-ث",{"$f":"COUNTIF($GJ$107:$GJ$196,GR$2)","v":13},{"$f":"COUNTIF($GJ$107:$GJ$196,GS$2)","v":0},{"$f":"COUNTIF($GJ$107:$GJ$196,GT$2)","v":2}]
[3,{"$f":"IF(C8=\"\",\"\",B7+1)","v":3},"صالح3",12,10,null,null,22,null,10,10,null,null,20,null,10,10,null,null,20,null,null,null,null,null,null,null,10,10,null,null,20,null,10,15,null,null,25,null,null,null,null,null,null,null,13,17,null,null,30,null,"-","راسب",null,null,null,null,null,null,null,null,null,null,null,null,null,null,null,null,null,null,null,null,null,null,null,null,null,null,null,null,null,null,null,null,null,null,null,null,null,null,null,null,null,null,null,null,null,null,null,null,null,null,null,null,null,null,null,null,null,null,null,null,null,null,null,null,null,null,null,null,null,null,null,null,null,null,null,null,null,null,null,null,null,null,null,null,null,null,null,null,null,null,null,null,null,null,null,null,null,null,null,null,null,null,null,null,null,null,null,null,null,null,null,null,null,null,null,null,null,null,null,null,null,null,null,null,null,null,null,null,null,22,20,20,"",20,25,"",30,"-","راسب",null,null,"",{"$f":"IF(GM8=\"\",\"\",IF(GM8<=10,OrdeUP10(GM8),\"\"))","v":""},"","",null,"2-ذ",{"$f":"COUNTIF($GJ$206:$GJ$305,GR$1)","v":23},{"$f":"COUNTIF($GJ$206:$GJ$305,GS$1)","v":1},{"$f":"COUNTIF($GJ$206:$GJ$305,GT$1)","v":1}]
[4,4,"صالح4",19,30,null,null,49,null,19,30,null,null,49,null,18,25,null,null,43,null,null,null,null,null,null,null,15,25,null,null,40,null,18,22,null,null,40,null,null,null,null,null,null,null,15,24,null,null,39,null,"-","راسب",null,null,null,null,null,null,null,null,null,null,null,null,null,null,null,null,null,null,null,null,null,null,null,null,null,null,null,null,null,null,null,null,null,null,null,null,null,null,null,null,null,null,null,null,null,null,null,null,null,null,null,null,null,null,null,null,null,null,null,null,null,null,null,null,null,null,null,null,null,null,null,null,null,null,null,null,null,null,null,null,null,null,null,null,null,null,null,null,null,null,null,null,null,null,null,null,null,null,null,null,null,null,null,null,null,null,null,null,null,null,null,null,null,null,null,null,null,null,null,null,null,null,null,null,null,null,null,null,null,49,49,43,"",40,40,"",39,260,"ناجح",null,null,"",{"$f":"IF(GM9=\"\",\"\",IF(GM9<=10,OrdeUP10(GM9),\"\"))","v":""},6,"",null,"2-ث",{"$f":"COUNTIF($GJ$307:$GJ$396,GR$2)","v":10},{"$f":"COUNTIF($GJ$307:$GJ$396,GS$2)","v":0},{"$f":"COUNTIF($GJ$307:$GJ$396,GT$2)","v":0}]
[5,5,"صالح5",13,20,null,null,33,null,14,20,null,null,34,null,13,17,null,null,30,null,null,null,null,null,null,null,16,20,null,null,36,null,15,25,null,null,40,null,null,null,null,null,null,null,16,25,null,null,41,null,"-","راسب",null,null,null,null,null,null,null,null,null,null,null,null,null,null,null,null,null,null,null,null,null,null,null,null,null,null,null,null,null,null,null,null,null,null,null,null,null,null,null,null,null,null,null,null,null,null,null,null,null,null,null,null,null,null,null,null,null,null,null,null,null,null,null,null,null,null,null,null,null,null,null,null,null,null,null,null,null,null,null,null,null,null,null,null,null,null,null,null,null,null,null,null,null,null,null,null,null,null,null,null,null,null,null,null,null,null,null,null,null,null,null,null,null,null,null,null,null,null,null,null,null,null,null,null,null,null,null,null,null,33,34,30,"",36,40,"",41,214,"ناجح",null,null,"",{"$f":"IF(GM10=\"\",\"\",IF(GM10<=10,OrdeUP10(GM10),\"\"))","v":""},15,"",null,"3-ذ",{"$f":"COUNTIF($GJ$406:$GJ$505,GR$1)","v":19},{"$f":"COUNTIF($GJ$406:$GJ$505,GS$1)","v":0},{"$f":"COUNTIF($GJ$406:$GJ$505,GT$1)","v":1}]
[6,6,"صالح6",12,18,null,null,30,null,13,18,null,null,31,null,13,17,null,null,30,null,null,null,null,null,null,null,14,18,null,null,32,null,14,20,null,null,34,null,null,null,null,null,null,null,15,20,null,null,35,null,"-","راسب",null,null,null,null,null,null,null,null,null,null,null,null,null,null,null,null,null,null,null,null,null,null,null,null,null,null,null,null,null,null,null,null,null,null,null,null,null,null,null,null,null,null,null,null,null,null,null,null,null,null,null,null,null,null,null,null,null,null,null,null,null,null,null,null,null,null,null,null,null,null,null,null,null,null,null,null,null,null,null,null,null,null,null,null,null,null,null,null,null,null,null,null,null,null,null,null,null,null,null,null,null,null,null,null,null,null,null,null,null,null,null,null,null,null,null,null,null,null,null,null,null,null,null,null,null,null,null,null,null,30,31,30,"",32,34,"",35,192,"ناجح",null,null,"",{"$f":"IF(GM11=\"\",\"\",IF(GM11<=10,OrdeUP10(GM11),\"\"))","v":""},19,"",null,"3-ث",{"$f":"COUNTIF($GJ$507:$GJ$596,GR$2)","v":14},{"$f":"COUNTIF($GJ$507:$GJ$596,GS$2)","v":0},{"$f":"COUNTIF($GJ$507:$GJ$596,GT$2)","v":1}]
[7,7,"صالح7",12,15,null,null,27,null,13,15,null,null,28,null,13,16,null,null,29,null,null,null,null,null,null,null,12,15,null,null,27,null,13,20,null,null,33,null,null,null,null,null,null,null,15,20,null,null,35,null,"-","راسب",null,null,null,null,null,null,null,null,null,null,null,null,null,null,null,null,null,null,null,null,null,null,null,null,null,null,null,null,null,null,null,null,null,null,null,null,null,null,null,null,null,null,null,null,null,null,null,null,null,null,null,null,null,null,null,null,null,null,null,null,null,null,null,null,null,null,null,null,null,null,null,null,null,null,null,null,null,null,null,null,null,null,null,null,null,null,null,null,null,null,null,null,null,null,null,null,null,null,null,null,null,null,null,null,null,null,null,null,null,null,null,null,null,null,null,null,null,null,null,null,null,null,null,null,null,null,null,null,null,27,28,29,"",27,33,"",35,179,"ناجح",null,null,"",{"$f":"IF(GM12=\"\",\"\",IF(GM12<=10,OrdeUP10(GM12),\"\"))","v":""},29,"",null,"4-ذ",{"$f":"COUNTIF($GJ$606:$GJ$705,GR$1)","v":12},{"$f":"COUNTIF($GJ$606:$GJ$705,GS$1)","v":7},{"$f":"COUNTIF($GJ$606:$GJ$705,GT$1)","v":1}]
[8,8,"صالح8",12,16,null,null,28,null,13,16,null,null,29,null,13,15,null,null,28,null,null,null,null,null,null,null,12,15,null,null,27,null,12,20,null,null,32,null,null,null,null,null,null,null,14,21,null,null,35,null,"-","راسب",null,null,null,null,null,null,null,null,null,null,null,null,null,null,null,null,null,null,null,null,null,null,null,null,null,null,null,null,null,null,null,null,null,null,null,null,null,null,null,null,null,null,null,null,null,null,null,null,null,null,null,null,null,null,null,null,null,null,null,null,null,null,null,null,null,null,null,null,null,null,null,null,null,null,null,null,null,null,null,null,null,null,null,null,null,null,null,null,null,null,null,null,null,null,null,null,null,null,null,null,null,null,null,null,null,null,null,null,null,null,null,null,null,null,null,null,null,null,null,null,null,null,null,null,null,null,null,null,null,28,29,28,"",27,32,"",35,179,"ناجح",null,null,"",{"$f":"IF(GM13=\"\",\"\",IF(GM13<=10,OrdeUP10(GM13),\"\"))","v":""},29,"",null,"4-ث",{"$f":"COUNTIF($GJ$707:$GJ$796,GR$2)","v":4},{"$f":"COUNTIF($GJ$707:$GJ$796,GS$2)","v":8},{"$f":"COUNTIF($GJ$707:$GJ$796,GT$2)","v":3}]
[9,9,"صالح9",14,25,null,null,39,null,16,24,null,null,40,null,11,20,null,null,31,null,null,null,null,null,null,null,14,19,null,null,33,null,15,20,null,null,35,null,null,null,null,null,null,null,16,24,null,null,40,null,"-","راسب",null,null,null,null,null,null,null,null,null,null,null,null,null,null,null,null,null,null,null,null,null,null,null,null,null,null,null,null,null,null,null,null,null,null,null,null,null,null,null,null,null,null,null,null,null,null,null,null,null,null,null,null,null,null,null,null,null,null,null,null,null,null,null,null,null,null,null,null,null,null,null,null,null,null,null,null,null,null,null,null,null,null,null,null,null,null,null,null,null,null,null,null,null,null,null,null,null,null,null,null,null,null,null,null,null,null,null,null,null,null,null,null,null,null,null,null,null,null,null,null,null,null,null,null,null,null,null,null,null,39,40,31,"",33,35,"",40,218,"ناجح",null,null,"",{"$f":"IF(GM14=\"\",\"\",IF(GM14<=10,OrdeUP10(GM14),\"\"))","v":""},12,"",null,"5-ذ",{"$f":"COUNTIF($GJ$806:$GJ$905,GR$1)","v":7},{"$f":"COUNTIF($GJ$806:$GJ$905,GS$1)","v":12},{"$f":"COUNTIF($GJ$806:$GJ$905,GT$1)","v":1}]
[10,10,"صالح10",14,25,null,null,39,null,15,25,null,null,40,null,15,20,null,null,35,null,null,null,null,null,null,null,14,18,null,null,32,null,14,25,null,null,39,null,null,null,null,null,null,null,15,20,null,null,35,null,"-","راسب",null,null,null,null,null,null,null,null,null,null,null,null,null,null,null,null,null,null,null,null,null,null,null,null,null,null,null,null,null,null,null,null,null,null,null,null,null,null,null,null,null,null,null,null,null,null,null,null,null,null,null,null,null,null,null,null,null,null,null,null,null,null,null,null,null,null,null,null,null,null,null,null,null,null,null,null,null,null,null,null,null,null,null,null,null,null,null,null,null,null,null,null,null,null,null,null,null,null,null,null,null,null,null,null,null,null,null,null,null,null,null,null,null,null,null,null,null,null,null,null,null,null,null,null,null,null,null,null,null,39,40,35,"",32,39,"",35,220,"ناجح",null,null,"",{"$f":"IF(GM15=\"\",\"\",IF(GM15<=10,OrdeUP10(GM15),\"\"))","v":""},11,"",null,"5-ث",{"$f":"COUNTIF($GJ$907:$GJ$996,GR$2)","v":7},{"$f":"COUNTIF($GJ$907:$GJ$996,GS$2)","v":8},{"$f":"COUNTIF($GJ$907:$GJ$996,GT$2)","v":0}]
[11,11,"صالح11",14,20,null,null,34,null,15,20,null,null,35,null,15,20,null,null,35,null,null,null,null,null,null,null,14,25,null,null,39,null,15,25,null,null,40,null,null,null,null,null,null,null,17,28,null,null,45,null,"-","راسب",null,null,null,null,null,null,null,null,null,null,null,null,null,null,null,null,null,null,null,null,null,null,null,null,null,null,null,null,null,null,null,null,null,null,null,null,null,null,null,null,null,null,null,null,null,null,null,null,null,null,null,null,null,null,null,null,null,null,null,null,null,null,null,null,null,null,null,null,null,null,null,null,null,null,null,null,null,null,null,null,null,null,null,null,null,null,null,null,null,null,null,null,null,null,null,null,null,null,null,null,null,null,null,null,null,null,null,null,null,null,null,null,null,null,null,null,null,null,null,null,null,null,null,null,null,null,null,null,null,34,35,35,"",39,40,"",45,228,"ناجح",null,null,"",{"$f":"IF(GM16=\"\",\"\",IF(GM16<=10,OrdeUP10(GM16),\"\"))","v":""},10,"",null,"6-ذ",{"$f":"COUNTIF($GJ$1006:$GJ$1105,GR$1)","v":7},{"$f":"COUNTIF($GJ$1006:$GJ$1105,GS$1)","v":11},{"$f":"COUNTIF($GJ$1006:$GJ$1105,GT$1)","v":2}]
[12,12,"صالح12",11,15,null,null,26,null,10,15,null,null,25,null,11,14,null,null,25,null,null,null,null,null,null,null,13,13,null,null,26,null,15,25,null,null,40,null,null,null,null,null,null,null,16,25,null,null,41,null,"-","راسب",null,null,null,null,null,null,null,null,null,null,null,null,null,null,null,null,null,null,null,null,null,null,null,null,null,null,null,null,null,null,null,null,null,null,null,null,null,null,null,null,null,null,null,null,null,null,null,null,null,null,null,null,null,null,null,null,null,null,null,null,null,null,null,null,null,null,null,null,null,null,null,null,null,null,null,null,null,null,null,null,null,null,null,null,null,null,null,null,null,null,null,null,null,null,null,null,null,null,null,null,null,null,null,null,null,null,null,null,null,null,null,null,null,null,null,null,null,null,null,null,null,null,null,null,null,null,null,null,null,26,25,25,"",26,40,"",41,183,"ناجح",null,null,"",{"$f":"IF(GM17=\"\",\"\",IF(GM17<=10,OrdeUP10(GM17),\"\"))","v":""},24,"",null,"6-ث",{"$f":"COUNTIF($GJ$1107:$GJ$1196,GR$2)","v":4},{"$f":"COUNTIF($GJ$1107:$GJ$1196,GS$2)","v":12},{"$f":"COUNTIF($GJ$1107:$GJ$1196,GT$2)","v":0}]
[13,13,"صالح13",15,20,null,null,35,null,16,20,null,null,36,null,14,18,null,null,32,null,null,null,null,null,null,null,14,20,null,null,34,null,15,25,null,null,40,null,null,null,null,null,null,null,16,25,null,null,41,null,"-","راسب",null,null,null,null,null,null,null,null,null,null,null,null,null,null,null,null,null,null,null,null,null,null,null,null,null,null,null,null,null,null,null,null,null,null,null,null,null,null,null,null,null,null,null,null,null,null,null,null,null,null,null,null,null,null,null,null,null,null,null,null,null,null,null,null,null,null,null,null,null,null,null,null,null,null,null,null,null,null,null,null,null,null,null,null,null,null,null,null,null,null,null,null,null,null,null,null,null,null,null,null,null,null,null,null,null,null,null,null,null,null,null,null,null,null,null,null,null,null,null,null,null,null,null,null,null,null,null,null,null,35,36,32,"",34,40,"",41,218,"ناجح",null,null,"",{"$f":"IF(GM18=\"\",\"\",IF(GM18<=10,OrdeUP10(GM18),\"\"))","v":""},12,"",null,"7-ذ",{"$f":"COUNTIF($GJ$1206:$GJ$1305,GR$1)","v":6},{"$f":"COUNTIF($GJ$1206:$GJ$1305,GS$1)","v":13},{"$f":"COUNTIF($GJ$1206:$GJ$1305,GT$1)","v":1}]
[14,14,"صالح14",15,20,null,null,35,null,16,20,null,null,36,null,14,18,null,null,32,null,null,null,null,null,null,null,14,20,null,null,34,null,15,20,null,null,35,null,null,null,null,null,null,null,17,28,null,null,45,null,"-","راسب",null,null,null,null,null,null,null,null,null,null,null,null,null,null,null,null,null,null,null,null,null,null,null,null,null,null,null,null,null,null,null,null,null,null,null,null,null,null,null,null,null,null,null,null,null,null,null,null,null,null,null,null,null,null,null,null,null,null,null,null,null,null,null,null,null,null,null,null,null,null,null,null,null,null,null,null,null,null,null,null,null,null,null,null,null,null,null,null,null,null,null,null,null,null,null,null,null,null,null,null,null,null,null,null,null,null,null,null,null,null,null,null,null,null,null,null,null,null,null,null,null,null,null,null,null,null,null,null,null,35,36,32,"",34,35,"",45,217,"ناجح",null,null,"",{"$f":"IF(GM19=\"\",\"\",IF(GM19<=10,OrdeUP10(GM19),\"\"))","v":""},14,"",null,"7-ث",{"$f":"COUNTIF($GJ$1307:$GJ$1396,GR$2)","v":9},{"$f":"COUNTIF($GJ$1307:$GJ$1396,GS$2)","v":6},{"$f":"COUNTIF($GJ$1307:$GJ$1396,GT$2)","v":0}]
[15,15,"صالح15",17,25,null,null,42,null,18,25,null,null,43,null,16,24,null,null,40,null,null,null,null,null,null,32,15,25,null,null,40,null,15,20,null,null,35,null,null,null,null,null,null,null,17,27,null,null,44,null,"-","راسب",null,null,null,null,null,null,null,null,null,null,null,null,null,null,null,null,null,null,null,null,null,null,null,null,null,null,null,null,null,null,null,null,null,null,null,null,null,null,null,null,null,null,null,null,null,null,null,null,null,null,null,null,null,null,null,null,null,null,null,null,null,null,null,null,null,null,null,null,null,null,null,null,null,null,null,null,null,null,null,null,null,null,null,null,null,null,null,null,null,null,null,null,null,null,null,null,null,null,null,null,null,null,null,null,null,null,null,null,null,null,null,null,null,null,null,null,null,null,null,null,null,null,null,null,null,null,null,null,null,42,43,40,"",40,35,"",44,244,"ناجح",null,null,"",{"$f":"IF(GM20=\"\",\"\",IF(GM20<=10,OrdeUP10(GM20),\"\"))","v":""},9,"",null,"8-ذ",{"$f":"COUNTIF($GJ$1406:$GJ$1505,GR$1)","v":7},{"$f":"COUNTIF($GJ$1406:$GJ$1505,GS$1)","v":9},{"$f":"COUNTIF($GJ$1406:$GJ$1505,GT$1)","v":4}]
[16,16,"صالح16",12,15,null,null,27,null,13,15,null,null,28,null,12,15,null,null,27,null,null,null,null,null,null,null,14,16,null,null,30,null,14,20,null,null,34,null,null,null,null,null,null,null,15,20,null,null,35,null,"-","راسب",null,null,null,null,null,null,null,null,null,null,null,null,null,null,null,null,null,null,null,null,null,null,null,null,null,null,null,null,null,null,null,null,null,null,null,null,null,null,null,null,null,null,null,null,null,null,null,null,null,null,null,null,null,null,null,null,null,null,null,null,null,null,null,null,null,null,null,null,null,null,null,null,null,null,null,null,null,null,null,null,null,null,null,null,null,null,null,null,null,null,null,null,null,null,null,null,null,null,null,null,null,null,null,null,null,null,null,null,null,null,null,null,null,null,null,null,null,null,null,null,null,null,null,null,null,null,null,null,null,27,28,27,"",30,34,"",35,181,"ناجح",null,null,"",{"$f":"IF(GM21=\"\",\"\",IF(GM21<=10,OrdeUP10(GM21),\"\"))","v":""},26,"",null,"8-ث",{"$f":"COUNTIF($GJ$1507:$GJ$1596,GR$2)","v":12},{"$f":"COUNTIF($GJ$1507:$GJ$1596,GS$2)","v":3},{"$f":"COUNTIF($GJ$1507:$GJ$1596,GT$2)","v":0}]
[17,17,"صالح17",19,30,null,null,49,null,17,25,null,null,42,null,17,23,null,null,40,null,null,null,null,null,null,null,15,25,null,null,40,null,18,30,null,null,48,null,null,null,null,null,null,null,20,30,null,null,50,null,"-","راسب",null,null,null,null,null,null,null,null,null,null,null,null,null,null,null,null,null,null,null,null,null,null,null,null,null,null,null,null,null,null,null,null,null,null,null,null,null,null,null,null,null,null,null,null,null,null,null,null,null,null,null,null,null,null,null,null,null,null,null,null,null,null,null,null,null,null,null,null,null,null,null,null,null,null,null,null,null,null,null,null,null,null,null,null,null,null,null,null,null,null,null,null,null,null,null,null,null,null,null,null,null,null,null,null,null,null,null,null,null,null,null,null,null,null,null,null,null,null,null,null,null,null,null,null,null,null,null,null,null,49,42,40,"",40,48,"",50,269,"ناجح",null,null,"",{"$f":"IF(GM22=\"\",\"\",IF(GM22<=10,OrdeUP10(GM22),\"\"))","v":""},4,""]
[18,18,"صالح18",19,30,null,null,49,null,18,25,null,null,43,null,17,23,null,null,40,null,null,null,null,null,null,null,16,24,null,null,40,null,15,25,null,null,40,null,null,null,null,null,null,null,18,27,null,null,45,null,"-","راسب",null,null,null,null,null,null,null,null,null,null,null,null,null,null,null,null,null,null,null,null,null,null,null,null,null,null,null,null,null,null,null,null,null,null,null,null,null,null,null,null,null,null,null,null,null,null,null,null,null,null,null,null,null,null,null,null,null,null,null,null,null,null,null,null,null,null,null,null,null,null,null,null,null,null,null,null,null,null,null,null,null,null,null,null,null,null,null,null,null,null,null,null,null,null,null,null,null,null,null,null,null,null,null,null,null,null,null,null,null,null,null,null,null,null,null,null,null,null,null,null,null,null,null,null,null,null,null,null,null,49,43,40,"",40,40,"",45,257,"ناجح",null,null,"",{"$f":"IF(GM23=\"\",\"\",IF(GM23<=10,OrdeUP10(GM23),\"\"))","v":""},8,""]
[19,19,"صالح19",14,20,null,null,34,null,15,20,null,null,35,null,14,18,null,null,32,null,null,null,null,null,null,null,14,20,null,null,34,null,15,20,null,null,35,null,null,null,null,null,null,null,16,24,null,null,40,null,"-","راسب",null,null,null,null,null,null,null,null,null,null,null,null,null,null,null,null,null,null,null,null,null,null,null,null,null,null,null,null,null,null,null,null,null,null,null,null,null,null,null,null,null,null,null,null,null,null,null,null,null,null,null,null,null,null,null,null,null,null,null,null,null,null,null,null,null,null,null,null,null,null,null,null,null,null,null,null,null,null,null,null,null,null,null,null,null,null,null,null,null,null,null,null,null,null,null,null,null,null,null,null,null,null,null,null,null,null,null,null,null,null,null,null,null,null,null,null,null,null,null,null,null,null,null,null,null,null,null,null,null,34,35,32,"",34,35,"",40,210,"ناجح",null,null,"",{"$f":"IF(GM24=\"\",\"\",IF(GM24<=10,OrdeUP10(GM24),\"\"))","v":""},16,""]
[20,20,"صالح20",12,15,null,null,27,null,12,18,null,null,30,null,12,15,null,null,27,null,null,null,null,null,null,null,13,15,null,null,28,null,14,20,null,null,34,null,null,null,null,null,null,null,15,20,null,null,35,null,"-","راسب",null,null,null,null,null,null,null,null,null,null,null,null,null,null,null,null,null,null,null,null,null,null,null,null,null,null,null,null,null,null,null,null,null,null,null,null,null,null,null,null,null,null,null,null,null,null,null,null,null,null,null,null,null,null,null,null,null,null,null,null,null,null,null,null,null,null,null,null,null,null,null,null,null,null,null,null,null,null,null,null,null,null,null,null,null,null,null,null,null,null,null,null,null,null,null,null,null,null,null,null,null,null,null,null,null,null,null,null,null,null,null,null,null,null,null,null,null,null,null,null,null,null,null,null,null,null,null,null,null,27,30,27,"",28,34,"",35,181,"ناجح",null,null,"",{"$f":"IF(GM25=\"\",\"\",IF(GM25<=10,OrdeUP10(GM25),\"\"))","v":""},26,""]
[null,null,null,null,null,null,null,null,null,null,null,null,null,null,null,null,null,null,null,null,null,null,null,null,null,null,null,null,null,null,null,null,null,null,null,null,null,null,null,null,null,null,null,null,null,null,null,null,null,null,null,"","",null,null,null,null,null,null,null,null,null,null,null,null,null,null,null,null,null,null,null,null,null,null,null,null,null,null,null,null,null,null,null,null,null,null,null,null,null,null,null,null,null,null,null,null,null,null,null,null,null,null,null,null,null,null,null,null,null,null,null,null,null,null,null,null,null,null,null,null,null,null,null,null,null,null,null,null,null,null,null,null,null,null,null,null,null,null,null,null,null,null,null,null,null,null,null,null,null,null,null,null,null,null,null,null,null,null,null,null,null,null,null,null,null,null,null,null,null,null,null,null,null,null,null,null,null,null,null,null,null,"","","","","","","","","","",null,null,"",{"$f":"IF(GM26=\"\",\"\",IF(GM26<=10,OrdeUP10(GM26),\"\"))","v":""},"",""]
[null,null,null,null,null,null,null,null,null,null,null,null,null,null,null,null,null,null,null,null,null,null,null,null,null,null,null,null,null,null,null,null,null,null,null,null,null,null,null,null,null,null,null,null,null,null,null,null,null,null,null,"","",null,null,null,null,null,null,null,null,null,null,null,null,null,null,null,null,null,null,null,null,null,null,null,null,null,null,null,null,null,null,null,null,null,null,null,null,null,null,null,null,null,null,null,null,null,null,null,null,null,null,null,null,null,null,null,null,null,null,null,null,null,null,null,null,null,null,null,null,null,null,null,null,null,null,null,null,null,null,null,null,null,null,null,null,null,null,null,null,null,null,null,null,null,null,null,null,null,null,null,null,null,null,null,null,null,null,null,null,null,null,null,null,null,null,null,null,null,null,null,null,null,null,null,null,null,null,null,null,null,"","","","","","","","","","",null,null,"",{"$f":"IF(GM27=\"\",\"\",IF(GM27<=10,OrdeUP10(GM27),\"\"))","v":""},"",""]
[null,null,null,null,null,null,null,null,null,null,null,null,null,null,null,null,null,null,null,null,null,null,null,null,null,null,null,null,null,null,null,null,null,null,null,null,null,null,null,null,null,null,null,null,null,null,null,null,null,null,null,"","",null,null,null,null,null,null,null,null,null,null,null,null,null,null,null,null,null,null,null,null,null,null,null,null,null,null,null,null,null,null,null,null,null,null,null,null,null,null,null,null,null,null,null,null,null,null,null,null,null,null,null,null,null,null,null,null,null,null,null,null,null,null,null,null,null,null,null,null,null,null,null,null,null,null,null,null,null,null,null,null,null,null,null,null,null,null,null,null,null,null,null,null,null,null,null,null,null,null,null,null,null,null,null,null,null,null,null,null,null,null,null,null,null,null,null,null,null,null,null,null,null,null,null,null,null,null,null,null,null,"","","","","","","","","","",null,null,"",{"$f":"IF(GM28=\"\",\"\",IF(GM28<=10,OrdeUP10(GM28),\"\"))","v":""},"",""]
[null,null,null,null,null,null,null,null,null,null,null,null,null,null,null,null,null,null,null,null,null,null,null,null,null,null,null,null,null,null,null,null,null,null,null,null,null,null,null,null,null,null,null,null,null,null,null,null,null,null,null,"","",null,null,null,null,null,null,null,null,null,null,null,null,null,null,null,null,null,null,null,null,null,null,null,null,null,null,null,null,null,null,null,null,null,null,null,null,null,null,null,null,null,null,null,null,null,null,null,null,null,null,null,null,null,null,null,null,null,null,null,null,null,null,null,null,null,null,null,null,null,null,null,null,null,null,null,null,null,null,null,null,null,null,null,null,null,null,null,null,null,null,null,null,null,null,null,null,null,null,null,null,null,null,null,null,null,null,null,null,null,null,null,null,null,null,null,null,null,null,null,null,null,null,null,null,null,null,null,null,null,"","","","","","","","","","",null,null,"",{"$f":"IF(GM29=\"\",\"\",IF(GM29<=10,OrdeUP10(GM29),\"\"))","v":""},"",""]
[null,null,null,null,null,null,null,null,null,null,null,null,null,null,null,null,null,null,null,null,null,null,null,null,null,null,null,null,null,null,null,null,null,null,null,null,null,null,null,null,null,null,null,null,null,null,null,null,null,null,null,"","",null,null,null,null,null,null,null,null,null,null,null,null,null,null,null,null,null,null,null,null,null,null,null,null,null,null,null,null,null,null,null,null,null,null,null,null,null,null,null,null,null,null,null,null,null,null,null,null,null,null,null,null,null,null,null,null,null,null,null,null,null,null,null,null,null,null,null,null,null,null,null,null,null,null,null,null,null,null,null,null,null,null,null,null,null,null,null,null,null,null,null,null,null,null,null,null,null,null,null,null,null,null,null,null,null,null,null,null,null,null,null,null,null,null,null,null,null,null,null,null,null,null,null,null,null,null,null,null,null,"","","","","","","","","","",null,null,"",{"$f":"IF(GM30=\"\",\"\",IF(GM30<=10,OrdeUP10(GM30),\"\"))","v":""},"","الخامس"]
[null,null,null,null,null,null,null,null,null,null,null,null,null,null,null,null,null,null,null,null,null,null,null,null,null,null,null,null,null,null,null,null,null,null,null,null,null,null,null,null,null,null,null,null,null,null,null,null,null,null,null,"","",null,null,null,null,null,null,null,null,null,null,null,null,null,null,null,null,null,null,null,null,null,null,null,null,null,null,null,null,null,null,null,null,null,null,null,null,null,null,null,null,null,null,null,null,null,null,null,null,null,null,null,null,null,null,null,null,null,null,null,null,null,null,null,null,null,null,null,null,null,null,null,null,null,null,null,null,null,null,null,null,null,null,null,null,null,null,null,null,null,null,null,null,null,null,null,null,null,null,null,null,null,null,null,null,null,null,null,null,null,null,null,null,null,null,null,null,null,null,null,null,null,null,null,null,null,null,null,null,null,"","","","","","","","","","",null,null,"",{"$f":"IF(GM31=\"\",\"\",IF(GM31<=10,OrdeUP10(GM31),\"\"))","v":""},"",""]
[null,null,null,null,null,null,null,null,null,null,null,null,null,null,null,null,null,null,null,null,null,null,null,null,null,null,null,null,null,null,null,null,null,null,null,null,null,null,null,null,null,null,null,null,null,null,null,null,null,null,null,"","",null,null,null,null,null,null,null,null,null,null,null,null,null,null,null,null,null,null,null,null,null,null,null,null,null,null,null,null,null,null,null,null,null,null,null,null,null,null,null,null,null,null,null,null,null,null,null,null,null,null,null,null,null,null,null,null,null,null,null,null,null,null,null,null,null,null,null,null,null,null,null,null,null,null,null,null,null,null,null,null,null,null,null,null,null,null,null,null,null,null,null,null,null,null,null,null,null,null,null,null,null,null,null,null,null,null,null,null,null,null,null,null,null,null,null,null,null,null,null,null,null,null,null,null,null,null,null,null,null,"","","","","","","","","","",null,null,"",{"$f":"IF(GM32=\"\",\"\",IF(GM32<=10,OrdeUP10(GM32),\"\"))","v":""},"",""]
[null,null,null,null,null,null,null,null,null,null,null,null,null,null,null,null,null,null,null,null,null,null,null,null,null,null,null,null,null,null,null,null,null,null,null,null,null,null,null,null,null,null,null,null,null,null,null,null,null,null,null,"","",null,null,null,null,null,null,null,null,null,null,null,null,null,null,null,null,null,null,null,null,null,null,null,null,null,null,null,null,null,null,null,null,null,null,null,null,null,null,null,null,null,null,null,null,null,null,null,null,null,null,null,null,null,null,null,null,null,null,null,null,null,null,null,null,null,null,null,null,null,null,null,null,null,null,null,null,null,null,null,null,null,null,null,null,null,null,null,null,null,null,null,null,null,null,null,null,null,null,null,null,null,null,null,null,null,null,null,null,null,null,null,null,null,null,null,null,null,null,null,null,null,null,null,null,null,null,null,null,null,"","","","","","","","","","",null,null,"",{"$f":"IF(GM33=\"\",\"\",IF(GM33<=10,OrdeUP10(GM33),\"\"))","v":""},"",""]
[null,null,null,null,null,null,null,null,null,null,null,null,null,null,null,null,null,null,null,null,null,null,null,null,null,null,null,null,null,null,null,null,null,null,null,null,null,null,null,null,null,null,null,null,null,null,null,null,null,null,null,"","",null,null,null,null,null,null,null,null,null,null,null,null,null,null,null,null,null,null,null,null,null,null,null,null,null,null,null,null,null,null,null,null,null,null,null,null,null,null,null,null,null,null,null,null,null,null,null,null,null,null,null,null,null,null,null,null,null,null,null,null,null,null,null,null,null,null,null,null,null,null,null,null,null,null,null,null,null,null,null,null,null,null,null,null,null,null,null,null,null,null,null,null,null,null,null,null,null,null,null,null,null,null,null,null,null,null,null,null,null,null,null,null,null,null,null,null,null,null,null,null,null,null,null,null,null,null,null,null,null,"","","","","","","","","","",null,null,"",{"$f":"IF(GM34=\"\",\"\",IF(GM34<=10,OrdeUP10(GM34),\"\"))","v":""},"",""]
[null,null,null,null,null,null,null,null,null,null,null,null,null,null,null,null,null,null,null,null,null,null,null,null,null,null,null,null,null,null,null,null,null,null,null,null,null,null,null,null,null,null,null,null,null,null,null,null,null,null,null,"","",null,null,null,null,null,null,null,null,null,null,null,null,null,null,null,null,null,null,null,null,null,null,null,null,null,null,null,null,null,null,null,null,null,null,null,null,null,null,null,null,null,null,null,null,null,null,null,null,null,null,null,null,null,null,null,null,null,null,null,null,null,null,null,null,null,null,null,null,null,null,null,null,null,null,null,null,null,null,null,null,null,null,null,null,null,null,null,null,null,null,null,null,null,null,null,null,null,null,null,null,null,null,null,null,null,null,null,null,null,null,null,null,null,null,null,null,null,null,null,null,null,null,null,null,null,null,null,null,null,"","","","","","","","","","",null,null,"",{"$f":"IF(GM35=\"\",\"\",IF(GM35<=10,OrdeUP10(GM35),\"\"))","v":""},"",""]
[null,null,null,null,null,null,null,null,null,null,null,null,null,null,null,null,null,null,null,null,null,null,null,null,null,null,null,null,null,null,null,null,null,null,null,null,null,null,null,null,null,null,null,null,null,null,null,null,null,null,null,"","",null,null,null,null,null,null,null,null,null,null,null,null,null,null,null,null,null,null,null,null,null,null,null,null,null,null,null,null,null,null,null,null,null,null,null,null,null,null,null,null,null,null,null,null,null,null,null,null,null,null,null,null,null,null,null,null,null,null,null,null,null,null,null,null,null,null,null,null,null,null,null,null,null,null,null,null,null,null,null,null,null,null,null,null,null,null,null,null,null,null,null,null,null,null,null,null,null,null,null,null,null,null,null,null,null,null,null,null,null,null,null,null,null,null,null,null,null,null,null,null,null,null,null,null,null,null,null,null,null,"","","","","","","","","","",null,null,"",{"$f":"IF(GM36=\"\",\"\",IF(GM36<=10,OrdeUP10(GM36),\"\"))","v":""},"",""]
[null,null,null,null,null,null,null,null,null,null,null,null,null,null,null,null,null,null,null,null,null,null,null,null,null,null,null,null,null,null,null,null,null,null,null,null,null,null,null,null,null,null,null,null,null,null,null,null,null,null,null,"","",null,null,null,null,null,null,null,null,null,null,null,null,null,null,null,null,null,null,null,null,null,null,null,null,null,null,null,null,null,null,null,null,null,null,null,null,null,null,null,null,null,null,null,null,null,null,null,null,null,null,null,null,null,null,null,null,null,null,null,null,null,null,null,null,null,null,null,null,null,null,null,null,null,null,null,null,null,null,null,null,null,null,null,null,null,null,null,null,null,null,null,null,null,null,null,null,null,null,null,null,null,null,null,null,null,null,null,null,null,null,null,null,null,null,null,null,null,null,null,null,null,null,null,null,null,null,null,null,null,"","","","","","","","","","",null,null,"",{"$f":"IF(GM37=\"\",\"\",IF(GM37<=10,OrdeUP10(GM37),\"\"))","v":""},"",""]
[null,null,null,null,null,null,null,null,null,null,null,null,null,null,null,null,null,null,null,null,null,null,null,null,null,null,null,null,null,null,null,null,null,null,null,null,null,null,null,null,null,null,null,null,null,null,null,null,null,null,null,"","",null,null,null,null,null,null,null,null,null,null,null,null,null,null,null,null,null,null,null,null,null,null,null,null,null,null,null,null,null,null,null,null,null,null,null,null,null,null,null,null,null,null,null,null,null,null,null,null,null,null,null,null,null,null,null,null,null,null,null,null,null,null,null,null,null,null,null,null,null,null,null,null,null,null,null,null,null,null,null,null,null,null,null,null,null,null,null,null,null,null,null,null,null,null,null,null,null,null,null,null,null,null,null,null,null,null,null,null,null,null,null,null,null,null,null,null,null,null,null,null,null,null,null,null,null,null,null,null,null,"","","","","","","","","","",null,null,"",{"$f":"IF(GM38=\"\",\"\",IF(GM38<=10,OrdeUP10(GM38),\"\"))","v":""},"","الخامس"]
[null,null,null,null,null,null,null,null,null,null,null,null,null,null,null,null,null,null,null,null,null,null,null,null,null,null,null,null,null,null,null,null,null,null,null,null,null,null,null,null,null,null,null,null,null,null,null,null,null,null,null,"","",null,null,null,null,null,null,null,null,null,null,null,null,null,null,null,null,null,null,null,null,null,null,null,null,null,null,null,null,null,null,null,null,null,null,null,null,null,null,null,null,null,null,null,null,null,null,null,null,null,null,null,null,null,null,null,null,null,null,null,null,null,null,null,null,null,null,null,null,null,null,null,null,null,null,null,null,null,null,null,null,null,null,null,null,null,null,null,null,null,null,null,null,null,null,null,null,null,null,null,null,null,null,null,null,null,null,null,null,null,null,null,null,null,null,null,null,null,null,null,null,null,null,null,null,null,null,null,null,null,"","","","","","","","","","",null,null,"",{"$f":"IF(GM39=\"\",\"\",IF(GM39<=10,OrdeUP10(GM39),\"\"))","v":""},"",""]
[null,null,null,null,null,null,null,null,null,null,null,null,null,null,null,null,null,null,null,null,null,null,null,null,null,null,null,null,null,null,null,null,null,null,null,null,null,null,null,null,null,null,null,null,null,null,null,null,null,null,null,"","",null,null,null,null,null,null,null,null,null,null,null,null,null,null,null,null,null,null,null,null,null,null,null,null,null,null,null,null,null,null,null,null,null,null,null,null,null,null,null,null,null,null,null,null,null,null,null,null,null,null,null,null,null,null,null,null,null,null,null,null,null,null,null,null,null,null,null,null,null,null,null,null,null,null,null,null,null,null,null,null,null,null,null,null,null,null,null,null,null,null,null,null,null,null,null,null,null,null,null,null,null,null,null,null,null,null,null,null,null,null,null,null,null,null,null,null,null,null,null,null,null,null,null,null,null,null,null,null,null,"","","","","","","","","","",null,null,"",{"$f":"IF(GM40=\"\",\"\",IF(GM40<=10,OrdeUP10(GM40),\"\"))","v":""},"","الخامس"]
[null,null,null,null,null,null,null,null,null,null,null,null,null,null,null,null,null,null,null,null,null,null,null,null,null,null,null,null,null,null,null,null,null,null,null,null,null,null,null,null,null,null,null,null,null,null,null,null,null,null,null,"","",null,null,null,null,null,null,null,null,null,null,null,null,null,null,null,null,null,null,null,null,null,null,null,null,null,null,null,null,null,null,null,null,null,null,null,null,null,null,null,null,null,null,null,null,null,null,null,null,null,null,null,null,null,null,null,null,null,null,null,null,null,null,null,null,null,null,null,null,null,null,null,null,null,null,null,null,null,null,null,null,null,null,null,null,null,null,null,null,null,null,null,null,null,null,null,null,null,null,null,null,null,null,null,null,null,null,null,null,null,null,null,null,null,null,null,null,null,null,null,null,null,null,null,null,null,null,null,null,null,"","","","","","","","","","",null,null,"",{"$f":"IF(GM41=\"\",\"\",IF(GM41<=10,OrdeUP10(GM41),\"\"))","v":""},"",""]
[null,null,null,null,null,null,null,null,null,null,null,null,null,null,null,null,null,null,null,null,null,null,null,null,null,null,null,null,null,null,null,null,null,null,null,null,null,null,null,null,null,null,null,null,null,null,null,null,null,null,null,"","",null,null,null,null,null,null,null,null,null,null,null,null,null,null,null,null,null,null,null,null,null,null,null,null,null,null,null,null,null,null,null,null,null,null,null,null,null,null,null,null,null,null,null,null,null,null,null,null,null,null,null,null,null,null,null,null,null,null,null,null,null,null,null,null,null,null,null,null,null,null,null,null,null,null,null,null,null,null,null,null,null,null,null,null,null,null,null,null,null,null,null,null,null,null,null,null,null,null,null,null,null,null,null,null,null,null,null,null,null,null,null,null,null,null,null,null,null,null,null,null,null,null,null,null,null,null,null,null,null,"","","","","","","","","","",null,null,"",{"$f":"IF(GM42=\"\",\"\",IF(GM42<=10,OrdeUP10(GM42),\"\"))","v":""},"",""]
[null,null,null,null,null,null,null,null,null,null,null,null,null,null,null,null,null,null,null,null,null,null,null,null,null,null,null,null,null,null,null,null,null,null,null,null,null,null,null,null,null,null,null,null,null,null,null,null,null,null,null,"","",null,null,null,null,null,null,null,null,null,null,null,null,null,null,null,null,null,null,null,null,null,null,null,null,null,null,null,null,null,null,null,null,null,null,null,null,null,null,null,null,null,null,null,null,null,null,null,null,null,null,null,null,null,null,null,null,null,null,null,null,null,null,null,null,null,null,null,null,null,null,null,null,null,null,null,null,null,null,null,null,null,null,null,null,null,null,null,null,null,null,null,null,null,null,null,null,null,null,null,null,null,null,null,null,null,null,null,null,null,null,null,null,null,null,null,null,null,null,null,null,null,null,null,null,null,null,null,null,null,"","","","","","","","","","",null,null,"",{"$f":"IF(GM43=\"\",\"\",IF(GM43<=10,OrdeUP10(GM43),\"\"))","v":""},"",""]
[null,null,null,null,null,null,null,null,null,null,null,null,null,null,null,null,null,null,null,null,null,null,null,null,null,null,null,null,null,null,null,null,null,null,null,null,null,null,null,null,null,null,null,null,null,null,null,null,null,null,null,"","",null,null,null,null,null,null,null,null,null,null,null,null,null,null,null,null,null,null,null,null,null,null,null,null,null,null,null,null,null,null,null,null,null,null,null,null,null,null,null,null,null,null,null,null,null,null,null,null,null,null,null,null,null,null,null,null,null,null,null,null,null,null,null,null,null,null,null,null,null,null,null,null,null,null,null,null,null,null,null,null,null,null,null,null,null,null,null,null,null,null,null,null,null,null,null,null,null,null,null,null,null,null,null,null,null,null,null,null,null,null,null,null,null,null,null,null,null,null,null,null,null,null,null,null,null,null,null,null,null,"","","","","","","","","","",null,null,"",{"$f":"IF(GM44=\"\",\"\",IF(GM44<=10,OrdeUP10(GM44),\"\"))","v":""},"",""]
[null,null,null,null,null,null,null,null,null,null,null,null,null,null,null,null,null,null,null,null,null,null,null,null,null,null,null,null,null,null,null,null,null,null,null,null,null,null,null,null,null,null,null,null,null,null,null,null,null,null,null,"","",null,null,null,null,null,null,null,null,null,null,null,null,null,null,null,null,null,null,null,null,null,null,null,null,null,null,null,null,null,null,null,null,null,null,null,null,null,null,null,null,null,null,null,null,null,null,null,null,null,null,null,null,null,null,null,null,null,null,null,null,null,null,null,null,null,null,null,null,null,null,null,null,null,null,null,null,null,null,null,null,null,null,null,null,null,null,null,null,null,null,null,null,null,null,null,null,null,null,null,null,null,null,null,null,null,null,null,null,null,null,null,null,null,null,null,null,null,null,null,null,null,null,null,null,null,null,null,null,null,"","","","","","","","","","",null,null,"",{"$f":"IF(GM45=\"\",\"\",IF(GM45<=10,OrdeUP10(GM45),\"\"))","v":""},"","الخامس"]
[null,null,null,null,null,null,null,null,null,null,null,null,null,null,null,null,null,null,null,null,null,null,null,null,null,null,null,null,null,null,null,null,null,null,null,null,null,null,null,null,null,null,null,null,null,null,null,null,null,null,null,"","",null,null,null,null,null,null,null,null,null,null,null,null,null,null,null,null,null,null,null,null,null,null,null,null,null,null,null,null,null,null,null,null,null,null,null,null,null,null,null,null,null,null,null,null,null,null,null,null,null,null,null,null,null,null,null,null,null,null,null,null,null,null,null,null,null,null,null,null,null,null,null,null,null,null,null,null,null,null,null,null,null,null,null,null,null,null,null,null,null,null,null,null,null,null,null,null,null,null,null,null,null,null,null,null,null,null,null,null,null,null,null,null,null,null,null,null,null,null,null,null,null,null,null,null,null,null,null,null,null,"","","","","","","","","","",null,null,"",{"$f":"IF(GM46=\"\",\"\",IF(GM46<=10,OrdeUP10(GM46),\"\"))","v":""},"",""]
[null,null,null,null,null,null,null,null,null,null,null,null,null,null,null,null,null,null,null,null,null,null,null,null,null,null,null,null,null,null,null,null,null,null,null,null,null,null,null,null,null,null,null,null,null,null,null,null,null,null,null,"","",null,null,null,null,null,null,null,null,null,null,null,null,null,null,null,null,null,null,null,null,null,null,null,null,null,null,null,null,null,null,null,null,null,null,null,null,null,null,null,null,null,null,null,null,null,null,null,null,null,null,null,null,null,null,null,null,null,null,null,null,null,null,null,null,null,null,null,null,null,null,null,null,null,null,null,null,null,null,null,null,null,null,null,null,null,null,null,null,null,null,null,null,null,null,null,null,null,null,null,null,null,null,null,null,null,null,null,null,null,null,null,null,null,null,null,null,null,null,null,null,null,null,null,null,null,null,null,null,null,"","","","","","","","","","",null,null,"",{"$f":"IF(GM47=\"\",\"\",IF(GM47<=10,OrdeUP10(GM47),\"\"))","v":""},"",""]
[null,null,null,null,null,null,null,null,null,null,null,null,null,null,null,null,null,null,null,null,null,null,null,null,null,null,null,null,null,null,null,null,null,null,null,null,null,null,null,null,null,null,null,null,null,null,null,null,null,null,null,"","",null,null,null,null,null,null,null,null,null,null,null,null,null,null,null,null,null,null,null,null,null,null,null,null,null,null,null,null,null,null,null,null,null,null,null,null,null,null,null,null,null,null,null,null,null,null,null,null,null,null,null,null,null,null,null,null,null,null,null,null,null,null,null,null,null,null,null,null,null,null,null,null,null,null,null,null,null,null,null,null,null,null,null,null,null,null,null,null,null,null,null,null,null,null,null,null,null,null,null,null,null,null,null,null,null,null,null,null,null,null,null,null,null,null,null,null,null,null,null,null,null,null,null,null,null,null,null,null,null,"","","","","","","","","","",null,null,"",{"$f":"IF(GM48=\"\",\"\",IF(GM48<=10,OrdeUP10(GM48),\"\"))","v":""},"",""]
[null,null,null,null,null,null,null,null,null,null,null,null,null,null,null,null,null,null,null,null,null,null,null,null,null,null,null,null,null,null,null,null,null,null,null,null,null,null,null,null,null,null,null,null,null,null,null,null,null,null,null,"","",null,null,null,null,null,null,null,null,null,null,null,null,null,null,null,null,null,null,null,null,null,null,null,null,null,null,null,null,null,null,null,null,null,null,null,null,null,null,null,null,null,null,null,null,null,null,null,null,null,null,null,null,null,null,null,null,null,null,null,null,null,null,null,null,null,null,null,null,null,null,null,null,null,null,null,null,null,null,null,null,null,null,null,null,null,null,null,null,null,null,null,null,null,null,null,null,null,null,null,null,null,null,null,null,null,null,null,null,null,null,null,null,null,null,null,null,null,null,null,null,null,null,null,null,null,null,null,null,null,"","","","","","","","","","",null,null,"",{"$f":"IF(GM49=\"\",\"\",IF(GM49<=10,OrdeUP10(GM49),\"\"))","v":""},"",""]
[null,null,null,null,null,null,null,null,null,null,null,null,null,null,null,null,null,null,null,null,null,null,null,null,null,null,null,null,null,null,null,null,null,null,null,null,null,null,null,null,null,null,null,null,null,null,null,null,null,null,null,"","",null,null,null,null,null,null,null,null,null,null,null,null,null,null,null,null,null,null,null,null,null,null,null,null,null,null,null,null,null,null,null,null,null,null,null,null,null,null,null,null,null,null,null,null,null,null,null,null,null,null,null,null,null,null,null,null,null,null,null,null,null,null,null,null,null,null,null,null,null,null,null,null,null,null,null,null,null,null,null,null,null,null,null,null,null,null,null,null,null,null,null,null,null,null,null,null,null,null,null,null,null,null,null,null,null,null,null,null,null,null,null,null,null,null,null,null,null,null,null,null,null,null,null,null,null,null,null,null,null,"","","","","","","","","","",null,null,"",{"$f":"IF(GM50=\"\",\"\",IF(GM50<=10,OrdeUP10(GM50),\"\"))","v":""},"",""]
[null,null,null,null,null,null,null,null,null,null,null,null,null,null,null,null,null,null,null,null,null,null,null,null,null,null,null,null,null,null,null,null,null,null,null,null,null,null,null,null,null,null,null,null,null,null,null,null,null,null,null,"","",null,null,null,null,null,null,null,null,null,null,null,null,null,null,null,null,null,null,null,null,null,null,null,null,null,null,null,null,null,null,null,null,null,null,null,null,null,null,null,null,null,null,null,null,null,null,null,null,null,null,null,null,null,null,null,null,null,null,null,null,null,null,null,null,null,null,null,null,null,null,null,null,null,null,null,null,null,null,null,null,null,null,null,null,null,null,null,null,null,null,null,null,null,null,null,null,null,null,null,null,null,null,null,null,null,null,null,null,null,null,null,null,null,null,null,null,null,null,null,null,null,null,null,null,null,null,null,null,null,"","","","","","","","","","",null,null,"",{"$f":"IF(GM51=\"\",\"\",IF(GM51<=10,OrdeUP10(GM51),\"\"))","v":""},"",""]
[null,null,null,null,null,null,null,null,null,null,null,null,null,null,null,null,null,null,null,null,null,null,null,null,null,null,null,null,null,null,null,null,null,null,null,null,null,null,null,null,null,null,null,null,null,null,null,null,null,null,null,"","",null,null,null,null,null,null,null,null,null,null,null,null,null,null,null,null,null,null,null,null,null,null,null,null,null,null,null,null,null,null,null,null,null,null,null,null,null,null,null,null,null,null,null,null,null,null,null,null,null,null,null,null,null,null,null,null,null,null,null,null,null,null,null,null,null,null,null,null,null,null,null,null,null,null,null,null,null,null,null,null,null,null,null,null,null,null,null,null,null,null,null,null,null,null,null,null,null,null,null,null,null,null,null,null,null,null,null,null,null,null,null,null,null,null,null,null,null,null,null,null,null,null,null,null,null,null,null,null,null,"","","","","","","","","","",null,null,"",{"$f":"IF(GM52=\"\",\"\",IF(GM52<=10,OrdeUP10(GM52),\"\"))","v":""},"",""]
[null,null,null,null,null,null,null,null,null,null,null,null,null,null,null,null,null,null,null,null,null,null,null,null,null,null,null,null,null,null,null,null,null,null,null,null,null,null,null,null,null,null,null,null,null,null,null,null,null,null,null,"","",null,null,null,null,null,null,null,null,null,null,null,null,null,null,null,null,null,null,null,null,null,null,null,null,null,null,null,null,null,null,null,null,null,null,null,null,null,null,null,null,null,null,null,null,null,null,null,null,null,null,null,null,null,null,null,null,null,null,null,null,null,null,null,null,null,null,null,null,null,null,null,null,null,null,null,null,null,null,null,null,null,null,null,null,null,null,null,null,null,null,null,null,null,null,null,null,null,null,null,null,null,null,null,null,null,null,null,null,null,null,null,null,null,null,null,null,null,null,null,null,null,null,null,null,null,null,null,null,null,"","","","","","","","","","",null,null,"",{"$f":"IF(GM53=\"\",\"\",IF(GM53<=10,OrdeUP10(GM53),\"\"))","v":""},"",""]
[null,null,null,null,null,null,null,null,null,null,null,null,null,null,null,null,null,null,null,null,null,null,null,null,null,null,null,null,null,null,null,null,null,null,null,null,null,null,null,null,null,null,null,null,null,null,null,null,null,null,null,"","",null,null,null,null,null,null,null,null,null,null,null,null,null,null,null,null,null,null,null,null,null,null,null,null,null,null,null,null,null,null,null,null,null,null,null,null,null,null,null,null,null,null,null,null,null,null,null,null,null,null,null,null,null,null,null,null,null,null,null,null,null,null,null,null,null,null,null,null,null,null,null,null,null,null,null,null,null,null,null,null,null,null,null,null,null,null,null,null,null,null,null,null,null,null,null,null,null,null,null,null,null,null,null,null,null,null,null,null,null,null,null,null,null,null,null,null,null,null,null,null,null,null,null,null,null,null,null,null,null,"","","","","","","","","","",null,null,"",{"$f":"IF(GM54=\"\",\"\",IF(GM54<=10,OrdeUP10(GM54),\"\"))","v":""},"",""]
[null,null,null,null,null,null,null,null,null,null,null,null,null,null,null,null,null,null,null,null,null,null,null,null,null,null,null,null,null,null,null,null,null,null,null,null,null,null,null,null,null,null,null,null,null,null,null,null,null,null,null,"","",null,null,null,null,null,null,null,null,null,null,null,null,null,null,null,null,null,null,null,null,null,null,null,null,null,null,null,null,null,null,null,null,null,null,null,null,null,null,null,null,null,null,null,null,null,null,null,null,null,null,null,null,null,null,null,null,null,null,null,null,null,null,null,null,null,null,null,null,null,null,null,null,null,null,null,null,null,null,null,null,null,null,null,null,null,null,null,null,null,null,null,null,null,null,null,null,null,null,null,null,null,null,null,null,null,null,null,null,null,null,null,null,null,null,null,null,null,null,null,null,null,null,null,null,null,null,null,null,null,"","","","","","","","","","",null,null,"",{"$f":"IF(GM55=\"\",\"\",IF(GM55<=10,OrdeUP10(GM55),\"\"))","v":""},"",""]
[null,null,null,null,null,null,null,null,null,null,null,null,null,null,null,null,null,null,null,null,null,null,null,null,null,null,null,null,null,null,null,null,null,null,null,null,null,null,null,null,null,null,null,null,null,null,null,null,null,null,null,"","",null,null,null,null,null,null,null,null,null,null,null,null,null,null,null,null,null,null,null,null,null,null,null,null,null,null,null,null,null,null,null,null,null,null,null,null,null,null,null,null,null,null,null,null,null,null,null,null,null,null,null,null,null,null,null,null,null,null,null,null,null,null,null,null,null,null,null,null,null,null,null,null,null,null,null,null,null,null,null,null,null,null,null,null,null,null,null,null,null,null,null,null,null,null,null,null,null,null,null,null,null,null,null,null,null,null,null,null,null,null,null,null,null,null,null,null,null,null,null,null,null,null,null,null,null,null,null,null,null,"","","","","","","","","","",null,null,"",{"$f":"IF(GM56=\"\",\"\",IF(GM56<=10,OrdeUP10(GM56),\"\"))","v":""},"","الخامس"]
[null,null,null,null,null,null,null,null,null,null,null,null,null,null,null,null,null,null,null,null,null,null,null,null,null,null,null,null,null,null,null,null,null,null,null,null,null,null,null,null,null,null,null,null,null,null,null,null,null,null,null,"","",null,null,"المشتركون",{"$f":"COUNT(A6:A105)","v":20},"الغائبون",{"$f":"COUNTIF(BA6:BA105,\"غائب\")","v":0},null,null,null,null,null,null,null,null,null,null,null,null,null,null,null,null,null,null,null,null,null,null,null,null,null,null,null,null,null,null,null,null,null,null,null,null,null,null,null,null,null,null,null,null,null,null,null,null,null,null,null,null,null,null,null,null,null,null,null,null,null,null,null,null,null,null,null,null,null,null,null,null,null,null,null,null,null,null,null,null,null,null,null,null,null,null,null,null,null,null,null,null,null,null,null,null,null,null,null,null,null,null,null,null,null,null,null,null,null,null,null,null,null,null,null,null,null,null,null,null,null,null,null,"","","","","","","","","","",null,null,"",{"$f":"IF(GM57=\"\",\"\",IF(GM57<=10,OrdeUP10(GM57),\"\"))","v":""},"",""]
[null,null,null,null,null,null,null,null,null,null,null,null,null,null,null,null,null,null,null,null,null,null,null,null,null,null,null,null,null,null,null,null,null,null,null,null,null,null,null,null,null,null,null,null,null,null,null,null,null,null,null,"","",null,null,"الناجحون",{"$f":"COUNTIF(BA6:BA105,\"ناجح\")","v":0},"الحاضرون",{"$f":"BE58+BE59","v":20},null,null,null,null,null,null,null,null,null,null,null,null,null,null,null,null,null,null,null,null,null,null,null,null,null,null,null,null,null,null,null,null,null,null,null,null,null,null,null,null,null,null,null,null,null,null,null,null,null,null,null,null,null,null,null,null,null,null,null,null,null,null,null,null,null,null,null,null,null,null,null,null,null,null,null,null,null,null,null,null,null,null,null,null,null,null,null,null,null,null,null,null,null,null,null,null,null,null,null,null,null,null,null,null,null,null,null,null,null,null,null,null,null,null,null,null,null,null,null,null,null,null,null,"","","","","","","","","","",null,null,"",{"$f":"IF(GM58=\"\",\"\",IF(GM58<=10,OrdeUP10(GM58),\"\"))","v":""},"",""]
[null,null,null,null,null,null,null,null,null,null,null,null,null,null,null,null,null,null,null,null,null,null,null,null,null,null,null,null,null,null,null,null,null,null,null,null,null,null,null,null,null,null,null,null,null,null,null,null,null,null,null,"","",null,null,"الراسبون",{"$f":"COUNTIF(BA6:BA105,\"راسب\")","v":20},null,null,null,null,null,null,null,null,null,null,null,null,null,null,null,null,null,null,null,null,null,null,null,null,null,null,null,null,null,null,null,null,null,null,null,null,null,null,null,null,null,null,null,null,null,null,null,null,null,null,null,null,null,null,null,null,null,null,null,null,null,null,null,null,null,null,null,null,null,null,null,null,null,null,null,null,null,null,null,null,null,null,null,null,null,null,null,null,null,null,null,null,null,null,null,null,null,null,null,null,null,null,null,null,null,null,null,null,null,null,null,null,null,null,null,null,null,null,null,null,null,null,null,null,null,"","","","","","","","","","",null,null,"",{"$f":"IF(GM59=\"\",\"\",IF(GM59<=10,OrdeUP10(GM59),\"\"))","v":""},"","الخامس"]
[null,null,null,null,null,null,null,null,null,null,null,null,null,null,null,null,null,null,null,null,null,null,null,null,null,null,null,null,null,null,null,null,null,null,null,null,null,null,null,null,null,null,null,null,null,null,null,null,null,null,{"$f":"IF(AY57=0,\"\",AY58/AY57)","v":""},"","",null,null,"نسبة الحضور",{"$f":"IF(BE57<>0,(BG58/BE57))","v":1},null,null,null,null,null,null,null,null,null,null,null,null,null,null,null,null,null,null,null,null,null,null,null,null,null,null,null,null,null,null,null,null,null,null,null,null,null,null,null,null,null,null,null,null,null,null,null,null,null,null,null,null,null,null,null,null,null,null,null,null,null,null,null,null,null,null,null,null,null,null,null,null,null,null,null,null,null,null,null,null,null,null,null,null,null,null,null,null,null,null,null,null,null,null,null,null,null,null,null,null,null,null,null,null,null,null,null,null,null,null,null,null,null,null,null,null,null,null,null,null,null,null,null,null,null,"","","","","","","","","","",null,null,"",{"$f":"IF(GM60=\"\",\"\",IF(GM60<=10,OrdeUP10(GM60),\"\"))","v":""},"",""]
[null,null,null,null,null,null,null,null,null,null,null,null,null,null,null,null,null,null,null,null,null,null,null,null,null,null,null,null,null,null,null,null,null,null,null,null,null,null,null,null,null,null,null,null,null,null,null,null,null,null,null,"","",null,null,"نسبة النجاح",{"$f":"IF(BE58=0,\"\",BE58/BG58)","v":""},null,null,null,null,null,null,null,null,null,null,null,null,null,null,null,null,null,null,null,null,null,null,null,null,null,null,null,null,null,null,null,null,null,null,null,null,null,null,null,null,null,null,null,null,null,null,null,null,null,null,null,null,null,null,null,null,null,null,null,null,null,null,null,null,null,null,null,null,null,null,null,null,null,null,null,null,null,null,null,null,null,null,null,null,null,null,null,null,null,null,null,null,null,null,null,null,null,null,null,null,null,null,null,null,null,null,null,null,null,null,null,null,null,null,null,null,null,null,null,null,null,null,null,null,null,"","","","","","","","","","",null,null,"",{"$f":"IF(GM61=\"\",\"\",IF(GM61<=10,OrdeUP10(GM61),\"\"))","v":""},"",""]
[null,null,null,null,null,null,null,null,null,null,null,null,null,null,null,null,null,null,null,null,null,null,null,null,null,null,null,null,null,null,null,null,null,null,null,null,null,null,null,null,null,null,null,null,null,null,null,null,null,null,null,"","",null,null,"نسبة الرسوب",{"$f":"IF(BE59=0,\"\",BE59/BG58)","v":1},null,null,null,null,null,null,null,null,null,null,null,null,null,null,null,null,null,null,null,null,null,null,null,null,null,null,null,null,null,null,null,null,null,null,null,null,null,null,null,null,null,null,null,null,null,null,null,null,null,null,null,null,null,null,null,null,null,null,null,null,null,null,null,null,null,null,null,null,null,null,null,null,null,null,null,null,null,null,null,null,null,null,null,null,null,null,null,null,null,null,null,null,null,null,null,null,null,null,null,null,null,null,null,null,null,null,null,null,null,null,null,null,null,null,null,null,null,null,null,null,null,null,null,null,null,"","","","","","","","","","",null,null,"",{"$f":"IF(GM62=\"\",\"\",IF(GM62<=10,OrdeUP10(GM62),\"\"))","v":""},"",""]
[null,null,null,null,null,null,null,null,null,null,null,null,null,null,null,null,null,null,null,null,null,null,null,null,null,null,null,null,null,null,null,null,null,null,null,null,null,null,null,null,null,null,null,null,null,null,null,null,null,null,null,"","",null,null,null,null,null,null,null,null,null,null,null,null,null,null,null,null,null,null,null,null,null,null,null,null,null,null,null,null,null,null,null,null,null,null,null,null,null,null,null,null,null,null,null,null,null,null,null,null,null,null,null,null,null,null,null,null,null,null,null,null,null,null,null,null,null,null,null,null,null,null,null,null,null,null,null,null,null,null,null,null,null,null,null,null,null,null,null,null,null,null,null,null,null,null,null,null,null,null,null,null,null,null,null,null,null,null,null,null,null,null,null,null,null,null,null,null,null,null,null,null,null,null,null,null,null,null,null,null,null,"","","","","","","","","","",null,null,"",{"$f":"IF(GM63=\"\",\"\",IF(GM63<=10,OrdeUP10(GM63),\"\"))","v":""},"",""]
[null,null,null,null,null,null,null,null,null,null,null,null,null,null,null,null,null,null,null,null,null,null,null,null,null,null,null,null,null,null,null,null,null,null,null,null,null,null,null,null,null,null,null,null,null,null,null,null,null,null,null,"","",null,null,null,null,null,null,null,null,null,null,null,null,null,null,null,null,null,null,null,null,null,null,null,null,null,null,null,null,null,null,null,null,null,null,null,null,null,null,null,null,null,null,null,null,null,null,null,null,null,null,null,null,null,null,null,null,null,null,null,null,null,null,null,null,null,null,null,null,null,null,null,null,null,null,null,null,null,null,null,null,null,null,null,null,null,null,null,null,null,null,null,null,null,null,null,null,null,null,null,null,null,null,null,null,null,null,null,null,null,null,null,null,null,null,null,null,null,null,null,null,null,null,null,null,null,null,null,null,null,"","","","","","","","","","",null,null,"",{"$f":"IF(GM64=\"\",\"\",IF(GM64<=10,OrdeUP10(GM64),\"\"))","v":""},"",""]
[null,null,null,null,null,null,null,null,null,null,null,null,null,null,null,null,null,null,null,null,null,null,null,null,null,null,null,null,null,null,null,null,null,null,null,null,null,null,null,null,null,null,null,null,null,null,null,null,null,null,null,"","",null,null,null,null,null,null,null,null,null,null,null,null,null,null,null,null,null,null,null,null,null,null,null,null,null,null,null,null,null,null,null,null,null,null,null,null,null,null,null,null,null,null,null,null,null,null,null,null,null,null,null,null,null,null,null,null,null,null,null,null,null,null,null,null,null,null,null,null,null,null,null,null,null,null,null,null,null,null,null,null,null,null,null,null,null,null,null,null,null,null,null,null,null,null,null,null,null,null,null,null,null,null,null,null,null,null,null,null,null,null,null,null,null,null,null,null,null,null,null,null,null,null,null,null,null,null,null,null,null,"","","","","","","","","","",null,null,"",{"$f":"IF(GM65=\"\",\"\",IF(GM65<=10,OrdeUP10(GM65),\"\"))","v":""},"",""]
[null,null,null,null,null,null,null,null,null,null,null,null,null,null,null,null,null,null,null,null,null,null,null,null,null,null,null,null,null,null,null,null,null,null,null,null,null,null,null,null,null,null,null,null,null,null,null,null,null,null,null,"","",null,null,null,null,null,null,null,null,null,null,null,null,null,null,null,null,null,null,null,null,null,null,null,null,null,null,null,null,null,null,null,null,null,null,null,null,null,null,null,null,null,null,null,null,null,null,null,null,null,null,null,null,null,null,null,null,null,null,null,null,null,null,null,null,null,null,null,null,null,null,null,null,null,null,null,null,null,null,null,null,null,null,null,null,null,null,null,null,null,null,null,null,null,null,null,null,null,null,null,null,null,null,null,null,null,null,null,null,null,null,null,null,null,null,null,null,null,null,null,null,null,null,null,null,null,null,null,null,null,"","","","","","","","","","",null,null,"",{"$f":"IF(GM66=\"\",\"\",IF(GM66<=10,OrdeUP10(GM66),\"\"))","v":""},"",""]
[null,null,null,null,null,null,null,null,null,null,null,null,null,null,null,null,null,null,null,null,null,null,null,null,null,null,null,null,null,null,null,null,null,null,null,null,null,null,null,null,null,null,null,null,null,null,null,null,null,null,null,"","",null,null,null,null,null,null,null,null,null,null,null,null,null,null,null,null,null,null,null,null,null,null,null,null,null,null,null,null,null,null,null,null,null,null,null,null,null,null,null,null,null,null,null,null,null,null,null,null,null,null,null,null,null,null,null,null,null,null,null,null,null,null,null,null,null,null,null,null,null,null,null,null,null,null,null,null,null,null,null,null,null,null,null,null,null,null,null,null,null,null,null,null,null,null,null,null,null,null,null,null,null,null,null,null,null,null,null,null,null,null,null,null,null,null,null,null,null,null,null,null,null,null,null,null,null,null,null,null,null,"","","","","","","","","","",null,null,"",{"$f":"IF(GM67=\"\",\"\",IF(GM67<=10,OrdeUP10(GM67),\"\"))","v":""},"",""]
[null,null,null,null,null,null,null,null,null,null,null,null,null,null,null,null,null,null,null,null,null,null,null,null,null,null,null,null,null,null,null,null,null,null,null,null,null,null,null,null,null,null,null,null,null,null,null,null,null,null,null,"","",null,null,null,null,null,null,null,null,null,null,null,null,null,null,null,null,null,null,null,null,null,null,null,null,null,null,null,null,null,null,null,null,null,null,null,null,null,null,null,null,null,null,null,null,null,null,null,null,null,null,null,null,null,null,null,null,null,null,null,null,null,null,null,null,null,null,null,null,null,null,null,null,null,null,null,null,null,null,null,null,null,null,null,null,null,null,null,null,null,null,null,null,null,null,null,null,null,null,null,null,null,null,null,null,null,null,null,null,null,null,null,null,null,null,null,null,null,null,null,null,null,null,null,null,null,null,null,null,null,"","","","","","","","","","",null,null,"",{"$f":"IF(GM68=\"\",\"\",IF(GM68<=10,OrdeUP10(GM68),\"\"))","v":""},"",""]
[null,null,null,null,null,null,null,null,null,null,null,null,null,null,null,null,null,null,null,null,null,null,null,null,null,null,null,null,null,null,null,null,null,null,null,null,null,null,null,null,null,null,null,null,null,null,null,null,null,null,null,"","",null,null,null,null,null,null,null,null,null,null,null,null,null,null,null,null,null,null,null,null,null,null,null,null,null,null,null,null,null,null,null,null,null,null,null,null,null,null,null,null,null,null,null,null,null,null,null,null,null,null,null,null,null,null,null,null,null,null,null,null,null,null,null,null,null,null,null,null,null,null,null,null,null,null,null,null,null,null,null,null,null,null,null,null,null,null,null,null,null,null,null,null,null,null,null,null,null,null,null,null,null,null,null,null,null,null,null,null,null,null,null,null,null,null,null,null,null,null,null,null,null,null,null,null,null,null,null,null,null,"","","","","","","","","","",null,null,"",{"$f":"IF(GM69=\"\",\"\",IF(GM69<=10,OrdeUP10(GM69),\"\"))","v":""},"",""]
[null,null,null,null,null,null,null,null,null,null,null,null,null,null,null,null,null,null,null,null,null,null,null,null,null,null,null,null,null,null,null,null,null,null,null,null,null,null,null,null,null,null,null,null,null,null,null,null,null,null,null,"","",null,null,null,null,null,null,null,null,null,null,null,null,null,null,null,null,null,null,null,null,null,null,null,null,null,null,null,null,null,null,null,null,null,null,null,null,null,null,null,null,null,null,null,null,null,null,null,null,null,null,null,null,null,null,null,null,null,null,null,null,null,null,null,null,null,null,null,null,null,null,null,null,null,null,null,null,null,null,null,null,null,null,null,null,null,null,null,null,null,null,null,null,null,null,null,null,null,null,null,null,null,null,null,null,null,null,null,null,null,null,null,null,null,null,null,null,null,null,null,null,null,null,null,null,null,null,null,null,null,"","","","","","","","","","",null,null,"",{"$f":"IF(GM70=\"\",\"\",IF(GM70<=10,OrdeUP10(GM70),\"\"))","v":""},"",""]
[null,null,null,null,null,null,null,null,null,null,null,null,null,null,null,null,null,null,null,null,null,null,null,null,null,null,null,null,null,null,null,null,null,null,null,null,null,null,null,null,null,null,null,null,null,null,null,null,null,null,null,{"$f":"IF(AND(B71>0,C71<>\"\"),IF(AND(BA71=\"ناجح\"),AX71+AL71+AF71+T71+N71+H71,\"-\"),\"\")","v":""},{"$f":"IF(OR(B71<=0,C71=\"\"),\"\",IF(OR(H71=0,N71=0,T71=0,AF71=0,AL71=0,AX71=0),\"غائب\",IF(OR(H71<50,N71<50,T71<50,AF71<50,AL71<50,AX71<50),\"راسب\",IF(AND(H71>=50,N71>49,T71>=50,AF71>=50,AL71>=50,AX71>=50),\"ناجح\",\"\"))))","v":""},null,null,null,null,null,null,null,null,null,null,null,null,null,null,null,null,null,null,null,null,null,null,null,null,null,null,null,null,null,null,null,null,null,null,null,null,null,null,null,null,null,null,null,null,null,null,null,null,null,null,null,null,null,null,null,null,null,null,null,null,null,null,null,null,null,null,null,null,null,null,null,null,null,null,null,null,null,null,null,null,null,null,null,null,null,null,null,null,null,null,null,null,null,null,null,null,null,null,null,null,null,null,null,null,null,null,null,null,null,null,null,null,null,null,null,null,null,null,null,null,null,null,null,null,null,null,null,null,null,{"$f":"IF(E71=\"غ\",0,IF(E71=\"\",\"\",SUM(D71:E71)))","v":""},{"$f":"IF(K71=\"غ\",0,IF(K71=\"\",\"\",SUM(J71:K71)))","v":""},{"$f":"IF(Q71=\"غ\",0,IF(Q71=\"\",\"\",SUM(P71:Q71)))","v":""},{"$f":"IF(W71=\"غ\",0,IF(W71=\"\",\"\",SUM(V71:W71)))","v":""},{"$f":"IF(AC71=\"غ\",0,IF(AC71=\"\",\"\",SUM(AB71:AC71)))","v":""},{"$f":"IF(AI71=\"غ\",0,IF(AI71=\"\",\"\",SUM(AH71:AI71)))","v":""},{"$f":"IF(AO71=\"غ\",0,IF(AO71=\"\",\"\",SUM(AN71:AO71)))","v":""},{"$f":"IF(AU71=\"غ\",0,IF(AU71=\"\",\"\",SUM(AT71:AU71)))","v":""},{"$f":"IF(OR(B71=\"\",GJ71=\"\"),\"\",IF(OR(GJ71=\"غائب\",GJ71=\"غائبة\",GJ71=\"راسب\",GJ71=\"راسبة\"),\"-\",SUM(GA71:GH71)))","v":""},{"$f":"IF(B71=\"\",\"\",IF(OR(GA71=0,GB71=0,GC71=0,GE71=0,GF71=0,GH71=0),\"غائب\",IF(OR(GA71<25,GB71<25,GC71<25,GE71<25,GF71<25,GH71<25),\"راسب\",IF(AND(GA71>=25,GB71>=25,GC71>=25,GE71>=25,GF71>=25,GH71>=25),\"ناجح\",\"\"))))","v":""},null,null,{"$f":"IF(OR(AZ71=\"\",AZ71=\"-\"),\"\",_xlfn.RANK.EQ(AZ71,$AZ$6:$AZ$196,0))","v":""},{"$f":"IF(GM71=\"\",\"\",IF(GM71<=10,OrdeUP10(GM71),\"\"))","v":""},{"$f":"IF(OR(GI71=\"\",GI71=\"-\"),\"\",_xlfn.RANK.EQ(GI71,$GI$6:$GI$196,0))","v":""},""]
[null,null,null,null,null,null,null,null,null,null,null,null,null,null,null,null,null,null,null,null,null,null,null,null,null,null,null,null,null,null,null,null,null,null,null,null,null,null,null,null,null,null,null,null,null,null,null,null,null,null,null,"","",null,null,null,null,null,null,null,null,null,null,null,null,null,null,null,null,null,null,null,null,null,null,null,null,null,null,null,null,null,null,null,null,null,null,null,null,null,null,null,null,null,null,null,null,null,null,null,null,null,null,null,null,null,null,null,null,null,null,null,null,null,null,null,null,null,null,null,null,null,null,null,null,null,null,null,null,null,null,null,null,null,null,null,null,null,null,null,null,null,null,null,null,null,null,null,null,null,null,null,null,null,null,null,null,null,null,null,null,null,null,null,null,null,null,null,null,null,null,null,null,null,null,null,null,null,null,null,null,null,"","","","","","","","","","",null,null,"",{"$f":"IF(GM72=\"\",\"\",IF(GM72<=10,OrdeUP10(GM72),\"\"))","v":""},"",""]
[null,null,null,null,null,null,null,null,null,null,null,null,null,null,null,null,null,null,null,null,null,null,null,null,null,null,null,null,null,null,null,null,null,null,null,null,null,null,null,null,null,null,null,null,null,null,null,null,null,null,null,"","",null,null,null,null,null,null,null,null,null,null,null,null,null,null,null,null,null,null,null,null,null,null,null,null,null,null,null,null,null,null,null,null,null,null,null,null,null,null,null,null,null,null,null,null,null,null,null,null,null,null,null,null,null,null,null,null,null,null,null,null,null,null,null,null,null,null,null,null,null,null,null,null,null,null,null,null,null,null,null,null,null,null,null,null,null,null,null,null,null,null,null,null,null,null,null,null,null,null,null,null,null,null,null,null,null,null,null,null,null,null,null,null,null,null,null,null,null,null,null,null,null,null,null,null,null,null,null,null,null,"","","","","","","","","","",null,null,"",{"$f":"IF(GM73=\"\",\"\",IF(GM73<=10,OrdeUP10(GM73),\"\"))","v":""},"",""]
[null,null,null,null,null,null,null,null,null,null,null,null,null,null,null,null,null,null,null,null,null,null,null,null,null,null,null,null,null,null,null,null,null,null,null,null,null,null,null,null,null,null,null,null,null,null,null,null,null,null,null,"","",null,null,null,null,null,null,null,null,null,null,null,null,null,null,null,null,null,null,null,null,null,null,null,null,null,null,null,null,null,null,null,null,null,null,null,null,null,null,null,null,null,null,null,null,null,null,null,null,null,null,null,null,null,null,null,null,null,null,null,null,null,null,null,null,null,null,null,null,null,null,null,null,null,null,null,null,null,null,null,null,null,null,null,null,null,null,null,null,null,null,null,null,null,null,null,null,null,null,null,null,null,null,null,null,null,null,null,null,null,null,null,null,null,null,null,null,null,null,null,null,null,null,null,null,null,null,null,null,null,"","","","","","","","","","",null,null,"",{"$f":"IF(GM74=\"\",\"\",IF(GM74<=10,OrdeUP10(GM74),\"\"))","v":""},"",""]
[null,null,null,null,null,null,null,null,null,null,null,null,null,null,null,null,null,null,null,null,null,null,null,null,null,null,null,null,null,null,null,null,null,null,null,null,null,null,null,null,null,null,null,null,null,null,null,null,null,null,null,"","",null,null,null,null,null,null,null,null,null,null,null,null,null,null,null,null,null,null,null,null,null,null,null,null,null,null,null,null,null,null,null,null,null,null,null,null,null,null,null,null,null,null,null,null,null,null,null,null,null,null,null,null,null,null,null,null,null,null,null,null,null,null,null,null,null,null,null,null,null,null,null,null,null,null,null,null,null,null,null,null,null,null,null,null,null,null,null,null,null,null,null,null,null,null,null,null,null,null,null,null,null,null,null,null,null,null,null,null,null,null,null,null,null,null,null,null,null,null,null,null,null,null,null,null,null,null,null,null,null,"","","","","","","","","","",null,null,"",{"$f":"IF(GM75=\"\",\"\",IF(GM75<=10,OrdeUP10(GM75),\"\"))","v":""},"",""]
[null,null,null,null,null,null,null,null,null,null,null,null,null,null,null,null,null,null,null,null,null,null,null,null,null,null,null,null,null,null,null,null,null,null,null,null,null,null,null,null,null,null,null,null,null,null,null,null,null,null,null,"","",null,null,null,null,null,null,null,null,null,null,null,null,null,null,null,null,null,null,null,null,null,null,null,null,null,null,null,null,null,null,null,null,null,null,null,null,null,null,null,null,null,null,null,null,null,null,null,null,null,null,null,null,null,null,null,null,null,null,null,null,null,null,null,null,null,null,null,null,null,null,null,null,null,null,null,null,null,null,null,null,null,null,null,null,null,null,null,null,null,null,null,null,null,null,null,null,null,null,null,null,null,null,null,null,null,null,null,null,null,null,null,null,null,null,null,null,null,null,null,null,null,null,null,null,null,null,null,null,null,"","","","","","","","","","",null,null,"",{"$f":"IF(GM76=\"\",\"\",IF(GM76<=10,OrdeUP10(GM76),\"\"))","v":""},"",""]
[null,null,null,null,null,null,null,null,null,null,null,null,null,null,null,null,null,null,null,null,null,null,null,null,null,null,null,null,null,null,null,null,null,null,null,null,null,null,null,null,null,null,null,null,null,null,null,null,null,null,null,"","",null,null,null,null,null,null,null,null,null,null,null,null,null,null,null,null,null,null,null,null,null,null,null,null,null,null,null,null,null,null,null,null,null,null,null,null,null,null,null,null,null,null,null,null,null,null,null,null,null,null,null,null,null,null,null,null,null,null,null,null,null,null,null,null,null,null,null,null,null,null,null,null,null,null,null,null,null,null,null,null,null,null,null,null,null,null,null,null,null,null,null,null,null,null,null,null,null,null,null,null,null,null,null,null,null,null,null,null,null,null,null,null,null,null,null,null,null,null,null,null,null,null,null,null,null,null,null,null,null,"","","","","","","","","","",null,null,"",{"$f":"IF(GM77=\"\",\"\",IF(GM77<=10,OrdeUP10(GM77),\"\"))","v":""},"",""]
[null,null,null,null,null,null,null,null,null,null,null,null,null,null,null,null,null,null,null,null,null,null,null,null,null,null,null,null,null,null,null,null,null,null,null,null,null,null,null,null,null,null,null,null,null,null,null,null,null,null,null,"","",null,null,null,null,null,null,null,null,null,null,null,null,null,null,null,null,null,null,null,null,null,null,null,null,null,null,null,null,null,null,null,null,null,null,null,null,null,null,null,null,null,null,null,null,null,null,null,null,null,null,null,null,null,null,null,null,null,null,null,null,null,null,null,null,null,null,null,null,null,null,null,null,null,null,null,null,null,null,null,null,null,null,null,null,null,null,null,null,null,null,null,null,null,null,null,null,null,null,null,null,null,null,null,null,null,null,null,null,null,null,null,null,null,null,null,null,null,null,null,null,null,null,null,null,null,null,null,null,null,"","","","","","","","","","",null,null,"",{"$f":"IF(GM78=\"\",\"\",IF(GM78<=10,OrdeUP10(GM78),\"\"))","v":""},"",""]
[null,null,null,null,null,null,null,null,null,null,null,null,null,null,null,null,null,null,null,null,null,null,null,null,null,null,null,null,null,null,null,null,null,null,null,null,null,null,null,null,null,null,null,null,null,null,null,null,null,null,null,"","",null,null,null,null,null,null,null,null,null,null,null,null,null,null,null,null,null,null,null,null,null,null,null,null,null,null,null,null,null,null,null,null,null,null,null,null,null,null,null,null,null,null,null,null,null,null,null,null,null,null,null,null,null,null,null,null,null,null,null,null,null,null,null,null,null,null,null,null,null,null,null,null,null,null,null,null,null,null,null,null,null,null,null,null,null,null,null,null,null,null,null,null,null,null,null,null,null,null,null,null,null,null,null,null,null,null,null,null,null,null,null,null,null,null,null,null,null,null,null,null,null,null,null,null,null,null,null,null,null,"","","","","","","","","","",null,null,"",{"$f":"IF(GM79=\"\",\"\",IF(GM79<=10,OrdeUP10(GM79),\"\"))","v":""},"",""]
[null,null,null,null,null,null,null,null,null,null,null,null,null,null,null,null,null,null,null,null,null,null,null,null,null,null,null,null,null,null,null,null,null,null,null,null,null,null,null,null,null,null,null,null,null,null,null,null,null,null,null,"","",null,null,null,null,null,null,null,null,null,null,null,null,null,null,null,null,null,null,null,null,null,null,null,null,null,null,null,null,null,null,null,null,null,null,null,null,null,null,null,null,null,null,null,null,null,null,null,null,null,null,null,null,null,null,null,null,null,null,null,null,null,null,null,null,null,null,null,null,null,null,null,null,null,null,null,null,null,null,null,null,null,null,null,null,null,null,null,null,null,null,null,null,null,null,null,null,null,null,null,null,null,null,null,null,null,null,null,null,null,null,null,null,null,null,null,null,null,null,null,null,null,null,null,null,null,null,null,null,null,"","","","","","","","","","",null,null,"",{"$f":"IF(GM80=\"\",\"\",IF(GM80<=10,OrdeUP10(GM80),\"\"))","v":""},"",""]
[null,null,null,null,null,null,null,null,null,null,null,null,null,null,null,null,null,null,null,null,null,null,null,null,null,null,null,null,null,null,null,null,null,null,null,null,null,null,null,null,null,null,null,null,null,null,null,null,null,null,null,"","",null,null,null,null,null,null,null,null,null,null,null,null,null,null,null,null,null,null,null,null,null,null,null,null,null,null,null,null,null,null,null,null,null,null,null,null,null,null,null,null,null,null,null,null,null,null,null,null,null,null,null,null,null,null,null,null,null,null,null,null,null,null,null,null,null,null,null,null,null,null,null,null,null,null,null,null,null,null,null,null,null,null,null,null,null,null,null,null,null,null,null,null,null,null,null,null,null,null,null,null,null,null,null,null,null,null,null,null,null,null,null,null,null,null,null,null,null,null,null,null,null,null,null,null,null,null,null,null,null,"","","","","","","","","","",null,null,"",{"$f":"IF(GM81=\"\",\"\",IF(GM81<=10,OrdeUP10(GM81),\"\"))","v":""},"",""]
[null,null,null,null,null,null,null,null,null,null,null,null,null,null,null,null,null,null,null,null,null,null,null,null,null,null,null,null,null,null,null,null,null,null,null,null,null,null,null,null,null,null,null,null,null,null,null,null,null,null,null,"","",null,null,null,null,null,null,null,null,null,null,null,null,null,null,null,null,null,null,null,null,null,null,null,null,null,null,null,null,null,null,null,null,null,null,null,null,null,null,null,null,null,null,null,null,null,null,null,null,null,null,null,null,null,null,null,null,null,null,null,null,null,null,null,null,null,null,null,null,null,null,null,null,null,null,null,null,null,null,null,null,null,null,null,null,null,null,null,null,null,null,null,null,null,null,null,null,null,null,null,null,null,null,null,null,null,null,null,null,null,null,null,null,null,null,null,null,null,null,null,null,null,null,null,null,null,null,null,null,null,"","","","","","","","","","",null,null,"",{"$f":"IF(GM82=\"\",\"\",IF(GM82<=10,OrdeUP10(GM82),\"\"))","v":""},"",""]
[null,null,null,null,null,null,null,null,null,null,null,null,null,null,null,null,null,null,null,null,null,null,null,null,null,null,null,null,null,null,null,null,null,null,null,null,null,null,null,null,null,null,null,null,null,null,null,null,null,null,null,"","",null,null,null,null,null,null,null,null,null,null,null,null,null,null,null,null,null,null,null,null,null,null,null,null,null,null,null,null,null,null,null,null,null,null,null,null,null,null,null,null,null,null,null,null,null,null,null,null,null,null,null,null,null,null,null,null,null,null,null,null,null,null,null,null,null,null,null,null,null,null,null,null,null,null,null,null,null,null,null,null,null,null,null,null,null,null,null,null,null,null,null,null,null,null,null,null,null,null,null,null,null,null,null,null,null,null,null,null,null,null,null,null,null,null,null,null,null,null,null,null,null,null,null,null,null,null,null,null,null,"","","","","","","","","","",null,null,"",{"$f":"IF(GM83=\"\",\"\",IF(GM83<=10,OrdeUP10(GM83),\"\"))","v":""},"",""]
[null,null,null,null,null,null,null,null,null,null,null,null,null,null,null,null,null,null,null,null,null,null,null,null,null,null,null,null,null,null,null,null,null,null,null,null,null,null,null,null,null,null,null,null,null,null,null,null,null,null,null,"","",null,null,null,null,null,null,null,null,null,null,null,null,null,null,null,null,null,null,null,null,null,null,null,null,null,null,null,null,null,null,null,null,null,null,null,null,null,null,null,null,null,null,null,null,null,null,null,null,null,null,null,null,null,null,null,null,null,null,null,null,null,null,null,null,null,null,null,null,null,null,null,null,null,null,null,null,null,null,null,null,null,null,null,null,null,null,null,null,null,null,null,null,null,null,null,null,null,null,null,null,null,null,null,null,null,null,null,null,null,null,null,null,null,null,null,null,null,null,null,null,null,null,null,null,null,null,null,null,null,"","","","","","","","","","",null,null,"",{"$f":"IF(GM84=\"\",\"\",IF(GM84<=10,OrdeUP10(GM84),\"\"))","v":""},"",""]
[null,null,null,null,null,null,null,null,null,null,null,null,null,null,null,null,null,null,null,null,null,null,null,null,null,null,null,null,null,null,null,null,null,null,null,null,null,null,null,null,null,null,null,null,null,null,null,null,null,null,null,"","",null,null,null,null,null,null,null,null,null,null,null,null,null,null,null,null,null,null,null,null,null,null,null,null,null,null,null,null,null,null,null,null,null,null,null,null,null,null,null,null,null,null,null,null,null,null,null,null,null,null,null,null,null,null,null,null,null,null,null,null,null,null,null,null,null,null,null,null,null,null,null,null,null,null,null,null,null,null,null,null,null,null,null,null,null,null,null,null,null,null,null,null,null,null,null,null,null,null,null,null,null,null,null,null,null,null,null,null,null,null,null,null,null,null,null,null,null,null,null,null,null,null,null,null,null,null,null,null,null,"","","","","","","","","","",null,null,"",{"$f":"IF(GM85=\"\",\"\",IF(GM85<=10,OrdeUP10(GM85),\"\"))","v":""},"",""]
[null,null,null,null,null,null,null,null,null,null,null,null,null,null,null,null,null,null,null,null,null,null,null,null,null,null,null,null,null,null,null,null,null,null,null,null,null,null,null,null,null,null,null,null,null,null,null,null,null,null,null,"","",null,null,null,null,null,null,null,null,null,null,null,null,null,null,null,null,null,null,null,null,null,null,null,null,null,null,null,null,null,null,null,null,null,null,null,null,null,null,null,null,null,null,null,null,null,null,null,null,null,null,null,null,null,null,null,null,null,null,null,null,null,null,null,null,null,null,null,null,null,null,null,null,null,null,null,null,null,null,null,null,null,null,null,null,null,null,null,null,null,null,null,null,null,null,null,null,null,null,null,null,null,null,null,null,null,null,null,null,null,null,null,null,null,null,null,null,null,null,null,null,null,null,null,null,null,null,null,null,null,"","","","","","","","","","",null,null,"",{"$f":"IF(GM86=\"\",\"\",IF(GM86<=10,OrdeUP10(GM86),\"\"))","v":""},"",""]
[null,null,null,null,null,null,null,null,null,null,null,null,null,null,null,null,null,null,null,null,null,null,null,null,null,null,null,null,null,null,null,null,null,null,null,null,null,null,null,null,null,null,null,null,null,null,null,null,null,null,null,"","",null,null,null,null,null,null,null,null,null,null,null,null,null,null,null,null,null,null,null,null,null,null,null,null,null,null,null,null,null,null,null,null,null,null,null,null,null,null,null,null,null,null,null,null,null,null,null,null,null,null,null,null,null,null,null,null,null,null,null,null,null,null,null,null,null,null,null,null,null,null,null,null,null,null,null,null,null,null,null,null,null,null,null,null,null,null,null,null,null,null,null,null,null,null,null,null,null,null,null,null,null,null,null,null,null,null,null,null,null,null,null,null,null,null,null,null,null,null,null,null,null,null,null,null,null,null,null,null,null,"","","","","","","","","","",null,null,"",{"$f":"IF(GM87=\"\",\"\",IF(GM87<=10,OrdeUP10(GM87),\"\"))","v":""},"",""]
[null,null,null,null,null,null,null,null,null,null,null,null,null,null,null,null,null,null,null,null,null,null,null,null,null,null,null,null,null,null,null,null,null,null,null,null,null,null,null,null,null,null,null,null,null,null,null,null,null,null,null,"","",null,null,null,null,null,null,null,null,null,null,null,null,null,null,null,null,null,null,null,null,null,null,null,null,null,null,null,null,null,null,null,null,null,null,null,null,null,null,null,null,null,null,null,null,null,null,null,null,null,null,null,null,null,null,null,null,null,null,null,null,null,null,null,null,null,null,null,null,null,null,null,null,null,null,null,null,null,null,null,null,null,null,null,null,null,null,null,null,null,null,null,null,null,null,null,null,null,null,null,null,null,null,null,null,null,null,null,null,null,null,null,null,null,null,null,null,null,null,null,null,null,null,null,null,null,null,null,null,null,"","","","","","","","","","",null,null,"",{"$f":"IF(GM88=\"\",\"\",IF(GM88<=10,OrdeUP10(GM88),\"\"))","v":""},"",""]
[null,null,null,null,null,null,null,null,null,null,null,null,null,null,null,null,null,null,null,null,null,null,null,null,null,null,null,null,null,null,null,null,null,null,null,null,null,null,null,null,null,null,null,null,null,null,null,null,null,null,null,"","",null,null,null,null,null,null,null,null,null,null,null,null,null,null,null,null,null,null,null,null,null,null,null,null,null,null,null,null,null,null,null,null,null,null,null,null,null,null,null,null,null,null,null,null,null,null,null,null,null,null,null,null,null,null,null,null,null,null,null,null,null,null,null,null,null,null,null,null,null,null,null,null,null,null,null,null,null,null,null,null,null,null,null,null,null,null,null,null,null,null,null,null,null,null,null,null,null,null,null,null,null,null,null,null,null,null,null,null,null,null,null,null,null,null,null,null,null,null,null,null,null,null,null,null,null,null,null,null,null,"","","","","","","","","","",null,null,"",{"$f":"IF(GM89=\"\",\"\",IF(GM89<=10,OrdeUP10(GM89),\"\"))","v":""},"",""]
[null,null,null,null,null,null,null,null,null,null,null,null,null,null,null,null,null,null,null,null,null,null,null,null,null,null,null,null,null,null,null,null,null,null,null,null,null,null,null,null,null,null,null,null,null,null,null,null,null,null,null,"","",null,null,null,null,null,null,null,null,null,null,null,null,null,null,null,null,null,null,null,null,null,null,null,null,null,null,null,null,null,null,null,null,null,null,null,null,null,null,null,null,null,null,null,null,null,null,null,null,null,null,null,null,null,null,null,null,null,null,null,null,null,null,null,null,null,null,null,null,null,null,null,null,null,null,null,null,null,null,null,null,null,null,null,null,null,null,null,null,null,null,null,null,null,null,null,null,null,null,null,null,null,null,null,null,null,null,null,null,null,null,null,null,null,null,null,null,null,null,null,null,null,null,null,null,null,null,null,null,null,"","","","","","","","","","",null,null,"",{"$f":"IF(GM90=\"\",\"\",IF(GM90<=10,OrdeUP10(GM90),\"\"))","v":""},"",""]
[null,null,null,null,null,null,null,null,null,null,null,null,null,null,null,null,null,null,null,null,null,null,null,null,null,null,null,null,null,null,null,null,null,null,null,null,null,null,null,null,null,null,null,null,null,null,null,null,null,null,null,"",{"$f":"IF(OR(B91<=0,C91=\"\"),\"\",IF(OR(H91=0,N91=0,T91=0,AF91=0,AL91=0,AX91=0),\"غائب\",IF(OR(H91<50,N91<50,T91<50,AF91<50,AL91<50,AX91<50),\"راسب\",IF(AND(H91>=50,N91>49,T91>=50,AF91>=50,AL91>=50,AX91>=50),\"ناجح\",\"\"))))","v":""},null,null,null,null,null,null,null,null,null,null,null,null,null,null,null,null,null,null,null,null,null,null,null,null,null,null,null,null,null,null,null,null,null,null,null,null,null,null,null,null,null,null,null,null,null,null,null,null,null,null,null,null,null,null,null,null,null,null,null,null,null,null,null,null,null,null,null,null,null,null,null,null,null,null,null,null,null,null,null,null,null,null,null,null,null,null,null,null,null,null,null,null,null,null,null,null,null,null,null,null,null,null,null,null,null,null,null,null,null,null,null,null,null,null,null,null,null,null,null,null,null,null,null,null,null,null,null,null,null,"","","","","","","","","","",null,null,"",{"$f":"IF(GM91=\"\",\"\",IF(GM91<=10,OrdeUP10(GM91),\"\"))","v":""},"",""]
[null,null,null,null,null,null,null,null,null,null,null,null,null,null,null,null,null,null,null,null,null,null,null,null,null,null,null,null,null,null,null,null,null,null,null,null,null,null,null,null,null,null,null,null,null,null,null,null,null,null,null,"",{"$f":"IF(OR(B92<=0,C92=\"\"),\"\",IF(OR(H92=0,N92=0,T92=0,AF92=0,AL92=0,AX92=0),\"غائب\",IF(OR(H92<50,N92<50,T92<50,AF92<50,AL92<50,AX92<50),\"راسب\",IF(AND(H92>=50,N92>49,T92>=50,AF92>=50,AL92>=50,AX92>=50),\"ناجح\",\"\"))))","v":""},null,null,null,null,null,null,null,null,null,null,null,null,null,null,null,null,null,null,null,null,null,null,null,null,null,null,null,null,null,null,null,null,null,null,null,null,null,null,null,null,null,null,null,null,null,null,null,null,null,null,null,null,null,null,null,null,null,null,null,null,null,null,null,null,null,null,null,null,null,null,null,null,null,null,null,null,null,null,null,null,null,null,null,null,null,null,null,null,null,null,null,null,null,null,null,null,null,null,null,null,null,null,null,null,null,null,null,null,null,null,null,null,null,null,null,null,null,null,null,null,null,null,null,null,null,null,null,null,null,"","","","","","","","","","",null,null,"",{"$f":"IF(GM92=\"\",\"\",IF(GM92<=10,OrdeUP10(GM92),\"\"))","v":""},"",""]
[null,null,null,null,null,null,null,null,null,null,null,null,null,null,null,null,null,null,null,null,null,null,null,null,null,null,null,null,null,null,null,null,null,null,null,null,null,null,null,null,null,null,null,null,null,null,null,null,null,null,null,"","",null,null,null,null,null,null,null,null,null,null,null,null,null,null,null,null,null,null,null,null,null,null,null,null,null,null,null,null,null,null,null,null,null,null,null,null,null,null,null,null,null,null,null,null,null,null,null,null,null,null,null,null,null,null,null,null,null,null,null,null,null,null,null,null,null,null,null,null,null,null,null,null,null,null,null,null,null,null,null,null,null,null,null,null,null,null,null,null,null,null,null,null,null,null,null,null,null,null,null,null,null,null,null,null,null,null,null,null,null,null,null,null,null,null,null,null,null,null,null,null,null,null,null,null,null,null,null,null,null,"","","","","","","","","","",null,null,"",{"$f":"IF(GM93=\"\",\"\",IF(GM93<=10,OrdeUP10(GM93),\"\"))","v":""},"",""]
[null,null,null,null,null,null,null,null,null,null,null,null,null,null,null,null,null,null,null,null,null,null,null,null,null,null,null,null,null,null,null,null,null,null,null,null,null,null,null,null,null,null,null,null,null,null,null,null,null,null,null,"","",null,null,null,null,null,null,null,null,null,null,null,null,null,null,null,null,null,null,null,null,null,null,null,null,null,null,null,null,null,null,null,null,null,null,null,null,null,null,null,null,null,null,null,null,null,null,null,null,null,null,null,null,null,null,null,null,null,null,null,null,null,null,null,null,null,null,null,null,null,null,null,null,null,null,null,null,null,null,null,null,null,null,null,null,null,null,null,null,null,null,null,null,null,null,null,null,null,null,null,null,null,null,null,null,null,null,null,null,null,null,null,null,null,null,null,null,null,null,null,null,null,null,null,null,null,null,null,null,null,"","","","","","","","","","",null,null,"",{"$f":"IF(GM94=\"\",\"\",IF(GM94<=10,OrdeUP10(GM94),\"\"))","v":""},"",""]
[null,null,null,null,null,null,null,null,null,null,null,null,null,null,null,null,null,null,null,null,null,null,null,null,null,null,null,null,null,null,null,null,null,null,null,null,null,null,null,null,null,null,null,null,null,null,null,null,null,null,null,"","",null,null,null,null,null,null,null,null,null,null,null,null,null,null,null,null,null,null,null,null,null,null,null,null,null,null,null,null,null,null,null,null,null,null,null,null,null,null,null,null,null,null,null,null,null,null,null,null,null,null,null,null,null,null,null,null,null,null,null,null,null,null,null,null,null,null,null,null,null,null,null,null,null,null,null,null,null,null,null,null,null,null,null,null,null,null,null,null,null,null,null,null,null,null,null,null,null,null,null,null,null,null,null,null,null,null,null,null,null,null,null,null,null,null,null,null,null,null,null,null,null,null,null,null,null,null,null,null,null,"","","","","","","","","","",null,null,"",{"$f":"IF(GM95=\"\",\"\",IF(GM95<=10,OrdeUP10(GM95),\"\"))","v":""},"",""]
[null,null,null,null,null,null,null,null,null,null,null,null,null,null,null,null,null,null,null,null,null,null,null,null,null,null,null,null,null,null,null,null,null,null,null,null,null,null,null,null,null,null,null,null,null,null,null,null,null,null,null,"","",null,null,null,null,null,null,null,null,null,null,null,null,null,null,null,null,null,null,null,null,null,null,null,null,null,null,null,null,null,null,null,null,null,null,null,null,null,null,null,null,null,null,null,null,null,null,null,null,null,null,null,null,null,null,null,null,null,null,null,null,null,null,null,null,null,null,null,null,null,null,null,null,null,null,null,null,null,null,null,null,null,null,null,null,null,null,null,null,null,null,null,null,null,null,null,null,null,null,null,null,null,null,null,null,null,null,null,null,null,null,null,null,null,null,null,null,null,null,null,null,null,null,null,null,null,null,null,null,null,"","","","","","","","","","",null,null,"",{"$f":"IF(GM96=\"\",\"\",IF(GM96<=10,OrdeUP10(GM96),\"\"))","v":""},"",""]
[null,null,null,null,null,null,null,null,null,null,null,null,null,null,null,null,null,null,null,null,null,null,null,null,null,null,null,null,null,null,null,null,null,null,null,null,null,null,null,null,null,null,null,null,null,null,null,null,null,null,null,"","",null,null,null,null,null,null,null,null,null,null,null,null,null,null,null,null,null,null,null,null,null,null,null,null,null,null,null,null,null,null,null,null,null,null,null,null,null,null,null,null,null,null,null,null,null,null,null,null,null,null,null,null,null,null,null,null,null,null,null,null,null,null,null,null,null,null,null,null,null,null,null,null,null,null,null,null,null,null,null,null,null,null,null,null,null,null,null,null,null,null,null,null,null,null,null,null,null,null,null,null,null,null,null,null,null,null,null,null,null,null,null,null,null,null,null,null,null,null,null,null,null,null,null,null,null,null,null,null,null,"","","","","","","","","","",null,null,"",{"$f":"IF(GM97=\"\",\"\",IF(GM97<=10,OrdeUP10(GM97),\"\"))","v":""},"",""]
[null,null,null,null,null,null,null,null,null,null,null,null,null,null,null,null,null,null,null,null,null,null,null,null,null,null,null,null,null,null,null,null,null,null,null,null,null,null,null,null,null,null,null,null,null,null,null,null,null,null,null,"","",null,null,null,null,null,null,null,null,null,null,null,null,null,null,null,null,null,null,null,null,null,null,null,null,null,null,null,null,null,null,null,null,null,null,null,null,null,null,null,null,null,null,null,null,null,null,null,null,null,null,null,null,null,null,null,null,null,null,null,null,null,null,null,null,null,null,null,null,null,null,null,null,null,null,null,null,null,null,null,null,null,null,null,null,null,null,null,null,null,null,null,null,null,null,null,null,null,null,null,null,null,null,null,null,null,null,null,null,null,null,null,null,null,null,null,null,null,null,null,null,null,null,null,null,null,null,null,null,null,"","","","","","","","","","",null,null,"",{"$f":"IF(GM98=\"\",\"\",IF(GM98<=10,OrdeUP10(GM98),\"\"))","v":""},"",""]
[null,null,null,null,null,null,null,null,null,null,null,null,null,null,null,null,null,null,null,null,null,null,null,null,null,null,null,null,null,null,null,null,null,null,null,null,null,null,null,null,null,null,null,null,null,null,null,null,null,null,null,"","",null,null,null,null,null,null,null,null,null,null,null,null,null,null,null,null,null,null,null,null,null,null,null,null,null,null,null,null,null,null,null,null,null,null,null,null,null,null,null,null,null,null,null,null,null,null,null,null,null,null,null,null,null,null,null,null,null,null,null,null,null,null,null,null,null,null,null,null,null,null,null,null,null,null,null,null,null,null,null,null,null,null,null,null,null,null,null,null,null,null,null,null,null,null,null,null,null,null,null,null,null,null,null,null,null,null,null,null,null,null,null,null,null,null,null,null,null,null,null,null,null,null,null,null,null,null,null,null,null,"","","","","","","","","","",null,null,"",{"$f":"IF(GM99=\"\",\"\",IF(GM99<=10,OrdeUP10(GM99),\"\"))","v":""},"",""]
[null,null,null,null,null,null,null,null,null,null,null,null,null,null,null,null,null,null,null,null,null,null,null,null,null,null,null,null,null,null,null,null,null,null,null,null,null,null,null,null,null,null,null,null,null,null,null,null,null,null,null,"","",null,null,null,null,null,null,null,null,null,null,null,null,null,null,null,null,null,null,null,null,null,null,null,null,null,null,null,null,null,null,null,null,null,null,null,null,null,null,null,null,null,null,null,null,null,null,null,null,null,null,null,null,null,null,null,null,null,null,null,null,null,null,null,null,null,null,null,null,null,null,null,null,null,null,null,null,null,null,null,null,null,null,null,null,null,null,null,null,null,null,null,null,null,null,null,null,null,null,null,null,null,null,null,null,null,null,null,null,null,null,null,null,null,null,null,null,null,null,null,null,null,null,null,null,null,null,null,null,null,"","","","","","","","","","",null,null,"",{"$f":"IF(GM100=\"\",\"\",IF(GM100<=10,OrdeUP10(GM100),\"\"))","v":""},"",""]
[null,null,null,null,null,null,null,null,null,null,null,null,null,null,null,null,null,null,null,null,null,null,null,null,null,null,null,null,null,null,null,null,null,null,null,null,null,null,null,null,null,null,null,null,null,null,null,null,null,null,null,"","",null,null,null,null,null,null,null,null,null,null,null,null,null,null,null,null,null,null,null,null,null,null,null,null,null,null,null,null,null,null,null,null,null,null,null,null,null,null,null,null,null,null,null,null,null,null,null,null,null,null,null,null,null,null,null,null,null,null,null,null,null,null,null,null,null,null,null,null,null,null,null,null,null,null,null,null,null,null,null,null,null,null,null,null,null,null,null,null,null,null,null,null,null,null,null,null,null,null,null,null,null,null,null,null,null,null,null,null,null,null,null,null,null,null,null,null,null,null,null,null,null,null,null,null,null,null,null,null,null,"","","","","","","","","","",null,null,"",{"$f":"IF(GM101=\"\",\"\",IF(GM101<=10,OrdeUP10(GM101),\"\"))","v":""},"",""]
[null,null,null,null,null,null,null,null,null,null,null,null,null,null,null,null,null,null,null,null,null,null,null,null,null,null,null,null,null,null,null,null,null,null,null,null,null,null,null,null,null,null,null,null,null,null,null,null,null,null,null,"","",null,null,null,null,null,null,null,null,null,null,null,null,null,null,null,null,null,null,null,null,null,null,null,null,null,null,null,null,null,null,null,null,null,null,null,null,null,null,null,null,null,null,null,null,null,null,null,null,null,null,null,null,null,null,null,null,null,null,null,null,null,null,null,null,null,null,null,null,null,null,null,null,null,null,null,null,null,null,null,null,null,null,null,null,null,null,null,null,null,null,null,null,null,null,null,null,null,null,null,null,null,null,null,null,null,null,null,null,null,null,null,null,null,null,null,null,null,null,null,null,null,null,null,null,null,null,null,null,null,"","","","","","","","","","",null,null,"",{"$f":"IF(GM102=\"\",\"\",IF(GM102<=10,OrdeUP10(GM102),\"\"))","v":""},"",""]
[null,null,null,null,null,null,null,null,null,null,null,null,null,null,null,null,null,null,null,null,null,null,null,null,null,null,null,null,null,null,null,null,null,null,null,null,null,null,null,null,null,null,null,null,null,null,null,null,null,null,null,"","",null,null,null,null,null,null,null,null,null,null,null,null,null,null,null,null,null,null,null,null,null,null,null,null,null,null,null,null,null,null,null,null,null,null,null,null,null,null,null,null,null,null,null,null,null,null,null,null,null,null,null,null,null,null,null,null,null,null,null,null,null,null,null,null,null,null,null,null,null,null,null,null,null,null,null,null,null,null,null,null,null,null,null,null,null,null,null,null,null,null,null,null,null,null,null,null,null,null,null,null,null,null,null,null,null,null,null,null,null,null,null,null,null,null,null,null,null,null,null,null,null,null,null,null,null,null,null,null,null,"","","","","","","","","","",null,null,"",{"$f":"IF(GM103=\"\",\"\",IF(GM103<=10,OrdeUP10(GM103),\"\"))","v":""},"",""]
[null,null,null,null,null,null,null,null,null,null,null,null,null,null,null,null,null,null,null,null,null,null,null,null,null,null,null,null,null,null,null,null,null,null,null,null,null,null,null,null,null,null,null,null,null,null,null,null,null,null,null,"","",null,null,null,null,null,null,null,null,null,null,null,null,null,null,null,null,null,null,null,null,null,null,null,null,null,null,null,null,null,null,null,null,null,null,null,null,null,null,null,null,null,null,null,null,null,null,null,null,null,null,null,null,null,null,null,null,null,null,null,null,null,null,null,null,null,null,null,null,null,null,null,null,null,null,null,null,null,null,null,null,null,null,null,null,null,null,null,null,null,null,null,null,null,null,null,null,null,null,null,null,null,null,null,null,null,null,null,null,null,null,null,null,null,null,null,null,null,null,null,null,null,null,null,null,null,null,null,null,null,"","","","","","","","","","",null,null,"",{"$f":"IF(GM104=\"\",\"\",IF(GM104<=10,OrdeUP10(GM104),\"\"))","v":""},"",""]
[null,null,null,null,null,null,null,null,null,null,null,null,null,null,null,null,null,null,null,null,null,null,null,null,null,null,null,null,null,null,null,null,null,null,null,null,null,null,null,null,null,null,null,null,null,null,null,null,null,null,null,"","",null,null,null,null,null,null,null,null,null,null,null,null,null,null,null,null,null,null,null,null,null,null,null,null,null,null,null,null,null,null,null,null,null,null,null,null,null,null,null,null,null,null,null,null,null,null,null,null,null,null,null,null,null,null,null,null,null,null,null,null,null,null,null,null,null,null,null,null,null,null,null,null,null,null,null,null,null,null,null,null,null,null,null,null,null,null,null,null,null,null,null,null,null,null,null,null,null,null,null,null,null,null,null,null,null,null,null,null,null,null,null,null,null,null,null,null,null,null,null,null,null,null,null,null,null,null,null,null,null,"","","","","","","","","","",null,null,"",{"$f":"IF(GM105=\"\",\"\",IF(GM105<=10,OrdeUP10(GM105),\"\"))","v":""},"",""]
[null,null,"الطــــــــــــــــــــالــــــــــــــــبات",null,null,null,null,{"$f":"IF(AND(B106>0,C106<>\"\"),IF(AND(G106<>\"غ\"),SUM(D106:G106),0),\"\")","v":""},null,null,null,null,null,{"$f":"IF(AND(B106>0,C106<>\"\"),IF(AND(M106<>\"غ\"),SUM(J106:M106),0),\"\")","v":""},null,"الأول الأساسي",null,null,null,{"$f":"IF(AND(B106>0,C106<>\"\"),IF(AND(S106<>\"غ\"),SUM(P106:S106),0),\"\")","v":""},null,null,null,null,null,null,null,null,null,null,null,null,null,null,null,null,null,null,null,null,null,null,"الأول الأساسي",null,null,null,null,null,null,null,null,null,null,null,null,null,null,null,null,null,null,null,null,null,null,null,null,null,null,null,null,null,null,null,null,null,null,null,null,null,null,null,null,null,null,null,null,null,null,null,null,null,null,null,null,null,null,null,null,null,null,null,null,null,null,null,null,null,null,null,null,null,null,null,null,null,null,null,null,null,null,null,null,null,null,null,null,null,null,null,null,null,null,null,null,null,null,null,null,null,null,null,null,null,null,null,null,null,null,null,null,null,null,null,null,null,null,null,null,null,null,null,null,null,null,null,null,null,null,null,null,null,null,null,null,null,null,null,null,null,null,null,"","","","","","","","","","",null,null,"",{"$f":"IF(GM106=\"\",\"\",IF(GM106<=10,OrdeUP10(GM106),\"\"))","v":""},"",""]
[{"$f":"IF(C107<>\"\",MAX($A$6:$A$105)+1,\"\")","v":21},{"$f":"IF(C107=\"\",\"\",MAX($B$6:$B$105)+1)","v":21},"غنية1",20,30,null,null,50,null,20,30,null,null,50,null,20,30,null,null,50,null,null,null,null,null,null,null,17,28,null,null,{"$f":"IF(AND(B107>0,C107<>\"\"),IF(AND(AE107<>\"غ\"),SUM(AB107:AE107),0),\"\")","v":45},null,20,28,null,null,{"$f":"IF(AND(B107>0,C107<>\"\"),IF(AND(AK107<>\"غ\"),SUM(AH107:AK107),0),\"\")","v":48},null,null,null,null,null,null,null,20,30,null,null,{"$f":"IF(AND(B107>0,C107<>\"\"),IF(AND(AW107<>\"غ\"),SUM(AT107:AW107),0),\"\")","v":50},null,{"$f":"IF(AND(B107>0,C107<>\"\"),IF(AND(BA107=\"ناجحة\"),AX107+AL107+AF107+T107+N107+H107,\"-\"),\"\")","v":"-"},{"$f":"IF(AND(B107>0,C107<>\"\"),IF(OR(H107=0,N107=0,T107=0,AF107=0,AL107=0,AX107=0),\"غائبة\",IF(OR(H107<50,N107<50,T107<50,AF107<50,AL107<50,AX107<50),\"راسبة\",IF(AND(H107>=50,N107>49,T107>=50,AF107>=50,AL107>=50,AX107>=50),\"ناجحة\",\"\"))),\"\")","v":"راسبة"},null,null,null,null,null,null,null,null,null,null,null,null,null,null,null,null,null,null,null,null,null,null,null,null,null,null,null,null,null,null,null,null,null,null,null,null,null,null,null,null,null,null,null,null,null,null,null,null,null,null,null,null,null,null,null,null,null,null,null,null,null,null,null,null,null,null,null,null,null,null,null,null,null,null,null,null,null,null,null,null,null,null,null,null,null,null,null,null,null,null,null,null,null,null,null,null,null,null,null,null,null,null,null,null,null,null,null,null,null,null,null,null,null,null,null,null,null,null,null,null,null,null,null,null,null,null,null,null,null,50,50,50,"",45,48,"",50,293,{"$f":"IF(B107=\"\",\"\",IF(OR(GA107=0,GB107=0,GC107=0,GE107=0,GF107=0,GH107=0),\"غائبة\",IF(OR(GA107<25,GB107<25,GC107<25,GE107<25,GF107<25,GH107<25),\"راسبة\",IF(AND(GA107>=25,GB107>=25,GC107>=25,GE107>=25,GF107>=25,GH107>=25),\"ناجحة\",\"\"))))","v":"ناجحة"},null,null,"",{"$f":"IF(GM107=\"\",\"\",IF(GM107<=10,OrdeUP10(GM107),\"\"))","v":""},2,"الخامس"]
[{"$f":"IF(C108<>\"\",A107+1,\"\")","v":22},{"$f":"IF(C108=\"\",\"\",B107+1)","v":22},"غنية2",18,29,null,null,47,null,18,29,null,null,47,null,18,29,null,null,47,null,null,null,null,null,null,null,17,25,null,null,42,null,17,25,null,null,42,null,null,null,null,null,null,null,17,17,null,null,34,null,{"$f":"IF(AND(B108>0,C108<>\"\"),IF(AND(BA108=\"ناجحة\"),AX108+AL108+AF108+T108+N108+H108,\"-\"),\"\")","v":"-"},{"$f":"IF(AND(B108>0,C108<>\"\"),IF(OR(H108=0,N108=0,T108=0,AF108=0,AL108=0,AX108=0),\"غائبة\",IF(OR(H108<50,N108<50,T108<50,AF108<50,AL108<50,AX108<50),\"راسبة\",IF(AND(H108>=50,N108>49,T108>=50,AF108>=50,AL108>=50,AX108>=50),\"ناجحة\",\"\"))),\"\")","v":"راسبة"},null,null,null,null,null,null,null,null,null,null,null,null,null,null,null,null,null,null,null,null,null,null,null,null,null,null,null,null,null,null,null,null,null,null,null,null,null,null,null,null,null,null,null,null,null,null,null,null,null,null,null,null,null,null,null,null,null,null,null,null,null,null,null,null,null,null,null,null,null,null,null,null,null,null,null,null,null,null,null,null,null,null,null,null,null,null,null,null,null,null,null,null,null,null,null,null,null,null,null,null,null,null,null,null,null,null,null,null,null,null,null,null,null,null,null,null,null,null,null,null,null,null,null,null,null,null,null,null,null,47,47,47,"",42,42,"",34,259,{"$f":"IF(B108=\"\",\"\",IF(OR(GA108=0,GB108=0,GC108=0,GE108=0,GF108=0,GH108=0),\"غائبة\",IF(OR(GA108<25,GB108<25,GC108<25,GE108<25,GF108<25,GH108<25),\"راسبة\",IF(AND(GA108>=25,GB108>=25,GC108>=25,GE108>=25,GF108>=25,GH108>=25),\"ناجحة\",\"\"))))","v":"ناجحة"},null,null,"",{"$f":"IF(GM108=\"\",\"\",IF(GM108<=10,OrdeUP10(GM108),\"\"))","v":""},7,""]
[{"$f":"IF(C109<>\"\",A108+1,\"\")","v":23},{"$f":"IF(C109=\"\",\"\",B108+1)","v":23},"غنية3",10,10,null,null,20,null,10,10,null,null,20,null,15,"غ",null,null,15,null,null,null,null,null,null,null,10,11,null,null,21,null,10,"غ",null,null,10,null,null,null,null,null,null,null,10,10,null,null,20,null,"-","راسبة",null,null,null,null,null,null,null,null,null,null,null,null,null,null,null,null,null,null,null,null,null,null,null,null,null,null,null,null,null,null,null,null,null,null,null,null,null,null,null,null,null,null,null,null,null,null,null,null,null,null,null,null,null,null,null,null,null,null,null,null,null,null,null,null,null,null,null,null,null,null,null,null,null,null,null,null,null,null,null,null,null,null,null,null,null,null,null,null,null,null,null,null,null,null,null,null,null,null,null,null,null,null,null,null,null,null,null,null,null,null,null,null,null,null,null,null,null,null,null,null,null,null,null,null,null,null,null,null,null,20,20,0,"",21,0,"",20,"-","غائبة",null,null,"",{"$f":"IF(GM109=\"\",\"\",IF(GM109<=10,OrdeUP10(GM109),\"\"))","v":""},"",""]
[24,24,"غنية4",14,18,null,null,32,null,14,18,null,null,32,null,12,14,null,null,26,null,null,null,null,null,null,null,14,14,null,null,28,null,14,14,null,null,28,null,null,null,null,null,null,null,15,20,null,null,35,null,"-","راسبة",null,null,null,null,null,null,null,null,null,null,null,null,null,null,null,null,null,null,null,null,null,null,null,null,null,null,null,null,null,null,null,null,null,null,null,null,null,null,null,null,null,null,null,null,null,null,null,null,null,null,null,null,null,null,null,null,null,null,null,null,null,null,null,null,null,null,null,null,null,null,null,null,null,null,null,null,null,null,null,null,null,null,null,null,null,null,null,null,null,null,null,null,null,null,null,null,null,null,null,null,null,null,null,null,null,null,null,null,null,null,null,null,null,null,null,null,null,null,null,null,null,null,null,null,null,null,null,null,null,32,32,26,"",28,28,"",35,181,"ناجحة",null,null,"",{"$f":"IF(GM110=\"\",\"\",IF(GM110<=10,OrdeUP10(GM110),\"\"))","v":""},26,""]
[25,25,"غنية5",19,29,null,null,48,null,19,29,null,null,48,null,18,29,null,null,47,null,null,null,null,null,null,null,17,20,null,null,37,null,17,20,null,null,37,null,null,null,null,null,null,null,18,28,null,null,46,null,"-","راسبة",null,null,null,null,null,null,null,null,null,null,null,null,null,null,null,null,null,null,null,null,null,null,null,null,null,null,null,null,null,null,null,null,null,null,null,null,null,null,null,null,null,null,null,null,null,null,null,null,null,null,null,null,null,null,null,null,null,null,null,null,null,null,null,null,null,null,null,null,null,null,null,null,null,null,null,null,null,null,null,null,null,null,null,null,null,null,null,null,null,null,null,null,null,null,null,null,null,null,null,null,null,null,null,null,null,null,null,null,null,null,null,null,null,null,null,null,null,null,null,null,null,null,null,null,null,null,null,null,null,48,48,47,"",37,37,"",46,263,"ناجحة",null,null,"",{"$f":"IF(GM111=\"\",\"\",IF(GM111<=10,OrdeUP10(GM111),\"\"))","v":""},5,""]
[26,26,"غنية6",15,16,null,null,31,null,15,16,null,null,31,null,11,14,null,null,25,null,null,null,null,null,null,null,17,18,null,null,35,null,17,18,null,null,35,null,null,null,null,null,null,null,13,15,null,null,28,null,"-","راسبة",null,null,null,null,null,null,null,null,null,null,null,null,null,null,null,null,null,null,null,null,null,null,null,null,null,null,null,null,null,null,null,null,null,null,null,null,null,null,null,null,null,null,null,null,null,null,null,null,null,null,null,null,null,null,null,null,null,null,null,null,null,null,null,null,null,null,null,null,null,null,null,null,null,null,null,null,null,null,null,null,null,null,null,null,null,null,null,null,null,null,null,null,null,null,null,null,null,null,null,null,null,null,null,null,null,null,null,null,null,null,null,null,null,null,null,null,null,null,null,null,null,null,null,null,null,null,null,null,null,31,31,25,"",35,35,"",28,185,"ناجحة",null,null,"",{"$f":"IF(GM112=\"\",\"\",IF(GM112<=10,OrdeUP10(GM112),\"\"))","v":""},21,""]
[27,27,"غنية7",14,15,null,null,29,null,14,15,null,null,29,null,13,15,null,null,28,null,null,null,null,null,null,null,12,14,null,null,26,null,12,14,null,null,26,null,null,null,null,null,null,null,15,18,null,null,33,null,"-","راسبة",null,null,null,null,null,null,null,null,null,null,null,null,null,null,null,null,null,null,null,null,null,null,null,null,null,null,null,null,null,null,null,null,null,null,null,null,null,null,null,null,null,null,null,null,null,null,null,null,null,null,null,null,null,null,null,null,null,null,null,null,null,null,null,null,null,null,null,null,null,null,null,null,null,null,null,null,null,null,null,null,null,null,null,null,null,null,null,null,null,null,null,null,null,null,null,null,null,null,null,null,null,null,null,null,null,null,null,null,null,null,null,null,null,null,null,null,null,null,null,null,null,null,null,null,null,null,null,null,null,29,29,28,"",26,26,"",33,171,"ناجحة",null,null,"",{"$f":"IF(GM113=\"\",\"\",IF(GM113<=10,OrdeUP10(GM113),\"\"))","v":""},31,""]
[28,28,"غنية8",17,25,null,null,42,null,17,25,null,null,42,null,13,15,null,null,28,null,null,null,null,null,null,null,14,14,null,null,28,null,14,14,null,null,28,null,null,null,null,null,null,null,15,18,null,null,33,null,"-","راسبة",null,null,null,null,null,null,null,null,null,null,null,null,null,null,null,null,null,null,null,null,null,null,null,null,null,null,null,null,null,null,null,null,null,null,null,null,null,null,null,null,null,null,null,null,null,null,null,null,null,null,null,null,null,null,null,null,null,null,null,null,null,null,null,null,null,null,null,null,null,null,null,null,null,null,null,null,null,null,null,null,null,null,null,null,null,null,null,null,null,null,null,null,null,null,null,null,null,null,null,null,null,null,null,null,null,null,null,null,null,null,null,null,null,null,null,null,null,null,null,null,null,null,null,null,null,null,null,null,null,42,42,28,"",28,28,"",33,201,"ناجحة",null,null,"",{"$f":"IF(GM114=\"\",\"\",IF(GM114<=10,OrdeUP10(GM114),\"\"))","v":""},18,""]
[29,29,"غنية9",15,24,null,null,39,null,15,24,null,null,39,null,12,14,null,null,26,null,null,null,null,null,null,null,14,14,null,null,28,null,13,13,null,null,26,null,null,null,null,null,null,null,15,16,null,null,31,null,"-","راسبة",null,null,null,null,null,null,null,null,null,null,null,null,null,null,null,null,null,null,null,null,null,null,null,null,null,null,null,null,null,null,null,null,null,null,null,null,null,null,null,null,null,null,null,null,null,null,null,null,null,null,null,null,null,null,null,null,null,null,null,null,null,null,null,null,null,null,null,null,null,null,null,null,null,null,null,null,null,null,null,null,null,null,null,null,null,null,null,null,null,null,null,null,null,null,null,null,null,null,null,null,null,null,null,null,null,null,null,null,null,null,null,null,null,null,null,null,null,null,null,null,null,null,null,null,null,null,null,null,null,39,39,26,"",28,26,"",31,189,"ناجحة",null,null,"",{"$f":"IF(GM115=\"\",\"\",IF(GM115<=10,OrdeUP10(GM115),\"\"))","v":""},20,""]
[30,30,"غنية10",15,17,null,null,32,null,15,17,null,null,32,null,13,16,null,null,29,null,null,null,null,null,null,null,14,14,null,null,28,null,13,14,null,null,27,null,null,null,null,null,null,null,16,18,null,null,34,null,"-","راسبة",null,null,null,null,null,null,null,null,null,null,null,null,null,null,null,null,null,null,null,null,null,null,null,null,null,null,null,null,null,null,null,null,null,null,null,null,null,null,null,null,null,null,null,null,null,null,null,null,null,null,null,null,null,null,null,null,null,null,null,null,null,null,null,null,null,null,null,null,null,null,null,null,null,null,null,null,null,null,null,null,null,null,null,null,null,null,null,null,null,null,null,null,null,null,null,null,null,null,null,null,null,null,null,null,null,null,null,null,null,null,null,null,null,null,null,null,null,null,null,null,null,null,null,null,null,null,null,null,null,32,32,29,"",28,27,"",34,182,"ناجحة",null,null,"",{"$f":"IF(GM116=\"\",\"\",IF(GM116<=10,OrdeUP10(GM116),\"\"))","v":""},25,""]
[31,31,"غنية11",15,17,null,null,32,null,15,17,null,null,32,null,11,14,null,null,25,null,null,null,null,null,null,null,13,14,null,null,27,null,17,14,null,null,31,null,null,null,null,null,null,null,17,20,null,null,37,null,"-","راسبة",null,null,null,null,null,null,null,null,null,null,null,null,null,null,null,null,null,null,null,null,null,null,null,null,null,null,null,null,null,null,null,null,null,null,null,null,null,null,null,null,null,null,null,null,null,null,null,null,null,null,null,null,null,null,null,null,null,null,null,null,null,null,null,null,null,null,null,null,null,null,null,null,null,null,null,null,null,null,null,null,null,null,null,null,null,null,null,null,null,null,null,null,null,null,null,null,null,null,null,null,null,null,null,null,null,null,null,null,null,null,null,null,null,null,null,null,null,null,null,null,null,null,null,null,null,null,null,null,null,32,32,25,"",27,31,"",37,184,"ناجحة",null,null,"",{"$f":"IF(GM117=\"\",\"\",IF(GM117<=10,OrdeUP10(GM117),\"\"))","v":""},22,""]
[32,32,"غنية12",13,14,null,null,27,null,13,14,null,null,27,null,11,14,null,null,25,null,null,null,null,null,null,null,12,13,null,null,25,null,12,13,null,null,25,null,null,null,null,null,null,null,14,15,null,null,29,null,"-","راسبة",null,null,null,null,null,null,null,null,null,null,null,null,null,null,null,null,null,null,null,null,null,null,null,null,null,null,null,null,null,null,null,null,null,null,null,null,null,null,null,null,null,null,null,null,null,null,null,null,null,null,null,null,null,null,null,null,null,null,null,null,null,null,null,null,null,null,null,null,null,null,null,null,null,null,null,null,null,null,null,null,null,null,null,null,null,null,null,null,null,null,null,null,null,null,null,null,null,null,null,null,null,null,null,null,null,null,null,null,null,null,null,null,null,null,null,null,null,null,null,null,null,null,null,null,null,null,null,null,null,27,27,25,"",25,25,"",29,158,"ناجحة",null,null,"",{"$f":"IF(GM118=\"\",\"\",IF(GM118<=10,OrdeUP10(GM118),\"\"))","v":""},32,""]
[33,33,"غنية13",15,20,null,null,35,null,15,20,null,null,35,null,15,20,null,null,35,null,null,null,null,null,null,null,17,18,null,null,35,null,17,18,null,null,35,null,null,null,null,null,null,null,16,18,null,null,34,null,"-","راسبة",null,null,null,null,null,null,null,null,null,null,null,null,null,null,null,null,null,null,null,null,null,null,null,null,null,null,null,null,null,null,null,null,null,null,null,null,null,null,null,null,null,null,null,null,null,null,null,null,null,null,null,null,null,null,null,null,null,null,null,null,null,null,null,null,null,null,null,null,null,null,null,null,null,null,null,null,null,null,null,null,null,null,null,null,null,null,null,null,null,null,null,null,null,null,null,null,null,null,null,null,null,null,null,null,null,null,null,null,null,null,null,null,null,null,null,null,null,null,null,null,null,null,null,null,null,null,null,null,null,35,35,35,"",35,35,"",34,209,"ناجحة",null,null,"",{"$f":"IF(GM119=\"\",\"\",IF(GM119<=10,OrdeUP10(GM119),\"\"))","v":""},17,""]
[34,34,"غنية14",20,30,null,null,50,null,20,30,null,null,50,null,20,30,null,null,50,null,null,null,null,null,null,null,20,30,null,null,50,null,20,30,null,null,50,null,null,null,null,null,null,null,20,30,null,null,50,null,300,"ناجحة",null,null,null,null,null,null,null,null,null,null,null,null,null,null,null,null,null,null,null,null,null,null,null,null,null,null,null,null,null,null,null,null,null,null,null,null,null,null,null,null,null,null,null,null,null,null,null,null,null,null,null,null,null,null,null,null,null,null,null,null,null,null,null,null,null,null,null,null,null,null,null,null,null,null,null,null,null,null,null,null,null,null,null,null,null,null,null,null,null,null,null,null,null,null,null,null,null,null,null,null,null,null,null,null,null,null,null,null,null,null,null,null,null,null,null,null,null,null,null,null,null,null,null,null,null,null,null,null,null,50,50,50,"",50,50,"",50,300,"ناجحة",null,null,1,{"$f":"IF(GM120=\"\",\"\",IF(GM120<=10,OrdeUP10(GM120),\"\"))","v":{"$error":"#NAME?"}},1,"الأوّل"]
[35,35,"غنية15","غ","غ",null,null,0,null,"غ","غ",null,null,0,null,"غ","غ",null,null,0,null,null,null,null,null,null,null,"غ","غ",null,null,0,null,"غ","غ",null,null,0,null,null,null,null,null,null,null,"غ","غ",null,null,0,null,"-","غائبة",null,null,null,null,null,null,null,null,null,null,null,null,null,null,null,null,null,null,null,null,null,null,null,null,null,null,null,null,null,null,null,null,null,null,null,null,null,null,null,null,null,null,null,null,null,null,null,null,null,null,null,null,null,null,null,null,null,null,null,null,null,null,null,null,null,null,null,null,null,null,null,null,null,null,null,null,null,null,null,null,null,null,null,null,null,null,null,null,null,null,null,null,null,null,null,null,null,null,null,null,null,null,null,null,null,null,null,null,null,null,null,null,null,null,null,null,null,null,null,null,null,null,null,null,null,null,null,null,null,0,0,0,"",0,0,"",0,"-","غائبة",null,null,"",{"$f":"IF(GM121=\"\",\"\",IF(GM121<=10,OrdeUP10(GM121),\"\"))","v":""},"",""]
[null,null,null,null,null,null,null,null,null,null,null,null,null,null,null,null,null,null,null,null,null,null,null,null,null,null,null,null,null,null,null,null,null,null,null,null,null,null,null,null,null,null,null,null,null,null,null,null,null,null,null,"","",null,null,null,null,null,null,null,null,null,null,null,null,null,null,null,null,null,null,null,null,null,null,null,null,null,null,null,null,null,null,null,null,null,null,null,null,null,null,null,null,null,null,null,null,null,null,null,null,null,null,null,null,null,null,null,null,null,null,null,null,null,null,null,null,null,null,null,null,null,null,null,null,null,null,null,null,null,null,null,null,null,null,null,null,null,null,null,null,null,null,null,null,null,null,null,null,null,null,null,null,null,null,null,null,null,null,null,null,null,null,null,null,null,null,null,null,null,null,null,null,null,null,null,null,null,null,null,null,null,"","","","","","","","","","",null,null,"",{"$f":"IF(GM122=\"\",\"\",IF(GM122<=10,OrdeUP10(GM122),\"\"))","v":""},"",""]
[null,null,null,null,null,null,null,null,null,null,null,null,null,null,null,null,null,null,null,null,null,null,null,null,null,null,null,null,null,null,null,null,null,null,null,null,null,null,null,null,null,null,null,null,null,null,null,null,null,null,null,"","",null,null,null,null,null,null,null,null,null,null,null,null,null,null,null,null,null,null,null,null,null,null,null,null,null,null,null,null,null,null,null,null,null,null,null,null,null,null,null,null,null,null,null,null,null,null,null,null,null,null,null,null,null,null,null,null,null,null,null,null,null,null,null,null,null,null,null,null,null,null,null,null,null,null,null,null,null,null,null,null,null,null,null,null,null,null,null,null,null,null,null,null,null,null,null,null,null,null,null,null,null,null,null,null,null,null,null,null,null,null,null,null,null,null,null,null,null,null,null,null,null,null,null,null,null,null,null,null,null,"","","","","","","","","","",null,null,"",{"$f":"IF(GM123=\"\",\"\",IF(GM123<=10,OrdeUP10(GM123),\"\"))","v":""},"",""]
[null,null,null,null,null,null,null,null,null,null,null,null,null,null,null,null,null,null,null,null,null,null,null,null,null,null,null,null,null,null,null,null,null,null,null,null,null,null,null,null,null,null,null,null,null,null,null,null,null,null,null,"","",null,null,null,null,null,null,null,null,null,null,null,null,null,null,null,null,null,null,null,null,null,null,null,null,null,null,null,null,null,null,null,null,null,null,null,null,null,null,null,null,null,null,null,null,null,null,null,null,null,null,null,null,null,null,null,null,null,null,null,null,null,null,null,null,null,null,null,null,null,null,null,null,null,null,null,null,null,null,null,null,null,null,null,null,null,null,null,null,null,null,null,null,null,null,null,null,null,null,null,null,null,null,null,null,null,null,null,null,null,null,null,null,null,null,null,null,null,null,null,null,null,null,null,null,null,null,null,null,null,"","","","","","","","","","",null,null,"",{"$f":"IF(GM124=\"\",\"\",IF(GM124<=10,OrdeUP10(GM124),\"\"))","v":""},"",""]
[null,null,null,null,null,null,null,null,null,null,null,null,null,null,null,null,null,null,null,null,null,null,null,null,null,null,null,null,null,null,null,null,null,null,null,null,null,null,null,null,null,null,null,null,null,null,null,null,null,null,null,"","",null,null,null,null,null,null,null,null,null,null,null,null,null,null,null,null,null,null,null,null,null,null,null,null,null,null,null,null,null,null,null,null,null,null,null,null,null,null,null,null,null,null,null,null,null,null,null,null,null,null,null,null,null,null,null,null,null,null,null,null,null,null,null,null,null,null,null,null,null,null,null,null,null,null,null,null,null,null,null,null,null,null,null,null,null,null,null,null,null,null,null,null,null,null,null,null,null,null,null,null,null,null,null,null,null,null,null,null,null,null,null,null,null,null,null,null,null,null,null,null,null,null,null,null,null,null,null,null,null,"","","","","","","","","","",null,null,"",{"$f":"IF(GM125=\"\",\"\",IF(GM125<=10,OrdeUP10(GM125),\"\"))","v":""},"","الرّابع"]
[null,null,null,null,null,null,null,null,null,null,null,null,null,null,null,null,null,null,null,null,null,null,null,null,null,null,null,null,null,null,null,null,null,null,null,null,null,null,null,null,null,null,null,null,null,null,null,null,null,null,null,"","",null,null,null,null,null,null,null,null,null,null,null,null,null,null,null,null,null,null,null,null,null,null,null,null,null,null,null,null,null,null,null,null,null,null,null,null,null,null,null,null,null,null,null,null,null,null,null,null,null,null,null,null,null,null,null,null,null,null,null,null,null,null,null,null,null,null,null,null,null,null,null,null,null,null,null,null,null,null,null,null,null,null,null,null,null,null,null,null,null,null,null,null,null,null,null,null,null,null,null,null,null,null,null,null,null,null,null,null,null,null,null,null,null,null,null,null,null,null,null,null,null,null,null,null,null,null,null,null,null,"","","","","","","","","","",null,null,"",{"$f":"IF(GM129=\"\",\"\",IF(GM129<=10,OrdeUP10(GM129),\"\"))","v":""},"",""]
[null,null,null,null,null,null,null,null,null,null,null,null,null,null,null,null,null,null,null,null,null,null,null,null,null,null,null,null,null,null,null,null,null,null,null,null,null,null,null,null,null,null,null,null,null,null,null,null,null,null,null,"","",null,null,null,null,null,null,null,null,null,null,null,null,null,null,null,null,null,null,null,null,null,null,null,null,null,null,null,null,null,null,null,null,null,null,null,null,null,null,null,null,null,null,null,null,null,null,null,null,null,null,null,null,null,null,null,null,null,null,null,null,null,null,null,null,null,null,null,null,null,null,null,null,null,null,null,null,null,null,null,null,null,null,null,null,null,null,null,null,null,null,null,null,null,null,null,null,null,null,null,null,null,null,null,null,null,null,null,null,null,null,null,null,null,null,null,null,null,null,null,null,null,null,null,null,null,null,null,null,null,"","","","","","","","","","",null,null,"",{"$f":"IF(GM147=\"\",\"\",IF(GM147<=10,OrdeUP10(GM147),\"\"))","v":""},"",""]
[null,null,null,null,null,null,null,null,null,null,null,null,null,null,null,null,null,null,null,null,null,null,null,null,null,null,null,null,null,null,null,null,null,null,null,null,null,null,null,null,null,null,null,null,null,null,null,null,null,null,null,"","",null,null,null,null,null,null,null,null,null,null,null,null,null,null,null,null,null,null,null,null,null,null,null,null,null,null,null,null,null,null,null,null,null,null,null,null,null,null,null,null,null,null,null,null,null,null,null,null,null,null,null,null,null,null,null,null,null,null,null,null,null,null,null,null,null,null,null,null,null,null,null,null,null,null,null,null,null,null,null,null,null,null,null,null,null,null,null,null,null,null,null,null,null,null,null,null,null,null,null,null,null,null,null,null,null,null,null,null,null,null,null,null,null,null,null,null,null,null,null,null,null,null,null,null,null,null,null,null,null,"","","","","","","","","","",null,null,"",{"$f":"IF(GM157=\"\",\"\",IF(GM157<=10,OrdeUP10(GM157),\"\"))","v":""},"",""]
[null,null,null,null,null,null,null,null,null,null,null,null,null,null,null,null,null,null,null,null,null,null,null,null,null,null,null,null,null,null,null,null,null,null,null,null,null,null,null,null,null,null,null,null,null,null,null,null,null,null,null,"","",null,null,null,null,null,null,null,null,null,null,null,null,null,null,null,null,null,null,null,null,null,null,null,null,null,null,null,null,null,null,null,null,null,null,null,null,null,null,null,null,null,null,null,null,null,null,null,null,null,null,null,null,null,null,null,null,null,null,null,null,null,null,null,null,null,null,null,null,null,null,null,null,null,null,null,null,null,null,null,null,null,null,null,null,null,null,null,null,null,null,null,null,null,null,null,null,null,null,null,null,null,null,null,null,null,null,null,null,null,null,null,null,null,null,null,null,null,null,null,null,null,null,null,null,null,null,null,null,null,"","","","","","","","","","",null,null,"",{"$f":"IF(GM168=\"\",\"\",IF(GM168<=10,OrdeUP10(GM168),\"\"))","v":""},"",""]
[null,null,null,null,null,null,null,null,null,null,null,null,null,null,null,null,null,null,null,null,null,null,null,null,null,null,null,null,null,null,null,null,null,null,null,null,null,null,null,null,null,null,null,null,null,null,null,null,null,null,null,"","",null,null,null,null,null,null,null,null,null,null,null,null,null,null,null,null,null,null,null,null,null,null,null,null,null,null,null,null,null,null,null,null,null,null,null,null,null,null,null,null,null,null,null,null,null,null,null,null,null,null,null,null,null,null,null,null,null,null,null,null,null,null,null,null,null,null,null,null,null,null,null,null,null,null,null,null,null,null,null,null,null,null,null,null,null,null,null,null,null,null,null,null,null,null,null,null,null,null,null,null,null,null,null,null,null,null,null,null,null,null,null,null,null,null,null,null,null,null,null,null,null,null,null,null,null,null,null,null,null,"","","","","","","","","","",null,null,"",{"$f":"IF(GM174=\"\",\"\",IF(GM174<=10,OrdeUP10(GM174),\"\"))","v":""},"",""]
[null,null,null,null,null,null,null,null,null,null,null,null,null,null,null,null,null,null,null,null,null,null,null,null,null,null,null,null,null,null,null,null,null,null,null,null,null,null,null,null,null,null,null,null,null,null,null,null,null,null,null,"","",null,null,null,null,null,null,null,null,null,null,null,null,null,null,null,null,null,null,null,null,null,null,null,null,null,null,null,null,null,null,null,null,null,null,null,null,null,null,null,null,null,null,null,null,null,null,null,null,null,null,null,null,null,null,null,null,null,null,null,null,null,null,null,null,null,null,null,null,null,null,null,null,null,null,null,null,null,null,null,null,null,null,null,null,null,null,null,null,null,null,null,null,null,null,null,null,null,null,null,null,null,null,null,null,null,null,null,null,null,null,null,null,null,null,null,null,null,null,null,null,null,null,null,null,null,null,null,null,null,"","","","","","","","","","",null,null,"",{"$f":"IF(GM185=\"\",\"\",IF(GM185<=10,OrdeUP10(GM185),\"\"))","v":""},"",""]
[null,null,null,null,null,null,null,null,null,null,null,null,null,null,null,null,null,null,null,null,null,null,null,null,null,null,null,null,null,null,null,null,null,null,null,null,null,null,null,null,null,null,null,null,null,null,null,null,null,null,null,null,null,null,null,null,null,null,null,null,null,null,null,null,null,null,null,null,null,null,null,null,null,null,null,null,null,null,null,null,null,null,null,null,null,null,null,null,null,null,null,null,null,null,null,null,null,null,null,null,null,null,null,null,null,null,null,null,null,null,null,null,null,null,null,null,null,null,null,null,null,null,null,null,null,null,null,null,null,null,null,null,null,null,null,null,null,null,null,null,null,null,null,null,null,null,null,null,null,null,null,null,null,null,null,null,null,null,null,null,null,null,null,null,null,null,null,null,null,null,null,null,null,null,null,null,null,null,null,null,null,null,null,null,null,null,null,null,null,null,""]
[{"$f":"IF(C206<>\"\",ROW()-205,\"\")","v":1},{"$f":"IF(C206=\"\",\"\",MAX($B$107:$B$196)+1)","v":36},"عماد1",11,17,null,null,{"$f":"IF(AND(B206>0,C206<>\"\"),IF(AND(G206<>\"غ\"),SUM(D206:G206),0),\"\")","v":28},null,15,15,null,null,{"$f":"IF(AND(B206>0,C206<>\"\"),IF(AND(M206<>\"غ\"),SUM(J206:M206),0),\"\")","v":30},null,12,17,null,null,{"$f":"IF(AND(B206>0,C206<>\"\"),IF(AND(S206<>\"غ\"),SUM(P206:S206),0),\"\")","v":29},null,null,null,null,null,null,null,12,25,null,null,{"$f":"IF(AND(B206>0,C206<>\"\"),IF(AND(AE206<>\"غ\"),SUM(AB206:AE206),0),\"\")","v":37},null,10,18,null,null,{"$f":"IF(AND(B206>0,C206<>\"\"),IF(AND(AK206<>\"غ\"),SUM(AH206:AK206),0),\"\")","v":28},null,null,null,null,null,null,null,13,15,null,null,{"$f":"IF(AND(B206>0,C206<>\"\"),IF(AND(AW206<>\"غ\"),SUM(AT206:AW206),0),\"\")","v":28},null,{"$f":"IF(AND(B206>0,C206<>\"\"),IF(AND(BA206=\"ناجح\"),AX206+AL206+AF206+T206+N206+H206,\"-\"),\"\")","v":"-"},{"$f":"IF(AND(B206>0,C206<>\"\"),IF(OR(H206=0,N206=0,T206=0,AF206=0,AL206=0,AX206=0),\"غائب\",IF(OR(H206<50,N206<50,T206<50,AF206<50,AL206<50,AX206<50),\"راسب\",IF(AND(H206>=50,N206>49,T206>=50,AF206>=50,AL206>=50,AX206>=50),\"ناجح\",\"\"))),\"\")","v":"راسب"},null,null,null,null,null,null,null,null,null,null,null,null,null,null,null,null,null,null,null,null,null,null,null,null,null,null,null,null,null,null,null,null,null,null,null,null,null,null,null,null,null,null,null,null,null,null,null,null,null,null,null,null,null,null,null,null,null,null,null,null,null,null,null,null,null,null,null,null,null,null,null,null,null,null,null,null,null,null,null,null,null,null,null,null,null,null,null,null,null,null,null,null,null,null,null,null,null,null,null,null,null,null,null,null,null,null,null,null,null,null,null,null,null,null,null,null,null,null,null,null,null,null,null,null,null,null,null,null,null,{"$f":"IF(E206=\"غ\",0,IF(E206=\"\",\"\",SUM(D206:E206)))","v":28},{"$f":"IF(K206=\"غ\",0,IF(K206=\"\",\"\",SUM(J206:K206)))","v":30},{"$f":"IF(Q206=\"غ\",0,IF(Q206=\"\",\"\",SUM(P206:Q206)))","v":29},{"$f":"IF(W206=\"غ\",0,IF(W206=\"\",\"\",SUM(V206:W206)))","v":""},{"$f":"IF(AC206=\"غ\",0,IF(AC206=\"\",\"\",SUM(AB206:AC206)))","v":37},{"$f":"IF(AI206=\"غ\",0,IF(AI206=\"\",\"\",SUM(AH206:AI206)))","v":28},{"$f":"IF(AO206=\"غ\",0,IF(AO206=\"\",\"\",SUM(AN206:AO206)))","v":""},{"$f":"IF(AU206=\"غ\",0,IF(AU206=\"\",\"\",SUM(AT206:AU206)))","v":28},180,{"$f":"IF(B206=\"\",\"\",IF(OR(GA206=0,GB206=0,GC206=0,GE206=0,GF206=0,GH206=0),\"غائب\",IF(OR(GA206<25,GB206<25,GC206<25,GE206<25,GF206<25,GH206<25),\"راسب\",IF(AND(GA206>=25,GB206>=25,GC206>=25,GE206>=25,GF206>=25,GH206>=25),\"ناجح\",\"\"))))","v":"ناجح"},null,null,{"$f":"IF(OR(AZ206=\"\",AZ206=\"-\"),\"\",_xlfn.RANK.EQ(AZ206,$AZ$206:$AZ$396,0))","v":""},{"$f":"IF(GM206=\"\",\"\",IF(GM206<=10,OrdeUP10(GM206),\"\"))","v":""},{"$f":"IF(OR(GI206=\"\",GI206=\"-\"),\"\",_xlfn.RANK.EQ(GI206,$GI$206:$GI$396,0))","v":25},""]
[14,49,"عماد14",17,30,null,null,47,null,19,30,null,null,49,null,20,30,null,null,50,null,null,null,null,null,null,null,19,27,null,null,46,null,16,29,null,null,45,null,null,null,null,null,null,null,18,28,null,null,46,null,"-","راسب",null,null,null,null,null,null,null,null,null,null,null,null,null,null,null,null,null,null,null,null,null,null,null,null,null,null,null,null,null,null,null,null,null,null,null,null,null,null,null,null,null,null,null,null,null,null,null,null,null,null,null,null,null,null,null,null,null,null,null,null,null,null,null,null,null,null,null,null,null,null,null,null,null,null,null,null,null,null,null,null,null,null,null,null,null,null,null,null,null,null,null,null,null,null,null,null,null,null,null,null,null,null,null,null,null,null,null,null,null,null,null,null,null,null,null,null,null,null,null,null,null,null,null,null,null,null,null,null,null,47,49,50,"",46,45,"",46,283,"ناجح",null,null,"",{"$f":"IF(GM219=\"\",\"\",IF(GM219<=10,OrdeUP10(GM219),\"\"))","v":""},2,"الثّالث"]
[null,null,null,null,null,null,null,null,null,null,null,null,null,null,null,null,null,null,null,null,null,null,null,null,null,null,null,null,null,null,null,null,null,null,null,null,null,null,null,null,null,null,null,null,null,null,null,null,null,null,null,"","",null,null,null,null,null,null,null,null,null,null,null,null,null,null,null,null,null,null,null,null,null,null,null,null,null,null,null,null,null,null,null,null,null,null,null,null,null,null,null,null,null,null,null,null,null,null,null,null,null,null,null,null,null,null,null,null,null,null,null,null,null,null,null,null,null,null,null,null,null,null,null,null,null,null,null,null,null,null,null,null,null,null,null,null,null,null,null,null,null,null,null,null,null,null,null,null,null,null,null,null,null,null,null,null,null,null,null,null,null,null,null,null,null,null,null,null,null,null,null,null,null,null,null,null,null,null,null,null,null,"","","","","","","","","","",null,null,"",{"$f":"IF(GM237=\"\",\"\",IF(GM237<=10,OrdeUP10(GM237),\"\"))","v":""},"",""]
[null,null,null,null,null,null,null,null,null,null,null,null,null,null,null,null,null,null,null,null,null,null,null,null,null,null,null,null,null,null,null,null,null,null,null,null,null,null,null,null,null,null,null,null,null,null,null,null,null,null,null,"","",null,null,null,null,null,null,null,null,null,null,null,null,null,null,null,null,null,null,null,null,null,null,null,null,null,null,null,null,null,null,null,null,null,null,null,null,null,null,null,null,null,null,null,null,null,null,null,null,null,null,null,null,null,null,null,null,null,null,null,null,null,null,null,null,null,null,null,null,null,null,null,null,null,null,null,null,null,null,null,null,null,null,null,null,null,null,null,null,null,null,null,null,null,null,null,null,null,null,null,null,null,null,null,null,null,null,null,null,null,null,null,null,null,null,null,null,null,null,null,null,null,null,null,null,null,null,null,null,null,"","","","","","","","","","",null,null,"",{"$f":"IF(GM248=\"\",\"\",IF(GM248<=10,OrdeUP10(GM248),\"\"))","v":""},"",""]
[null,null,null,null,null,null,null,null,null,null,null,null,null,null,null,null,null,null,null,null,null,null,null,null,null,null,null,null,null,null,null,null,null,null,null,null,null,null,null,null,null,null,null,null,null,null,null,null,null,null,null,"","",null,null,null,null,null,null,null,null,null,null,null,null,null,null,null,null,null,null,null,null,null,null,null,null,null,null,null,null,null,null,null,null,null,null,null,null,null,null,null,null,null,null,null,null,null,null,null,null,null,null,null,null,null,null,null,null,null,null,null,null,null,null,null,null,null,null,null,null,null,null,null,null,null,null,null,null,null,null,null,null,null,null,null,null,null,null,null,null,null,null,null,null,null,null,null,null,null,null,null,null,null,null,null,null,null,null,null,null,null,null,null,null,null,null,null,null,null,null,null,null,null,null,null,null,null,null,null,null,null,"","","","","","","","","","",null,null,"",{"$f":"IF(GM254=\"\",\"\",IF(GM254<=10,OrdeUP10(GM254),\"\"))","v":""},"",""]
[null,null,null,null,null,null,null,null,null,null,null,null,null,null,null,null,null,null,null,null,null,null,null,null,null,null,null,null,null,null,null,null,null,null,null,null,null,null,null,null,null,null,null,null,null,null,null,null,null,null,null,"","",null,null,null,null,null,null,null,null,null,null,null,null,null,null,null,null,null,null,null,null,null,null,null,null,null,null,null,null,null,null,null,null,null,null,null,null,null,null,null,null,null,null,null,null,null,null,null,null,null,null,null,null,null,null,null,null,null,null,null,null,null,null,null,null,null,null,null,null,null,null,null,null,null,null,null,null,null,null,null,null,null,null,null,null,null,null,null,null,null,null,null,null,null,null,null,null,null,null,null,null,null,null,null,null,null,null,null,null,null,null,null,null,null,null,null,null,null,null,null,null,null,null,null,null,null,null,null,null,null,"","","","","","","","","","",null,null,"",{"$f":"IF(GM269=\"\",\"\",IF(GM269<=10,OrdeUP10(GM269),\"\"))","v":""},"",""]
[null,null,null,null,null,null,null,null,null,null,null,null,null,null,null,null,null,null,null,null,null,null,null,null,null,null,null,null,null,null,null,null,null,null,null,null,null,null,null,null,null,null,null,null,null,null,null,null,null,null,null,"","",null,null,null,null,null,null,null,null,null,null,null,null,null,null,null,null,null,null,null,null,null,null,null,null,null,null,null,null,null,null,null,null,null,null,null,null,null,null,null,null,null,null,null,null,null,null,null,null,null,null,null,null,null,null,null,null,null,null,null,null,null,null,null,null,null,null,null,null,null,null,null,null,null,null,null,null,null,null,null,null,null,null,null,null,null,null,null,null,null,null,null,null,null,null,null,null,null,null,null,null,null,null,null,null,null,null,null,null,null,null,null,null,null,null,null,null,null,null,null,null,null,null,null,null,null,null,null,null,null,"","","","","","","","","","",null,null,"",{"$f":"IF(GM278=\"\",\"\",IF(GM278<=10,OrdeUP10(GM278),\"\"))","v":""},"",""]
[null,null,null,null,null,null,null,null,null,null,null,null,null,null,null,null,null,null,null,null,null,null,null,null,null,null,null,null,null,null,null,null,null,null,null,null,null,null,null,null,null,null,null,null,null,null,null,null,null,null,null,"","",null,null,null,null,null,null,null,null,null,null,null,null,null,null,null,null,null,null,null,null,null,null,null,null,null,null,null,null,null,null,null,null,null,null,null,null,null,null,null,null,null,null,null,null,null,null,null,null,null,null,null,null,null,null,null,null,null,null,null,null,null,null,null,null,null,null,null,null,null,null,null,null,null,null,null,null,null,null,null,null,null,null,null,null,null,null,null,null,null,null,null,null,null,null,null,null,null,null,null,null,null,null,null,null,null,null,null,null,null,null,null,null,null,null,null,null,null,null,null,null,null,null,null,null,null,null,null,null,null,"","","","","","","","","","",null,null,"",{"$f":"IF(GM290=\"\",\"\",IF(GM290<=10,OrdeUP10(GM290),\"\"))","v":""},"",""]
[null,null,"الطــــــــــــــالبـــــــــــــــــات",null,null,null,null,null,null,null,null,null,null,{"$f":"IF(AND(B306>0,C306<>\"\"),IF(AND(M306<>\"غ\"),SUM(J306:M306),0),\"\")","v":""},null,"الثاني الأساسي",null,null,null,{"$f":"IF(AND(B306>0,C306<>\"\"),IF(AND(S306<>\"غ\"),SUM(P306:S306),0),\"\")","v":""},null,null,null,null,null,null,null,null,null,null,null,{"$f":"IF(AND(B306>0,C306<>\"\"),IF(AND(AE306<>\"غ\"),SUM(AB306:AE306),0),\"\")","v":""},null,null,null,null,null,{"$f":"IF(AND(B306>0,C306<>\"\"),IF(AND(AK306<>\"غ\"),SUM(AH306:AK306),0),\"\")","v":""},null,null,null,null,null,null,null,"الثاني الأساسي",null,null,null,{"$f":"IF(AND(B306>0,C306<>\"\"),IF(AND(AW306<>\"غ\"),SUM(AT306:AW306),0),\"\")","v":""},null,null,null,null,null,null,null,null,null,null,null,null,null,null,null,null,null,null,null,null,null,null,null,null,null,null,null,null,null,null,null,null,null,null,null,null,null,null,null,null,null,null,null,null,null,null,null,null,null,null,null,null,null,null,null,null,null,null,null,null,null,null,null,null,null,null,null,null,null,null,null,null,null,null,null,null,null,null,null,null,null,null,null,null,null,null,null,null,null,null,null,null,null,null,null,null,null,null,null,null,null,null,null,null,null,null,null,null,null,null,null,null,null,null,null,null,null,null,null,null,null,null,null,null,null,null,null,null,null,null,null,null,"","","","","","","","","","",null,null,"",{"$f":"IF(GM306=\"\",\"\",IF(GM306<=10,OrdeUP10(GM306),\"\"))","v":""},"",""]
[30,65,"عبير5",10,15,null,null,25,null,10,15,null,null,25,null,11,16,null,null,27,null,null,null,null,null,null,null,11,15,null,null,26,null,12,17,null,null,29,null,null,null,null,null,null,null,10,15,null,null,25,null,"-","راسبة",null,null,null,null,null,null,null,null,null,null,null,null,null,null,null,null,null,null,null,null,null,null,null,null,null,null,null,null,null,null,null,null,null,null,null,null,null,null,null,null,null,null,null,null,null,null,null,null,null,null,null,null,null,null,null,null,null,null,null,null,null,null,null,null,null,null,null,null,null,null,null,null,null,null,null,null,null,null,null,null,null,null,null,null,null,null,null,null,null,null,null,null,null,null,null,null,null,null,null,null,null,null,null,null,null,null,null,null,null,null,null,null,null,null,null,null,null,null,null,null,null,null,null,null,null,null,null,null,null,25,25,27,"",26,29,"",25,157,"ناجحة",null,null,"",{"$f":"IF(GM311=\"\",\"\",IF(GM311<=10,OrdeUP10(GM311),\"\"))","v":""},31,""]
[null,null,null,null,null,null,null,null,null,null,null,null,null,null,null,null,null,null,null,null,null,null,null,null,null,null,null,null,null,null,null,null,null,null,null,null,null,null,null,null,null,null,null,null,null,null,null,null,null,null,null,"","",null,null,null,null,null,null,null,null,null,null,null,null,null,null,null,null,null,null,null,null,null,null,null,null,null,null,null,null,null,null,null,null,null,null,null,null,null,null,null,null,null,null,null,null,null,null,null,null,null,null,null,null,null,null,null,null,null,null,null,null,null,null,null,null,null,null,null,null,null,null,null,null,null,null,null,null,null,null,null,null,null,null,null,null,null,null,null,null,null,null,null,null,null,null,null,null,null,null,null,null,null,null,null,null,null,null,null,null,null,null,null,null,null,null,null,null,null,null,null,null,null,null,null,null,null,null,null,null,null,"","","","","","","","","","",null,null,"",{"$f":"IF(GM332=\"\",\"\",IF(GM332<=10,OrdeUP10(GM332),\"\"))","v":""},"",""]
[null,null,null,null,null,null,null,null,null,null,null,null,null,null,null,null,null,null,null,null,null,null,null,null,null,null,null,null,null,null,null,null,null,null,null,null,null,null,null,null,null,null,null,null,null,null,null,null,null,null,null,"","",null,null,null,null,null,null,null,null,null,null,null,null,null,null,null,null,null,null,null,null,null,null,null,null,null,null,null,null,null,null,null,null,null,null,null,null,null,null,null,null,null,null,null,null,null,null,null,null,null,null,null,null,null,null,null,null,null,null,null,null,null,null,null,null,null,null,null,null,null,null,null,null,null,null,null,null,null,null,null,null,null,null,null,null,null,null,null,null,null,null,null,null,null,null,null,null,null,null,null,null,null,null,null,null,null,null,null,null,null,null,null,null,null,null,null,null,null,null,null,null,null,null,null,null,null,null,null,null,null,"","","","","","","","","","",null,null,"",{"$f":"IF(GM341=\"\",\"\",IF(GM341<=10,OrdeUP10(GM341),\"\"))","v":""},"",""]
[null,null,null,null,null,null,null,null,null,null,null,null,null,null,null,null,null,null,null,null,null,null,null,null,null,null,null,null,null,null,null,null,null,null,null,null,null,null,null,null,null,null,null,null,null,null,null,null,null,null,null,"","",null,null,null,null,null,null,null,null,null,null,null,null,null,null,null,null,null,null,null,null,null,null,null,null,null,null,null,null,null,null,null,null,null,null,null,null,null,null,null,null,null,null,null,null,null,null,null,null,null,null,null,null,null,null,null,null,null,null,null,null,null,null,null,null,null,null,null,null,null,null,null,null,null,null,null,null,null,null,null,null,null,null,null,null,null,null,null,null,null,null,null,null,null,null,null,null,null,null,null,null,null,null,null,null,null,null,null,null,null,null,null,null,null,null,null,null,null,null,null,null,null,null,null,null,null,null,null,null,null,"","","","","","","","","","",null,null,"",{"$f":"IF(GM353=\"\",\"\",IF(GM353<=10,OrdeUP10(GM353),\"\"))","v":""},"",""]
[null,null,null,null,null,null,null,null,null,null,null,null,null,null,null,null,null,null,null,null,null,null,null,null,null,null,null,null,null,null,null,null,null,null,null,null,null,null,null,null,null,null,null,null,null,null,null,null,null,null,null,"","",null,null,null,null,null,null,null,null,null,null,null,null,null,null,null,null,null,null,null,null,null,null,null,null,null,null,null,null,null,null,null,null,null,null,null,null,null,null,null,null,null,null,null,null,null,null,null,null,null,null,null,null,null,null,null,null,null,null,null,null,null,null,null,null,null,null,null,null,null,null,null,null,null,null,null,null,null,null,null,null,null,null,null,null,null,null,null,null,null,null,null,null,null,null,null,null,null,null,null,null,null,null,null,null,null,null,null,null,null,null,null,null,null,null,null,null,null,null,null,null,null,null,null,null,null,null,null,null,null,"","","","","","","","","","",null,null,"",{"$f":"IF(GM358=\"\",\"\",IF(GM358<=10,OrdeUP10(GM358),\"\"))","v":""},"",""]
[null,null,null,null,null,null,null,null,null,null,null,null,null,null,null,null,null,null,null,null,null,null,null,null,null,null,null,null,null,null,null,null,null,null,null,null,null,null,null,null,null,null,null,null,null,null,null,null,null,null,null,"","",null,null,null,null,null,null,null,null,null,null,null,null,null,null,null,null,null,null,null,null,null,null,null,null,null,null,null,null,null,null,null,null,null,null,null,null,null,null,null,null,null,null,null,null,null,null,null,null,null,null,null,null,null,null,null,null,null,null,null,null,null,null,null,null,null,null,null,null,null,null,null,null,null,null,null,null,null,null,null,null,null,null,null,null,null,null,null,null,null,null,null,null,null,null,null,null,null,null,null,null,null,null,null,null,null,null,null,null,null,null,null,null,null,null,null,null,null,null,null,null,null,null,null,null,null,null,null,null,null,"","","","","","","","","","",null,null,"",{"$f":"IF(GM374=\"\",\"\",IF(GM374<=10,OrdeUP10(GM374),\"\"))","v":""},"",""]
[null,null,null,null,null,null,null,null,null,null,null,null,null,null,null,null,null,null,null,null,null,null,null,null,null,null,null,null,null,null,null,null,null,null,null,null,null,null,null,null,null,null,null,null,null,null,null,null,null,null,null,"","",null,null,null,null,null,null,null,null,null,null,null,null,null,null,null,null,null,null,null,null,null,null,null,null,null,null,null,null,null,null,null,null,null,null,null,null,null,null,null,null,null,null,null,null,null,null,null,null,null,null,null,null,null,null,null,null,null,null,null,null,null,null,null,null,null,null,null,null,null,null,null,null,null,null,null,null,null,null,null,null,null,null,null,null,null,null,null,null,null,null,null,null,null,null,null,null,null,null,null,null,null,null,null,null,null,null,null,null,null,null,null,null,null,null,null,null,null,null,null,null,null,null,null,null,null,null,null,null,null,"","","","","","","","","","",null,null,"",{"$f":"IF(GM386=\"\",\"\",IF(GM386<=10,OrdeUP10(GM386),\"\"))","v":""},"",""]
[null,null,null,null,null,null,null,null,null,null,null,null,null,null,null,null,null,null,null,null,null,null,null,null,null,null,null,null,null,null,null,null,null,null,null,null,null,null,null,null,null,null,null,null,null,null,null,null,null,null,null,"","",null,null,null,null,null,null,null,null,null,null,null,null,null,null,null,null,null,null,null,null,null,null,null,null,null,null,null,null,null,null,null,null,null,null,null,null,null,null,null,null,null,null,null,null,null,null,null,null,null,null,null,null,null,null,null,null,null,null,null,null,null,null,null,null,null,null,null,null,null,null,null,null,null,null,null,null,null,null,null,null,null,null,null,null,null,null,null,null,null,null,null,null,null,null,null,null,null,null,null,null,null,null,null,null,null,null,null,null,null,null,null,null,null,null,null,null,null,null,null,null,null,null,null,null,null,null,null,null,null,{"$f":"IF(E391=\"غ\",0,IF(E391=\"\",\"\",SUM(D391:E391)))","v":""},{"$f":"IF(K391=\"غ\",0,IF(K391=\"\",\"\",SUM(J391:K391)))","v":""},{"$f":"IF(Q391=\"غ\",0,IF(Q391=\"\",\"\",SUM(P391:Q391)))","v":""},{"$f":"IF(W391=\"غ\",0,IF(W391=\"\",\"\",SUM(V391:W391)))","v":""},{"$f":"IF(AC391=\"غ\",0,IF(AC391=\"\",\"\",SUM(AB391:AC391)))","v":""},{"$f":"IF(AI391=\"غ\",0,IF(AI391=\"\",\"\",SUM(AH391:AI391)))","v":""},{"$f":"IF(AO391=\"غ\",0,IF(AO391=\"\",\"\",SUM(AN391:AO391)))","v":""},{"$f":"IF(AU391=\"غ\",0,IF(AU391=\"\",\"\",SUM(AT391:AU391)))","v":""},{"$f":"IF(OR(B391=\"\",GJ391=\"\"),\"\",IF(OR(GJ391=\"غائب\",GJ391=\"غائبة\",GJ391=\"راسب\",GJ391=\"راسبة\"),\"-\",SUM(GA391:GH391)))","v":""},"",null,null,"",{"$f":"IF(GM391=\"\",\"\",IF(GM391<=10,OrdeUP10(GM391),\"\"))","v":""},"",""]
["الصف ",null,"الثالث أساسي","الفصل الأول",null,"الفصل الثاني",null,"القرآن",null,"الفصل الأول",null,"الفصل الثاني",null,"الإسلامية",null,"الفصل الأول",null,"الفصل الثاني",null,"العربية",null,"الفصل الأول",null,"الفصل الثاني",null,"الإنكليزية",null,"الفصل الأول",null,"الفصل الثاني",null,"الرياضيات",null,"الفصل الأول",null,"الفصل الثاني",null,"العلوم",null,"الفصل الأول",null,"الفصل الثاني",null,"الإجتماعيات",null,"الفصل الأول",null,"الفصل الثاني",null,"السلوك",null,"المجموع الكلي","النتيجة النهائية","الملاحظات",null,null,null,null,null,null,null,null,null,null,null,null,null,null,null,null,null,null,null,null,null,null,null,null,null,null,null,null,null,null,null,null,null,null,null,null,null,null,null,null,null,null,null,null,null,null,null,null,null,null,null,null,null,null,null,null,null,null,null,null,null,null,null,null,null,null,null,null,null,null,null,null,null,null,null,null,null,null,null,null,null,null,null,null,null,null,null,null,null,null,null,null,null,null,null,null,null,null,null,null,null,null,null,null,null,null,null,null,null,null,null,null,null,null,null,null,null,null,null,null,null,null,null,null,null,null,null,null,"","","","",null,null,null,null,""]
[16,86,"غيلان16",17,20,null,null,37,null,15,23,null,null,38,null,13,19,null,null,32,null,null,null,null,null,null,null,13,19,null,null,32,null,15,13,null,null,28,null,17,12,null,null,29,null,15,20,null,null,35,null,"-","راسب",null,null,null,null,null,null,null,null,null,null,null,null,null,null,null,null,null,null,null,null,null,null,null,null,null,null,null,null,null,null,null,null,null,null,null,null,null,null,null,null,null,null,null,null,null,null,null,null,null,null,null,null,null,null,null,null,null,null,null,null,null,null,null,null,null,null,null,null,null,null,null,null,null,null,null,null,null,null,null,null,null,null,null,null,null,null,null,null,null,null,null,null,null,null,null,null,null,null,null,null,null,null,null,null,null,null,null,null,null,null,null,null,null,null,null,null,null,null,null,null,null,null,null,null,null,null,null,null,null,37,38,32,"",32,28,29,35,231,"ناجح",null,null,"",{"$f":"IF(GM421=\"\",\"\",IF(GM421<=10,OrdeUP10(GM421),\"\"))","v":""},6,""]
[null,null,null,null,null,null,null,null,null,null,null,null,null,null,null,null,null,null,null,null,null,null,null,null,null,null,null,null,null,null,null,null,null,null,null,null,null,null,null,null,null,null,null,null,null,null,null,null,null,null,null,"","",null,null,null,null,null,null,null,null,null,null,null,null,null,null,null,null,null,null,null,null,null,null,null,null,null,null,null,null,null,null,null,null,null,null,null,null,null,null,null,null,null,null,null,null,null,null,null,null,null,null,null,null,null,null,null,null,null,null,null,null,null,null,null,null,null,null,null,null,null,null,null,null,null,null,null,null,null,null,null,null,null,null,null,null,null,null,null,null,null,null,null,null,null,null,null,null,null,null,null,null,null,null,null,null,null,null,null,null,null,null,null,null,null,null,null,null,null,null,null,null,null,null,null,null,null,null,null,null,null,"","","","","","","","","","",null,null,"",{"$f":"IF(GM433=\"\",\"\",IF(GM433<=10,OrdeUP10(GM433),\"\"))","v":""},"","الخامس"]
[null,null,null,null,null,null,null,null,null,null,null,null,null,null,null,null,null,null,null,null,null,null,null,null,null,null,null,null,null,null,null,null,null,null,null,null,null,null,null,null,null,null,null,null,null,null,null,null,null,null,null,"","",null,null,null,null,null,null,null,null,null,null,null,null,null,null,null,null,null,null,null,null,null,null,null,null,null,null,null,null,null,null,null,null,null,null,null,null,null,null,null,null,null,null,null,null,null,null,null,null,null,null,null,null,null,null,null,null,null,null,null,null,null,null,null,null,null,null,null,null,null,null,null,null,null,null,null,null,null,null,null,null,null,null,null,null,null,null,null,null,null,null,null,null,null,null,null,null,null,null,null,null,null,null,null,null,null,null,null,null,null,null,null,null,null,null,null,null,null,null,null,null,null,null,null,null,null,null,null,null,null,"","","","","","","","","","",null,null,"",{"$f":"IF(GM438=\"\",\"\",IF(GM438<=10,OrdeUP10(GM438),\"\"))","v":""},"",""]
[null,null,null,null,null,null,null,null,null,null,null,null,null,null,null,null,null,null,null,null,null,null,null,null,null,null,null,null,null,null,null,null,null,null,null,null,null,null,null,null,null,null,null,null,null,null,null,null,null,null,null,"","",null,null,null,null,null,null,null,null,null,null,null,null,null,null,null,null,null,null,null,null,null,null,null,null,null,null,null,null,null,null,null,null,null,null,null,null,null,null,null,null,null,null,null,null,null,null,null,null,null,null,null,null,null,null,null,null,null,null,null,null,null,null,null,null,null,null,null,null,null,null,null,null,null,null,null,null,null,null,null,null,null,null,null,null,null,null,null,null,null,null,null,null,null,null,null,null,null,null,null,null,null,null,null,null,null,null,null,null,null,null,null,null,null,null,null,null,null,null,null,null,null,null,null,null,null,null,null,null,null,"","","","","","","","","","",null,null,"",{"$f":"IF(GM454=\"\",\"\",IF(GM454<=10,OrdeUP10(GM454),\"\"))","v":""},"",""]
[null,null,null,null,null,null,null,null,null,null,null,null,null,null,null,null,null,null,null,null,null,null,null,null,null,null,null,null,null,null,null,null,null,null,null,null,null,null,null,null,null,null,null,null,null,null,null,null,null,null,null,"","",null,null,null,null,null,null,null,null,null,null,null,null,null,null,null,null,null,null,null,null,null,null,null,null,null,null,null,null,null,null,null,null,null,null,null,null,null,null,null,null,null,null,null,null,null,null,null,null,null,null,null,null,null,null,null,null,null,null,null,null,null,null,null,null,null,null,null,null,null,null,null,null,null,null,null,null,null,null,null,null,null,null,null,null,null,null,null,null,null,null,null,null,null,null,null,null,null,null,null,null,null,null,null,null,null,null,null,null,null,null,null,null,null,null,null,null,null,null,null,null,null,null,null,null,null,null,null,null,null,"","","","","","","","","","",null,null,"",{"$f":"IF(GM466=\"\",\"\",IF(GM466<=10,OrdeUP10(GM466),\"\"))","v":""},"",""]
[null,null,null,null,null,null,null,null,null,null,null,null,null,null,null,null,null,null,null,null,null,null,null,null,null,null,null,null,null,null,null,null,null,null,null,null,null,null,null,null,null,null,null,null,null,null,null,null,null,null,null,"","",null,null,null,null,null,null,null,null,null,null,null,null,null,null,null,null,null,null,null,null,null,null,null,null,null,null,null,null,null,null,null,null,null,null,null,null,null,null,null,null,null,null,null,null,null,null,null,null,null,null,null,null,null,null,null,null,null,null,null,null,null,null,null,null,null,null,null,null,null,null,null,null,null,null,null,null,null,null,null,null,null,null,null,null,null,null,null,null,null,null,null,null,null,null,null,null,null,null,null,null,null,null,null,null,null,null,null,null,null,null,null,null,null,null,null,null,null,null,null,null,null,null,null,null,null,null,null,null,null,"","","","","","","","","","",null,null,"",{"$f":"IF(GM475=\"\",\"\",IF(GM475<=10,OrdeUP10(GM475),\"\"))","v":""},"",""]
[null,null,null,null,null,null,null,null,null,null,null,null,null,null,null,null,null,null,null,null,null,null,null,null,null,null,null,null,null,null,null,null,null,null,null,null,null,null,null,null,null,null,null,null,null,null,null,null,null,null,null,"","",null,null,null,null,null,null,null,null,null,null,null,null,null,null,null,null,null,null,null,null,null,null,null,null,null,null,null,null,null,null,null,null,null,null,null,null,null,null,null,null,null,null,null,null,null,null,null,null,null,null,null,null,null,null,null,null,null,null,null,null,null,null,null,null,null,null,null,null,null,null,null,null,null,null,null,null,null,null,null,null,null,null,null,null,null,null,null,null,null,null,null,null,null,null,null,null,null,null,null,null,null,null,null,null,null,null,null,null,null,null,null,null,null,null,null,null,null,null,null,null,null,null,null,null,null,null,null,null,null,"","","","","","","","","","",null,null,"",{"$f":"IF(GM490=\"\",\"\",IF(GM490<=10,OrdeUP10(GM490),\"\"))","v":""},"",""]
[null,null,null,null,null,null,null,null,null,null,null,null,null,null,null,null,null,null,null,null,null,null,null,null,null,null,null,null,null,null,null,null,null,null,null,null,null,null,null,null,null,null,null,null,null,null,null,null,null,null,null,"","",null,null,null,null,null,null,null,null,null,null,null,null,null,null,null,null,null,null,null,null,null,null,null,null,null,null,null,null,null,null,null,null,null,null,null,null,null,null,null,null,null,null,null,null,null,null,null,null,null,null,null,null,null,null,null,null,null,null,null,null,null,null,null,null,null,null,null,null,null,null,null,null,null,null,null,null,null,null,null,null,null,null,null,null,null,null,null,null,null,null,null,null,null,null,null,null,null,null,null,null,null,null,null,null,null,null,null,null,null,null,null,null,null,null,null,null,null,null,null,null,null,null,null,null,null,null,null,null,null,"","","","","","","","","","",null,null,"",{"$f":"IF(GM496=\"\",\"\",IF(GM496<=10,OrdeUP10(GM496),\"\"))","v":""},"",""]
[31,101,"سيناء11",20,30,null,null,50,null,20,30,null,null,50,null,20,30,null,null,50,null,null,null,null,null,null,null,20,30,null,null,50,null,20,30,null,null,50,null,20,30,null,null,50,null,20,30,null,null,50,null,300,"ناجحة",null,null,null,null,null,null,null,null,null,null,null,null,null,null,null,null,null,null,null,null,null,null,null,null,null,null,null,null,null,null,null,null,null,null,null,null,null,null,null,null,null,null,null,null,null,null,null,null,null,null,null,null,null,null,null,null,null,null,null,null,null,null,null,null,null,null,null,null,null,null,null,null,null,null,null,null,null,null,null,null,null,null,null,null,null,null,null,null,null,null,null,null,null,null,null,null,null,null,null,null,null,null,null,null,null,null,null,null,null,null,null,null,null,null,null,null,null,null,null,null,null,null,null,null,null,null,null,null,null,50,50,50,"",50,50,50,50,350,"ناجحة",null,null,1,{"$f":"IF(GM517=\"\",\"\",IF(GM517<=10,OrdeUP10(GM517),\"\"))","v":{"$error":"#NAME?"}},1,"الأوّل"]
[null,null,null,null,null,null,null,null,null,null,null,null,null,null,null,null,null,null,null,null,null,null,null,null,null,null,null,null,null,null,null,null,null,null,null,null,null,null,null,null,null,null,null,null,null,null,null,null,null,null,null,"","",null,null,null,null,null,null,null,null,null,null,null,null,null,null,null,null,null,null,null,null,null,null,null,null,null,null,null,null,null,null,null,null,null,null,null,null,null,null,null,null,null,null,null,null,null,null,null,null,null,null,null,null,null,null,null,null,null,null,null,null,null,null,null,null,null,null,null,null,null,null,null,null,null,null,null,null,null,null,null,null,null,null,null,null,null,null,null,null,null,null,null,null,null,null,null,null,null,null,null,null,null,null,null,null,null,null,null,null,null,null,null,null,null,null,null,null,null,null,null,null,null,null,null,null,null,null,null,null,null,"","","","","","","","","","",null,null,"",{"$f":"IF(GM525=\"\",\"\",IF(GM525<=10,OrdeUP10(GM525),\"\"))","v":""},"","الثّامن"]
[null,null,null,null,null,null,null,null,null,null,null,null,null,null,null,null,null,null,null,null,null,null,null,null,null,null,null,null,null,null,null,null,null,null,null,null,null,null,null,null,null,null,null,null,null,null,null,null,null,null,null,"","",null,null,"الراسبون",{"$f":"COUNTIF(BA507:BA596,\"راسبة\")","v":11},null,null,null,null,null,null,null,null,null,null,null,null,null,null,null,null,null,null,null,null,null,null,null,null,null,null,null,null,null,null,null,null,null,null,null,null,null,null,null,null,null,null,null,null,null,null,null,null,null,null,null,null,null,null,null,null,null,null,null,null,null,null,null,null,null,null,null,null,null,null,null,null,null,null,null,null,null,null,null,null,null,null,null,null,null,null,null,null,null,null,null,null,null,null,null,null,null,null,null,null,null,null,null,null,null,null,null,null,null,null,null,null,null,null,null,null,null,null,null,null,null,null,null,null,null,"","","","","","","","","","",null,null,"",{"$f":"IF(GM538=\"\",\"\",IF(GM538<=10,OrdeUP10(GM538),\"\"))","v":""},"",""]
[null,null,null,null,null,null,null,null,null,null,null,null,null,null,null,null,null,null,null,null,null,null,null,null,null,null,null,null,null,null,null,null,null,null,null,null,null,null,null,null,null,null,null,null,null,null,null,null,null,null,null,"","",null,null,null,null,null,null,null,null,null,null,null,null,null,null,null,null,null,null,null,null,null,null,null,null,null,null,null,null,null,null,null,null,null,null,null,null,null,null,null,null,null,null,null,null,null,null,null,null,null,null,null,null,null,null,null,null,null,null,null,null,null,null,null,null,null,null,null,null,null,null,null,null,null,null,null,null,null,null,null,null,null,null,null,null,null,null,null,null,null,null,null,null,null,null,null,null,null,null,null,null,null,null,null,null,null,null,null,null,null,null,null,null,null,null,null,null,null,null,null,null,null,null,null,null,null,null,null,null,null,"","","","","","","","","","",null,null,"",{"$f":"IF(GM542=\"\",\"\",IF(GM542<=10,OrdeUP10(GM542),\"\"))","v":""},"",""]
[null,null,null,null,null,null,null,null,null,null,null,null,null,null,null,null,null,null,null,null,null,null,null,null,null,null,null,null,null,null,null,null,null,null,null,null,null,null,null,null,null,null,null,null,null,null,null,null,null,null,null,"","",null,null,null,null,null,null,null,null,null,null,null,null,null,null,null,null,null,null,null,null,null,null,null,null,null,null,null,null,null,null,null,null,null,null,null,null,null,null,null,null,null,null,null,null,null,null,null,null,null,null,null,null,null,null,null,null,null,null,null,null,null,null,null,null,null,null,null,null,null,null,null,null,null,null,null,null,null,null,null,null,null,null,null,null,null,null,null,null,null,null,null,null,null,null,null,null,null,null,null,null,null,null,null,null,null,null,null,null,null,null,null,null,null,null,null,null,null,null,null,null,null,null,null,null,null,null,null,null,null,"","","","","","","","","","",null,null,"",{"$f":"IF(GM559=\"\",\"\",IF(GM559<=10,OrdeUP10(GM559),\"\"))","v":""},"",""]
[null,null,null,null,null,null,null,null,null,null,null,null,null,null,null,null,null,null,null,null,null,null,null,null,null,null,null,null,null,null,null,null,null,null,null,null,null,null,null,null,null,null,null,null,null,null,null,null,null,null,null,"","",null,null,null,null,null,null,null,null,null,null,null,null,null,null,null,null,null,null,null,null,null,null,null,null,null,null,null,null,null,null,null,null,null,null,null,null,null,null,null,null,null,null,null,null,null,null,null,null,null,null,null,null,null,null,null,null,null,null,null,null,null,null,null,null,null,null,null,null,null,null,null,null,null,null,null,null,null,null,null,null,null,null,null,null,null,null,null,null,null,null,null,null,null,null,null,null,null,null,null,null,null,null,null,null,null,null,null,null,null,null,null,null,null,null,null,null,null,null,null,null,null,null,null,null,null,null,null,null,null,"","","","","","","","","","",null,null,"",{"$f":"IF(GM570=\"\",\"\",IF(GM570<=10,OrdeUP10(GM570),\"\"))","v":""},"",""]
[null,null,null,null,null,null,null,null,null,null,null,null,null,null,null,null,null,null,null,null,null,null,null,null,null,null,null,null,null,null,null,null,null,null,null,null,null,null,null,null,null,null,null,null,null,null,null,null,null,null,null,"","",null,null,null,null,null,null,null,null,null,null,null,null,null,null,null,null,null,null,null,null,null,null,null,null,null,null,null,null,null,null,null,null,null,null,null,null,null,null,null,null,null,null,null,null,null,null,null,null,null,null,null,null,null,null,null,null,null,null,null,null,null,null,null,null,null,null,null,null,null,null,null,null,null,null,null,null,null,null,null,null,null,null,null,null,null,null,null,null,null,null,null,null,null,null,null,null,null,null,null,null,null,null,null,null,null,null,null,null,null,null,null,null,null,null,null,null,null,null,null,null,null,null,null,null,null,null,null,null,null,"","","","","","","","","","",null,null,"",{"$f":"IF(GM576=\"\",\"\",IF(GM576<=10,OrdeUP10(GM576),\"\"))","v":""},"",""]
[null,{"$f":"MAX(B406:B505)","v":90},null,null,null,null,null,null,null,null,null,null,null,null,null,null,null,null,null,null,null,null,null,null,null,null,null,null,null,null,null,null,null,null,null,null,null,null,null,null,null,null,null,null,null,null,null,null,null,null,null,null,null,null,null,null,null,null,null,null,null,null,null,null,null,null,null,null,null,null,null,null,null,null,null,null,null,null,null,null,null,null,null,null,null,null,null,null,null,null,null,null,null,null,null,null,null,null,null,null,null,null,null,null,null,null,null,null,null,null,null,null,null,null,null,null,null,null,null,null,null,null,null,null,null,null,null,null,null,null,null,null,null,null,null,null,null,null,null,null,null,null,null,null,null,null,null,null,null,null,null,null,null,null,null,null,null,null,null,null,null,null,null,null,null,null,null,null,null,null,null,null,null,null,null,null,null,null,null,null,null,null,"","","","","",null,null,null,""]
[4,109,"صابر4",19,25,null,null,44,null,20,29,null,null,49,null,16,27,41,null,84,null,null,null,null,null,null,null,14,20,41,null,75,null,17,28,null,null,45,null,18,22,null,null,40,null,15,25,null,null,40,null,"-","راسب",null,null,null,null,null,null,null,null,null,null,null,null,null,null,null,null,null,null,null,null,null,null,null,null,null,null,null,null,null,null,null,null,null,null,null,null,null,null,null,null,null,null,null,null,null,null,null,null,null,null,null,null,null,null,null,null,null,null,null,null,null,null,null,null,null,null,null,null,null,null,null,null,null,null,null,null,null,null,null,null,null,null,null,null,null,null,null,null,null,null,null,null,null,null,null,null,null,null,null,null,null,null,null,null,null,null,null,null,null,null,null,null,null,null,null,null,null,null,null,null,null,null,null,null,null,null,null,null,null,44,49,43,"",34,45,40,40,295,"ناجح",null,null,"",{"$f":"IF(GM609=\"\",\"\",IF(GM609<=10,OrdeUP10(GM609),\"\"))","v":""},4,"الثّامن"]
[17,122,"صابر17",15,16,null,null,31,null,16,16,null,null,32,null,17,28,40,null,85,null,null,null,null,null,null,null,14,10,40,null,64,null,16,24,null,null,40,null,17,21,null,null,38,null,14,27,null,null,41,null,"-","راسب",null,null,null,null,null,null,null,null,null,null,null,null,null,null,null,null,null,null,null,null,null,null,null,null,null,null,null,null,null,null,null,null,null,null,null,null,null,null,null,null,null,null,null,null,null,null,null,null,null,null,null,null,null,null,null,null,null,null,null,null,null,null,null,null,null,null,null,null,null,null,null,null,null,null,null,null,null,null,null,null,null,null,null,null,null,null,null,null,null,null,null,null,null,null,null,null,null,null,null,null,null,null,null,null,null,null,null,null,null,null,null,null,null,null,null,null,null,null,null,null,null,null,null,null,null,null,null,null,null,31,32,45,"",24,40,38,41,"-","راسب",null,null,"",{"$f":"IF(GM622=\"\",\"\",IF(GM622<=10,OrdeUP10(GM622),\"\"))","v":""},"",""]
[null,null,null,null,null,null,null,null,null,null,null,null,null,null,null,null,null,null,null,null,null,null,null,null,null,null,null,null,null,null,null,null,null,null,null,null,null,null,null,null,null,null,null,null,null,null,null,null,null,null,null,"","",null,null,null,null,null,null,null,null,null,null,null,null,null,null,null,null,null,null,null,null,null,null,null,null,null,null,null,null,null,null,null,null,null,null,null,null,null,null,null,null,null,null,null,null,null,null,null,null,null,null,null,null,null,null,null,null,null,null,null,null,null,null,null,null,null,null,null,null,null,null,null,null,null,null,null,null,null,null,null,null,null,null,null,null,null,null,null,null,null,null,null,null,null,null,null,null,null,null,null,null,null,null,null,null,null,null,null,null,null,null,null,null,null,null,null,null,null,null,null,null,null,null,null,null,null,null,null,null,null,"","","","","","","","","","",null,null,"",{"$f":"IF(GM633=\"\",\"\",IF(GM633<=10,OrdeUP10(GM633),\"\"))","v":""},"",""]
[null,null,null,null,null,null,null,null,null,null,null,null,null,null,null,null,null,null,null,null,null,null,null,null,null,null,null,null,null,null,null,null,null,null,null,null,null,null,null,null,null,null,null,null,null,null,null,null,null,null,null,"","",null,null,null,null,null,null,null,null,null,null,null,null,null,null,null,null,null,null,null,null,null,null,null,null,null,null,null,null,null,null,null,null,null,null,null,null,null,null,null,null,null,null,null,null,null,null,null,null,null,null,null,null,null,null,null,null,null,null,null,null,null,null,null,null,null,null,null,null,null,null,null,null,null,null,null,null,null,null,null,null,null,null,null,null,null,null,null,null,null,null,null,null,null,null,null,null,null,null,null,null,null,null,null,null,null,null,null,null,null,null,null,null,null,null,null,null,null,null,null,null,null,null,null,null,null,null,null,null,null,"","","","","","","","","","",null,null,"",{"$f":"IF(GM639=\"\",\"\",IF(GM639<=10,OrdeUP10(GM639),\"\"))","v":""},"","الرّابع"]
[null,null,null,null,null,null,null,null,null,null,null,null,null,null,null,null,null,null,null,null,null,null,null,null,null,null,null,null,null,null,null,null,null,null,null,null,null,null,null,null,null,null,null,null,null,null,null,null,null,null,null,"","",null,null,null,null,null,null,null,null,null,null,null,null,null,null,null,null,null,null,null,null,null,null,null,null,null,null,null,null,null,null,null,null,null,null,null,null,null,null,null,null,null,null,null,null,null,null,null,null,null,null,null,null,null,null,null,null,null,null,null,null,null,null,null,null,null,null,null,null,null,null,null,null,null,null,null,null,null,null,null,null,null,null,null,null,null,null,null,null,null,null,null,null,null,null,null,null,null,null,null,null,null,null,null,null,null,null,null,null,null,null,null,null,null,null,null,null,null,null,null,null,null,null,null,null,null,null,null,null,null,"","","","","","","","","","",null,null,"",{"$f":"IF(GM650=\"\",\"\",IF(GM650<=10,OrdeUP10(GM650),\"\"))","v":""},"",""]
[null,null,null,null,null,null,null,null,null,null,null,null,null,null,null,null,null,null,null,null,null,null,null,null,null,null,null,null,null,null,null,null,null,null,null,null,null,null,null,null,null,null,null,null,null,null,null,null,null,null,null,"","",null,null,null,null,null,null,null,null,null,null,null,null,null,null,null,null,null,null,null,null,null,null,null,null,null,null,null,null,null,null,null,null,null,null,null,null,null,null,null,null,null,null,null,null,null,null,null,null,null,null,null,null,null,null,null,null,null,null,null,null,null,null,null,null,null,null,null,null,null,null,null,null,null,null,null,null,null,null,null,null,null,null,null,null,null,null,null,null,null,null,null,null,null,null,null,null,null,null,null,null,null,null,null,null,null,null,null,null,null,null,null,null,null,null,null,null,null,null,null,null,null,null,null,null,null,null,null,null,null,"","","","","","","","","","",null,null,"",{"$f":"IF(GM660=\"\",\"\",IF(GM660<=10,OrdeUP10(GM660),\"\"))","v":""},"",""]
[null,null,null,null,null,null,null,null,null,null,null,null,null,null,null,null,null,null,null,null,null,null,null,null,null,null,null,null,null,null,null,null,null,null,null,null,null,null,null,null,null,null,null,null,null,null,null,null,null,null,null,"","",null,null,null,null,null,null,null,null,null,null,null,null,null,null,null,null,null,null,null,null,null,null,null,null,null,null,null,null,null,null,null,null,null,null,null,null,null,null,null,null,null,null,null,null,null,null,null,null,null,null,null,null,null,null,null,null,null,null,null,null,null,null,null,null,null,null,null,null,null,null,null,null,null,null,null,null,null,null,null,null,null,null,null,null,null,null,null,null,null,null,null,null,null,null,null,null,null,null,null,null,null,null,null,null,null,null,null,null,null,null,null,null,null,null,null,null,null,null,null,null,null,null,null,null,null,null,null,null,null,"","","","","","","","","","",null,null,"",{"$f":"IF(GM674=\"\",\"\",IF(GM674<=10,OrdeUP10(GM674),\"\"))","v":""},"",""]
[null,null,null,null,null,null,null,null,null,null,null,null,null,null,null,null,null,null,null,null,null,null,null,null,null,null,null,null,null,null,null,null,null,null,null,null,null,null,null,null,null,null,null,null,null,null,null,null,null,null,null,"","",null,null,null,null,null,null,null,null,null,null,null,null,null,null,null,null,null,null,null,null,null,null,null,null,null,null,null,null,null,null,null,null,null,null,null,null,null,null,null,null,null,null,null,null,null,null,null,null,null,null,null,null,null,null,null,null,null,null,null,null,null,null,null,null,null,null,null,null,null,null,null,null,null,null,null,null,null,null,null,null,null,null,null,null,null,null,null,null,null,null,null,null,null,null,null,null,null,null,null,null,null,null,null,null,null,null,null,null,null,null,null,null,null,null,null,null,null,null,null,null,null,null,null,null,null,null,null,null,null,"","","","","","","","","","",null,null,"",{"$f":"IF(GM681=\"\",\"\",IF(GM681<=10,OrdeUP10(GM681),\"\"))","v":""},"",""]
[null,null,null,null,null,null,null,null,null,null,null,null,null,null,null,null,null,null,null,null,null,null,null,null,null,null,null,null,null,null,null,null,null,null,null,null,null,null,null,null,null,null,null,null,null,null,null,null,null,null,null,"","",null,null,null,null,null,null,null,null,null,null,null,null,null,null,null,null,null,null,null,null,null,null,null,null,null,null,null,null,null,null,null,null,null,null,null,null,null,null,null,null,null,null,null,null,null,null,null,null,null,null,null,null,null,null,null,null,null,null,null,null,null,null,null,null,null,null,null,null,null,null,null,null,null,null,null,null,null,null,null,null,null,null,null,null,null,null,null,null,null,null,null,null,null,null,null,null,null,null,null,null,null,null,null,null,null,null,null,null,null,null,null,null,null,null,null,null,null,null,null,null,null,null,null,null,null,null,null,null,null,"","","","","","","","","","",null,null,"",{"$f":"IF(GM702=\"\",\"\",IF(GM702<=10,OrdeUP10(GM702),\"\"))","v":""},"",""]
[27,132,"عقيلة7",15,15,null,null,30,null,10,8,null,null,18,null,14,15,null,null,29,null,null,null,null,null,null,null,15,15,null,null,30,null,14,15,null,null,29,null,16,11,null,null,27,null,14,27,null,null,41,null,"-","راسبة",null,null,null,null,null,null,null,null,null,null,null,null,null,null,null,null,null,null,null,null,null,null,null,null,null,null,null,null,null,null,null,null,null,null,null,null,null,null,null,null,null,null,null,null,null,null,null,null,null,null,null,null,null,null,null,null,null,null,null,null,null,null,null,null,null,null,null,null,null,null,null,null,null,null,null,null,null,null,null,null,null,null,null,null,null,null,null,null,null,null,null,null,null,null,null,null,null,null,null,null,null,null,null,null,null,null,null,null,null,null,null,null,null,null,null,null,null,null,null,null,null,null,null,null,null,null,null,null,null,30,18,29,"",30,29,27,41,"-","راسبة",null,null,"",{"$f":"IF(GM713=\"\",\"\",IF(GM713<=10,OrdeUP10(GM713),\"\"))","v":""},"",""]
[null,null,null,null,null,null,null,null,null,null,null,null,null,null,null,null,null,null,null,null,null,null,null,null,null,null,null,null,null,null,null,null,null,null,null,null,null,null,null,null,null,null,null,null,null,null,null,null,null,null,null,"","",null,null,null,null,null,null,null,null,null,null,null,null,null,null,null,null,null,null,null,null,null,null,null,null,null,null,null,null,null,null,null,null,null,null,null,null,null,null,null,null,null,null,null,null,null,null,null,null,null,null,null,null,null,null,null,null,null,null,null,null,null,null,null,null,null,null,null,null,null,null,null,null,null,null,null,null,null,null,null,null,null,null,null,null,null,null,null,null,null,null,null,null,null,null,null,null,null,null,null,null,null,null,null,null,null,null,null,null,null,null,null,null,null,null,null,null,null,null,null,null,null,null,null,null,null,null,null,null,null,"","","","","","","","","","",null,null,"",{"$f":"IF(GM723=\"\",\"\",IF(GM723<=10,OrdeUP10(GM723),\"\"))","v":""},"",""]
[null,null,null,null,null,null,null,null,null,null,null,null,null,null,null,null,null,null,null,null,null,null,null,null,null,null,null,null,null,null,null,null,null,null,null,null,null,null,null,null,null,null,null,null,null,null,null,null,null,null,null,"","",null,null,"الناجحون",{"$f":"COUNTIF(BA707:BA797,\"ناجحة\")","v":1},"الحاضرون",{"$f":"BE737+BE738","v":13},null,null,null,null,null,null,null,null,null,null,null,null,null,null,null,null,null,null,null,null,null,null,null,null,null,null,null,null,null,null,null,null,null,null,null,null,null,null,null,null,null,null,null,null,null,null,null,null,null,null,null,null,null,null,null,null,null,null,null,null,null,null,null,null,null,null,null,null,null,null,null,null,null,null,null,null,null,null,null,null,null,null,null,null,null,null,null,null,null,null,null,null,null,null,null,null,null,null,null,null,null,null,null,null,null,null,null,null,null,null,null,null,null,null,null,null,null,null,null,null,null,null,null,"","","","","","","","","","",null,null,"",{"$f":"IF(GM737=\"\",\"\",IF(GM737<=10,OrdeUP10(GM737),\"\"))","v":""},"",""]
[null,null,null,null,null,null,null,null,null,null,null,null,null,null,null,null,null,null,null,null,null,null,null,null,null,null,null,null,null,null,null,null,null,null,null,null,null,null,null,null,null,null,null,null,null,null,null,null,null,null,null,"","",null,null,null,null,null,null,null,null,null,null,null,null,null,null,null,null,null,null,null,null,null,null,null,null,null,null,null,null,null,null,null,null,null,null,null,null,null,null,null,null,null,null,null,null,null,null,null,null,null,null,null,null,null,null,null,null,null,null,null,null,null,null,null,null,null,null,null,null,null,null,null,null,null,null,null,null,null,null,null,null,null,null,null,null,null,null,null,null,null,null,null,null,null,null,null,null,null,null,null,null,null,null,null,null,null,null,null,null,null,null,null,null,null,null,null,null,null,null,null,null,null,null,null,null,null,null,null,null,null,"","","","","","","","","","",null,null,"",{"$f":"IF(GM744=\"\",\"\",IF(GM744<=10,OrdeUP10(GM744),\"\"))","v":""},"",""]
[null,null,null,null,null,null,null,null,null,null,null,null,null,null,null,null,null,null,null,null,null,null,null,null,null,null,null,null,null,null,null,null,null,null,null,null,null,null,null,null,null,null,null,null,null,null,null,null,null,null,null,"","",null,null,null,null,null,null,null,null,null,null,null,null,null,null,null,null,null,null,null,null,null,null,null,null,null,null,null,null,null,null,null,null,null,null,null,null,null,null,null,null,null,null,null,null,null,null,null,null,null,null,null,null,null,null,null,null,null,null,null,null,null,null,null,null,null,null,null,null,null,null,null,null,null,null,null,null,null,null,null,null,null,null,null,null,null,null,null,null,null,null,null,null,null,null,null,null,null,null,null,null,null,null,null,null,null,null,null,null,null,null,null,null,null,null,null,null,null,null,null,null,null,null,null,null,null,null,null,null,null,"","","","","","","","","","",null,null,"",{"$f":"IF(GM754=\"\",\"\",IF(GM754<=10,OrdeUP10(GM754),\"\"))","v":""},"",""]
[null,null,null,null,null,null,null,null,null,null,null,null,null,null,null,null,null,null,null,null,null,null,null,null,null,null,null,null,null,null,null,null,null,null,null,null,null,null,null,null,null,null,null,null,null,null,null,null,null,null,null,"","",null,null,null,null,null,null,null,null,null,null,null,null,null,null,null,null,null,null,null,null,null,null,null,null,null,null,null,null,null,null,null,null,null,null,null,null,null,null,null,null,null,null,null,null,null,null,null,null,null,null,null,null,null,null,null,null,null,null,null,null,null,null,null,null,null,null,null,null,null,null,null,null,null,null,null,null,null,null,null,null,null,null,null,null,null,null,null,null,null,null,null,null,null,null,null,null,null,null,null,null,null,null,null,null,null,null,null,null,null,null,null,null,null,null,null,null,null,null,null,null,null,null,null,null,null,null,null,null,null,"","","","","","","","","","",null,null,"",{"$f":"IF(GM765=\"\",\"\",IF(GM765<=10,OrdeUP10(GM765),\"\"))","v":""},"",""]
[null,null,null,null,null,null,null,null,null,null,null,null,null,null,null,null,null,null,null,null,null,null,null,null,null,null,null,null,null,null,null,null,null,null,null,null,null,null,null,null,null,null,null,null,null,null,null,null,null,null,null,"","",null,null,null,null,null,null,null,null,null,null,null,null,null,null,null,null,null,null,null,null,null,null,null,null,null,null,null,null,null,null,null,null,null,null,null,null,null,null,null,null,null,null,null,null,null,null,null,null,null,null,null,null,null,null,null,null,null,null,null,null,null,null,null,null,null,null,null,null,null,null,null,null,null,null,null,null,null,null,null,null,null,null,null,null,null,null,null,null,null,null,null,null,null,null,null,null,null,null,null,null,null,null,null,null,null,null,null,null,null,null,null,null,null,null,null,null,null,null,null,null,null,null,null,null,null,null,null,null,null,"","","","","","","","","","",null,null,"",{"$f":"IF(GM782=\"\",\"\",IF(GM782<=10,OrdeUP10(GM782),\"\"))","v":""},"",""]
[null,null,null,null,null,null,null,null,null,null,null,null,null,null,null,null,null,null,null,null,null,null,null,null,null,null,null,null,null,null,null,null,null,null,null,null,null,null,null,null,null,null,null,null,null,null,null,null,null,null,null,"","",null,null,null,null,null,null,null,null,null,null,null,null,null,null,null,null,null,null,null,null,null,null,null,null,null,null,null,null,null,null,null,null,null,null,null,null,null,null,null,null,null,null,null,null,null,null,null,null,null,null,null,null,null,null,null,null,null,null,null,null,null,null,null,null,null,null,null,null,null,null,null,null,null,null,null,null,null,null,null,null,null,null,null,null,null,null,null,null,null,null,null,null,null,null,null,null,null,null,null,null,null,null,null,null,null,null,null,null,null,null,null,null,null,null,null,null,null,null,null,null,null,null,null,null,null,null,null,null,null,"","","","","","","","","","",null,null,"",{"$f":"IF(GM794=\"\",\"\",IF(GM794<=10,OrdeUP10(GM794),\"\"))","v":""},"",""]
[{"$f":"IF(C807<>\"\",ROW()-805,\"\")","v":2},{"$f":"IF(C807=\"\",\"\",B806+1)","v":142},"عنترة2",17,22,null,null,{"$f":"IF(AND(B807>0,C807<>\"\"),IF(AND(G807<>\"غ\"),SUM(D807:G807),0),\"\")","v":39},null,17,15,null,null,{"$f":"IF(AND(B807>0,C807<>\"\"),IF(AND(M807<>\"غ\"),SUM(J807:M807),0),\"\")","v":32},null,15,15,null,null,30,null,null,null,null,null,null,null,15,15,null,null,{"$f":"IF(AND(B807>0,C807<>\"\"),IF(AND(AE807<>\"غ\"),SUM(AB807:AE807),0),\"\")","v":30},null,15,16,null,null,{"$f":"IF(AND(B807>0,C807<>\"\"),IF(AND(AK807<>\"غ\"),SUM(AH807:AK807),0),\"\")","v":31},null,14,22,null,null,{"$f":"IF(AND(B807>0,C807<>\"\"),IF(AND(AQ807<>\"غ\"),SUM(AN807:AQ807),0),\"\")","v":36},null,14,22,null,null,{"$f":"IF(AND(B807>0,C807<>\"\"),IF(AND(AW807<>\"غ\"),SUM(AT807:AW807),0),\"\")","v":36},null,{"$f":"IF(AND(B807>0,C807<>\"\"),IF(AND(BA807=\"ناجح\"),AX807+AL807+AF807+T807+N807+AR807+H807,\"-\"),\"\")","v":"-"},{"$f":"IF(AND(B807>0,C807<>\"\"),IF(OR(H807=0,N807=0,T807=0,AF807=0,AL807=0,AR807=0,AX807=0),\"غائب\",IF(OR(H807<50,N807<50,T807<50,AF807<50,AL807<50,AR807<50,AX807<50),\"راسب\",IF(AND(H807>=50,N807>49,T807>=50,AF807>=50,AL807>=50,AR807>=50,AX807>=50),\"ناجح\",\"\"))),\"\")","v":"راسب"},null,null,null,null,null,null,null,null,null,null,null,null,null,null,null,null,null,null,null,null,null,null,null,null,null,null,null,null,null,null,null,null,null,null,null,null,null,null,null,null,null,null,null,null,null,null,null,null,null,null,null,null,null,null,null,null,null,null,null,null,null,null,null,null,null,null,null,null,null,null,null,null,null,null,null,null,null,null,null,null,null,null,null,null,null,null,null,null,null,null,null,null,null,null,null,null,null,null,null,null,null,null,null,null,null,null,null,null,null,null,null,null,null,null,null,null,null,null,null,null,null,null,null,null,null,null,null,null,null,39,32,30,"",30,31,36,36,234,"ناجح",null,null,{"$f":"IF(OR(AZ807=\"\",AZ807=\"-\"),\"\",_xlfn.RANK.EQ(AZ807,$AZ$806:$AZ$996,0))","v":""},{"$f":"IF(GM807=\"\",\"\",IF(GM807<=10,OrdeUP10(GM807),\"\"))","v":""},{"$f":"IF(OR(GI807=\"\",GI807=\"-\"),\"\",_xlfn.RANK.EQ(GI807,$GI$806:$GI$996,0))","v":12},""]
[12,152,"عنترة12",19,22,null,null,41,null,20,20,null,null,40,null,15,15,null,null,30,null,null,null,null,null,null,null,14,10,null,null,24,null,16,24,null,null,40,null,17,27,null,null,44,null,17,27,null,null,44,null,"-","راسب",null,null,null,null,null,null,null,null,null,null,null,null,null,null,null,null,null,null,null,null,null,null,null,null,null,null,null,null,null,null,null,null,null,null,null,null,null,null,null,null,null,null,null,null,null,null,null,null,null,null,null,null,null,null,null,null,null,null,null,null,null,null,null,null,null,null,null,null,null,null,null,null,null,null,null,null,null,null,null,null,null,null,null,null,null,null,null,null,null,null,null,null,null,null,null,null,null,null,null,null,null,null,null,null,null,null,null,null,null,null,null,null,null,null,null,null,null,null,null,null,null,null,null,null,null,null,null,null,null,41,40,30,"",24,40,44,44,"-","راسب",null,null,"",{"$f":"IF(GM817=\"\",\"\",IF(GM817<=10,OrdeUP10(GM817),\"\"))","v":""},"",""]
[19,159,"عنترة19",16,22,null,null,38,null,10,8,null,null,18,null,15,14,null,null,29,null,null,null,null,null,null,null,16,15,null,null,31,null,15,17,null,null,32,null,17,19,null,null,36,null,17,19,null,null,36,null,"-","راسب",null,null,null,null,null,null,null,null,null,null,null,null,null,null,null,null,null,null,null,null,null,null,null,null,null,null,null,null,null,null,null,null,null,null,null,null,null,null,null,null,null,null,null,null,null,null,null,null,null,null,null,null,null,null,null,null,null,null,null,null,null,null,null,null,null,null,null,null,null,null,null,null,null,null,null,null,null,null,null,null,null,null,null,null,null,null,null,null,null,null,null,null,null,null,null,null,null,null,null,null,null,null,null,null,null,null,null,null,null,null,null,null,null,null,null,null,null,null,null,null,null,null,null,null,null,null,null,null,null,38,18,29,"",31,32,36,36,"-","راسب",null,null,"",{"$f":"IF(GM824=\"\",\"\",IF(GM824<=10,OrdeUP10(GM824),\"\"))","v":""},"",""]
[null,null,null,null,null,null,null,null,null,null,null,null,null,null,null,null,null,null,null,null,null,null,null,null,null,null,null,null,null,null,null,null,null,null,null,null,null,null,null,null,null,null,null,null,null,null,null,null,null,null,null,"","",null,null,null,null,null,null,null,null,null,null,null,null,null,null,null,null,null,null,null,null,null,null,null,null,null,null,null,null,null,null,null,null,null,null,null,null,null,null,null,null,null,null,null,null,null,null,null,null,null,null,null,null,null,null,null,null,null,null,null,null,null,null,null,null,null,null,null,null,null,null,null,null,null,null,null,null,null,null,null,null,null,null,null,null,null,null,null,null,null,null,null,null,null,null,null,null,null,null,null,null,null,null,null,null,null,null,null,null,null,null,null,null,null,null,null,null,null,null,null,null,null,null,null,null,null,null,null,null,null,"","","","","","","","","","",null,null,"",{"$f":"IF(GM834=\"\",\"\",IF(GM834<=10,OrdeUP10(GM834),\"\"))","v":""},"",""]
[null,null,null,null,null,null,null,null,null,null,null,null,null,null,null,null,null,null,null,null,null,null,null,null,null,null,null,null,null,null,null,null,null,null,null,null,null,null,null,null,null,null,null,null,null,null,null,null,null,null,null,"","",null,null,null,null,null,null,null,null,null,null,null,null,null,null,null,null,null,null,null,null,null,null,null,null,null,null,null,null,null,null,null,null,null,null,null,null,null,null,null,null,null,null,null,null,null,null,null,null,null,null,null,null,null,null,null,null,null,null,null,null,null,null,null,null,null,null,null,null,null,null,null,null,null,null,null,null,null,null,null,null,null,null,null,null,null,null,null,null,null,null,null,null,null,null,null,null,null,null,null,null,null,null,null,null,null,null,null,null,null,null,null,null,null,null,null,null,null,null,null,null,null,null,null,null,null,null,null,null,null,"","","","","","","","","","",null,null,"",{"$f":"IF(GM845=\"\",\"\",IF(GM845<=10,OrdeUP10(GM845),\"\"))","v":""},"",""]
[null,null,null,null,null,null,null,null,null,null,null,null,null,null,null,null,null,null,null,null,null,null,null,null,null,null,null,null,null,null,null,null,null,null,null,null,null,null,null,null,null,null,null,null,null,null,null,null,null,null,null,"","",null,null,null,null,null,null,null,null,null,null,null,null,null,null,null,null,null,null,null,null,null,null,null,null,null,null,null,null,null,null,null,null,null,null,null,null,null,null,null,null,null,null,null,null,null,null,null,null,null,null,null,null,null,null,null,null,null,null,null,null,null,null,null,null,null,null,null,null,null,null,null,null,null,null,null,null,null,null,null,null,null,null,null,null,null,null,null,null,null,null,null,null,null,null,null,null,null,null,null,null,null,null,null,null,null,null,null,null,null,null,null,null,null,null,null,null,null,null,null,null,null,null,null,null,null,null,null,null,null,"","","","","","","","","","",null,null,"",{"$f":"IF(GM862=\"\",\"\",IF(GM862<=10,OrdeUP10(GM862),\"\"))","v":""},"",""]
[null,null,null,null,null,null,null,null,null,null,null,null,null,null,null,null,null,null,null,null,null,null,null,null,null,null,null,null,null,null,null,null,null,null,null,null,null,null,null,null,null,null,null,null,null,null,null,null,null,null,null,"","",null,null,null,null,null,null,null,null,null,null,null,null,null,null,null,null,null,null,null,null,null,null,null,null,null,null,null,null,null,null,null,null,null,null,null,null,null,null,null,null,null,null,null,null,null,null,null,null,null,null,null,null,null,null,null,null,null,null,null,null,null,null,null,null,null,null,null,null,null,null,null,null,null,null,null,null,null,null,null,null,null,null,null,null,null,null,null,null,null,null,null,null,null,null,null,null,null,null,null,null,null,null,null,null,null,null,null,null,null,null,null,null,null,null,null,null,null,null,null,null,null,null,null,null,null,null,null,null,null,"","","","","","","","","","",null,null,"",{"$f":"IF(GM866=\"\",\"\",IF(GM866<=10,OrdeUP10(GM866),\"\"))","v":""},"",""]
[null,null,null,null,null,null,null,null,null,null,null,null,null,null,null,null,null,null,null,null,null,null,null,null,null,null,null,null,null,null,null,null,null,null,null,null,null,null,null,null,null,null,null,null,null,null,null,null,null,null,null,"","",null,null,null,null,null,null,null,null,null,null,null,null,null,null,null,null,null,null,null,null,null,null,null,null,null,null,null,null,null,null,null,null,null,null,null,null,null,null,null,null,null,null,null,null,null,null,null,null,null,null,null,null,null,null,null,null,null,null,null,null,null,null,null,null,null,null,null,null,null,null,null,null,null,null,null,null,null,null,null,null,null,null,null,null,null,null,null,null,null,null,null,null,null,null,null,null,null,null,null,null,null,null,null,null,null,null,null,null,null,null,null,null,null,null,null,null,null,null,null,null,null,null,null,null,null,null,null,null,null,"","","","","","","","","","",null,null,"",{"$f":"IF(GM886=\"\",\"\",IF(GM886<=10,OrdeUP10(GM886),\"\"))","v":""},"",""]
[null,null,null,null,null,null,null,null,null,null,null,null,null,null,null,null,null,null,null,null,null,null,null,null,null,null,null,null,null,null,null,null,null,null,null,null,null,null,null,null,null,null,null,null,null,null,null,null,null,null,null,"","",null,null,null,null,null,null,null,null,null,null,null,null,null,null,null,null,null,null,null,null,null,null,null,null,null,null,null,null,null,null,null,null,null,null,null,null,null,null,null,null,null,null,null,null,null,null,null,null,null,null,null,null,null,null,null,null,null,null,null,null,null,null,null,null,null,null,null,null,null,null,null,null,null,null,null,null,null,null,null,null,null,null,null,null,null,null,null,null,null,null,null,null,null,null,null,null,null,null,null,null,null,null,null,null,null,null,null,null,null,null,null,null,null,null,null,null,null,null,null,null,null,null,null,null,null,null,null,null,null,"","","","","","","","","","",null,null,"",{"$f":"IF(GM899=\"\",\"\",IF(GM899<=10,OrdeUP10(GM899),\"\"))","v":""},"",""]
[{"$f":"IF(C908<>\"\",A907+1,\"\")","v":22},{"$f":"IF(C908=\"\",\"\",B907+1)","v":162},"علبى2",15,20,null,null,35,null,15,10,null,null,25,null,17,23,null,null,40,null,null,null,null,null,null,null,14,5,null,null,19,null,13,14,null,null,27,null,17,25,null,null,42,null,18,30,null,null,48,null,{"$f":"IF(AND(B908>0,C908<>\"\"),IF(AND(BA908=\"ناجحة\"),AX908+AL908+AF908+T908+N908+AR908+H908,\"-\"),\"\")","v":"-"},{"$f":"IF(AND(B908>0,C908<>\"\"),IF(OR(H908=0,N908=0,T908=0,AF908=0,AL908=0,AR908=0,AX908=0),\"غائبة\",IF(OR(H908<50,N908<50,T908<50,AF908<50,AL908<50,AR908<50,AX908<50),\"راسبة\",IF(AND(H908>=50,N908>49,T908>=50,AF908>=50,AL908>=50,AR908>=50,AX908>=50),\"ناجحة\",\"\"))),\"\")","v":"راسبة"},null,null,null,null,null,null,null,null,null,null,null,null,null,null,null,null,null,null,null,null,null,null,null,null,null,null,null,null,null,null,null,null,null,null,null,null,null,null,null,null,null,null,null,null,null,null,null,null,null,null,null,null,null,null,null,null,null,null,null,null,null,null,null,null,null,null,null,null,null,null,null,null,null,null,null,null,null,null,null,null,null,null,null,null,null,null,null,null,null,null,null,null,null,null,null,null,null,null,null,null,null,null,null,null,null,null,null,null,null,null,null,null,null,null,null,null,null,null,null,null,null,null,null,null,null,null,null,null,null,35,25,40,"",19,27,42,48,"-",{"$f":"IF(B908=\"\",\"\",IF(OR(GA908=0,GB908=0,GC908=0,GE908=0,GF908=0,GG908=0,GH908=0),\"غائبة\",IF(OR(GA908<25,GB908<25,GC908<25,GE908<25,GF908<25,GG908<25,GH908<25),\"راسبة\",IF(AND(GA908>=25,GB908>=25,GC908>=25,GE908>=25,GF908>=25,GG908>=25,GH908>=25),\"ناجحة\",\"\"))))","v":"راسبة"},null,null,"",{"$f":"IF(GM908=\"\",\"\",IF(GM908<=10,OrdeUP10(GM908),\"\"))","v":""},"",""]
[35,175,"عبلى8",16,20,null,null,36,null,15,15,null,null,30,null,15,25,null,null,40,null,null,null,null,null,null,null,15,15,null,null,30,null,14,15,null,null,29,null,14,27,null,null,41,null,15,28,null,null,43,null,"-","راسبة",null,null,null,null,null,null,null,null,null,null,null,null,null,null,null,null,null,null,null,null,null,null,null,null,null,null,null,null,null,null,null,null,null,null,null,null,null,null,null,null,null,null,null,null,null,null,null,null,null,null,null,null,null,null,null,null,null,null,null,null,null,null,null,null,null,null,null,null,null,null,null,null,null,null,null,null,null,null,null,null,null,null,null,null,null,null,null,null,null,null,null,null,null,null,null,null,null,null,null,null,null,null,null,null,null,null,null,null,null,null,null,null,null,null,null,null,null,null,null,null,null,null,null,null,null,null,null,null,null,36,30,40,"",30,29,41,43,249,"ناجحة",null,null,"",{"$f":"IF(GM921=\"\",\"\",IF(GM921<=10,OrdeUP10(GM921),\"\"))","v":""},10,""]
[null,null,null,null,null,null,null,null,null,null,null,null,null,null,null,null,null,null,null,null,null,null,null,null,null,null,null,null,null,null,null,null,null,null,null,null,null,null,null,null,null,null,null,null,null,null,null,null,null,null,null,"","",null,null,null,null,null,null,null,null,null,null,null,null,null,null,null,null,null,null,null,null,null,null,null,null,null,null,null,null,null,null,null,null,null,null,null,null,null,null,null,null,null,null,null,null,null,null,null,null,null,null,null,null,null,null,null,null,null,null,null,null,null,null,null,null,null,null,null,null,null,null,null,null,null,null,null,null,null,null,null,null,null,null,null,null,null,null,null,null,null,null,null,null,null,null,null,null,null,null,null,null,null,null,null,null,null,null,null,null,null,null,null,null,null,null,null,null,null,null,null,null,null,null,null,null,null,null,null,null,null,"","","","","","","","","","",null,null,"",{"$f":"IF(GM929=\"\",\"\",IF(GM929<=10,OrdeUP10(GM929),\"\"))","v":""},"","الثّامن"]
[null,null,null,null,null,null,null,null,null,null,null,null,null,null,null,null,null,null,null,null,null,null,null,null,null,null,null,null,null,null,null,null,null,null,null,null,null,null,null,null,null,null,null,null,null,null,null,null,null,null,null,"","",null,null,"الراسبون",{"$f":"COUNTIF(BA907:BA996,\"راسبة\")","v":13},null,null,null,null,null,null,null,null,null,null,null,null,null,null,null,null,null,null,null,null,null,null,null,null,null,null,null,null,null,null,null,null,null,null,null,null,null,null,null,null,null,null,null,null,null,null,null,null,null,null,null,null,null,null,null,null,null,null,null,null,null,null,null,null,null,null,null,null,null,null,null,null,null,null,null,null,null,null,null,null,null,null,null,null,null,null,null,null,null,null,null,null,null,null,null,null,null,null,null,null,null,null,null,null,null,null,null,null,null,null,null,null,null,null,null,null,null,null,null,null,null,null,null,null,null,"","","","","","","","","","",null,null,"",{"$f":"IF(GM938=\"\",\"\",IF(GM938<=10,OrdeUP10(GM938),\"\"))","v":""},"",""]
[null,null,null,null,null,null,null,null,null,null,null,null,null,null,null,null,null,null,null,null,null,null,null,null,null,null,null,null,null,null,null,null,null,null,null,null,null,null,null,null,null,null,null,null,null,null,null,null,null,null,null,"","",null,null,null,null,null,null,null,null,null,null,null,null,null,null,null,null,null,null,null,null,null,null,null,null,null,null,null,null,null,null,null,null,null,null,null,null,null,null,null,null,null,null,null,null,null,null,null,null,null,null,null,null,null,null,null,null,null,null,null,null,null,null,null,null,null,null,null,null,null,null,null,null,null,null,null,null,null,null,null,null,null,null,null,null,null,null,null,null,null,null,null,null,null,null,null,null,null,null,null,null,null,null,null,null,null,null,null,null,null,null,null,null,null,null,null,null,null,null,null,null,null,null,null,null,null,null,null,null,null,"","","","","","","","","","",null,null,"",{"$f":"IF(GM950=\"\",\"\",IF(GM950<=10,OrdeUP10(GM950),\"\"))","v":""},"",""]
[null,null,null,null,null,null,null,null,null,null,null,null,null,null,null,null,null,null,null,null,null,null,null,null,null,null,null,null,null,null,null,null,null,null,null,null,null,null,null,null,null,null,null,null,null,null,null,null,null,null,null,"","",null,null,null,null,null,null,null,null,null,null,null,null,null,null,null,null,null,null,null,null,null,null,null,null,null,null,null,null,null,null,null,null,null,null,null,null,null,null,null,null,null,null,null,null,null,null,null,null,null,null,null,null,null,null,null,null,null,null,null,null,null,null,null,null,null,null,null,null,null,null,null,null,null,null,null,null,null,null,null,null,null,null,null,null,null,null,null,null,null,null,null,null,null,null,null,null,null,null,null,null,null,null,null,null,null,null,null,null,null,null,null,null,null,null,null,null,null,null,null,null,null,null,null,null,null,null,null,null,null,"","","","","","","","","","",null,null,"",{"$f":"IF(GM966=\"\",\"\",IF(GM966<=10,OrdeUP10(GM966),\"\"))","v":""},"",""]
[null,null,null,null,null,null,null,null,null,null,null,null,null,null,null,null,null,null,null,null,null,null,null,null,null,null,null,null,null,null,null,null,null,null,null,null,null,null,null,null,null,null,null,null,null,null,null,null,null,null,null,"","",null,null,null,null,null,null,null,null,null,null,null,null,null,null,null,null,null,null,null,null,null,null,null,null,null,null,null,null,null,null,null,null,null,null,null,null,null,null,null,null,null,null,null,null,null,null,null,null,null,null,null,null,null,null,null,null,null,null,null,null,null,null,null,null,null,null,null,null,null,null,null,null,null,null,null,null,null,null,null,null,null,null,null,null,null,null,null,null,null,null,null,null,null,null,null,null,null,null,null,null,null,null,null,null,null,null,null,null,null,null,null,null,null,null,null,null,null,null,null,null,null,null,null,null,null,null,null,null,null,"","","","","","","","","","",null,null,"",{"$f":"IF(GM979=\"\",\"\",IF(GM979<=10,OrdeUP10(GM979),\"\"))","v":""},"",""]
[null,null,null,null,null,null,null,null,null,null,null,null,null,null,null,null,null,null,null,null,null,null,null,null,null,null,null,null,null,null,null,null,null,null,null,null,null,null,null,null,null,null,null,null,null,null,null,null,null,null,null,"","",null,null,null,null,null,null,null,null,null,null,null,null,null,null,null,null,null,null,null,null,null,null,null,null,null,null,null,null,null,null,null,null,null,null,null,null,null,null,null,null,null,null,null,null,null,null,null,null,null,null,null,null,null,null,null,null,null,null,null,null,null,null,null,null,null,null,null,null,null,null,null,null,null,null,null,null,null,null,null,null,null,null,null,null,null,null,null,null,null,null,null,null,null,null,null,null,null,null,null,null,null,null,null,null,null,null,null,null,null,null,null,null,null,null,null,null,null,null,null,null,null,null,null,null,null,null,null,null,null,"","","","","","","","","","",null,null,"",{"$f":"IF(GM992=\"\",\"\",IF(GM992<=10,OrdeUP10(GM992),\"\"))","v":""},"",""]
[null,{"$f":"SUM(C1000:C1001)","v":35},{"$f":"COUNT(B907:B996)","v":15},null,null,null,null,null,null,null,null,null,null,null,null,null,null,null,null,null,null,null,null,null,null,null,null,null,null,null,null,null,null,null,null,null,null,null,null,null,null,null,null,null,null,null,null,null,null,null,null,null,null,null,null,null,null,null,null,null,null,null,null,null,null,null,null,null,null,null,null,null,null,null,null,null,null,null,null,null,null,null,null,null,null,null,null,null,null,null,null,null,null,null,null,null,null,null,null,null,null,null,null,null,null,null,null,null,null,null,null,null,null,null,null,null,null,null,null,null,null,null,null,null,null,null,null,null,null,null,null,null,null,null,null,null,null,null,null,null,null,null,null,null,null,null,null,null,null,null,null,null,null,null,null,null,null,null,null,null,null,null,null,null,null,null,null,null,null,null,null,null,null,null,null,null,null,null,null,null,null,null,"","","","","",null,null,null,""]
[8,183,"جميل8",17,21,null,null,38,null,20,30,null,null,50,null,15,27,null,null,42,null,null,null,null,null,null,null,15,10,null,null,25,null,17,28,null,null,45,null,17,25,null,null,42,null,15,25,null,null,40,null,"-","راسب",null,null,null,null,null,null,null,null,null,null,null,null,null,null,null,null,null,null,null,null,null,null,null,null,null,null,null,null,null,null,null,null,null,null,null,null,null,null,null,null,null,null,null,null,null,null,null,null,null,null,null,null,null,null,null,null,null,null,null,null,null,null,null,null,null,null,null,null,null,null,null,null,null,null,null,null,null,null,null,null,null,null,null,null,null,null,null,null,null,null,null,null,null,null,null,null,null,null,null,null,null,null,null,null,null,null,null,null,null,null,null,null,null,null,null,null,null,null,null,null,null,null,null,null,null,null,null,null,null,38,50,42,"",25,45,42,40,282,"ناجح",null,null,"",{"$f":"IF(GM1013=\"\",\"\",IF(GM1013<=10,OrdeUP10(GM1013),\"\"))","v":""},8,"الثّامن"]
[13,188,"جميل13",15,21,null,null,36,null,10,15,null,null,25,null,15,20,null,null,35,null,null,null,null,null,null,null,15,10,null,null,25,null,18,25,null,null,43,null,19,26,null,null,45,null,15,30,null,null,45,null,"-","راسب",null,null,null,null,null,null,null,null,null,null,null,null,null,null,null,null,null,null,null,null,null,null,null,null,null,null,null,null,null,null,null,null,null,null,null,null,null,null,null,null,null,null,null,null,null,null,null,null,null,null,null,null,null,null,null,null,null,null,null,null,null,null,null,null,null,null,null,null,null,null,null,null,null,null,null,null,null,null,null,null,null,null,null,null,null,null,null,null,null,null,null,null,null,null,null,null,null,null,null,null,null,null,null,null,null,null,null,null,null,null,null,null,null,null,null,null,null,null,null,null,null,null,null,null,null,null,null,null,null,36,25,35,"",25,43,45,45,254,"ناجح",null,null,"",{"$f":"IF(GM1018=\"\",\"\",IF(GM1018<=10,OrdeUP10(GM1018),\"\"))","v":""},10,"العاشر"]
[null,null,null,null,null,null,null,null,null,null,null,null,null,null,null,null,null,null,null,null,null,null,null,null,null,null,null,null,null,null,null,null,null,null,null,null,null,null,null,13,5,null,null,"",null,15,23,null,null,"",null,"","",null,null,null,null,null,null,null,null,null,null,null,null,null,null,null,null,null,null,null,null,null,null,null,null,null,null,null,null,null,null,null,null,null,null,null,null,null,null,null,null,null,null,null,null,null,null,null,null,null,null,null,null,null,null,null,null,null,null,null,null,null,null,null,null,null,null,null,null,null,null,null,null,null,null,null,null,null,null,null,null,null,null,null,null,null,null,null,null,null,null,null,null,null,null,null,null,null,null,null,null,null,null,null,null,null,null,null,null,null,null,null,null,null,null,null,null,null,null,null,null,null,null,null,null,null,null,null,null,null,"","","","","","",18,38,"","",null,null,"",{"$f":"IF(GM1030=\"\",\"\",IF(GM1030<=10,OrdeUP10(GM1030),\"\"))","v":""},"",""]
[null,null,null,null,null,null,null,null,null,null,null,null,null,null,null,null,null,null,null,null,null,null,null,null,null,null,null,null,null,null,null,null,null,null,null,null,null,null,null,null,null,null,null,"",null,null,null,null,null,"",null,"","",null,null,null,null,null,null,null,null,null,null,null,null,null,null,null,null,null,null,null,null,null,null,null,null,null,null,null,null,null,null,null,null,null,null,null,null,null,null,null,null,null,null,null,null,null,null,null,null,null,null,null,null,null,null,null,null,null,null,null,null,null,null,null,null,null,null,null,null,null,null,null,null,null,null,null,null,null,null,null,null,null,null,null,null,null,null,null,null,null,null,null,null,null,null,null,null,null,null,null,null,null,null,null,null,null,null,null,null,null,null,null,null,null,null,null,null,null,null,null,null,null,null,null,null,null,null,null,null,null,"","","","","","","","","","",null,null,"",{"$f":"IF(GM1046=\"\",\"\",IF(GM1046<=10,OrdeUP10(GM1046),\"\"))","v":""},"",""]
[null,null,null,null,null,null,null,null,null,null,null,null,null,null,null,null,null,null,null,null,null,null,null,null,null,null,null,null,null,null,null,null,null,null,null,null,null,null,null,null,null,null,null,"",null,null,null,null,null,"",null,"","",null,null,null,null,null,null,null,null,null,null,null,null,null,null,null,null,null,null,null,null,null,null,null,null,null,null,null,null,null,null,null,null,null,null,null,null,null,null,null,null,null,null,null,null,null,null,null,null,null,null,null,null,null,null,null,null,null,null,null,null,null,null,null,null,null,null,null,null,null,null,null,null,null,null,null,null,null,null,null,null,null,null,null,null,null,null,null,null,null,null,null,null,null,null,null,null,null,null,null,null,null,null,null,null,null,null,null,null,null,null,null,null,null,null,null,null,null,null,null,null,null,null,null,null,null,null,null,null,null,"","","","","","","","","","",null,null,"",{"$f":"IF(GM1051=\"\",\"\",IF(GM1051<=10,OrdeUP10(GM1051),\"\"))","v":""},"",""]
[null,null,null,null,null,null,null,null,null,null,null,null,null,null,null,null,null,null,null,null,null,null,null,null,null,null,null,null,null,null,null,null,null,null,null,null,null,null,null,null,null,null,null,"",null,null,null,null,null,"",null,"","",null,null,null,null,null,null,null,null,null,null,null,null,null,null,null,null,null,null,null,null,null,null,null,null,null,null,null,null,null,null,null,null,null,null,null,null,null,null,null,null,null,null,null,null,null,null,null,null,null,null,null,null,null,null,null,null,null,null,null,null,null,null,null,null,null,null,null,null,null,null,null,null,null,null,null,null,null,null,null,null,null,null,null,null,null,null,null,null,null,null,null,null,null,null,null,null,null,null,null,null,null,null,null,null,null,null,null,null,null,null,null,null,null,null,null,null,null,null,null,null,null,null,null,null,null,null,null,null,null,"","","","","","","","","","",null,null,"",{"$f":"IF(GM1070=\"\",\"\",IF(GM1070<=10,OrdeUP10(GM1070),\"\"))","v":""},"",""]
[null,null,null,null,null,null,null,null,null,null,null,null,null,null,null,null,null,null,null,null,null,null,null,null,null,null,null,null,null,null,null,null,null,null,null,null,null,null,null,null,null,null,null,"",null,null,null,null,null,"",null,"","",null,null,null,null,null,null,null,null,null,null,null,null,null,null,null,null,null,null,null,null,null,null,null,null,null,null,null,null,null,null,null,null,null,null,null,null,null,null,null,null,null,null,null,null,null,null,null,null,null,null,null,null,null,null,null,null,null,null,null,null,null,null,null,null,null,null,null,null,null,null,null,null,null,null,null,null,null,null,null,null,null,null,null,null,null,null,null,null,null,null,null,null,null,null,null,null,null,null,null,null,null,null,null,null,null,null,null,null,null,null,null,null,null,null,null,null,null,null,null,null,null,null,null,null,null,null,null,null,null,"","","","","","","","","","",null,null,"",{"$f":"IF(GM1084=\"\",\"\",IF(GM1084<=10,OrdeUP10(GM1084),\"\"))","v":""},"",""]
[null,null,null,null,null,null,null,null,null,null,null,null,null,null,null,null,null,null,null,null,null,null,null,null,null,null,null,null,null,null,null,null,null,null,null,null,null,null,null,null,null,null,null,"",null,null,null,null,null,"",null,"","",null,null,null,null,null,null,null,null,null,null,null,null,null,null,null,null,null,null,null,null,null,null,null,null,null,null,null,null,null,null,null,null,null,null,null,null,null,null,null,null,null,null,null,null,null,null,null,null,null,null,null,null,null,null,null,null,null,null,null,null,null,null,null,null,null,null,null,null,null,null,null,null,null,null,null,null,null,null,null,null,null,null,null,null,null,null,null,null,null,null,null,null,null,null,null,null,null,null,null,null,null,null,null,null,null,null,null,null,null,null,null,null,null,null,null,null,null,null,null,null,null,null,null,null,null,null,null,null,null,"","","","","","","","","","",null,null,"",{"$f":"IF(GM1093=\"\",\"\",IF(GM1093<=10,OrdeUP10(GM1093),\"\"))","v":""},"",""]
[null,null,null,null,null,null,null,null,null,null,null,null,null,null,null,null,null,null,null,null,null,null,null,null,null,null,null,null,null,null,null,null,null,null,null,null,null,null,null,null,null,null,null,"",null,null,null,null,null,"",null,"","",null,null,null,null,null,null,null,null,null,null,null,null,null,null,null,null,null,null,null,null,null,null,null,null,null,null,null,null,null,null,null,null,null,null,null,null,null,null,null,null,null,null,null,null,null,null,null,null,null,null,null,null,null,null,null,null,null,null,null,null,null,null,null,null,null,null,null,null,null,null,null,null,null,null,null,null,null,null,null,null,null,null,null,null,null,null,null,null,null,null,null,null,null,null,null,null,null,null,null,null,null,null,null,null,null,null,null,null,null,null,null,null,null,null,null,null,null,null,null,null,null,null,null,null,null,null,null,null,null,"","","","","","","","","","",null,null,"",{"$f":"IF(GM1098=\"\",\"\",IF(GM1098<=10,OrdeUP10(GM1098),\"\"))","v":""},"",""]
[28,203,"بثينة8",20,30,null,null,50,null,20,30,null,null,50,null,20,29,null,2,51,null,null,null,null,null,null,null,20,29,null,1,50,null,20,30,null,null,50,null,20,30,null,null,50,null,20,30,null,null,50,null,351,"ناجحة",null,null,null,null,null,null,null,null,null,null,null,null,null,null,null,null,null,null,null,null,null,null,null,null,null,null,null,null,null,null,null,null,null,null,null,null,null,null,null,null,null,null,null,null,null,null,null,null,null,null,null,null,null,null,null,null,null,null,null,null,null,null,null,null,null,null,null,null,null,null,null,null,null,null,null,null,null,null,null,null,null,null,null,null,null,null,null,null,null,null,null,null,null,null,null,null,null,null,null,null,null,null,null,null,null,null,null,null,null,null,null,null,null,null,null,null,null,null,null,null,null,null,null,null,null,null,null,null,null,50,50,49,"",49,50,50,50,348,"ناجحة",null,null,2,{"$f":"IF(GM1114=\"\",\"\",IF(GM1114<=10,OrdeUP10(GM1114),\"\"))","v":{"$error":"#NAME?"}},1,"الأوّل"]
[36,211,"بثينة16",14,14,null,null,28,null,10,10,null,null,20,null,15,5,null,null,20,null,null,null,null,null,null,null,15,5,null,null,20,null,16,15,null,null,31,null,13,14,null,null,27,null,15,25,null,null,40,null,"-","راسبة",null,null,null,null,null,null,null,null,null,null,null,null,null,null,null,null,null,null,null,null,null,null,null,null,null,null,null,null,null,null,null,null,null,null,null,null,null,null,null,null,null,null,null,null,null,null,null,null,null,null,null,null,null,null,null,null,null,null,null,null,null,null,null,null,null,null,null,null,null,null,null,null,null,null,null,null,null,null,null,null,null,null,null,null,null,null,null,null,null,null,null,null,null,null,null,null,null,null,null,null,null,null,null,null,null,null,null,null,null,null,null,null,null,null,null,null,null,null,null,null,null,null,null,null,null,null,null,null,null,28,20,20,"",20,31,27,40,"-","راسبة",null,null,"",{"$f":"IF(GM1122=\"\",\"\",IF(GM1122<=10,OrdeUP10(GM1122),\"\"))","v":""},"",""]
["","",null,null,null,null,null,{"$f":"IF(AND(B1135>0,C1135<>\"\"),IF(AND(G1135<>\"غ\"),SUM(D1135:G1135),0),\"\")","v":""},null,null,null,null,null,{"$f":"IF(AND(B1135>0,C1135<>\"\"),IF(AND(M1135<>\"غ\"),SUM(J1135:M1135),0),\"\")","v":""},null,null,null,null,null,{"$f":"IF(AND(B1135>0,C1135<>\"\"),IF(AND(S1135<>\"غ\"),SUM(P1135:S1135),0),\"\")","v":""},null,null,null,null,null,null,null,null,null,null,null,{"$f":"IF(AND(B1135>0,C1135<>\"\"),IF(AND(AE1135<>\"غ\"),SUM(AB1135:AE1135),0),\"\")","v":""},null,null,null,null,null,{"$f":"IF(AND(B1135>0,C1135<>\"\"),IF(AND(AK1135<>\"غ\"),SUM(AH1135:AK1135),0),\"\")","v":""},null,null,null,null,null,{"$f":"IF(AND(B1135>0,C1135<>\"\"),IF(AND(AQ1135<>\"غ\"),SUM(AN1135:AQ1135),0),\"\")","v":""},null,null,null,null,null,{"$f":"IF(AND(B1135>0,C1135<>\"\"),IF(AND(AW1135<>\"غ\"),SUM(AT1135:AW1135),0),\"\")","v":""},null,"","",null,null,null,null,null,null,null,null,null,null,null,null,null,null,null,null,null,null,null,null,null,null,null,null,null,null,null,null,null,null,null,null,null,null,null,null,null,null,null,null,null,null,null,null,null,null,null,null,null,null,null,null,null,null,null,null,null,null,null,null,null,null,null,null,null,null,null,null,null,null,null,null,null,null,null,null,null,null,null,null,null,null,null,null,null,null,null,null,null,null,null,null,null,null,null,null,null,null,null,null,null,null,null,null,null,null,null,null,null,null,null,null,null,null,null,null,null,null,null,null,null,null,null,null,null,null,null,null,null,"","","","","","","","","","",null,null,{"$f":"IF(OR(AZ1135=\"\",AZ1135=\"-\"),\"\",_xlfn.RANK.EQ(AZ1135,$AZ$1006:$AZ$1196,0))","v":""},{"$f":"IF(GM1135=\"\",\"\",IF(GM1135<=10,OrdeUP10(GM1135),\"\"))","v":""},{"$f":"IF(OR(GI1135=\"\",GI1135=\"-\"),\"\",_xlfn.RANK.EQ(GI1135,$GI$1006:$GI$1196,0))","v":""},""]
["","",null,null,null,null,null,"",null,null,null,null,null,"",null,null,null,null,null,"",null,null,null,null,null,null,null,null,null,null,null,"",null,null,null,null,null,"",null,null,null,null,null,"",null,null,null,null,null,"",null,"","",null,null,null,null,null,null,null,null,null,null,null,null,null,null,null,null,null,null,null,null,null,null,null,null,null,null,null,null,null,null,null,null,null,null,null,null,null,null,null,null,null,null,null,null,null,null,null,null,null,null,null,null,null,null,null,null,null,null,null,null,null,null,null,null,null,null,null,null,null,null,null,null,null,null,null,null,null,null,null,null,null,null,null,null,null,null,null,null,null,null,null,null,null,null,null,null,null,null,null,null,null,null,null,null,null,null,null,null,null,null,null,null,null,null,null,null,null,null,null,null,null,null,null,null,null,null,null,null,null,"","","","","","","","","","",null,null,"",{"$f":"IF(GM1150=\"\",\"\",IF(GM1150<=10,OrdeUP10(GM1150),\"\"))","v":""},"",""]
["","",null,null,null,null,null,"",null,null,null,null,null,"",null,null,null,null,null,"",null,null,null,null,null,null,null,null,null,null,null,"",null,null,null,null,null,"",null,null,null,null,null,"",null,null,null,null,null,"",null,"","",null,null,null,null,null,null,null,null,null,null,null,null,null,null,null,null,null,null,null,null,null,null,null,null,null,null,null,null,null,null,null,null,null,null,null,null,null,null,null,null,null,null,null,null,null,null,null,null,null,null,null,null,null,null,null,null,null,null,null,null,null,null,null,null,null,null,null,null,null,null,null,null,null,null,null,null,null,null,null,null,null,null,null,null,null,null,null,null,null,null,null,null,null,null,null,null,null,null,null,null,null,null,null,null,null,null,null,null,null,null,null,null,null,null,null,null,null,null,null,null,null,null,null,null,null,null,null,null,null,"","","","","","","","","","",null,null,"",{"$f":"IF(GM1164=\"\",\"\",IF(GM1164<=10,OrdeUP10(GM1164),\"\"))","v":""},"",""]
["","",null,null,null,null,null,"",null,null,null,null,null,"",null,null,null,null,null,"",null,null,null,null,null,null,null,null,null,null,null,"",null,null,null,null,null,"",null,null,null,null,null,"",null,null,null,null,null,"",null,"","",null,null,null,null,null,null,null,null,null,null,null,null,null,null,null,null,null,null,null,null,null,null,null,null,null,null,null,null,null,null,null,null,null,null,null,null,null,null,null,null,null,null,null,null,null,null,null,null,null,null,null,null,null,null,null,null,null,null,null,null,null,null,null,null,null,null,null,null,null,null,null,null,null,null,null,null,null,null,null,null,null,null,null,null,null,null,null,null,null,null,null,null,null,null,null,null,null,null,null,null,null,null,null,null,null,null,null,null,null,null,null,null,null,null,null,null,null,null,null,null,null,null,null,null,null,null,null,null,null,"","","","","","","","","","",null,null,"",{"$f":"IF(GM1167=\"\",\"\",IF(GM1167<=10,OrdeUP10(GM1167),\"\"))","v":""},"",""]
["","",null,null,null,null,null,"",null,null,null,null,null,"",null,null,null,null,null,"",null,null,null,null,null,null,null,null,null,null,null,"",null,null,null,null,null,"",null,null,null,null,null,"",null,null,null,null,null,"",null,"","",null,null,null,null,null,null,null,null,null,null,null,null,null,null,null,null,null,null,null,null,null,null,null,null,null,null,null,null,null,null,null,null,null,null,null,null,null,null,null,null,null,null,null,null,null,null,null,null,null,null,null,null,null,null,null,null,null,null,null,null,null,null,null,null,null,null,null,null,null,null,null,null,null,null,null,null,null,null,null,null,null,null,null,null,null,null,null,null,null,null,null,null,null,null,null,null,null,null,null,null,null,null,null,null,null,null,null,null,null,null,null,null,null,null,null,null,null,null,null,null,null,null,null,null,null,null,null,null,null,"","","","","","","","","","",null,null,"",{"$f":"IF(GM1185=\"\",\"\",IF(GM1185<=10,OrdeUP10(GM1185),\"\"))","v":""},"",""]
[null,{"$f":"MAX(B1006:B1105)","v":195},null,null,null,null,null,null,null,null,null,null,null,null,null,null,null,null,null,null,null,null,null,null,null,null,null,null,null,null,null,null,null,null,null,null,null,null,null,null,null,null,null,null,null,null,null,null,null,null,null,null,null,null,null,null,null,null,null,null,null,null,null,null,null,null,null,null,null,null,null,null,null,null,null,null,null,null,null,null,null,null,null,null,null,null,null,null,null,null,null,null,null,null,null,null,null,null,null,null,null,null,null,null,null,null,null,null,null,null,null,null,null,null,null,null,null,null,null,null,null,null,null,null,null,null,null,null,null,null,null,null,null,null,null,null,null,null,null,null,null,null,null,null,null,null,null,null,null,null,null,null,null,null,null,null,null,null,null,null,null,null,null,null,null,null,null,null,null,null,null,null,null,null,null,null,null,null,null,null,null,null,"","","","","",null,null,null,""]
[null,null,null,null,null,null,null,null,null,null,null,null,null,null,null,null,null,null,null,null,null,null,null,null,null,null,null,null,null,null,null,null,null,null,null,null,null,null,null,null,null,null,null,null,null,null,null,null,null,null,null,null,null,null,null,null,null,null,null,null,null,null,null,null,null,null,null,null,null,null,null,null,null,null,null,null,null,null,null,null,null,null,null,null,null,null,null,null,null,null,null,null,null,null,null,null,null,null,null,null,null,null,null,null,null,null,null,null,null,null,null,null,null,null,null,null,null,null,null,null,null,null,null,null,null,null,null,null,null,null,null,null,null,null,null,null,null,null,null,null,null,null,null,null,null,null,null,null,null,null,null,null,null,null,null,null,null,null,null,null,null,null,null,null,null,null,null,null,null,null,null,null,null,null,null,null,null,null,null,null,null,null,"","","","","",null,null,null,""]
[10,221,"قيس10",15,12,null,null,27,null,13,16,null,null,29,null,14,15,null,null,29,null,10,10,null,null,20,null,10,15,null,null,25,null,15,7,null,null,22,null,15,17,null,null,32,null,18,25,null,null,43,null,"-","راسب",null,null,null,null,null,null,null,null,null,null,null,null,null,null,null,null,null,null,null,null,null,null,null,null,null,null,null,null,null,null,null,null,null,null,null,null,null,null,null,null,null,null,null,null,null,null,null,null,null,null,null,null,null,null,null,null,null,null,null,null,null,null,null,null,null,null,null,null,null,null,null,null,null,null,null,null,null,null,null,null,null,null,null,null,null,null,null,null,null,null,null,null,null,null,null,null,null,null,null,null,null,null,null,null,null,null,null,null,null,null,null,null,null,null,null,null,null,null,null,null,null,null,null,null,null,null,null,null,null,27,29,29,20,25,22,32,43,"-","راسب",null,null,"",{"$f":"IF(GM1215=\"\",\"\",IF(GM1215<=10,OrdeUP10(GM1215),\"\"))","v":""},"",""]
[null,null,null,null,null,null,null,null,null,null,null,null,null,null,null,null,null,null,null,null,null,null,null,null,null,null,null,null,null,null,null,null,null,null,null,null,null,null,null,null,null,null,null,null,null,null,null,null,null,null,null,"","",null,null,null,null,null,null,null,null,null,null,null,null,null,null,null,null,null,null,null,null,null,null,null,null,null,null,null,null,null,null,null,null,null,null,null,null,null,null,null,null,null,null,null,null,null,null,null,null,null,null,null,null,null,null,null,null,null,null,null,null,null,null,null,null,null,null,null,null,null,null,null,null,null,null,null,null,null,null,null,null,null,null,null,null,null,null,null,null,null,null,null,null,null,null,null,null,null,null,null,null,null,null,null,null,null,null,null,null,null,null,null,null,null,null,null,null,null,null,null,null,null,null,null,null,null,null,null,null,null,"","","","","","","","","","",null,null,"",{"$f":"IF(GM1230=\"\",\"\",IF(GM1230<=10,OrdeUP10(GM1230),\"\"))","v":""},"",""]
[null,null,null,null,null,null,null,null,null,null,null,null,null,null,null,null,null,null,null,null,null,null,null,null,null,null,null,null,null,null,null,null,null,null,null,null,null,null,null,null,null,null,null,null,null,null,null,null,null,null,null,"","",null,null,null,null,null,null,null,null,null,null,null,null,null,null,null,null,null,null,null,null,null,null,null,null,null,null,null,null,null,null,null,null,null,null,null,null,null,null,null,null,null,null,null,null,null,null,null,null,null,null,null,null,null,null,null,null,null,null,null,null,null,null,null,null,null,null,null,null,null,null,null,null,null,null,null,null,null,null,null,null,null,null,null,null,null,null,null,null,null,null,null,null,null,null,null,null,null,null,null,null,null,null,null,null,null,null,null,null,null,null,null,null,null,null,null,null,null,null,null,null,null,null,null,null,null,null,null,null,null,"","","","","","","","","","",null,null,"",{"$f":"IF(GM1236=\"\",\"\",IF(GM1236<=10,OrdeUP10(GM1236),\"\"))","v":""},"",""]
[null,null,null,null,null,null,null,null,null,null,null,null,null,null,null,null,null,null,null,null,null,null,null,null,null,null,null,null,null,null,null,null,null,null,null,null,null,null,null,null,null,null,null,null,null,null,null,null,null,null,null,"","",null,null,null,null,null,null,null,null,null,null,null,null,null,null,null,null,null,null,null,null,null,null,null,null,null,null,null,null,null,null,null,null,null,null,null,null,null,null,null,null,null,null,null,null,null,null,null,null,null,null,null,null,null,null,null,null,null,null,null,null,null,null,null,null,null,null,null,null,null,null,null,null,null,null,null,null,null,null,null,null,null,null,null,null,null,null,null,null,null,null,null,null,null,null,null,null,null,null,null,null,null,null,null,null,null,null,null,null,null,null,null,null,null,null,null,null,null,null,null,null,null,null,null,null,null,null,null,null,null,"","","","","","","","","","",null,null,"",{"$f":"IF(GM1247=\"\",\"\",IF(GM1247<=10,OrdeUP10(GM1247),\"\"))","v":""},"",""]
[null,null,null,null,null,null,null,null,null,null,null,null,null,null,null,null,null,null,null,null,null,null,null,null,null,null,null,null,null,null,null,null,null,null,null,null,null,null,null,null,null,null,null,null,null,null,null,null,null,null,null,"","",null,null,null,null,null,null,null,null,null,null,null,null,null,null,null,null,null,null,null,null,null,null,null,null,null,null,null,null,null,null,null,null,null,null,null,null,null,null,null,null,null,null,null,null,null,null,null,null,null,null,null,null,null,null,null,null,null,null,null,null,null,null,null,null,null,null,null,null,null,null,null,null,null,null,null,null,null,null,null,null,null,null,null,null,null,null,null,null,null,null,null,null,null,null,null,null,null,null,null,null,null,null,null,null,null,null,null,null,null,null,null,null,null,null,null,null,null,null,null,null,null,null,null,null,null,null,null,null,null,"","","","","","","","","","",null,null,"",{"$f":"IF(GM1269=\"\",\"\",IF(GM1269<=10,OrdeUP10(GM1269),\"\"))","v":""},"",""]
[null,null,null,null,null,null,null,null,null,null,null,null,null,null,null,null,null,null,null,null,null,null,null,null,null,null,null,null,null,null,null,null,null,null,null,null,null,null,null,null,null,null,null,null,null,null,null,null,null,null,null,"","",null,null,null,null,null,null,null,null,null,null,null,null,null,null,null,null,null,null,null,null,null,null,null,null,null,null,null,null,null,null,null,null,null,null,null,null,null,null,null,null,null,null,null,null,null,null,null,null,null,null,null,null,null,null,null,null,null,null,null,null,null,null,null,null,null,null,null,null,null,null,null,null,null,null,null,null,null,null,null,null,null,null,null,null,null,null,null,null,null,null,null,null,null,null,null,null,null,null,null,null,null,null,null,null,null,null,null,null,null,null,null,null,null,null,null,null,null,null,null,null,null,null,null,null,null,null,null,null,null,"","","","","","","","","","",null,null,"",{"$f":"IF(GM1278=\"\",\"\",IF(GM1278<=10,OrdeUP10(GM1278),\"\"))","v":""},"",""]
[null,null,null,null,null,null,null,null,null,null,null,null,null,null,null,null,null,null,null,null,null,null,null,null,null,null,null,null,null,null,null,null,null,null,null,null,null,null,null,null,null,null,null,null,null,null,null,null,null,null,null,"","",null,null,null,null,null,null,null,null,null,null,null,null,null,null,null,null,null,null,null,null,null,null,null,null,null,null,null,null,null,null,null,null,null,null,null,null,null,null,null,null,null,null,null,null,null,null,null,null,null,null,null,null,null,null,null,null,null,null,null,null,null,null,null,null,null,null,null,null,null,null,null,null,null,null,null,null,null,null,null,null,null,null,null,null,null,null,null,null,null,null,null,null,null,null,null,null,null,null,null,null,null,null,null,null,null,null,null,null,null,null,null,null,null,null,null,null,null,null,null,null,null,null,null,null,null,null,null,null,null,"","","","","","","","","","",null,null,"",{"$f":"IF(GM1282=\"\",\"\",IF(GM1282<=10,OrdeUP10(GM1282),\"\"))","v":""},"",""]
[null,null,null,null,null,null,null,null,null,null,null,null,null,null,null,null,null,null,null,null,null,null,null,null,null,null,null,null,null,null,null,null,null,null,null,null,null,null,null,null,null,null,null,null,null,null,null,null,null,null,null,"","",null,null,null,null,null,null,null,null,null,null,null,null,null,null,null,null,null,null,null,null,null,null,null,null,null,null,null,null,null,null,null,null,null,null,null,null,null,null,null,null,null,null,null,null,null,null,null,null,null,null,null,null,null,null,null,null,null,null,null,null,null,null,null,null,null,null,null,null,null,null,null,null,null,null,null,null,null,null,null,null,null,null,null,null,null,null,null,null,null,null,null,null,null,null,null,null,null,null,null,null,null,null,null,null,null,null,null,null,null,null,null,null,null,null,null,null,null,null,null,null,null,null,null,null,null,null,null,null,null,"","","","","","","","","","",null,null,"",{"$f":"IF(GM1299=\"\",\"\",IF(GM1299<=10,OrdeUP10(GM1299),\"\"))","v":""},"",""]
[null,null,"الطـــــــــــــــالبــــــــــــــات  (  7  )",null,null,null,null,null,null,null,null,null,null,null,null,null,null,null,null,null,null,null,null,null,null,null,null,null,null,null,null,null,null,null,null,null,null,null,null,null,null,null,null,null,null,null,null,null,null,null,null,null,null,null,null,null,null,null,null,null,null,null,null,null,null,null,null,null,null,null,null,null,null,null,null,null,null,null,null,null,null,null,null,null,null,null,null,null,null,null,null,null,null,null,null,null,null,null,null,null,null,null,null,null,null,null,null,null,null,null,null,null,null,null,null,null,null,null,null,null,null,null,null,null,null,null,null,null,null,null,null,null,null,null,null,null,null,null,null,null,null,null,null,null,null,null,null,null,null,null,null,null,null,null,null,null,null,null,null,null,null,null,null,null,null,null,null,null,null,null,null,null,null,null,null,null,null,null,null,null,null,null,"","","","","","","","","","",null,null,"",{"$f":"IF(GM1306=\"\",\"\",IF(GM1306<=10,OrdeUP10(GM1306),\"\"))","v":""},"",""]
[34,245,"صبرية14",16,16,null,null,32,null,15,14,null,null,29,null,17,18,null,null,35,null,15,10,null,null,25,null,15,15,null,null,30,null,16,14,null,null,30,null,15,20,null,null,35,null,17,25,null,null,42,null,"-","راسبة",null,null,null,null,null,null,null,null,null,null,null,null,null,null,null,null,null,null,null,null,null,null,null,null,null,null,null,null,null,null,null,null,null,null,null,null,null,null,null,null,null,null,null,null,null,null,null,null,null,null,null,null,null,null,null,null,null,null,null,null,null,null,null,null,null,null,null,null,null,null,null,null,null,null,null,null,null,null,null,null,null,null,null,null,null,null,null,null,null,null,null,null,null,null,null,null,null,null,null,null,null,null,null,null,null,null,null,null,null,null,null,null,null,null,null,null,null,null,null,null,null,null,null,null,null,null,null,null,null,32,29,35,25,30,30,35,42,258,"ناجحة",null,null,"",{"$f":"IF(GM1320=\"\",\"\",IF(GM1320<=10,OrdeUP10(GM1320),\"\"))","v":""},13,""]
[null,null,null,null,null,null,null,null,null,null,null,null,null,null,null,null,null,null,null,null,null,null,null,null,null,null,null,null,null,null,null,null,null,null,null,null,null,null,null,null,null,null,null,null,null,null,null,null,null,null,null,"","",null,null,null,null,null,null,null,null,null,null,null,null,null,null,null,null,null,null,null,null,null,null,null,null,null,null,null,null,null,null,null,null,null,null,null,null,null,null,null,null,null,null,null,null,null,null,null,null,null,null,null,null,null,null,null,null,null,null,null,null,null,null,null,null,null,null,null,null,null,null,null,null,null,null,null,null,null,null,null,null,null,null,null,null,null,null,null,null,null,null,null,null,null,null,null,null,null,null,null,null,null,null,null,null,null,null,null,null,null,null,null,null,null,null,null,null,null,null,null,null,null,null,null,null,null,null,null,null,null,"","","","","","","","","","",null,null,"",{"$f":"IF(GM1334=\"\",\"\",IF(GM1334<=10,OrdeUP10(GM1334),\"\"))","v":""},"",""]
[null,null,null,null,null,null,null,null,null,null,null,null,null,null,null,null,null,null,null,null,null,null,null,null,null,null,null,null,null,null,null,null,null,null,null,null,null,null,null,null,null,null,null,null,null,null,null,null,null,null,null,"","",null,null,null,null,null,null,null,null,null,null,null,null,null,null,null,null,null,null,null,null,null,null,null,null,null,null,null,null,null,null,null,null,null,null,null,null,null,null,null,null,null,null,null,null,null,null,null,null,null,null,null,null,null,null,null,null,null,null,null,null,null,null,null,null,null,null,null,null,null,null,null,null,null,null,null,null,null,null,null,null,null,null,null,null,null,null,null,null,null,null,null,null,null,null,null,null,null,null,null,null,null,null,null,null,null,null,null,null,null,null,null,null,null,null,null,null,null,null,null,null,null,null,null,null,null,null,null,null,null,"","","","","","","","","","",null,null,"",{"$f":"IF(GM1341=\"\",\"\",IF(GM1341<=10,OrdeUP10(GM1341),\"\"))","v":""},"",""]
[null,null,null,null,null,null,null,null,null,null,null,null,null,null,null,null,null,null,null,null,null,null,null,null,null,null,null,null,null,null,null,null,null,null,null,null,null,null,null,null,null,null,null,null,null,null,null,null,null,null,null,"","",null,null,null,null,null,null,null,null,null,null,null,null,null,null,null,null,null,null,null,null,null,null,null,null,null,null,null,null,null,null,null,null,null,null,null,null,null,null,null,null,null,null,null,null,null,null,null,null,null,null,null,null,null,null,null,null,null,null,null,null,null,null,null,null,null,null,null,null,null,null,null,null,null,null,null,null,null,null,null,null,null,null,null,null,null,null,null,null,null,null,null,null,null,null,null,null,null,null,null,null,null,null,null,null,null,null,null,null,null,null,null,null,null,null,null,null,null,null,null,null,null,null,null,null,null,null,null,null,null,{"$f":"IF(E1351=\"غ\",0,IF(E1351=\"\",\"\",SUM(D1351:E1351)))","v":""},{"$f":"IF(K1351=\"غ\",0,IF(K1351=\"\",\"\",SUM(J1351:K1351)))","v":""},{"$f":"IF(Q1351=\"غ\",0,IF(Q1351=\"\",\"\",SUM(P1351:Q1351)))","v":""},{"$f":"IF(W1351=\"غ\",0,IF(W1351=\"\",\"\",SUM(V1351:W1351)))","v":""},{"$f":"IF(AC1351=\"غ\",0,IF(AC1351=\"\",\"\",SUM(AB1351:AC1351)))","v":""},{"$f":"IF(AI1351=\"غ\",0,IF(AI1351=\"\",\"\",SUM(AH1351:AI1351)))","v":""},{"$f":"IF(AO1351=\"غ\",0,IF(AO1351=\"\",\"\",SUM(AN1351:AO1351)))","v":""},{"$f":"IF(AU1351=\"غ\",0,IF(AU1351=\"\",\"\",SUM(AT1351:AU1351)))","v":""},{"$f":"IF(OR(B1351=\"\",GJ1351=\"\"),\"\",IF(OR(GJ1351=\"غائب\",GJ1351=\"غائبة\",GJ1351=\"راسب\",GJ1351=\"راسبة\"),\"-\",SUM(GA1351:GH1351)))","v":""},"",null,null,"",{"$f":"IF(GM1351=\"\",\"\",IF(GM1351<=10,OrdeUP10(GM1351),\"\"))","v":""},"",""]
[null,null,null,null,null,null,null,null,null,null,null,null,null,null,null,null,null,null,null,null,null,null,null,null,null,null,null,null,null,null,null,null,null,null,null,null,null,null,null,null,null,null,null,null,null,null,null,null,null,null,null,"","",null,null,null,null,null,null,null,null,null,null,null,null,null,null,null,null,null,null,null,null,null,null,null,null,null,null,null,null,null,null,null,null,null,null,null,null,null,null,null,null,null,null,null,null,null,null,null,null,null,null,null,null,null,null,null,null,null,null,null,null,null,null,null,null,null,null,null,null,null,null,null,null,null,null,null,null,null,null,null,null,null,null,null,null,null,null,null,null,null,null,null,null,null,null,null,null,null,null,null,null,null,null,null,null,null,null,null,null,null,null,null,null,null,null,null,null,null,null,null,null,null,null,null,null,null,null,null,null,null,"","","","","","","","","","",null,null,"",{"$f":"IF(GM1370=\"\",\"\",IF(GM1370<=10,OrdeUP10(GM1370),\"\"))","v":""},"",""]
[null,null,null,null,null,null,null,null,null,null,null,null,null,null,null,null,null,null,null,null,null,null,null,null,null,null,null,null,null,null,null,null,null,null,null,null,null,null,null,null,null,null,null,null,null,null,null,null,null,null,null,"","",null,null,null,null,null,null,null,null,null,null,null,null,null,null,null,null,null,null,null,null,null,null,null,null,null,null,null,null,null,null,null,null,null,null,null,null,null,null,null,null,null,null,null,null,null,null,null,null,null,null,null,null,null,null,null,null,null,null,null,null,null,null,null,null,null,null,null,null,null,null,null,null,null,null,null,null,null,null,null,null,null,null,null,null,null,null,null,null,null,null,null,null,null,null,null,null,null,null,null,null,null,null,null,null,null,null,null,null,null,null,null,null,null,null,null,null,null,null,null,null,null,null,null,null,null,null,null,null,null,"","","","","","","","","","",null,null,"",{"$f":"IF(GM1383=\"\",\"\",IF(GM1383<=10,OrdeUP10(GM1383),\"\"))","v":""},"",""]
[null,null,null,null,null,null,null,null,null,null,null,null,null,null,null,null,null,null,null,null,null,null,null,null,null,null,null,null,null,null,null,null,null,null,null,null,null,null,null,null,null,null,null,null,null,null,null,null,null,null,null,"","",null,null,null,null,null,null,null,null,null,null,null,null,null,null,null,null,null,null,null,null,null,null,null,null,null,null,null,null,null,null,null,null,null,null,null,null,null,null,null,null,null,null,null,null,null,null,null,null,null,null,null,null,null,null,null,null,null,null,null,null,null,null,null,null,null,null,null,null,null,null,null,null,null,null,null,null,null,null,null,null,null,null,null,null,null,null,null,null,null,null,null,null,null,null,null,null,null,null,null,null,null,null,null,null,null,null,null,null,null,null,null,null,null,null,null,null,null,null,null,null,null,null,null,null,null,null,null,null,null,"","","","","","","","","","",null,null,"",{"$f":"IF(GM1386=\"\",\"\",IF(GM1386<=10,OrdeUP10(GM1386),\"\"))","v":""},"",""]
["الصف",null," الثامن أساسي","الفصل الأول",null,"الفصل الثاني",null,"القرآن",null,"الفصل الأول",null,"الفصل الثاني",null,"الإسلامية",null,"الفصل الأول",null,"الفصل الثاني",null,"العربية",null,"الفصل الأول",null,"الفصل الثاني",null,"الإنكليزية",null,"الفصل الأول",null,"الفصل الثاني",null,"الرياضيات",null,"الفصل الأول",null,"الفصل الثاني",null,"العلوم",null,"الفصل الأول",null,"الفصل الثاني",null,"الإجتماعيات",null,"الفصل الأول",null,"الفصل الثاني",null,"السلوك",null,"المجموع الكلي","النتيجة العامة","الملاحظات",null,null,null,null,null,null,null,null,null,null,null,null,null,null,null,null,null,null,null,null,null,null,null,null,null,null,null,null,null,null,null,null,null,null,null,null,null,null,null,null,null,null,null,null,null,null,null,null,null,null,null,null,null,null,null,null,null,null,null,null,null,null,null,null,null,null,null,null,null,null,null,null,null,null,null,null,null,null,null,null,null,null,null,null,null,null,null,null,null,null,null,null,null,null,null,null,null,null,null,null,null,null,null,null,null,null,null,null,null,null,null,null,null,null,null,null,null,null,null,null,null,null,null,null,null,null,null,null,null,null,null,null,null,null,null,null,""]
[9,255,"علوي9",18,18,null,null,36,null,13,17,null,null,30,null,15,20,null,null,35,null,14,5,null,null,19,null,13,9,null,null,22,null,15,10,null,null,25,null,15,20,null,null,35,null,15,27,null,null,42,null,"-","راسب",null,null,null,null,null,null,null,null,null,null,null,null,null,null,null,null,null,null,null,null,null,null,null,null,null,null,null,null,null,null,null,null,null,null,null,null,null,null,null,null,null,null,null,null,null,null,null,null,null,null,null,null,null,null,null,null,null,null,null,null,null,null,null,null,null,null,null,null,null,null,null,null,null,null,null,null,null,null,null,null,null,null,null,null,null,null,null,null,null,null,null,null,null,null,null,null,null,null,null,null,null,null,null,null,null,null,null,null,null,null,null,null,null,null,null,null,null,null,null,null,null,null,null,null,null,null,null,null,null,36,30,35,19,22,25,35,42,"-","راسب",null,null,"",{"$f":"IF(GM1414=\"\",\"\",IF(GM1414<=10,OrdeUP10(GM1414),\"\"))","v":""},"",""]
[16,262,"علوي16",10,"غ",null,null,10,null,15,"غ",null,null,15,null,10,"غ",null,null,10,null,10,"غ",null,null,10,null,10,"غ",null,null,10,null,10,"غ",null,null,10,null,10,"غ",null,null,10,null,10,"غ",null,null,10,null,"-","راسب",null,null,null,null,null,null,null,null,null,null,null,null,null,null,null,null,null,null,null,null,null,null,null,null,null,null,null,null,null,null,null,null,null,null,null,null,null,null,null,null,null,null,null,null,null,null,null,null,null,null,null,null,null,null,null,null,null,null,null,null,null,null,null,null,null,null,null,null,null,null,null,null,null,null,null,null,null,null,null,null,null,null,null,null,null,null,null,null,null,null,null,null,null,null,null,null,null,null,null,null,null,null,null,null,null,null,null,null,null,null,null,null,null,null,null,null,null,null,null,null,null,null,null,null,null,null,null,null,null,0,0,0,0,0,0,0,0,"-","غائب",null,null,"",{"$f":"IF(GM1421=\"\",\"\",IF(GM1421<=10,OrdeUP10(GM1421),\"\"))","v":""},"",""]
[null,null,null,null,null,null,null,null,null,null,null,null,null,null,null,null,null,null,null,null,null,null,null,null,null,null,null,null,null,null,null,null,null,null,null,null,null,null,null,null,null,null,null,null,null,null,null,null,null,null,null,"","",null,null,null,null,null,null,null,null,null,null,null,null,null,null,null,null,null,null,null,null,null,null,null,null,null,null,null,null,null,null,null,null,null,null,null,null,null,null,null,null,null,null,null,null,null,null,null,null,null,null,null,null,null,null,null,null,null,null,null,null,null,null,null,null,null,null,null,null,null,null,null,null,null,null,null,null,null,null,null,null,null,null,null,null,null,null,null,null,null,null,null,null,null,null,null,null,null,null,null,null,null,null,null,null,null,null,null,null,null,null,null,null,null,null,null,null,null,null,null,null,null,null,null,null,null,null,null,null,null,"","","","","","","","","","",null,null,"",{"$f":"IF(GM1442=\"\",\"\",IF(GM1442<=10,OrdeUP10(GM1442),\"\"))","v":""},"",""]
[null,null,null,null,null,null,null,null,null,null,null,null,null,null,null,null,null,null,null,null,null,null,null,null,null,null,null,null,null,null,null,null,null,null,null,null,null,null,null,null,null,null,null,null,null,null,null,null,null,null,null,"","",null,null,null,null,null,null,null,null,null,null,null,null,null,null,null,null,null,null,null,null,null,null,null,null,null,null,null,null,null,null,null,null,null,null,null,null,null,null,null,null,null,null,null,null,null,null,null,null,null,null,null,null,null,null,null,null,null,null,null,null,null,null,null,null,null,null,null,null,null,null,null,null,null,null,null,null,null,null,null,null,null,null,null,null,null,null,null,null,null,null,null,null,null,null,null,null,null,null,null,null,null,null,null,null,null,null,null,null,null,null,null,null,null,null,null,null,null,null,null,null,null,null,null,null,null,null,null,null,null,"","","","","","","","","","",null,null,"",{"$f":"IF(GM1454=\"\",\"\",IF(GM1454<=10,OrdeUP10(GM1454),\"\"))","v":""},"",""]
[null,null,null,null,null,null,null,null,null,null,null,null,null,null,null,null,null,null,null,null,null,null,null,null,null,null,null,null,null,null,null,null,null,null,null,null,null,null,null,null,null,null,null,null,null,null,null,null,null,null,null,"","",null,null,null,null,null,null,null,null,null,null,null,null,null,null,null,null,null,null,null,null,null,null,null,null,null,null,null,null,null,null,null,null,null,null,null,null,null,null,null,null,null,null,null,null,null,null,null,null,null,null,null,null,null,null,null,null,null,null,null,null,null,null,null,null,null,null,null,null,null,null,null,null,null,null,null,null,null,null,null,null,null,null,null,null,null,null,null,null,null,null,null,null,null,null,null,null,null,null,null,null,null,null,null,null,null,null,null,null,null,null,null,null,null,null,null,null,null,null,null,null,null,null,null,null,null,null,null,null,null,"","","","","","","","","","",null,null,"",{"$f":"IF(GM1455=\"\",\"\",IF(GM1455<=10,OrdeUP10(GM1455),\"\"))","v":""},"",""]
[null,null,null,null,null,null,null,null,null,null,null,null,null,null,null,null,null,null,null,null,null,null,null,null,null,null,null,null,null,null,null,null,null,null,null,null,null,null,null,null,null,null,null,null,null,null,null,null,null,null,null,"","",null,null,null,null,null,null,null,null,null,null,null,null,null,null,null,null,null,null,null,null,null,null,null,null,null,null,null,null,null,null,null,null,null,null,null,null,null,null,null,null,null,null,null,null,null,null,null,null,null,null,null,null,null,null,null,null,null,null,null,null,null,null,null,null,null,null,null,null,null,null,null,null,null,null,null,null,null,null,null,null,null,null,null,null,null,null,null,null,null,null,null,null,null,null,null,null,null,null,null,null,null,null,null,null,null,null,null,null,null,null,null,null,null,null,null,null,null,null,null,null,null,null,null,null,null,null,null,null,null,"","","","","","","","","","",null,null,"",{"$f":"IF(GM1475=\"\",\"\",IF(GM1475<=10,OrdeUP10(GM1475),\"\"))","v":""},"",""]
[null,null,null,null,null,null,null,null,null,null,null,null,null,null,null,null,null,null,null,null,null,null,null,null,null,null,null,null,null,null,null,null,null,null,null,null,null,null,null,null,null,null,null,null,null,null,null,null,null,null,null,"","",null,null,null,null,null,null,null,null,null,null,null,null,null,null,null,null,null,null,null,null,null,null,null,null,null,null,null,null,null,null,null,null,null,null,null,null,null,null,null,null,null,null,null,null,null,null,null,null,null,null,null,null,null,null,null,null,null,null,null,null,null,null,null,null,null,null,null,null,null,null,null,null,null,null,null,null,null,null,null,null,null,null,null,null,null,null,null,null,null,null,null,null,null,null,null,null,null,null,null,null,null,null,null,null,null,null,null,null,null,null,null,null,null,null,null,null,null,null,null,null,null,null,null,null,null,null,null,null,null,"","","","","","","","","","",null,null,"",{"$f":"IF(GM1484=\"\",\"\",IF(GM1484<=10,OrdeUP10(GM1484),\"\"))","v":""},"",""]
[null,null,null,null,null,null,null,null,null,null,null,null,null,null,null,null,null,null,null,null,null,null,null,null,null,null,null,null,null,null,null,null,null,null,null,null,null,null,null,null,null,null,null,null,null,null,null,null,null,null,null,"","",null,null,null,null,null,null,null,null,null,null,null,null,null,null,null,null,null,null,null,null,null,null,null,null,null,null,null,null,null,null,null,null,null,null,null,null,null,null,null,null,null,null,null,null,null,null,null,null,null,null,null,null,null,null,null,null,null,null,null,null,null,null,null,null,null,null,null,null,null,null,null,null,null,null,null,null,null,null,null,null,null,null,null,null,null,null,null,null,null,null,null,null,null,null,null,null,null,null,null,null,null,null,null,null,null,null,null,null,null,null,null,null,null,null,null,null,null,null,null,null,null,null,null,null,null,null,null,null,null,"","","","","","","","","","",null,null,"",{"$f":"IF(GM1494=\"\",\"\",IF(GM1494<=10,OrdeUP10(GM1494),\"\"))","v":""},"",""]
[null,null,null,null,null,null,null,null,null,null,null,null,null,null,null,null,null,null,null,null,null,null,null,null,null,null,null,null,null,null,null,null,null,null,null,null,null,null,null,null,null,null,null,null,null,null,null,null,null,null,null,"",{"$f":"IF(AND(B1505>0,C1505<>\"\"),IF(OR(H1505=0,N1505=0,T1505=0,Z1505=0,AF1505=0,AL1505=0,AR1505=0,AX1505=0),\"غائب\",IF(OR(H1505<50,N1505<50,T1505<50,AF1505<50,AL1505<50,AR1505<50,AX1505<50,Z1505<50),\"راسب\",IF(AND(H1505>=50,N1505>49,T1505>=50,AF1505>=50,AL1505>=50,AR1505>=50,AX1505>=50,Z1505>=50),\"ناجح\",\"\"))),\"\")","v":""},null,null,null,null,null,null,null,null,null,null,null,null,null,null,null,null,null,null,null,null,null,null,null,null,null,null,null,null,null,null,null,null,null,null,null,null,null,null,null,null,null,null,null,null,null,null,null,null,null,null,null,null,null,null,null,null,null,null,null,null,null,null,null,null,null,null,null,null,null,null,null,null,null,null,null,null,null,null,null,null,null,null,null,null,null,null,null,null,null,null,null,null,null,null,null,null,null,null,null,null,null,null,null,null,null,null,null,null,null,null,null,null,null,null,null,null,null,null,null,null,null,null,null,null,null,null,null,null,null,"","","","","","","","","","",null,null,"",{"$f":"IF(GM1505=\"\",\"\",IF(GM1505<=10,OrdeUP10(GM1505),\"\"))","v":""},"",""]
[32,278,"ملهمة12",19,26,null,null,45,null,15,24,null,null,39,null,15,18,null,null,33,null,17,13,null,null,30,null,15,14,null,null,29,null,16,18,null,null,34,null,15,17,null,null,32,null,18,25,null,null,43,null,"-","راسبة",null,null,null,null,null,null,null,null,null,null,null,null,null,null,null,null,null,null,null,null,null,null,null,null,null,null,null,null,null,null,null,null,null,null,null,null,null,null,null,null,null,null,null,null,null,null,null,null,null,null,null,null,null,null,null,null,null,null,null,null,null,null,null,null,null,null,null,null,null,null,null,null,null,null,null,null,null,null,null,null,null,null,null,null,null,null,null,null,null,null,null,null,null,null,null,null,null,null,null,null,null,null,null,null,null,null,null,null,null,null,null,null,null,null,null,null,null,null,null,null,null,null,null,null,null,null,null,null,null,45,39,33,30,29,34,32,43,285,"ناجحة",null,null,"",{"$f":"IF(GM1518=\"\",\"\",IF(GM1518<=10,OrdeUP10(GM1518),\"\"))","v":""},6,"الثّامن"]
[null,null,null,null,null,null,null,null,null,null,null,null,null,null,null,null,null,null,null,null,null,null,null,null,null,null,null,null,null,null,null,null,null,null,null,null,null,null,null,null,null,null,null,null,null,null,null,null,null,null,null,"","",null,null,null,null,null,null,null,null,null,null,null,null,null,null,null,null,null,null,null,null,null,null,null,null,null,null,null,null,null,null,null,null,null,null,null,null,null,null,null,null,null,null,null,null,null,null,null,null,null,null,null,null,null,null,null,null,null,null,null,null,null,null,null,null,null,null,null,null,null,null,null,null,null,null,null,null,null,null,null,null,null,null,null,null,null,null,null,null,null,null,null,null,null,null,null,null,null,null,null,null,null,null,null,null,null,null,null,null,null,null,null,null,null,null,null,null,null,null,null,null,null,null,null,null,null,null,null,null,null,"","","","","","","","","","",null,null,"",{"$f":"IF(GM1526=\"\",\"\",IF(GM1526<=10,OrdeUP10(GM1526),\"\"))","v":""},"",""]
[null,null,null,null,null,null,null,null,null,null,null,null,null,null,null,null,null,null,null,null,null,null,null,null,null,null,null,null,null,null,null,null,null,null,null,null,null,null,null,null,null,null,null,null,null,null,null,null,null,null,null,"","",null,null,null,null,null,null,null,null,null,null,null,null,null,null,null,null,null,null,null,null,null,null,null,null,null,null,null,null,null,null,null,null,null,null,null,null,null,null,null,null,null,null,null,null,null,null,null,null,null,null,null,null,null,null,null,null,null,null,null,null,null,null,null,null,null,null,null,null,null,null,null,null,null,null,null,null,null,null,null,null,null,null,null,null,null,null,null,null,null,null,null,null,null,null,null,null,null,null,null,null,null,null,null,null,null,null,null,null,null,null,null,null,null,null,null,null,null,null,null,null,null,null,null,null,null,null,null,null,null,"","","","","","","","","","",null,null,"",{"$f":"IF(GM1546=\"\",\"\",IF(GM1546<=10,OrdeUP10(GM1546),\"\"))","v":""},"",""]
[null,null,null,null,null,null,null,null,null,null,null,null,null,null,null,null,null,null,null,null,null,null,null,null,null,null,null,null,null,null,null,null,null,null,null,null,null,null,null,null,null,null,null,null,null,null,null,null,null,null,null,"","",null,null,null,null,null,null,null,null,null,null,null,null,null,null,null,null,null,null,null,null,null,null,null,null,null,null,null,null,null,null,null,null,null,null,null,null,null,null,null,null,null,null,null,null,null,null,null,null,null,null,null,null,null,null,null,null,null,null,null,null,null,null,null,null,null,null,null,null,null,null,null,null,null,null,null,null,null,null,null,null,null,null,null,null,null,null,null,null,null,null,null,null,null,null,null,null,null,null,null,null,null,null,null,null,null,null,null,null,null,null,null,null,null,null,null,null,null,null,null,null,null,null,null,null,null,null,null,null,null,"","","","","","","","","","",null,null,"",{"$f":"IF(GM1555=\"\",\"\",IF(GM1555<=10,OrdeUP10(GM1555),\"\"))","v":""},"",""]
[null,null,null,null,null,null,null,null,null,null,null,null,null,null,null,null,null,null,null,null,null,null,null,null,null,null,null,null,null,null,null,null,null,null,null,null,null,null,null,null,null,null,null,null,null,null,null,null,null,null,null,"","",null,null,null,null,null,null,null,null,null,null,null,null,null,null,null,null,null,null,null,null,null,null,null,null,null,null,null,null,null,null,null,null,null,null,null,null,null,null,null,null,null,null,null,null,null,null,null,null,null,null,null,null,null,null,null,null,null,null,null,null,null,null,null,null,null,null,null,null,null,null,null,null,null,null,null,null,null,null,null,null,null,null,null,null,null,null,null,null,null,null,null,null,null,null,null,null,null,null,null,null,null,null,null,null,null,null,null,null,null,null,null,null,null,null,null,null,null,null,null,null,null,null,null,null,null,null,null,null,null,"","","","","","","","","","",null,null,"",{"$f":"IF(GM1568=\"\",\"\",IF(GM1568<=10,OrdeUP10(GM1568),\"\"))","v":""},"",""]
[null,null,null,null,null,null,null,null,null,null,null,null,null,null,null,null,null,null,null,null,null,null,null,null,null,null,null,null,null,null,null,null,null,null,null,null,null,null,null,null,null,null,null,null,null,null,null,null,null,null,null,"","",null,null,null,null,null,null,null,null,null,null,null,null,null,null,null,null,null,null,null,null,null,null,null,null,null,null,null,null,null,null,null,null,null,null,null,null,null,null,null,null,null,null,null,null,null,null,null,null,null,null,null,null,null,null,null,null,null,null,null,null,null,null,null,null,null,null,null,null,null,null,null,null,null,null,null,null,null,null,null,null,null,null,null,null,null,null,null,null,null,null,null,null,null,null,null,null,null,null,null,null,null,null,null,null,null,null,null,null,null,null,null,null,null,null,null,null,null,null,null,null,null,null,null,null,null,null,null,null,null,"","","","","","","","","","",null,null,"",{"$f":"IF(GM1571=\"\",\"\",IF(GM1571<=10,OrdeUP10(GM1571),\"\"))","v":""},"",""]
[null,null,null,null,null,null,null,null,null,null,null,null,null,null,null,null,null,null,null,null,null,null,null,null,null,null,null,null,null,null,null,null,null,null,null,null,null,null,null,null,null,null,null,null,null,null,null,null,null,null,null,{"$f":"IF(AND(B1572>0,C1572<>\"\"),IF(AND(BA1572=\"ناجحة\"),AX1572+AL1572+AF1572+T1572+Z1572+N1572+AR1572+H1572,\"-\"),\"\")","v":""},{"$f":"IF(AND(B1572>0,C1572<>\"\"),IF(OR(H1572=0,N1572=0,T1572=0,Z1572=0,AF1572=0,AL1572=0,AR1572=0,AX1572=0),\"غائبة\",IF(OR(H1572<50,N1572<50,T1572<50,AF1572<50,AL1572<50,AR1572<50,AX1572<50,Z1572<50),\"راسبة\",IF(AND(H1572>=50,N1572>49,T1572>=50,AF1572>=50,AL1572>=50,AR1572>=50,AX1572>=50,Z1572>=50),\"ناجحة\",\"\"))),\"\")","v":""},null,null,null,null,null,null,null,null,null,null,null,null,null,null,null,null,null,null,null,null,null,null,null,null,null,null,null,null,null,null,null,null,null,null,null,null,null,null,null,null,null,null,null,null,null,null,null,null,null,null,null,null,null,null,null,null,null,null,null,null,null,null,null,null,null,null,null,null,null,null,null,null,null,null,null,null,null,null,null,null,null,null,null,null,null,null,null,null,null,null,null,null,null,null,null,null,null,null,null,null,null,null,null,null,null,null,null,null,null,null,null,null,null,null,null,null,null,null,null,null,null,null,null,null,null,null,null,null,null,"","","","","","","","","",{"$f":"IF(B1572=\"\",\"\",IF(OR(GA1572=0,GB1572=0,GC1572=0,GD1572=0,GE1572=0,GF1572=0,GG1572=0,GH1572=0),\"غائبة\",IF(OR(GA1572<25,GB1572<25,GC1572<25,GD1572<25,GE1572<25,GF1572<25,GG1572<25,GH1572<25),\"راسبة\",IF(AND(GA1572>=25,GB1572>=25,GC1572>=25,GD1572>=25,GE1572>=25,GF1572>=25,GG1572>=25,GH1572>=25),\"ناجحة\",\"\"))))","v":""},null,null,"",{"$f":"IF(GM1572=\"\",\"\",IF(GM1572<=10,OrdeUP10(GM1572),\"\"))","v":""},"",""]
[null,null,null,null,null,null,null,null,null,null,null,null,null,null,null,null,null,null,null,null,null,null,null,null,null,null,null,null,null,null,null,null,null,null,null,null,null,null,null,null,null,null,null,null,null,null,null,null,null,null,null,"","",null,null,null,null,null,null,null,null,null,null,null,null,null,null,null,null,null,null,null,null,null,null,null,null,null,null,null,null,null,null,null,null,null,null,null,null,null,null,null,null,null,null,null,null,null,null,null,null,null,null,null,null,null,null,null,null,null,null,null,null,null,null,null,null,null,null,null,null,null,null,null,null,null,null,null,null,null,null,null,null,null,null,null,null,null,null,null,null,null,null,null,null,null,null,null,null,null,null,null,null,null,null,null,null,null,null,null,null,null,null,null,null,null,null,null,null,null,null,null,null,null,null,null,null,null,null,null,null,null,"","","","","","","","","","",null,null,"",{"$f":"IF(GM1573=\"\",\"\",IF(GM1573<=10,OrdeUP10(GM1573),\"\"))","v":""},"",""]
[null,null,null,null,null,null,null,null,null,null,null,null,null,null,null,null,null,null,null,null,null,null,null,null,null,null,null,null,null,null,null,null,null,null,null,null,null,null,null,null,null,null,null,null,null,null,null,null,null,null,null,"","",null,null,null,null,null,null,null,null,null,null,null,null,null,null,null,null,null,null,null,null,null,null,null,null,null,null,null,null,null,null,null,null,null,null,null,null,null,null,null,null,null,null,null,null,null,null,null,null,null,null,null,null,null,null,null,null,null,null,null,null,null,null,null,null,null,null,null,null,null,null,null,null,null,null,null,null,null,null,null,null,null,null,null,null,null,null,null,null,null,null,null,null,null,null,null,null,null,null,null,null,null,null,null,null,null,null,null,null,null,null,null,null,null,null,null,null,null,null,null,null,null,null,null,null,null,null,null,null,null,"","","","","","","","","","",null,null,"",{"$f":"IF(GM1574=\"\",\"\",IF(GM1574<=10,OrdeUP10(GM1574),\"\"))","v":""},"",""]
[null,null,null,null,null,null,null,null,null,null,null,null,null,null,null,null,null,null,null,null,null,null,null,null,null,null,null,null,null,null,null,null,null,null,null,null,null,null,null,null,null,null,null,null,null,null,null,null,null,null,null,"","",null,null,null,null,null,null,null,null,null,null,null,null,null,null,null,null,null,null,null,null,null,null,null,null,null,null,null,null,null,null,null,null,null,null,null,null,null,null,null,null,null,null,null,null,null,null,null,null,null,null,null,null,null,null,null,null,null,null,null,null,null,null,null,null,null,null,null,null,null,null,null,null,null,null,null,null,null,null,null,null,null,null,null,null,null,null,null,null,null,null,null,null,null,null,null,null,null,null,null,null,null,null,null,null,null,null,null,null,null,null,null,null,null,null,null,null,null,null,null,null,null,null,null,null,null,null,null,null,null,"","","","","","","","","","",null,null,"",{"$f":"IF(GM1575=\"\",\"\",IF(GM1575<=10,OrdeUP10(GM1575),\"\"))","v":""},"",""]
[null,null,null,null,null,null,null,null,null,null,null,null,null,null,null,null,null,null,null,null,null,null,null,null,null,null,null,null,null,null,null,null,null,null,null,null,null,null,null,null,null,null,null,null,null,null,null,null,null,null,null,"","",null,null,null,null,null,null,null,null,null,null,null,null,null,null,null,null,null,null,null,null,null,null,null,null,null,null,null,null,null,null,null,null,null,null,null,null,null,null,null,null,null,null,null,null,null,null,null,null,null,null,null,null,null,null,null,null,null,null,null,null,null,null,null,null,null,null,null,null,null,null,null,null,null,null,null,null,null,null,null,null,null,null,null,null,null,null,null,null,null,null,null,null,null,null,null,null,null,null,null,null,null,null,null,null,null,null,null,null,null,null,null,null,null,null,null,null,null,null,null,null,null,null,null,null,null,null,null,null,null,"","","","","","","","","","",null,null,"",{"$f":"IF(GM1576=\"\",\"\",IF(GM1576<=10,OrdeUP10(GM1576),\"\"))","v":""},"",""]
[null,null,null,null,null,null,null,null,null,null,null,null,null,null,null,null,null,null,null,null,null,null,null,null,null,null,null,null,null,null,null,null,null,null,null,null,null,null,null,null,null,null,null,null,null,null,null,null,null,null,null,"","",null,null,null,null,null,null,null,null,null,null,null,null,null,null,null,null,null,null,null,null,null,null,null,null,null,null,null,null,null,null,null,null,null,null,null,null,null,null,null,null,null,null,null,null,null,null,null,null,null,null,null,null,null,null,null,null,null,null,null,null,null,null,null,null,null,null,null,null,null,null,null,null,null,null,null,null,null,null,null,null,null,null,null,null,null,null,null,null,null,null,null,null,null,null,null,null,null,null,null,null,null,null,null,null,null,null,null,null,null,null,null,null,null,null,null,null,null,null,null,null,null,null,null,null,null,null,null,null,null,"","","","","","","","","","",null,null,"",{"$f":"IF(GM1577=\"\",\"\",IF(GM1577<=10,OrdeUP10(GM1577),\"\"))","v":""},"",""]
[null,null,null,null,null,null,null,null,null,null,null,null,null,null,null,null,null,null,null,null,null,null,null,null,null,null,null,null,null,null,null,null,null,null,null,null,null,null,null,null,null,null,null,null,null,null,null,null,null,null,null,"","",null,null,null,null,null,null,null,null,null,null,null,null,null,null,null,null,null,null,null,null,null,null,null,null,null,null,null,null,null,null,null,null,null,null,null,null,null,null,null,null,null,null,null,null,null,null,null,null,null,null,null,null,null,null,null,null,null,null,null,null,null,null,null,null,null,null,null,null,null,null,null,null,null,null,null,null,null,null,null,null,null,null,null,null,null,null,null,null,null,null,null,null,null,null,null,null,null,null,null,null,null,null,null,null,null,null,null,null,null,null,null,null,null,null,null,null,null,null,null,null,null,null,null,null,null,null,null,null,null,"","","","","","","","","","",null,null,"",{"$f":"IF(GM1578=\"\",\"\",IF(GM1578<=10,OrdeUP10(GM1578),\"\"))","v":""},"",""]
[null,null,null,null,null,null,null,null,null,null,null,null,null,null,null,null,null,null,null,null,null,null,null,null,null,null,null,null,null,null,null,null,null,null,null,null,null,null,null,null,null,null,null,null,null,null,null,null,null,null,null,"","",null,null,null,null,null,null,null,null,null,null,null,null,null,null,null,null,null,null,null,null,null,null,null,null,null,null,null,null,null,null,null,null,null,null,null,null,null,null,null,null,null,null,null,null,null,null,null,null,null,null,null,null,null,null,null,null,null,null,null,null,null,null,null,null,null,null,null,null,null,null,null,null,null,null,null,null,null,null,null,null,null,null,null,null,null,null,null,null,null,null,null,null,null,null,null,null,null,null,null,null,null,null,null,null,null,null,null,null,null,null,null,null,null,null,null,null,null,null,null,null,null,null,null,null,null,null,null,null,null,"","","","","","","","","","",null,null,"",{"$f":"IF(GM1579=\"\",\"\",IF(GM1579<=10,OrdeUP10(GM1579),\"\"))","v":""},"",""]
[null,null,null,null,null,null,null,null,null,null,null,null,null,null,null,null,null,null,null,null,null,null,null,null,null,null,null,null,null,null,null,null,null,null,null,null,null,null,null,null,null,null,null,null,null,null,null,null,null,null,null,"","",null,null,null,null,null,null,null,null,null,null,null,null,null,null,null,null,null,null,null,null,null,null,null,null,null,null,null,null,null,null,null,null,null,null,null,null,null,null,null,null,null,null,null,null,null,null,null,null,null,null,null,null,null,null,null,null,null,null,null,null,null,null,null,null,null,null,null,null,null,null,null,null,null,null,null,null,null,null,null,null,null,null,null,null,null,null,null,null,null,null,null,null,null,null,null,null,null,null,null,null,null,null,null,null,null,null,null,null,null,null,null,null,null,null,null,null,null,null,null,null,null,null,null,null,null,null,null,null,null,"","","","","","","","","","",null,null,"",{"$f":"IF(GM1580=\"\",\"\",IF(GM1580<=10,OrdeUP10(GM1580),\"\"))","v":""},"",""]
[null,null,null,null,null,null,null,null,null,null,null,null,null,null,null,null,null,null,null,null,null,null,null,null,null,null,null,null,null,null,null,null,null,null,null,null,null,null,null,null,null,null,null,null,null,null,null,null,null,null,null,"","",null,null,null,null,null,null,null,null,null,null,null,null,null,null,null,null,null,null,null,null,null,null,null,null,null,null,null,null,null,null,null,null,null,null,null,null,null,null,null,null,null,null,null,null,null,null,null,null,null,null,null,null,null,null,null,null,null,null,null,null,null,null,null,null,null,null,null,null,null,null,null,null,null,null,null,null,null,null,null,null,null,null,null,null,null,null,null,null,null,null,null,null,null,null,null,null,null,null,null,null,null,null,null,null,null,null,null,null,null,null,null,null,null,null,null,null,null,null,null,null,null,null,null,null,null,null,null,null,null,"","","","","","","","","","",null,null,"",{"$f":"IF(GM1581=\"\",\"\",IF(GM1581<=10,OrdeUP10(GM1581),\"\"))","v":""},"",""]
[null,null,null,null,null,null,null,null,null,null,null,null,null,null,null,null,null,null,null,null,null,null,null,null,null,null,null,null,null,null,null,null,null,null,null,null,null,null,null,null,null,null,null,null,null,null,null,null,null,null,null,"","",null,null,null,null,null,null,null,null,null,null,null,null,null,null,null,null,null,null,null,null,null,null,null,null,null,null,null,null,null,null,null,null,null,null,null,null,null,null,null,null,null,null,null,null,null,null,null,null,null,null,null,null,null,null,null,null,null,null,null,null,null,null,null,null,null,null,null,null,null,null,null,null,null,null,null,null,null,null,null,null,null,null,null,null,null,null,null,null,null,null,null,null,null,null,null,null,null,null,null,null,null,null,null,null,null,null,null,null,null,null,null,null,null,null,null,null,null,null,null,null,null,null,null,null,null,null,null,null,null,"","","","","","","","","","",null,null,"",{"$f":"IF(GM1582=\"\",\"\",IF(GM1582<=10,OrdeUP10(GM1582),\"\"))","v":""},"",""]
[null,null,null,null,null,null,null,null,null,null,null,null,null,null,null,null,null,null,null,null,null,null,null,null,null,null,null,null,null,null,null,null,null,null,null,null,null,null,null,null,null,null,null,null,null,null,null,null,null,null,null,"","",null,null,null,null,null,null,null,null,null,null,null,null,null,null,null,null,null,null,null,null,null,null,null,null,null,null,null,null,null,null,null,null,null,null,null,null,null,null,null,null,null,null,null,null,null,null,null,null,null,null,null,null,null,null,null,null,null,null,null,null,null,null,null,null,null,null,null,null,null,null,null,null,null,null,null,null,null,null,null,null,null,null,null,null,null,null,null,null,null,null,null,null,null,null,null,null,null,null,null,null,null,null,null,null,null,null,null,null,null,null,null,null,null,null,null,null,null,null,null,null,null,null,null,null,null,null,null,null,null,"","","","","","","","","","",null,null,"",{"$f":"IF(GM1583=\"\",\"\",IF(GM1583<=10,OrdeUP10(GM1583),\"\"))","v":""},"",""]
[null,null,null,null,null,null,null,null,null,null,null,null,null,null,null,null,null,null,null,null,null,null,null,null,null,null,null,null,null,null,null,null,null,null,null,null,null,null,null,null,null,null,null,null,null,null,null,null,null,null,null,"","",null,null,null,null,null,null,null,null,null,null,null,null,null,null,null,null,null,null,null,null,null,null,null,null,null,null,null,null,null,null,null,null,null,null,null,null,null,null,null,null,null,null,null,null,null,null,null,null,null,null,null,null,null,null,null,null,null,null,null,null,null,null,null,null,null,null,null,null,null,null,null,null,null,null,null,null,null,null,null,null,null,null,null,null,null,null,null,null,null,null,null,null,null,null,null,null,null,null,null,null,null,null,null,null,null,null,null,null,null,null,null,null,null,null,null,null,null,null,null,null,null,null,null,null,null,null,null,null,null,"","","","","","","","","","",null,null,"",{"$f":"IF(GM1584=\"\",\"\",IF(GM1584<=10,OrdeUP10(GM1584),\"\"))","v":""},"",""]
[null,null,null,null,null,null,null,null,null,null,null,null,null,null,null,null,null,null,null,null,null,null,null,null,null,null,null,null,null,null,null,null,null,null,null,null,null,null,null,null,null,null,null,null,null,null,null,null,null,null,null,"","",null,null,null,null,null,null,null,null,null,null,null,null,null,null,null,null,null,null,null,null,null,null,null,null,null,null,null,null,null,null,null,null,null,null,null,null,null,null,null,null,null,null,null,null,null,null,null,null,null,null,null,null,null,null,null,null,null,null,null,null,null,null,null,null,null,null,null,null,null,null,null,null,null,null,null,null,null,null,null,null,null,null,null,null,null,null,null,null,null,null,null,null,null,null,null,null,null,null,null,null,null,null,null,null,null,null,null,null,null,null,null,null,null,null,null,null,null,null,null,null,null,null,null,null,null,null,null,null,null,"","","","","","","","","","",null,null,"",{"$f":"IF(GM1585=\"\",\"\",IF(GM1585<=10,OrdeUP10(GM1585),\"\"))","v":""},"",""]
[null,null,null,null,null,null,null,null,null,null,null,null,null,null,null,null,null,null,null,null,null,null,null,null,null,null,null,null,null,null,null,null,null,null,null,null,null,null,null,null,null,null,null,null,null,null,null,null,null,null,null,"","",null,null,null,null,null,null,null,null,null,null,null,null,null,null,null,null,null,null,null,null,null,null,null,null,null,null,null,null,null,null,null,null,null,null,null,null,null,null,null,null,null,null,null,null,null,null,null,null,null,null,null,null,null,null,null,null,null,null,null,null,null,null,null,null,null,null,null,null,null,null,null,null,null,null,null,null,null,null,null,null,null,null,null,null,null,null,null,null,null,null,null,null,null,null,null,null,null,null,null,null,null,null,null,null,null,null,null,null,null,null,null,null,null,null,null,null,null,null,null,null,null,null,null,null,null,null,null,null,null,"","","","","","","","","","",null,null,"",{"$f":"IF(GM1586=\"\",\"\",IF(GM1586<=10,OrdeUP10(GM1586),\"\"))","v":""},"",""]
[null,null,null,null,null,null,null,null,null,null,null,null,null,null,null,null,null,null,null,null,null,null,null,null,null,null,null,null,null,null,null,null,null,null,null,null,null,null,null,null,null,null,null,null,null,null,null,null,null,null,null,"","",null,null,null,null,null,null,null,null,null,null,null,null,null,null,null,null,null,null,null,null,null,null,null,null,null,null,null,null,null,null,null,null,null,null,null,null,null,null,null,null,null,null,null,null,null,null,null,null,null,null,null,null,null,null,null,null,null,null,null,null,null,null,null,null,null,null,null,null,null,null,null,null,null,null,null,null,null,null,null,null,null,null,null,null,null,null,null,null,null,null,null,null,null,null,null,null,null,null,null,null,null,null,null,null,null,null,null,null,null,null,null,null,null,null,null,null,null,null,null,null,null,null,null,null,null,null,null,null,null,"","","","","","","","","","",null,null,"",{"$f":"IF(GM1587=\"\",\"\",IF(GM1587<=10,OrdeUP10(GM1587),\"\"))","v":""},"",""]
[null,null,null,null,null,null,null,null,null,null,null,null,null,null,null,null,null,null,null,null,null,null,null,null,null,null,null,null,null,null,null,null,null,null,null,null,null,null,null,null,null,null,null,null,null,null,null,null,null,null,null,"","",null,null,null,null,null,null,null,null,null,null,null,null,null,null,null,null,null,null,null,null,null,null,null,null,null,null,null,null,null,null,null,null,null,null,null,null,null,null,null,null,null,null,null,null,null,null,null,null,null,null,null,null,null,null,null,null,null,null,null,null,null,null,null,null,null,null,null,null,null,null,null,null,null,null,null,null,null,null,null,null,null,null,null,null,null,null,null,null,null,null,null,null,null,null,null,null,null,null,null,null,null,null,null,null,null,null,null,null,null,null,null,null,null,null,null,null,null,null,null,null,null,null,null,null,null,null,null,null,null,"","","","","","","","","","",null,null,"",{"$f":"IF(GM1588=\"\",\"\",IF(GM1588<=10,OrdeUP10(GM1588),\"\"))","v":""},"",""]
[null,null,null,null,null,null,null,null,null,null,null,null,null,null,null,null,null,null,null,null,null,null,null,null,null,null,null,null,null,null,null,null,null,null,null,null,null,null,null,null,null,null,null,null,null,null,null,null,null,null,null,"","",null,null,null,null,null,null,null,null,null,null,null,null,null,null,null,null,null,null,null,null,null,null,null,null,null,null,null,null,null,null,null,null,null,null,null,null,null,null,null,null,null,null,null,null,null,null,null,null,null,null,null,null,null,null,null,null,null,null,null,null,null,null,null,null,null,null,null,null,null,null,null,null,null,null,null,null,null,null,null,null,null,null,null,null,null,null,null,null,null,null,null,null,null,null,null,null,null,null,null,null,null,null,null,null,null,null,null,null,null,null,null,null,null,null,null,null,null,null,null,null,null,null,null,null,null,null,null,null,null,"","","","","","","","","","",null,null,"",{"$f":"IF(GM1589=\"\",\"\",IF(GM1589<=10,OrdeUP10(GM1589),\"\"))","v":""},"",""]
[null,null,null,null,null,null,null,null,null,null,null,null,null,null,null,null,null,null,null,null,null,null,null,null,null,null,null,null,null,null,null,null,null,null,null,null,null,null,null,null,null,null,null,null,null,null,null,null,null,null,null,"","",null,null,null,null,null,null,null,null,null,null,null,null,null,null,null,null,null,null,null,null,null,null,null,null,null,null,null,null,null,null,null,null,null,null,null,null,null,null,null,null,null,null,null,null,null,null,null,null,null,null,null,null,null,null,null,null,null,null,null,null,null,null,null,null,null,null,null,null,null,null,null,null,null,null,null,null,null,null,null,null,null,null,null,null,null,null,null,null,null,null,null,null,null,null,null,null,null,null,null,null,null,null,null,null,null,null,null,null,null,null,null,null,null,null,null,null,null,null,null,null,null,null,null,null,null,null,null,null,null,"","","","","","","","","","",null,null,"",{"$f":"IF(GM1590=\"\",\"\",IF(GM1590<=10,OrdeUP10(GM1590),\"\"))","v":""},"",""]
[null,null,null,null,null,null,null,null,null,null,null,null,null,null,null,null,null,null,null,null,null,null,null,null,null,null,null,null,null,null,null,null,null,null,null,null,null,null,null,null,null,null,null,null,null,null,null,null,null,null,null,"","",null,null,null,null,null,null,null,null,null,null,null,null,null,null,null,null,null,null,null,null,null,null,null,null,null,null,null,null,null,null,null,null,null,null,null,null,null,null,null,null,null,null,null,null,null,null,null,null,null,null,null,null,null,null,null,null,null,null,null,null,null,null,null,null,null,null,null,null,null,null,null,null,null,null,null,null,null,null,null,null,null,null,null,null,null,null,null,null,null,null,null,null,null,null,null,null,null,null,null,null,null,null,null,null,null,null,null,null,null,null,null,null,null,null,null,null,null,null,null,null,null,null,null,null,null,null,null,null,null,"","","","","","","","","","",null,null,"",{"$f":"IF(GM1591=\"\",\"\",IF(GM1591<=10,OrdeUP10(GM1591),\"\"))","v":""},"",""]
[null,null,null,null,null,null,null,null,null,null,null,null,null,null,null,null,null,null,null,null,null,null,null,null,null,null,null,null,null,null,null,null,null,null,null,null,null,null,null,null,null,null,null,null,null,null,null,null,null,null,null,"","",null,null,null,null,null,null,null,null,null,null,null,null,null,null,null,null,null,null,null,null,null,null,null,null,null,null,null,null,null,null,null,null,null,null,null,null,null,null,null,null,null,null,null,null,null,null,null,null,null,null,null,null,null,null,null,null,null,null,null,null,null,null,null,null,null,null,null,null,null,null,null,null,null,null,null,null,null,null,null,null,null,null,null,null,null,null,null,null,null,null,null,null,null,null,null,null,null,null,null,null,null,null,null,null,null,null,null,null,null,null,null,null,null,null,null,null,null,null,null,null,null,null,null,null,null,null,null,null,null,"","","","","","","","","","",null,null,"",{"$f":"IF(GM1592=\"\",\"\",IF(GM1592<=10,OrdeUP10(GM1592),\"\"))","v":""},"",""]
[null,null,null,null,null,null,null,null,null,null,null,null,null,null,null,null,null,null,null,null,null,null,null,null,null,null,null,null,null,null,null,null,null,null,null,null,null,null,null,null,null,null,null,null,null,null,null,null,null,null,null,"","",null,null,null,null,null,null,null,null,null,null,null,null,null,null,null,null,null,null,null,null,null,null,null,null,null,null,null,null,null,null,null,null,null,null,null,null,null,null,null,null,null,null,null,null,null,null,null,null,null,null,null,null,null,null,null,null,null,null,null,null,null,null,null,null,null,null,null,null,null,null,null,null,null,null,null,null,null,null,null,null,null,null,null,null,null,null,null,null,null,null,null,null,null,null,null,null,null,null,null,null,null,null,null,null,null,null,null,null,null,null,null,null,null,null,null,null,null,null,null,null,null,null,null,null,null,null,null,null,null,"","","","","","","","","","",null,null,"",{"$f":"IF(GM1593=\"\",\"\",IF(GM1593<=10,OrdeUP10(GM1593),\"\"))","v":""},"",""]
[null,null,null,null,null,null,null,null,null,null,null,null,null,null,null,null,null,null,null,null,null,null,null,null,null,null,null,null,null,null,null,null,null,null,null,null,null,null,null,null,null,null,null,null,null,null,null,null,null,null,null,"","",null,null,null,null,null,null,null,null,null,null,null,null,null,null,null,null,null,null,null,null,null,null,null,null,null,null,null,null,null,null,null,null,null,null,null,null,null,null,null,null,null,null,null,null,null,null,null,null,null,null,null,null,null,null,null,null,null,null,null,null,null,null,null,null,null,null,null,null,null,null,null,null,null,null,null,null,null,null,null,null,null,null,null,null,null,null,null,null,null,null,null,null,null,null,null,null,null,null,null,null,null,null,null,null,null,null,null,null,null,null,null,null,null,null,null,null,null,null,null,null,null,null,null,null,null,null,null,null,null,"","","","","","","","","","",null,null,"",{"$f":"IF(GM1594=\"\",\"\",IF(GM1594<=10,OrdeUP10(GM1594),\"\"))","v":""},"",""]
[null,null,null,null,null,null,null,null,null,null,null,null,null,null,null,null,null,null,null,null,null,null,null,null,null,null,null,null,null,null,null,null,null,null,null,null,null,null,null,null,null,null,null,null,null,null,null,null,null,null,null,"","",null,null,null,null,null,null,null,null,null,null,null,null,null,null,null,null,null,null,null,null,null,null,null,null,null,null,null,null,null,null,null,null,null,null,null,null,null,null,null,null,null,null,null,null,null,null,null,null,null,null,null,null,null,null,null,null,null,null,null,null,null,null,null,null,null,null,null,null,null,null,null,null,null,null,null,null,null,null,null,null,null,null,null,null,null,null,null,null,null,null,null,null,null,null,null,null,null,null,null,null,null,null,null,null,null,null,null,null,null,null,null,null,null,null,null,null,null,null,null,null,null,null,null,null,null,null,null,null,null,"","","","","","","","","","",null,null,"",{"$f":"IF(GM1595=\"\",\"\",IF(GM1595<=10,OrdeUP10(GM1595),\"\"))","v":""},"",""]
[null,null,null,null,null,null,null,null,null,null,null,null,null,null,null,null,null,null,null,null,null,null,null,null,null,null,null,null,null,null,null,null,null,null,null,null,null,null,null,null,null,null,null,null,null,null,null,null,null,null,null,"","",null,null,null,null,null,null,null,null,null,null,null,null,null,null,null,null,null,null,null,null,null,null,null,null,null,null,null,null,null,null,null,null,null,null,null,null,null,null,null,null,null,null,null,null,null,null,null,null,null,null,null,null,null,null,null,null,null,null,null,null,null,null,null,null,null,null,null,null,null,null,null,null,null,null,null,null,null,null,null,null,null,null,null,null,null,null,null,null,null,null,null,null,null,null,null,null,null,null,null,null,null,null,null,null,null,null,null,null,null,null,null,null,null,null,null,null,null,null,null,null,null,null,null,null,null,null,null,null,null,"","","","","","","","","","",null,null,"",{"$f":"IF(GM1596=\"\",\"\",IF(GM1596<=10,OrdeUP10(GM1596),\"\"))","v":""},"",""]
[]
[null,{"$f":"MAX(B1406:B1505)","v":266}]
[null,{"$f":"MAX(B1507:B1596)","v":281}]
[null,null,{"$f":"COUNT(B1406:B1505)","v":20}]
[null,{"$f":"SUM(C1600:C1601)","v":35},{"$f":"COUNT(B1507:B1596)","v":15}]

{"sheet":"half degre","index":1,"n_rows":54,"n_cols":64,"rows_kept":54,"cut":false,"hidden":false,"merged":[[0,22,0,23],[12,1,13,1],[12,4,12,5],[12,6,12,7],[12,8,12,9],[5,2,5,3],[6,2,6,3],[12,3,13,3],[12,2,13,2],[12,16,12,17],[12,18,12,19],[12,21,13,21],[12,22,13,22],[5,15,5,16],[6,15,6,16],[7,15,7,16],[8,15,8,16],[12,20,13,20],[12,10,12,11],[12,12,12,13],[12,14,12,15]]}
[null,null,null,null,null,null,null,null,null,"عدد كشوفات الصف المحدد :",{"$f":"IF(OR($Y$1=\"\",$Z$1=\"\"),\"\",_xlfn.CEILING.PRECISE($Z$1/30))","v":2},null,null,null,null,null,null,null,null,null,1,1,"الصف :",null,{"$f":"IF($U$1=\"\",\"\",OFFSET($AC$1,$U$1-1,0))","v":"الأول أساسي"},{"$f":"IF($Y$1=\"\",\"\",MAX(OFFSET(F!$A$3:$A$201,200*($U$1-1),0)))","v":35},"عدد طلاب وطالبات الصف",null,"الأول أساسي",null,null,null,null,null,null,null,null,null,null,null,null,null,null,null,null,null,null,null,null,null,null,null,{"$f":"F!$B$198","v":20},"قرآن","إسلامية","عربي","إنجليزي","رياضيات","علوم","اجتماعيات","سلوك","1+2","3+4+5+6","7+8"]
[null,null,null,null,null,null,null,null,null,null,null,null,null,null,null,null,null,null,null,null,null,null,null,null,null,null,{"$f":"COUNTA($AC$1:$AC$15)","v":8},null,"الثاني أساسي",null,null,null,null,null,null,null,null,null,null,null,null,null,null,null,null,null,null,null,null,null,null,null,{"$f":"F!$B$199","v":35},{"$f":"IF(F15=\"غ\",0,SUM(E15:F15))","v":48},{"$f":"IF(H15=\"غ\",0,SUM(G15:H15))","v":48},{"$f":"IF(J15=\"غ\",0,SUM(I15:J15))","v":48},{"$f":"IF(L15=\"غ\",0,IF(L15=\"\",\"\",SUM(K15:L15)))","v":""},{"$f":"IF(N15=\"غ\",0,SUM(M15:N15))","v":48},{"$f":"IF(P15=\"غ\",0,SUM(O15:P15))","v":48},{"$f":"IF(R15=\"غ\",0,IF(R15=\"\",\"\",SUM(Q15:R15)))","v":""},{"$f":"IF(T15=\"غ\",0,SUM(S15:T15))","v":45},{"$f":"SUM(BB2,BC2,BD2,BF2,BG2,BI2)","v":285},{"$f":"SUM(BB2,BC2,BD2,BF2,BG2,BH2,BI2)","v":285},{"$f":"SUM(BB2:BI2)","v":285}]
[null,null,null,null,null,null,null,null,null,null,null,null,null,null,null,null,null,null,null,null,null,null,null,null,null,null,null,null,"الثالث أساسي",null,null,null,null,null,null,null,null,null,null,null,null,null,null,null,null,null,null,null,null,null,null,null,{"$f":"F!$B$398","v":60},{"$f":"IF(F16=\"غ\",0,SUM(E16:F16))","v":27},{"$f":"IF(H16=\"غ\",0,SUM(G16:H16))","v":28},{"$f":"IF(J16=\"غ\",0,SUM(I16:J16))","v":30},{"$f":"IF(L16=\"غ\",0,IF(L16=\"\",\"\",SUM(K16:L16)))","v":""},{"$f":"IF(N16=\"غ\",0,SUM(M16:N16))","v":30},{"$f":"IF(P16=\"غ\",0,SUM(O16:P16))","v":34},{"$f":"IF(R16=\"غ\",0,IF(R16=\"\",\"\",SUM(Q16:R16)))","v":""},{"$f":"IF(T16=\"غ\",0,SUM(S16:T16))","v":35},{"$f":"SUM(BB3,BC3,BD3,BF3,BG3,BI3)","v":184},{"$f":"SUM(BB3,BC3,BD3,BF3,BG3,BH3,BI3)","v":184},{"$f":"SUM(BB3:BI3)","v":184}]
[null,null,null,null,null,null,null,null,null,null,null,null,null,null,null,null,null,null,null,null,null,null,null,null,null,null,null,null,"الرابع أساسي",null,null,null,null,null,null,null,null,null,null,null,null,null,null,null,null,null,null,null,null,null,null,null,{"$f":"F!$B$399","v":70},22,20,20,"",20,25,"",30,137,137,137]
[null,null,null,null,null,null,null,null,"بسم الله الرحمن الرحيم",null,null,null,null,null,null,null,null,null,null,null,null,null,null,null,null,null,null,null,"الخامس أساسي",null,null,null,null,null,null,null,null,null,null,null,null,null,null,null,null,null,null,null,null,null,null,null,{"$f":"F!$B$598","v":90},49,49,43,"",40,40,"",39,260,260,260]
[null,null,"الجمهورية اليمنية",null,null,null,null,null,null,null,null,null,null,null,null,"مدرسة :",null,"بني بعيث الأساسية الثانوية",null,null,null,null,null,null,null,null,null,null,"السادس أساسي",null,null,null,null,null,null,null,null,null,null,null,null,null,null,null,null,null,null,null,null,null,null,null,{"$f":"F!$B$599","v":105},33,34,30,"",36,40,"",41,214,214,214]
[null,null,"  وزارة التربية والتعليم",null,null,null,null,null,null,null,null,null,null,null,null,"الصف :",null,{"$f":"$Y$1","v":"الأول أساسي"},null,null,null,null,null,null,null,"رقم الكشف",null,null,"السابع أساسي",null,null,null,null,null,null,null,null,null,null,null,null,null,null,null,null,null,null,null,null,null,null,null,{"$f":"F!$B$798","v":125},30,31,30,"",32,34,"",35,192,192,192]
[null,"مكتب التربية والتعليم بمحافظة  ذمار",null,null,null,null,null,null,null,null,null,null,null,null,null,"الشعبة :",null,"واحدة",null,null,null,null,null,null,null,null,null,null,"الثامن أساسي",null,null,null,null,null,null,null,null,null,null,null,null,null,null,null,null,null,null,null,null,null,null,null,{"$f":"F!$B$799","v":140},27,28,29,"",27,33,"",35,179,179,179]
[null,"إدارة التربية والتعليم بمديرية عتمة ",null,null,null,null,null,null,null,null,null,null,null,null,null,"الفترة :",null,"صباحية",null,null,null,null,null,null,null,"رقم الصف",null,null,null,null,null,null,null,null,null,null,null,null,null,null,null,null,null,null,null,null,null,null,null,null,null,null,{"$f":"F!$B$998","v":160},28,29,28,"",27,32,"",35,179,179,179]
[null,null,null,null,null,null,null,null,null,null,null,null,null,null,null,null,null,"رقم الكشف  :",null,")",{"$f":"IF(C15=\"\",\"\",IF(B15=1,1,IF(B15=31,2,IF(B15=61,3,IF(B15=91,4,IF(B15=121,5,IF(B15=151,6,IF(B15=181,7,\"\"))))))))","v":1},"(",null,null,null,null,null,null,null,null,null,null,null,null,null,null,null,null,null,null,null,null,null,null,null,null,null,null,null,null,null,null,{"$f":"F!$B$999","v":175},39,40,31,"",33,35,"",40,218,218,218]
[null,null,null,null,null,null,null,null,null,"كشف رصد درجات المحصلة الأولى والإمتحان النهائي للفصل الدراسي الأول للعام الدراسي/ 2019 - 2020 م",null,null,null,null,null,null,null,null,null,null,null,null,null,null,null,null,null,null,null,null,null,null,null,null,null,null,null,null,null,null,null,null,null,null,null,null,null,null,null,null,null,null,{"$f":"F!$B$1198","v":195},39,40,35,"",32,39,"",35,220,220,220]
[null,null,1,2,3,4,9,10,15,16,21,22,27,28,33,34,39,40,45,46,190,191,null,null,null,null,null,null,null,null,null,null,null,null,null,null,null,null,null,null,null,null,null,null,null,null,null,null,null,null,null,null,{"$f":"F!$B$1199","v":211},34,35,35,"",39,40,"",45,228,228,228]
[null,"م","رقم الجلوس","اسم الطالب رباعيا مع اللقب","القرآن الكريم",null,"التربية الإسلامية",null,"اللغة العربية",null,"اللغة الإنجليزية",null,"الرياضيات",null,"العلوم والصحة",null,"المواد الاجتماعية",null,"السلوك والمواظبة",null,"المجموع الكلي ","النتيجة ","ملاحظات",null,null,null,null,null,null,null,null,null,null,null,null,null,null,null,null,null,null,null,null,null,null,null,null,null,null,null,null,null,{"$f":"F!$B$1398","v":231},26,25,25,"",26,40,"",41,183,183,183]
[null,null,null,null,"محصلة","إمتحان","محصلة","إمتحان","محصلة","إمتحان","محصلة","إمتحان","محصلة","إمتحان","محصلة","إمتحان","محصلة","إمتحان","محصلة","إمتحان",null,null,null,null,null,null,null,null,null,null,null,null,null,null,null,null,null,null,null,null,null,null,null,null,null,null,null,null,null,null,null,null,{"$f":"F!$B$1399","v":246},35,36,32,"",34,40,"",41,218,218,218]
[null,{"$f":"IF($X15=\"\",\"\",$X15)","v":1},{"$f":"IF($X15=\"\",\"\",INDEX(OFFSET(F!$A$3:$A$201,200*($U$1-1),C$12),MATCH($B15,OFFSET(F!$A$3:$A$201,200*($U$1-1),0),0)))","v":1},{"$f":"IF($X15=\"\",\"\",INDEX(OFFSET(F!$A$3:$A$201,200*($U$1-1),D$12),MATCH($B15,OFFSET(F!$A$3:$A$201,200*($U$1-1),0),0)))","v":"صالح1"},{"$f":"IF($X15=\"\",\"\",INDEX(OFFSET(F!$A$3:$A$201,200*($U$1-1),E$12),MATCH($B15,OFFSET(F!$A$3:$A$201,200*($U$1-1),0),0)))","v":18},{"$f":"IF($X15=\"\",\"\",INDEX(OFFSET(F!$A$3:$A$201,200*($U$1-1),F$12),MATCH($B15,OFFSET(F!$A$3:$A$201,200*($U$1-1),0),0)))","v":30},{"$f":"IF($X15=\"\",\"\",INDEX(OFFSET(F!$A$3:$A$201,200*($U$1-1),G$12),MATCH($B15,OFFSET(F!$A$3:$A$201,200*($U$1-1),0),0)))","v":18},{"$f":"IF($X15=\"\",\"\",INDEX(OFFSET(F!$A$3:$A$201,200*($U$1-1),H$12),MATCH($B15,OFFSET(F!$A$3:$A$201,200*($U$1-1),0),0)))","v":30},{"$f":"IF($X15=\"\",\"\",INDEX(OFFSET(F!$A$3:$A$201,200*($U$1-1),I$12),MATCH($B15,OFFSET(F!$A$3:$A$201,200*($U$1-1),0),0)))","v":19},{"$f":"IF($X15=\"\",\"\",INDEX(OFFSET(F!$A$3:$A$201,200*($U$1-1),J$12),MATCH($B15,OFFSET(F!$A$3:$A$201,200*($U$1-1),0),0)))","v":29},{"$f":"IF($X15=\"\",\"\",IF(OR($Y$1=$AC$7,$Y$1=$AC$8),INDEX(OFFSET(F!$A$3:$A$201,200*($U$1-1),K$12),MATCH($B15,OFFSET(F!$A$3:$A$201,200*($U$1-1),0),0)),\"\"))","v":""},{"$f":"IF($X15=\"\",\"\",IF(OR($Y$1=$AC$7,$Y$1=$AC$8),INDEX(OFFSET(F!$A$3:$A$201,200*($U$1-1),L$12),MATCH($B15,OFFSET(F!$A$3:$A$201,200*($U$1-1),0),0)),\"\"))","v":""},{"$f":"IF($X15=\"\",\"\",INDEX(OFFSET(F!$A$3:$A$201,200*($U$1-1),M$12),MATCH($B15,OFFSET(F!$A$3:$A$201,200*($U$1-1),0),0)))","v":18},{"$f":"IF($X15=\"\",\"\",INDEX(OFFSET(F!$A$3:$A$201,200*($U$1-1),N$12),MATCH($B15,OFFSET(F!$A$3:$A$201,200*($U$1-1),0),0)))","v":30},{"$f":"IF($X15=\"\",\"\",INDEX(OFFSET(F!$A$3:$A$201,200*($U$1-1),O$12),MATCH($B15,OFFSET(F!$A$3:$A$201,200*($U$1-1),0),0)))","v":20},{"$f":"IF($X15=\"\",\"\",INDEX(OFFSET(F!$A$3:$A$201,200*($U$1-1),P$12),MATCH($B15,OFFSET(F!$A$3:$A$201,200*($U$1-1),0),0)))","v":28},{"$f":"IF(OR($X15=\"\",$Y$1=$AC$1,$Y$1=$AC$2),\"\",INDEX(OFFSET(F!$A$3:$A$201,200*($U$1-1),Q$12),MATCH($B15,OFFSET(F!$A$3:$A$201,200*($U$1-1),0),0)))","v":""},{"$f":"IF(OR($X15=\"\",$Y$1=$AC$1,$Y$1=$AC$2),\"\",INDEX(OFFSET(F!$A$3:$A$201,200*($U$1-1),R$12),MATCH($B15,OFFSET(F!$A$3:$A$201,200*($U$1-1),0),0)))","v":""},{"$f":"IF($X15=\"\",\"\",INDEX(OFFSET(F!$A$3:$A$201,200*($U$1-1),S$12),MATCH($B15,OFFSET(F!$A$3:$A$201,200*($U$1-1),0),0)))","v":20},{"$f":"IF($X15=\"\",\"\",INDEX(OFFSET(F!$A$3:$A$201,200*($U$1-1),T$12),MATCH($B15,OFFSET(F!$A$3:$A$201,200*($U$1-1),0),0)))","v":25},{"$f":"IF($X15=\"\",\"\",INDEX(OFFSET(F!$A$3:$A$201,200*($U$1-1),U$12),MATCH($B15,OFFSET(F!$A$3:$A$201,200*($U$1-1),0),0)))","v":285},{"$f":"IF($X15=\"\",\"\",INDEX(OFFSET(F!$A$3:$A$201,200*($U$1-1),V$12),MATCH($B15,OFFSET(F!$A$3:$A$201,200*($U$1-1),0),0)))","v":"ناجح"},null,{"$f":"IF($U$1=\"\",\"\",30*($V$1-1)+1)","v":1},null,null,null,null,null,null,null,null,null,null,null,null,null,null,null,null,null,null,null,null,null,null,null,null,null,null,null,null,{"$f":"F!$B$1598","v":266},35,36,32,"",34,35,"",45,217,217,217]
[null,{"$f":"IF($X16=\"\",\"\",$X16)","v":2},{"$f":"IF($X16=\"\",\"\",INDEX(OFFSET(F!$A$3:$A$201,200*($U$1-1),C$12),MATCH($B16,OFFSET(F!$A$3:$A$201,200*($U$1-1),0),0)))","v":2},{"$f":"IF($X16=\"\",\"\",INDEX(OFFSET(F!$A$3:$A$201,200*($U$1-1),D$12),MATCH($B16,OFFSET(F!$A$3:$A$201,200*($U$1-1),0),0)))","v":"صالح2"},{"$f":"IF($X16=\"\",\"\",INDEX(OFFSET(F!$A$3:$A$201,200*($U$1-1),E$12),MATCH($B16,OFFSET(F!$A$3:$A$201,200*($U$1-1),0),0)))","v":12},{"$f":"IF($X16=\"\",\"\",INDEX(OFFSET(F!$A$3:$A$201,200*($U$1-1),F$12),MATCH($B16,OFFSET(F!$A$3:$A$201,200*($U$1-1),0),0)))","v":15},{"$f":"IF($X16=\"\",\"\",INDEX(OFFSET(F!$A$3:$A$201,200*($U$1-1),G$12),MATCH($B16,OFFSET(F!$A$3:$A$201,200*($U$1-1),0),0)))","v":13},{"$f":"IF($X16=\"\",\"\",INDEX(OFFSET(F!$A$3:$A$201,200*($U$1-1),H$12),MATCH($B16,OFFSET(F!$A$3:$A$201,200*($U$1-1),0),0)))","v":15},{"$f":"IF($X16=\"\",\"\",INDEX(OFFSET(F!$A$3:$A$201,200*($U$1-1),I$12),MATCH($B16,OFFSET(F!$A$3:$A$201,200*($U$1-1),0),0)))","v":13},{"$f":"IF($X16=\"\",\"\",INDEX(OFFSET(F!$A$3:$A$201,200*($U$1-1),J$12),MATCH($B16,OFFSET(F!$A$3:$A$201,200*($U$1-1),0),0)))","v":17},{"$f":"IF($X16=\"\",\"\",IF(OR($Y$1=$AC$7,$Y$1=$AC$8),INDEX(OFFSET(F!$A$3:$A$201,200*($U$1-1),K$12),MATCH($B16,OFFSET(F!$A$3:$A$201,200*($U$1-1),0),0)),\"\"))","v":""},{"$f":"IF($X16=\"\",\"\",IF(OR($Y$1=$AC$7,$Y$1=$AC$8),INDEX(OFFSET(F!$A$3:$A$201,200*($U$1-1),L$12),MATCH($B16,OFFSET(F!$A$3:$A$201,200*($U$1-1),0),0)),\"\"))","v":""},{"$f":"IF($X16=\"\",\"\",INDEX(OFFSET(F!$A$3:$A$201,200*($U$1-1),M$12),MATCH($B16,OFFSET(F!$A$3:$A$201,200*($U$1-1),0),0)))","v":14},{"$f":"IF($X16=\"\",\"\",INDEX(OFFSET(F!$A$3:$A$201,200*($U$1-1),N$12),MATCH($B16,OFFSET(F!$A$3:$A$201,200*($U$1-1),0),0)))","v":16},{"$f":"IF($X16=\"\",\"\",INDEX(OFFSET(F!$A$3:$A$201,200*($U$1-1),O$12),MATCH($B16,OFFSET(F!$A$3:$A$201,200*($U$1-1),0),0)))","v":14},{"$f":"IF($X16=\"\",\"\",INDEX(OFFSET(F!$A$3:$A$201,200*($U$1-1),P$12),MATCH($B16,OFFSET(F!$A$3:$A$201,200*($U$1-1),0),0)))","v":20},{"$f":"IF(OR($X16=\"\",$Y$1=$AC$1,$Y$1=$AC$2),\"\",INDEX(OFFSET(F!$A$3:$A$201,200*($U$1-1),Q$12),MATCH($B16,OFFSET(F!$A$3:$A$201,200*($U$1-1),0),0)))","v":""},{"$f":"IF(OR($X16=\"\",$Y$1=$AC$1,$Y$1=$AC$2),\"\",INDEX(OFFSET(F!$A$3:$A$201,200*($U$1-1),R$12),MATCH($B16,OFFSET(F!$A$3:$A$201,200*($U$1-1),0),0)))","v":""},{"$f":"IF($X16=\"\",\"\",INDEX(OFFSET(F!$A$3:$A$201,200*($U$1-1),S$12),MATCH($B16,OFFSET(F!$A$3:$A$201,200*($U$1-1),0),0)))","v":15},{"$f":"IF($X16=\"\",\"\",INDEX(OFFSET(F!$A$3:$A$201,200*($U$1-1),T$12),MATCH($B16,OFFSET(F!$A$3:$A$201,200*($U$1-1),0),0)))","v":20},{"$f":"IF($X16=\"\",\"\",INDEX(OFFSET(F!$A$3:$A$201,200*($U$1-1),U$12),MATCH($B16,OFFSET(F!$A$3:$A$201,200*($U$1-1),0),0)))","v":184},{"$f":"IF($X16=\"\",\"\",INDEX(OFFSET(F!$A$3:$A$201,200*($U$1-1),V$12),MATCH($B16,OFFSET(F!$A$3:$A$201,200*($U$1-1),0),0)))","v":"ناجح"},null,{"$f":"IF($X15=\"\",\"\",IF($X15+1>$Z$1,\"\",$X15+1))","v":2},null,null,null,null,null,null,null,null,null,null,null,null,null,null,null,null,null,null,null,null,null,null,null,null,null,null,null,null,{"$f":"F!$B$1599","v":281},42,43,40,"",40,35,"",44,244,244,244]
[null,3,{"$f":"IF($X17=\"\",\"\",INDEX(OFFSET(F!$A$3:$A$201,200*($U$1-1),C$12),MATCH($B17,OFFSET(F!$A$3:$A$201,200*($U$1-1),0),0)))","v":3},{"$f":"IF($X17=\"\",\"\",INDEX(OFFSET(F!$A$3:$A$201,200*($U$1-1),D$12),MATCH($B17,OFFSET(F!$A$3:$A$201,200*($U$1-1),0),0)))","v":"صالح3"},{"$f":"IF($X17=\"\",\"\",INDEX(OFFSET(F!$A$3:$A$201,200*($U$1-1),E$12),MATCH($B17,OFFSET(F!$A$3:$A$201,200*($U$1-1),0),0)))","v":12},{"$f":"IF($X17=\"\",\"\",INDEX(OFFSET(F!$A$3:$A$201,200*($U$1-1),F$12),MATCH($B17,OFFSET(F!$A$3:$A$201,200*($U$1-1),0),0)))","v":10},{"$f":"IF($X17=\"\",\"\",INDEX(OFFSET(F!$A$3:$A$201,200*($U$1-1),G$12),MATCH($B17,OFFSET(F!$A$3:$A$201,200*($U$1-1),0),0)))","v":10},{"$f":"IF($X17=\"\",\"\",INDEX(OFFSET(F!$A$3:$A$201,200*($U$1-1),H$12),MATCH($B17,OFFSET(F!$A$3:$A$201,200*($U$1-1),0),0)))","v":10},{"$f":"IF($X17=\"\",\"\",INDEX(OFFSET(F!$A$3:$A$201,200*($U$1-1),I$12),MATCH($B17,OFFSET(F!$A$3:$A$201,200*($U$1-1),0),0)))","v":10},{"$f":"IF($X17=\"\",\"\",INDEX(OFFSET(F!$A$3:$A$201,200*($U$1-1),J$12),MATCH($B17,OFFSET(F!$A$3:$A$201,200*($U$1-1),0),0)))","v":10},{"$f":"IF($X17=\"\",\"\",IF(OR($Y$1=$AC$7,$Y$1=$AC$8),INDEX(OFFSET(F!$A$3:$A$201,200*($U$1-1),K$12),MATCH($B17,OFFSET(F!$A$3:$A$201,200*($U$1-1),0),0)),\"\"))","v":""},{"$f":"IF($X17=\"\",\"\",IF(OR($Y$1=$AC$7,$Y$1=$AC$8),INDEX(OFFSET(F!$A$3:$A$201,200*($U$1-1),L$12),MATCH($B17,OFFSET(F!$A$3:$A$201,200*($U$1-1),0),0)),\"\"))","v":""},{"$f":"IF($X17=\"\",\"\",INDEX(OFFSET(F!$A$3:$A$201,200*($U$1-1),M$12),MATCH($B17,OFFSET(F!$A$3:$A$201,200*($U$1-1),0),0)))","v":10},{"$f":"IF($X17=\"\",\"\",INDEX(OFFSET(F!$A$3:$A$201,200*($U$1-1),N$12),MATCH($B17,OFFSET(F!$A$3:$A$201,200*($U$1-1),0),0)))","v":10},{"$f":"IF($X17=\"\",\"\",INDEX(OFFSET(F!$A$3:$A$201,200*($U$1-1),O$12),MATCH($B17,OFFSET(F!$A$3:$A$201,200*($U$1-1),0),0)))","v":10},{"$f":"IF($X17=\"\",\"\",INDEX(OFFSET(F!$A$3:$A$201,200*($U$1-1),P$12),MATCH($B17,OFFSET(F!$A$3:$A$201,200*($U$1-1),0),0)))","v":15},{"$f":"IF(OR($X17=\"\",$Y$1=$AC$1,$Y$1=$AC$2),\"\",INDEX(OFFSET(F!$A$3:$A$201,200*($U$1-1),Q$12),MATCH($B17,OFFSET(F!$A$3:$A$201,200*($U$1-1),0),0)))","v":""},{"$f":"IF(OR($X17=\"\",$Y$1=$AC$1,$Y$1=$AC$2),\"\",INDEX(OFFSET(F!$A$3:$A$201,200*($U$1-1),R$12),MATCH($B17,OFFSET(F!$A$3:$A$201,200*($U$1-1),0),0)))","v":""},{"$f":"IF($X17=\"\",\"\",INDEX(OFFSET(F!$A$3:$A$201,200*($U$1-1),S$12),MATCH($B17,OFFSET(F!$A$3:$A$201,200*($U$1-1),0),0)))","v":13},{"$f":"IF($X17=\"\",\"\",INDEX(OFFSET(F!$A$3:$A$201,200*($U$1-1),T$12),MATCH($B17,OFFSET(F!$A$3:$A$201,200*($U$1-1),0),0)))","v":17},{"$f":"IF($X17=\"\",\"\",INDEX(OFFSET(F!$A$3:$A$201,200*($U$1-1),U$12),MATCH($B17,OFFSET(F!$A$3:$A$201,200*($U$1-1),0),0)))","v":"-"},{"$f":"IF($X17=\"\",\"\",INDEX(OFFSET(F!$A$3:$A$201,200*($U$1-1),V$12),MATCH($B17,OFFSET(F!$A$3:$A$201,200*($U$1-1),0),0)))","v":"راسب"},null,{"$f":"IF($X16=\"\",\"\",IF($X16+1>$Z$1,\"\",$X16+1))","v":3},null,null,null,null,null,null,null,null,null,null,null,null,null,null,null,null,null,null,null,null,null,null,null,null,null,null,null,null,null,27,28,27,"",30,34,"",35,181,181,181]
[null,4,{"$f":"IF($X18=\"\",\"\",INDEX(OFFSET(F!$A$3:$A$201,200*($U$1-1),C$12),MATCH($B18,OFFSET(F!$A$3:$A$201,200*($U$1-1),0),0)))","v":4},{"$f":"IF($X18=\"\",\"\",INDEX(OFFSET(F!$A$3:$A$201,200*($U$1-1),D$12),MATCH($B18,OFFSET(F!$A$3:$A$201,200*($U$1-1),0),0)))","v":"صالح4"},{"$f":"IF($X18=\"\",\"\",INDEX(OFFSET(F!$A$3:$A$201,200*($U$1-1),E$12),MATCH($B18,OFFSET(F!$A$3:$A$201,200*($U$1-1),0),0)))","v":19},{"$f":"IF($X18=\"\",\"\",INDEX(OFFSET(F!$A$3:$A$201,200*($U$1-1),F$12),MATCH($B18,OFFSET(F!$A$3:$A$201,200*($U$1-1),0),0)))","v":30},{"$f":"IF($X18=\"\",\"\",INDEX(OFFSET(F!$A$3:$A$201,200*($U$1-1),G$12),MATCH($B18,OFFSET(F!$A$3:$A$201,200*($U$1-1),0),0)))","v":19},{"$f":"IF($X18=\"\",\"\",INDEX(OFFSET(F!$A$3:$A$201,200*($U$1-1),H$12),MATCH($B18,OFFSET(F!$A$3:$A$201,200*($U$1-1),0),0)))","v":30},{"$f":"IF($X18=\"\",\"\",INDEX(OFFSET(F!$A$3:$A$201,200*($U$1-1),I$12),MATCH($B18,OFFSET(F!$A$3:$A$201,200*($U$1-1),0),0)))","v":18},{"$f":"IF($X18=\"\",\"\",INDEX(OFFSET(F!$A$3:$A$201,200*($U$1-1),J$12),MATCH($B18,OFFSET(F!$A$3:$A$201,200*($U$1-1),0),0)))","v":25},{"$f":"IF($X18=\"\",\"\",IF(OR($Y$1=$AC$7,$Y$1=$AC$8),INDEX(OFFSET(F!$A$3:$A$201,200*($U$1-1),K$12),MATCH($B18,OFFSET(F!$A$3:$A$201,200*($U$1-1),0),0)),\"\"))","v":""},{"$f":"IF($X18=\"\",\"\",IF(OR($Y$1=$AC$7,$Y$1=$AC$8),INDEX(OFFSET(F!$A$3:$A$201,200*($U$1-1),L$12),MATCH($B18,OFFSET(F!$A$3:$A$201,200*($U$1-1),0),0)),\"\"))","v":""},{"$f":"IF($X18=\"\",\"\",INDEX(OFFSET(F!$A$3:$A$201,200*($U$1-1),M$12),MATCH($B18,OFFSET(F!$A$3:$A$201,200*($U$1-1),0),0)))","v":15},{"$f":"IF($X18=\"\",\"\",INDEX(OFFSET(F!$A$3:$A$201,200*($U$1-1),N$12),MATCH($B18,OFFSET(F!$A$3:$A$201,200*($U$1-1),0),0)))","v":25},{"$f":"IF($X18=\"\",\"\",INDEX(OFFSET(F!$A$3:$A$201,200*($U$1-1),O$12),MATCH($B18,OFFSET(F!$A$3:$A$201,200*($U$1-1),0),0)))","v":18},{"$f":"IF($X18=\"\",\"\",INDEX(OFFSET(F!$A$3:$A$201,200*($U$1-1),P$12),MATCH($B18,OFFSET(F!$A$3:$A$201,200*($U$1-1),0),0)))","v":22},{"$f":"IF(OR($X18=\"\",$Y$1=$AC$1,$Y$1=$AC$2),\"\",INDEX(OFFSET(F!$A$3:$A$201,200*($U$1-1),Q$12),MATCH($B18,OFFSET(F!$A$3:$A$201,200*($U$1-1),0),0)))","v":""},{"$f":"IF(OR($X18=\"\",$Y$1=$AC$1,$Y$1=$AC$2),\"\",INDEX(OFFSET(F!$A$3:$A$201,200*($U$1-1),R$12),MATCH($B18,OFFSET(F!$A$3:$A$201,200*($U$1-1),0),0)))","v":""},{"$f":"IF($X18=\"\",\"\",INDEX(OFFSET(F!$A$3:$A$201,200*($U$1-1),S$12),MATCH($B18,OFFSET(F!$A$3:$A$201,200*($U$1-1),0),0)))","v":15},{"$f":"IF($X18=\"\",\"\",INDEX(OFFSET(F!$A$3:$A$201,200*($U$1-1),T$12),MATCH($B18,OFFSET(F!$A$3:$A$201,200*($U$1-1),0),0)))","v":24},{"$f":"IF($X18=\"\",\"\",INDEX(OFFSET(F!$A$3:$A$201,200*($U$1-1),U$12),MATCH($B18,OFFSET(F!$A$3:$A$201,200*($U$1-1),0),0)))","v":260},{"$f":"IF($X18=\"\",\"\",INDEX(OFFSET(F!$A$3:$A$201,200*($U$1-1),V$12),MATCH($B18,OFFSET(F!$A$3:$A$201,200*($U$1-1),0),0)))","v":"ناجح"},null,4,null,null,null,null,"واحدة",null,null,null,null,null,null,null,null,null,null,null,null,null,null,null,null,null,null,null,null,null,null,null,null,49,42,40,"",40,48,"",50,269,269,269]
[null,5,{"$f":"IF($X19=\"\",\"\",INDEX(OFFSET(F!$A$3:$A$201,200*($U$1-1),C$12),MATCH($B19,OFFSET(F!$A$3:$A$201,200*($U$1-1),0),0)))","v":5},{"$f":"IF($X19=\"\",\"\",INDEX(OFFSET(F!$A$3:$A$201,200*($U$1-1),D$12),MATCH($B19,OFFSET(F!$A$3:$A$201,200*($U$1-1),0),0)))","v":"صالح5"},{"$f":"IF($X19=\"\",\"\",INDEX(OFFSET(F!$A$3:$A$201,200*($U$1-1),E$12),MATCH($B19,OFFSET(F!$A$3:$A$201,200*($U$1-1),0),0)))","v":13},{"$f":"IF($X19=\"\",\"\",INDEX(OFFSET(F!$A$3:$A$201,200*($U$1-1),F$12),MATCH($B19,OFFSET(F!$A$3:$A$201,200*($U$1-1),0),0)))","v":20},{"$f":"IF($X19=\"\",\"\",INDEX(OFFSET(F!$A$3:$A$201,200*($U$1-1),G$12),MATCH($B19,OFFSET(F!$A$3:$A$201,200*($U$1-1),0),0)))","v":14},{"$f":"IF($X19=\"\",\"\",INDEX(OFFSET(F!$A$3:$A$201,200*($U$1-1),H$12),MATCH($B19,OFFSET(F!$A$3:$A$201,200*($U$1-1),0),0)))","v":20},{"$f":"IF($X19=\"\",\"\",INDEX(OFFSET(F!$A$3:$A$201,200*($U$1-1),I$12),MATCH($B19,OFFSET(F!$A$3:$A$201,200*($U$1-1),0),0)))","v":13},{"$f":"IF($X19=\"\",\"\",INDEX(OFFSET(F!$A$3:$A$201,200*($U$1-1),J$12),MATCH($B19,OFFSET(F!$A$3:$A$201,200*($U$1-1),0),0)))","v":17},{"$f":"IF($X19=\"\",\"\",IF(OR($Y$1=$AC$7,$Y$1=$AC$8),INDEX(OFFSET(F!$A$3:$A$201,200*($U$1-1),K$12),MATCH($B19,OFFSET(F!$A$3:$A$201,200*($U$1-1),0),0)),\"\"))","v":""},{"$f":"IF($X19=\"\",\"\",IF(OR($Y$1=$AC$7,$Y$1=$AC$8),INDEX(OFFSET(F!$A$3:$A$201,200*($U$1-1),L$12),MATCH($B19,OFFSET(F!$A$3:$A$201,200*($U$1-1),0),0)),\"\"))","v":""},{"$f":"IF($X19=\"\",\"\",INDEX(OFFSET(F!$A$3:$A$201,200*($U$1-1),M$12),MATCH($B19,OFFSET(F!$A$3:$A$201,200*($U$1-1),0),0)))","v":16},{"$f":"IF($X19=\"\",\"\",INDEX(OFFSET(F!$A$3:$A$201,200*($U$1-1),N$12),MATCH($B19,OFFSET(F!$A$3:$A$201,200*($U$1-1),0),0)))","v":20},{"$f":"IF($X19=\"\",\"\",INDEX(OFFSET(F!$A$3:$A$201,200*($U$1-1),O$12),MATCH($B19,OFFSET(F!$A$3:$A$201,200*($U$1-1),0),0)))","v":15},{"$f":"IF($X19=\"\",\"\",INDEX(OFFSET(F!$A$3:$A$201,200*($U$1-1),P$12),MATCH($B19,OFFSET(F!$A$3:$A$201,200*($U$1-1),0),0)))","v":25},{"$f":"IF(OR($X19=\"\",$Y$1=$AC$1,$Y$1=$AC$2),\"\",INDEX(OFFSET(F!$A$3:$A$201,200*($U$1-1),Q$12),MATCH($B19,OFFSET(F!$A$3:$A$201,200*($U$1-1),0),0)))","v":""},{"$f":"IF(OR($X19=\"\",$Y$1=$AC$1,$Y$1=$AC$2),\"\",INDEX(OFFSET(F!$A$3:$A$201,200*($U$1-1),R$12),MATCH($B19,OFFSET(F!$A$3:$A$201,200*($U$1-1),0),0)))","v":""},{"$f":"IF($X19=\"\",\"\",INDEX(OFFSET(F!$A$3:$A$201,200*($U$1-1),S$12),MATCH($B19,OFFSET(F!$A$3:$A$201,200*($U$1-1),0),0)))","v":16},{"$f":"IF($X19=\"\",\"\",INDEX(OFFSET(F!$A$3:$A$201,200*($U$1-1),T$12),MATCH($B19,OFFSET(F!$A$3:$A$201,200*($U$1-1),0),0)))","v":25},{"$f":"IF($X19=\"\",\"\",INDEX(OFFSET(F!$A$3:$A$201,200*($U$1-1),U$12),MATCH($B19,OFFSET(F!$A$3:$A$201,200*($U$1-1),0),0)))","v":214},{"$f":"IF($X19=\"\",\"\",INDEX(OFFSET(F!$A$3:$A$201,200*($U$1-1),V$12),MATCH($B19,OFFSET(F!$A$3:$A$201,200*($U$1-1),0),0)))","v":"ناجح"},null,5,null,null,null,null,"صباحية",null,null,null,null,null,null,null,null,null,null,null,null,null,null,null,null,null,null,null,null,null,null,null,null,49,43,40,"",40,40,"",45,257,257,257]
[null,6,{"$f":"IF($X20=\"\",\"\",INDEX(OFFSET(F!$A$3:$A$201,200*($U$1-1),C$12),MATCH($B20,OFFSET(F!$A$3:$A$201,200*($U$1-1),0),0)))","v":6},{"$f":"IF($X20=\"\",\"\",INDEX(OFFSET(F!$A$3:$A$201,200*($U$1-1),D$12),MATCH($B20,OFFSET(F!$A$3:$A$201,200*($U$1-1),0),0)))","v":"صالح6"},{"$f":"IF($X20=\"\",\"\",INDEX(OFFSET(F!$A$3:$A$201,200*($U$1-1),E$12),MATCH($B20,OFFSET(F!$A$3:$A$201,200*($U$1-1),0),0)))","v":12},{"$f":"IF($X20=\"\",\"\",INDEX(OFFSET(F!$A$3:$A$201,200*($U$1-1),F$12),MATCH($B20,OFFSET(F!$A$3:$A$201,200*($U$1-1),0),0)))","v":18},{"$f":"IF($X20=\"\",\"\",INDEX(OFFSET(F!$A$3:$A$201,200*($U$1-1),G$12),MATCH($B20,OFFSET(F!$A$3:$A$201,200*($U$1-1),0),0)))","v":13},{"$f":"IF($X20=\"\",\"\",INDEX(OFFSET(F!$A$3:$A$201,200*($U$1-1),H$12),MATCH($B20,OFFSET(F!$A$3:$A$201,200*($U$1-1),0),0)))","v":18},{"$f":"IF($X20=\"\",\"\",INDEX(OFFSET(F!$A$3:$A$201,200*($U$1-1),I$12),MATCH($B20,OFFSET(F!$A$3:$A$201,200*($U$1-1),0),0)))","v":13},{"$f":"IF($X20=\"\",\"\",INDEX(OFFSET(F!$A$3:$A$201,200*($U$1-1),J$12),MATCH($B20,OFFSET(F!$A$3:$A$201,200*($U$1-1),0),0)))","v":17},{"$f":"IF($X20=\"\",\"\",IF(OR($Y$1=$AC$7,$Y$1=$AC$8),INDEX(OFFSET(F!$A$3:$A$201,200*($U$1-1),K$12),MATCH($B20,OFFSET(F!$A$3:$A$201,200*($U$1-1),0),0)),\"\"))","v":""},{"$f":"IF($X20=\"\",\"\",IF(OR($Y$1=$AC$7,$Y$1=$AC$8),INDEX(OFFSET(F!$A$3:$A$201,200*($U$1-1),L$12),MATCH($B20,OFFSET(F!$A$3:$A$201,200*($U$1-1),0),0)),\"\"))","v":""},{"$f":"IF($X20=\"\",\"\",INDEX(OFFSET(F!$A$3:$A$201,200*($U$1-1),M$12),MATCH($B20,OFFSET(F!$A$3:$A$201,200*($U$1-1),0),0)))","v":14},{"$f":"IF($X20=\"\",\"\",INDEX(OFFSET(F!$A$3:$A$201,200*($U$1-1),N$12),MATCH($B20,OFFSET(F!$A$3:$A$201,200*($U$1-1),0),0)))","v":18},{"$f":"IF($X20=\"\",\"\",INDEX(OFFSET(F!$A$3:$A$201,200*($U$1-1),O$12),MATCH($B20,OFFSET(F!$A$3:$A$201,200*($U$1-1),0),0)))","v":14},{"$f":"IF($X20=\"\",\"\",INDEX(OFFSET(F!$A$3:$A$201,200*($U$1-1),P$12),MATCH($B20,OFFSET(F!$A$3:$A$201,200*($U$1-1),0),0)))","v":20},{"$f":"IF(OR($X20=\"\",$Y$1=$AC$1,$Y$1=$AC$2),\"\",INDEX(OFFSET(F!$A$3:$A$201,200*($U$1-1),Q$12),MATCH($B20,OFFSET(F!$A$3:$A$201,200*($U$1-1),0),0)))","v":""},{"$f":"IF(OR($X20=\"\",$Y$1=$AC$1,$Y$1=$AC$2),\"\",INDEX(OFFSET(F!$A$3:$A$201,200*($U$1-1),R$12),MATCH($B20,OFFSET(F!$A$3:$A$201,200*($U$1-1),0),0)))","v":""},{"$f":"IF($X20=\"\",\"\",INDEX(OFFSET(F!$A$3:$A$201,200*($U$1-1),S$12),MATCH($B20,OFFSET(F!$A$3:$A$201,200*($U$1-1),0),0)))","v":15},{"$f":"IF($X20=\"\",\"\",INDEX(OFFSET(F!$A$3:$A$201,200*($U$1-1),T$12),MATCH($B20,OFFSET(F!$A$3:$A$201,200*($U$1-1),0),0)))","v":20},{"$f":"IF($X20=\"\",\"\",INDEX(OFFSET(F!$A$3:$A$201,200*($U$1-1),U$12),MATCH($B20,OFFSET(F!$A$3:$A$201,200*($U$1-1),0),0)))","v":192},{"$f":"IF($X20=\"\",\"\",INDEX(OFFSET(F!$A$3:$A$201,200*($U$1-1),V$12),MATCH($B20,OFFSET(F!$A$3:$A$201,200*($U$1-1),0),0)))","v":"ناجح"},null,6,null,null,null,null,null,null,null,null,null,null,null,null,null,null,null,null,null,null,null,null,null,null,null,null,null,null,null,null,null,34,35,32,"",34,35,"",40,210,210,210]
[null,7,{"$f":"IF($X21=\"\",\"\",INDEX(OFFSET(F!$A$3:$A$201,200*($U$1-1),C$12),MATCH($B21,OFFSET(F!$A$3:$A$201,200*($U$1-1),0),0)))","v":7},{"$f":"IF($X21=\"\",\"\",INDEX(OFFSET(F!$A$3:$A$201,200*($U$1-1),D$12),MATCH($B21,OFFSET(F!$A$3:$A$201,200*($U$1-1),0),0)))","v":"صالح7"},{"$f":"IF($X21=\"\",\"\",INDEX(OFFSET(F!$A$3:$A$201,200*($U$1-1),E$12),MATCH($B21,OFFSET(F!$A$3:$A$201,200*($U$1-1),0),0)))","v":12},{"$f":"IF($X21=\"\",\"\",INDEX(OFFSET(F!$A$3:$A$201,200*($U$1-1),F$12),MATCH($B21,OFFSET(F!$A$3:$A$201,200*($U$1-1),0),0)))","v":15},{"$f":"IF($X21=\"\",\"\",INDEX(OFFSET(F!$A$3:$A$201,200*($U$1-1),G$12),MATCH($B21,OFFSET(F!$A$3:$A$201,200*($U$1-1),0),0)))","v":13},{"$f":"IF($X21=\"\",\"\",INDEX(OFFSET(F!$A$3:$A$201,200*($U$1-1),H$12),MATCH($B21,OFFSET(F!$A$3:$A$201,200*($U$1-1),0),0)))","v":15},{"$f":"IF($X21=\"\",\"\",INDEX(OFFSET(F!$A$3:$A$201,200*($U$1-1),I$12),MATCH($B21,OFFSET(F!$A$3:$A$201,200*($U$1-1),0),0)))","v":13},{"$f":"IF($X21=\"\",\"\",INDEX(OFFSET(F!$A$3:$A$201,200*($U$1-1),J$12),MATCH($B21,OFFSET(F!$A$3:$A$201,200*($U$1-1),0),0)))","v":16},{"$f":"IF($X21=\"\",\"\",IF(OR($Y$1=$AC$7,$Y$1=$AC$8),INDEX(OFFSET(F!$A$3:$A$201,200*($U$1-1),K$12),MATCH($B21,OFFSET(F!$A$3:$A$201,200*($U$1-1),0),0)),\"\"))","v":""},{"$f":"IF($X21=\"\",\"\",IF(OR($Y$1=$AC$7,$Y$1=$AC$8),INDEX(OFFSET(F!$A$3:$A$201,200*($U$1-1),L$12),MATCH($B21,OFFSET(F!$A$3:$A$201,200*($U$1-1),0),0)),\"\"))","v":""},{"$f":"IF($X21=\"\",\"\",INDEX(OFFSET(F!$A$3:$A$201,200*($U$1-1),M$12),MATCH($B21,OFFSET(F!$A$3:$A$201,200*($U$1-1),0),0)))","v":12},{"$f":"IF($X21=\"\",\"\",INDEX(OFFSET(F!$A$3:$A$201,200*($U$1-1),N$12),MATCH($B21,OFFSET(F!$A$3:$A$201,200*($U$1-1),0),0)))","v":15},{"$f":"IF($X21=\"\",\"\",INDEX(OFFSET(F!$A$3:$A$201,200*($U$1-1),O$12),MATCH($B21,OFFSET(F!$A$3:$A$201,200*($U$1-1),0),0)))","v":13},{"$f":"IF($X21=\"\",\"\",INDEX(OFFSET(F!$A$3:$A$201,200*($U$1-1),P$12),MATCH($B21,OFFSET(F!$A$3:$A$201,200*($U$1-1),0),0)))","v":20},{"$f":"IF(OR($X21=\"\",$Y$1=$AC$1,$Y$1=$AC$2),\"\",INDEX(OFFSET(F!$A$3:$A$201,200*($U$1-1),Q$12),MATCH($B21,OFFSET(F!$A$3:$A$201,200*($U$1-1),0),0)))","v":""},{"$f":"IF(OR($X21=\"\",$Y$1=$AC$1,$Y$1=$AC$2),\"\",INDEX(OFFSET(F!$A$3:$A$201,200*($U$1-1),R$12),MATCH($B21,OFFSET(F!$A$3:$A$201,200*($U$1-1),0),0)))","v":""},{"$f":"IF($X21=\"\",\"\",INDEX(OFFSET(F!$A$3:$A$201,200*($U$1-1),S$12),MATCH($B21,OFFSET(F!$A$3:$A$201,200*($U$1-1),0),0)))","v":15},{"$f":"IF($X21=\"\",\"\",INDEX(OFFSET(F!$A$3:$A$201,200*($U$1-1),T$12),MATCH($B21,OFFSET(F!$A$3:$A$201,200*($U$1-1),0),0)))","v":20},{"$f":"IF($X21=\"\",\"\",INDEX(OFFSET(F!$A$3:$A$201,200*($U$1-1),U$12),MATCH($B21,OFFSET(F!$A$3:$A$201,200*($U$1-1),0),0)))","v":179},{"$f":"IF($X21=\"\",\"\",INDEX(OFFSET(F!$A$3:$A$201,200*($U$1-1),V$12),MATCH($B21,OFFSET(F!$A$3:$A$201,200*($U$1-1),0),0)))","v":"ناجح"},null,7,null,null,null,null,null,null,null,null,null,null,null,null,null,null,null,null,null,null,null,null,null,null,null,null,null,null,null,null,null,27,30,27,"",28,34,"",35,181,181,181]
[null,8,{"$f":"IF($X22=\"\",\"\",INDEX(OFFSET(F!$A$3:$A$201,200*($U$1-1),C$12),MATCH($B22,OFFSET(F!$A$3:$A$201,200*($U$1-1),0),0)))","v":8},{"$f":"IF($X22=\"\",\"\",INDEX(OFFSET(F!$A$3:$A$201,200*($U$1-1),D$12),MATCH($B22,OFFSET(F!$A$3:$A$201,200*($U$1-1),0),0)))","v":"صالح8"},{"$f":"IF($X22=\"\",\"\",INDEX(OFFSET(F!$A$3:$A$201,200*($U$1-1),E$12),MATCH($B22,OFFSET(F!$A$3:$A$201,200*($U$1-1),0),0)))","v":12},{"$f":"IF($X22=\"\",\"\",INDEX(OFFSET(F!$A$3:$A$201,200*($U$1-1),F$12),MATCH($B22,OFFSET(F!$A$3:$A$201,200*($U$1-1),0),0)))","v":16},{"$f":"IF($X22=\"\",\"\",INDEX(OFFSET(F!$A$3:$A$201,200*($U$1-1),G$12),MATCH($B22,OFFSET(F!$A$3:$A$201,200*($U$1-1),0),0)))","v":13},{"$f":"IF($X22=\"\",\"\",INDEX(OFFSET(F!$A$3:$A$201,200*($U$1-1),H$12),MATCH($B22,OFFSET(F!$A$3:$A$201,200*($U$1-1),0),0)))","v":16},{"$f":"IF($X22=\"\",\"\",INDEX(OFFSET(F!$A$3:$A$201,200*($U$1-1),I$12),MATCH($B22,OFFSET(F!$A$3:$A$201,200*($U$1-1),0),0)))","v":13},{"$f":"IF($X22=\"\",\"\",INDEX(OFFSET(F!$A$3:$A$201,200*($U$1-1),J$12),MATCH($B22,OFFSET(F!$A$3:$A$201,200*($U$1-1),0),0)))","v":15},{"$f":"IF($X22=\"\",\"\",IF(OR($Y$1=$AC$7,$Y$1=$AC$8),INDEX(OFFSET(F!$A$3:$A$201,200*($U$1-1),K$12),MATCH($B22,OFFSET(F!$A$3:$A$201,200*($U$1-1),0),0)),\"\"))","v":""},{"$f":"IF($X22=\"\",\"\",IF(OR($Y$1=$AC$7,$Y$1=$AC$8),INDEX(OFFSET(F!$A$3:$A$201,200*($U$1-1),L$12),MATCH($B22,OFFSET(F!$A$3:$A$201,200*($U$1-1),0),0)),\"\"))","v":""},{"$f":"IF($X22=\"\",\"\",INDEX(OFFSET(F!$A$3:$A$201,200*($U$1-1),M$12),MATCH($B22,OFFSET(F!$A$3:$A$201,200*($U$1-1),0),0)))","v":12},{"$f":"IF($X22=\"\",\"\",INDEX(OFFSET(F!$A$3:$A$201,200*($U$1-1),N$12),MATCH($B22,OFFSET(F!$A$3:$A$201,200*($U$1-1),0),0)))","v":15},{"$f":"IF($X22=\"\",\"\",INDEX(OFFSET(F!$A$3:$A$201,200*($U$1-1),O$12),MATCH($B22,OFFSET(F!$A$3:$A$201,200*($U$1-1),0),0)))","v":12},{"$f":"IF($X22=\"\",\"\",INDEX(OFFSET(F!$A$3:$A$201,200*($U$1-1),P$12),MATCH($B22,OFFSET(F!$A$3:$A$201,200*($U$1-1),0),0)))","v":20},{"$f":"IF(OR($X22=\"\",$Y$1=$AC$1,$Y$1=$AC$2),\"\",INDEX(OFFSET(F!$A$3:$A$201,200*($U$1-1),Q$12),MATCH($B22,OFFSET(F!$A$3:$A$201,200*($U$1-1),0),0)))","v":""},{"$f":"IF(OR($X22=\"\",$Y$1=$AC$1,$Y$1=$AC$2),\"\",INDEX(OFFSET(F!$A$3:$A$201,200*($U$1-1),R$12),MATCH($B22,OFFSET(F!$A$3:$A$201,200*($U$1-1),0),0)))","v":""},{"$f":"IF($X22=\"\",\"\",INDEX(OFFSET(F!$A$3:$A$201,200*($U$1-1),S$12),MATCH($B22,OFFSET(F!$A$3:$A$201,200*($U$1-1),0),0)))","v":14},{"$f":"IF($X22=\"\",\"\",INDEX(OFFSET(F!$A$3:$A$201,200*($U$1-1),T$12),MATCH($B22,OFFSET(F!$A$3:$A$201,200*($U$1-1),0),0)))","v":21},{"$f":"IF($X22=\"\",\"\",INDEX(OFFSET(F!$A$3:$A$201,200*($U$1-1),U$12),MATCH($B22,OFFSET(F!$A$3:$A$201,200*($U$1-1),0),0)))","v":179},{"$f":"IF($X22=\"\",\"\",INDEX(OFFSET(F!$A$3:$A$201,200*($U$1-1),V$12),MATCH($B22,OFFSET(F!$A$3:$A$201,200*($U$1-1),0),0)))","v":"ناجح"},null,8,null,null,null,null,null,null,null,null,null,null,null,null,null,null,null,null,null,null,null,null,null,null,null,null,null,null,null,null,null,50,50,50,"",45,48,"",50,293,293,293]
[null,9,{"$f":"IF($X23=\"\",\"\",INDEX(OFFSET(F!$A$3:$A$201,200*($U$1-1),C$12),MATCH($B23,OFFSET(F!$A$3:$A$201,200*($U$1-1),0),0)))","v":9},{"$f":"IF($X23=\"\",\"\",INDEX(OFFSET(F!$A$3:$A$201,200*($U$1-1),D$12),MATCH($B23,OFFSET(F!$A$3:$A$201,200*($U$1-1),0),0)))","v":"صالح9"},{"$f":"IF($X23=\"\",\"\",INDEX(OFFSET(F!$A$3:$A$201,200*($U$1-1),E$12),MATCH($B23,OFFSET(F!$A$3:$A$201,200*($U$1-1),0),0)))","v":14},{"$f":"IF($X23=\"\",\"\",INDEX(OFFSET(F!$A$3:$A$201,200*($U$1-1),F$12),MATCH($B23,OFFSET(F!$A$3:$A$201,200*($U$1-1),0),0)))","v":25},{"$f":"IF($X23=\"\",\"\",INDEX(OFFSET(F!$A$3:$A$201,200*($U$1-1),G$12),MATCH($B23,OFFSET(F!$A$3:$A$201,200*($U$1-1),0),0)))","v":16},{"$f":"IF($X23=\"\",\"\",INDEX(OFFSET(F!$A$3:$A$201,200*($U$1-1),H$12),MATCH($B23,OFFSET(F!$A$3:$A$201,200*($U$1-1),0),0)))","v":24},{"$f":"IF($X23=\"\",\"\",INDEX(OFFSET(F!$A$3:$A$201,200*($U$1-1),I$12),MATCH($B23,OFFSET(F!$A$3:$A$201,200*($U$1-1),0),0)))","v":11},{"$f":"IF($X23=\"\",\"\",INDEX(OFFSET(F!$A$3:$A$201,200*($U$1-1),J$12),MATCH($B23,OFFSET(F!$A$3:$A$201,200*($U$1-1),0),0)))","v":20},{"$f":"IF($X23=\"\",\"\",IF(OR($Y$1=$AC$7,$Y$1=$AC$8),INDEX(OFFSET(F!$A$3:$A$201,200*($U$1-1),K$12),MATCH($B23,OFFSET(F!$A$3:$A$201,200*($U$1-1),0),0)),\"\"))","v":""},{"$f":"IF($X23=\"\",\"\",IF(OR($Y$1=$AC$7,$Y$1=$AC$8),INDEX(OFFSET(F!$A$3:$A$201,200*($U$1-1),L$12),MATCH($B23,OFFSET(F!$A$3:$A$201,200*($U$1-1),0),0)),\"\"))","v":""},{"$f":"IF($X23=\"\",\"\",INDEX(OFFSET(F!$A$3:$A$201,200*($U$1-1),M$12),MATCH($B23,OFFSET(F!$A$3:$A$201,200*($U$1-1),0),0)))","v":14},{"$f":"IF($X23=\"\",\"\",INDEX(OFFSET(F!$A$3:$A$201,200*($U$1-1),N$12),MATCH($B23,OFFSET(F!$A$3:$A$201,200*($U$1-1),0),0)))","v":19},{"$f":"IF($X23=\"\",\"\",INDEX(OFFSET(F!$A$3:$A$201,200*($U$1-1),O$12),MATCH($B23,OFFSET(F!$A$3:$A$201,200*($U$1-1),0),0)))","v":15},{"$f":"IF($X23=\"\",\"\",INDEX(OFFSET(F!$A$3:$A$201,200*($U$1-1),P$12),MATCH($B23,OFFSET(F!$A$3:$A$201,200*($U$1-1),0),0)))","v":20},{"$f":"IF(OR($X23=\"\",$Y$1=$AC$1,$Y$1=$AC$2),\"\",INDEX(OFFSET(F!$A$3:$A$201,200*($U$1-1),Q$12),MATCH($B23,OFFSET(F!$A$3:$A$201,200*($U$1-1),0),0)))","v":""},{"$f":"IF(OR($X23=\"\",$Y$1=$AC$1,$Y$1=$AC$2),\"\",INDEX(OFFSET(F!$A$3:$A$201,200*($U$1-1),R$12),MATCH($B23,OFFSET(F!$A$3:$A$201,200*($U$1-1),0),0)))","v":""},{"$f":"IF($X23=\"\",\"\",INDEX(OFFSET(F!$A$3:$A$201,200*($U$1-1),S$12),MATCH($B23,OFFSET(F!$A$3:$A$201,200*($U$1-1),0),0)))","v":16},{"$f":"IF($X23=\"\",\"\",INDEX(OFFSET(F!$A$3:$A$201,200*($U$1-1),T$12),MATCH($B23,OFFSET(F!$A$3:$A$201,200*($U$1-1),0),0)))","v":24},{"$f":"IF($X23=\"\",\"\",INDEX(OFFSET(F!$A$3:$A$201,200*($U$1-1),U$12),MATCH($B23,OFFSET(F!$A$3:$A$201,200*($U$1-1),0),0)))","v":218},{"$f":"IF($X23=\"\",\"\",INDEX(OFFSET(F!$A$3:$A$201,200*($U$1-1),V$12),MATCH($B23,OFFSET(F!$A$3:$A$201,200*($U$1-1),0),0)))","v":"ناجح"},null,9,null,null,null,null,null,null,null,null,null,null,null,null,null,null,null,null,null,null,null,null,null,null,null,null,null,null,null,null,null,47,47,47,"",42,42,"",34,259,259,259]
[null,10,{"$f":"IF($X24=\"\",\"\",INDEX(OFFSET(F!$A$3:$A$201,200*($U$1-1),C$12),MATCH($B24,OFFSET(F!$A$3:$A$201,200*($U$1-1),0),0)))","v":10},{"$f":"IF($X24=\"\",\"\",INDEX(OFFSET(F!$A$3:$A$201,200*($U$1-1),D$12),MATCH($B24,OFFSET(F!$A$3:$A$201,200*($U$1-1),0),0)))","v":"صالح10"},{"$f":"IF($X24=\"\",\"\",INDEX(OFFSET(F!$A$3:$A$201,200*($U$1-1),E$12),MATCH($B24,OFFSET(F!$A$3:$A$201,200*($U$1-1),0),0)))","v":14},{"$f":"IF($X24=\"\",\"\",INDEX(OFFSET(F!$A$3:$A$201,200*($U$1-1),F$12),MATCH($B24,OFFSET(F!$A$3:$A$201,200*($U$1-1),0),0)))","v":25},{"$f":"IF($X24=\"\",\"\",INDEX(OFFSET(F!$A$3:$A$201,200*($U$1-1),G$12),MATCH($B24,OFFSET(F!$A$3:$A$201,200*($U$1-1),0),0)))","v":15},{"$f":"IF($X24=\"\",\"\",INDEX(OFFSET(F!$A$3:$A$201,200*($U$1-1),H$12),MATCH($B24,OFFSET(F!$A$3:$A$201,200*($U$1-1),0),0)))","v":25},{"$f":"IF($X24=\"\",\"\",INDEX(OFFSET(F!$A$3:$A$201,200*($U$1-1),I$12),MATCH($B24,OFFSET(F!$A$3:$A$201,200*($U$1-1),0),0)))","v":15},{"$f":"IF($X24=\"\",\"\",INDEX(OFFSET(F!$A$3:$A$201,200*($U$1-1),J$12),MATCH($B24,OFFSET(F!$A$3:$A$201,200*($U$1-1),0),0)))","v":20},{"$f":"IF($X24=\"\",\"\",IF(OR($Y$1=$AC$7,$Y$1=$AC$8),INDEX(OFFSET(F!$A$3:$A$201,200*($U$1-1),K$12),MATCH($B24,OFFSET(F!$A$3:$A$201,200*($U$1-1),0),0)),\"\"))","v":""},{"$f":"IF($X24=\"\",\"\",IF(OR($Y$1=$AC$7,$Y$1=$AC$8),INDEX(OFFSET(F!$A$3:$A$201,200*($U$1-1),L$12),MATCH($B24,OFFSET(F!$A$3:$A$201,200*($U$1-1),0),0)),\"\"))","v":""},{"$f":"IF($X24=\"\",\"\",INDEX(OFFSET(F!$A$3:$A$201,200*($U$1-1),M$12),MATCH($B24,OFFSET(F!$A$3:$A$201,200*($U$1-1),0),0)))","v":14},{"$f":"IF($X24=\"\",\"\",INDEX(OFFSET(F!$A$3:$A$201,200*($U$1-1),N$12),MATCH($B24,OFFSET(F!$A$3:$A$201,200*($U$1-1),0),0)))","v":18},{"$f":"IF($X24=\"\",\"\",INDEX(OFFSET(F!$A$3:$A$201,200*($U$1-1),O$12),MATCH($B24,OFFSET(F!$A$3:$A$201,200*($U$1-1),0),0)))","v":14},{"$f":"IF($X24=\"\",\"\",INDEX(OFFSET(F!$A$3:$A$201,200*($U$1-1),P$12),MATCH($B24,OFFSET(F!$A$3:$A$201,200*($U$1-1),0),0)))","v":25},{"$f":"IF(OR($X24=\"\",$Y$1=$AC$1,$Y$1=$AC$2),\"\",INDEX(OFFSET(F!$A$3:$A$201,200*($U$1-1),Q$12),MATCH($B24,OFFSET(F!$A$3:$A$201,200*($U$1-1),0),0)))","v":""},{"$f":"IF(OR($X24=\"\",$Y$1=$AC$1,$Y$1=$AC$2),\"\",INDEX(OFFSET(F!$A$3:$A$201,200*($U$1-1),R$12),MATCH($B24,OFFSET(F!$A$3:$A$201,200*($U$1-1),0),0)))","v":""},{"$f":"IF($X24=\"\",\"\",INDEX(OFFSET(F!$A$3:$A$201,200*($U$1-1),S$12),MATCH($B24,OFFSET(F!$A$3:$A$201,200*($U$1-1),0),0)))","v":15},{"$f":"IF($X24=\"\",\"\",INDEX(OFFSET(F!$A$3:$A$201,200*($U$1-1),T$12),MATCH($B24,OFFSET(F!$A$3:$A$201,200*($U$1-1),0),0)))","v":20},{"$f":"IF($X24=\"\",\"\",INDEX(OFFSET(F!$A$3:$A$201,200*($U$1-1),U$12),MATCH($B24,OFFSET(F!$A$3:$A$201,200*($U$1-1),0),0)))","v":220},{"$f":"IF($X24=\"\",\"\",INDEX(OFFSET(F!$A$3:$A$201,200*($U$1-1),V$12),MATCH($B24,OFFSET(F!$A$3:$A$201,200*($U$1-1),0),0)))","v":"ناجح"},null,10,null,null,null,null,null,null,null,null,null,null,null,null,null,null,null,null,null,null,null,null,null,null,null,null,null,null,null,null,null,20,20,0,"",21,0,"",20,81,81,81]
[null,11,{"$f":"IF($X25=\"\",\"\",INDEX(OFFSET(F!$A$3:$A$201,200*($U$1-1),C$12),MATCH($B25,OFFSET(F!$A$3:$A$201,200*($U$1-1),0),0)))","v":11},{"$f":"IF($X25=\"\",\"\",INDEX(OFFSET(F!$A$3:$A$201,200*($U$1-1),D$12),MATCH($B25,OFFSET(F!$A$3:$A$201,200*($U$1-1),0),0)))","v":"صالح11"},{"$f":"IF($X25=\"\",\"\",INDEX(OFFSET(F!$A$3:$A$201,200*($U$1-1),E$12),MATCH($B25,OFFSET(F!$A$3:$A$201,200*($U$1-1),0),0)))","v":14},{"$f":"IF($X25=\"\",\"\",INDEX(OFFSET(F!$A$3:$A$201,200*($U$1-1),F$12),MATCH($B25,OFFSET(F!$A$3:$A$201,200*($U$1-1),0),0)))","v":20},{"$f":"IF($X25=\"\",\"\",INDEX(OFFSET(F!$A$3:$A$201,200*($U$1-1),G$12),MATCH($B25,OFFSET(F!$A$3:$A$201,200*($U$1-1),0),0)))","v":15},{"$f":"IF($X25=\"\",\"\",INDEX(OFFSET(F!$A$3:$A$201,200*($U$1-1),H$12),MATCH($B25,OFFSET(F!$A$3:$A$201,200*($U$1-1),0),0)))","v":20},{"$f":"IF($X25=\"\",\"\",INDEX(OFFSET(F!$A$3:$A$201,200*($U$1-1),I$12),MATCH($B25,OFFSET(F!$A$3:$A$201,200*($U$1-1),0),0)))","v":15},{"$f":"IF($X25=\"\",\"\",INDEX(OFFSET(F!$A$3:$A$201,200*($U$1-1),J$12),MATCH($B25,OFFSET(F!$A$3:$A$201,200*($U$1-1),0),0)))","v":20},{"$f":"IF($X25=\"\",\"\",IF(OR($Y$1=$AC$7,$Y$1=$AC$8),INDEX(OFFSET(F!$A$3:$A$201,200*($U$1-1),K$12),MATCH($B25,OFFSET(F!$A$3:$A$201,200*($U$1-1),0),0)),\"\"))","v":""},{"$f":"IF($X25=\"\",\"\",IF(OR($Y$1=$AC$7,$Y$1=$AC$8),INDEX(OFFSET(F!$A$3:$A$201,200*($U$1-1),L$12),MATCH($B25,OFFSET(F!$A$3:$A$201,200*($U$1-1),0),0)),\"\"))","v":""},{"$f":"IF($X25=\"\",\"\",INDEX(OFFSET(F!$A$3:$A$201,200*($U$1-1),M$12),MATCH($B25,OFFSET(F!$A$3:$A$201,200*($U$1-1),0),0)))","v":14},{"$f":"IF($X25=\"\",\"\",INDEX(OFFSET(F!$A$3:$A$201,200*($U$1-1),N$12),MATCH($B25,OFFSET(F!$A$3:$A$201,200*($U$1-1),0),0)))","v":25},{"$f":"IF($X25=\"\",\"\",INDEX(OFFSET(F!$A$3:$A$201,200*($U$1-1),O$12),MATCH($B25,OFFSET(F!$A$3:$A$201,200*($U$1-1),0),0)))","v":15},{"$f":"IF($X25=\"\",\"\",INDEX(OFFSET(F!$A$3:$A$201,200*($U$1-1),P$12),MATCH($B25,OFFSET(F!$A$3:$A$201,200*($U$1-1),0),0)))","v":25},{"$f":"IF(OR($X25=\"\",$Y$1=$AC$1,$Y$1=$AC$2),\"\",INDEX(OFFSET(F!$A$3:$A$201,200*($U$1-1),Q$12),MATCH($B25,OFFSET(F!$A$3:$A$201,200*($U$1-1),0),0)))","v":""},{"$f":"IF(OR($X25=\"\",$Y$1=$AC$1,$Y$1=$AC$2),\"\",INDEX(OFFSET(F!$A$3:$A$201,200*($U$1-1),R$12),MATCH($B25,OFFSET(F!$A$3:$A$201,200*($U$1-1),0),0)))","v":""},{"$f":"IF($X25=\"\",\"\",INDEX(OFFSET(F!$A$3:$A$201,200*($U$1-1),S$12),MATCH($B25,OFFSET(F!$A$3:$A$201,200*($U$1-1),0),0)))","v":17},{"$f":"IF($X25=\"\",\"\",INDEX(OFFSET(F!$A$3:$A$201,200*($U$1-1),T$12),MATCH($B25,OFFSET(F!$A$3:$A$201,200*($U$1-1),0),0)))","v":28},{"$f":"IF($X25=\"\",\"\",INDEX(OFFSET(F!$A$3:$A$201,200*($U$1-1),U$12),MATCH($B25,OFFSET(F!$A$3:$A$201,200*($U$1-1),0),0)))","v":228},{"$f":"IF($X25=\"\",\"\",INDEX(OFFSET(F!$A$3:$A$201,200*($U$1-1),V$12),MATCH($B25,OFFSET(F!$A$3:$A$201,200*($U$1-1),0),0)))","v":"ناجح"},null,11,null,null,null,null,null,null,null,null,null,null,null,null,null,null,null,null,null,null,null,null,null,null,null,null,null,null,null,null,null,32,32,26,"",28,28,"",35,181,181,181]
[null,12,{"$f":"IF($X26=\"\",\"\",INDEX(OFFSET(F!$A$3:$A$201,200*($U$1-1),C$12),MATCH($B26,OFFSET(F!$A$3:$A$201,200*($U$1-1),0),0)))","v":12},{"$f":"IF($X26=\"\",\"\",INDEX(OFFSET(F!$A$3:$A$201,200*($U$1-1),D$12),MATCH($B26,OFFSET(F!$A$3:$A$201,200*($U$1-1),0),0)))","v":"صالح12"},{"$f":"IF($X26=\"\",\"\",INDEX(OFFSET(F!$A$3:$A$201,200*($U$1-1),E$12),MATCH($B26,OFFSET(F!$A$3:$A$201,200*($U$1-1),0),0)))","v":11},{"$f":"IF($X26=\"\",\"\",INDEX(OFFSET(F!$A$3:$A$201,200*($U$1-1),F$12),MATCH($B26,OFFSET(F!$A$3:$A$201,200*($U$1-1),0),0)))","v":15},{"$f":"IF($X26=\"\",\"\",INDEX(OFFSET(F!$A$3:$A$201,200*($U$1-1),G$12),MATCH($B26,OFFSET(F!$A$3:$A$201,200*($U$1-1),0),0)))","v":10},{"$f":"IF($X26=\"\",\"\",INDEX(OFFSET(F!$A$3:$A$201,200*($U$1-1),H$12),MATCH($B26,OFFSET(F!$A$3:$A$201,200*($U$1-1),0),0)))","v":15},{"$f":"IF($X26=\"\",\"\",INDEX(OFFSET(F!$A$3:$A$201,200*($U$1-1),I$12),MATCH($B26,OFFSET(F!$A$3:$A$201,200*($U$1-1),0),0)))","v":11},{"$f":"IF($X26=\"\",\"\",INDEX(OFFSET(F!$A$3:$A$201,200*($U$1-1),J$12),MATCH($B26,OFFSET(F!$A$3:$A$201,200*($U$1-1),0),0)))","v":14},{"$f":"IF($X26=\"\",\"\",IF(OR($Y$1=$AC$7,$Y$1=$AC$8),INDEX(OFFSET(F!$A$3:$A$201,200*($U$1-1),K$12),MATCH($B26,OFFSET(F!$A$3:$A$201,200*($U$1-1),0),0)),\"\"))","v":""},{"$f":"IF($X26=\"\",\"\",IF(OR($Y$1=$AC$7,$Y$1=$AC$8),INDEX(OFFSET(F!$A$3:$A$201,200*($U$1-1),L$12),MATCH($B26,OFFSET(F!$A$3:$A$201,200*($U$1-1),0),0)),\"\"))","v":""},{"$f":"IF($X26=\"\",\"\",INDEX(OFFSET(F!$A$3:$A$201,200*($U$1-1),M$12),MATCH($B26,OFFSET(F!$A$3:$A$201,200*($U$1-1),0),0)))","v":13},{"$f":"IF($X26=\"\",\"\",INDEX(OFFSET(F!$A$3:$A$201,200*($U$1-1),N$12),MATCH($B26,OFFSET(F!$A$3:$A$201,200*($U$1-1),0),0)))","v":13},{"$f":"IF($X26=\"\",\"\",INDEX(OFFSET(F!$A$3:$A$201,200*($U$1-1),O$12),MATCH($B26,OFFSET(F!$A$3:$A$201,200*($U$1-1),0),0)))","v":15},{"$f":"IF($X26=\"\",\"\",INDEX(OFFSET(F!$A$3:$A$201,200*($U$1-1),P$12),MATCH($B26,OFFSET(F!$A$3:$A$201,200*($U$1-1),0),0)))","v":25},{"$f":"IF(OR($X26=\"\",$Y$1=$AC$1,$Y$1=$AC$2),\"\",INDEX(OFFSET(F!$A$3:$A$201,200*($U$1-1),Q$12),MATCH($B26,OFFSET(F!$A$3:$A$201,200*($U$1-1),0),0)))","v":""},{"$f":"IF(OR($X26=\"\",$Y$1=$AC$1,$Y$1=$AC$2),\"\",INDEX(OFFSET(F!$A$3:$A$201,200*($U$1-1),R$12),MATCH($B26,OFFSET(F!$A$3:$A$201,200*($U$1-1),0),0)))","v":""},{"$f":"IF($X26=\"\",\"\",INDEX(OFFSET(F!$A$3:$A$201,200*($U$1-1),S$12),MATCH($B26,OFFSET(F!$A$3:$A$201,200*($U$1-1),0),0)))","v":16},{"$f":"IF($X26=\"\",\"\",INDEX(OFFSET(F!$A$3:$A$201,200*($U$1-1),T$12),MATCH($B26,OFFSET(F!$A$3:$A$201,200*($U$1-1),0),0)))","v":25},{"$f":"IF($X26=\"\",\"\",INDEX(OFFSET(F!$A$3:$A$201,200*($U$1-1),U$12),MATCH($B26,OFFSET(F!$A$3:$A$201,200*($U$1-1),0),0)))","v":183},{"$f":"IF($X26=\"\",\"\",INDEX(OFFSET(F!$A$3:$A$201,200*($U$1-1),V$12),MATCH($B26,OFFSET(F!$A$3:$A$201,200*($U$1-1),0),0)))","v":"ناجح"},null,12,null,null,null,null,null,null,null,null,null,null,null,null,null,null,null,null,null,null,null,null,null,null,null,null,null,null,null,null,null,48,48,47,"",37,37,"",46,263,263,263]
[null,13,{"$f":"IF($X27=\"\",\"\",INDEX(OFFSET(F!$A$3:$A$201,200*($U$1-1),C$12),MATCH($B27,OFFSET(F!$A$3:$A$201,200*($U$1-1),0),0)))","v":13},{"$f":"IF($X27=\"\",\"\",INDEX(OFFSET(F!$A$3:$A$201,200*($U$1-1),D$12),MATCH($B27,OFFSET(F!$A$3:$A$201,200*($U$1-1),0),0)))","v":"صالح13"},{"$f":"IF($X27=\"\",\"\",INDEX(OFFSET(F!$A$3:$A$201,200*($U$1-1),E$12),MATCH($B27,OFFSET(F!$A$3:$A$201,200*($U$1-1),0),0)))","v":15},{"$f":"IF($X27=\"\",\"\",INDEX(OFFSET(F!$A$3:$A$201,200*($U$1-1),F$12),MATCH($B27,OFFSET(F!$A$3:$A$201,200*($U$1-1),0),0)))","v":20},{"$f":"IF($X27=\"\",\"\",INDEX(OFFSET(F!$A$3:$A$201,200*($U$1-1),G$12),MATCH($B27,OFFSET(F!$A$3:$A$201,200*($U$1-1),0),0)))","v":16},{"$f":"IF($X27=\"\",\"\",INDEX(OFFSET(F!$A$3:$A$201,200*($U$1-1),H$12),MATCH($B27,OFFSET(F!$A$3:$A$201,200*($U$1-1),0),0)))","v":20},{"$f":"IF($X27=\"\",\"\",INDEX(OFFSET(F!$A$3:$A$201,200*($U$1-1),I$12),MATCH($B27,OFFSET(F!$A$3:$A$201,200*($U$1-1),0),0)))","v":14},{"$f":"IF($X27=\"\",\"\",INDEX(OFFSET(F!$A$3:$A$201,200*($U$1-1),J$12),MATCH($B27,OFFSET(F!$A$3:$A$201,200*($U$1-1),0),0)))","v":18},{"$f":"IF($X27=\"\",\"\",IF(OR($Y$1=$AC$7,$Y$1=$AC$8),INDEX(OFFSET(F!$A$3:$A$201,200*($U$1-1),K$12),MATCH($B27,OFFSET(F!$A$3:$A$201,200*($U$1-1),0),0)),\"\"))","v":""},{"$f":"IF($X27=\"\",\"\",IF(OR($Y$1=$AC$7,$Y$1=$AC$8),INDEX(OFFSET(F!$A$3:$A$201,200*($U$1-1),L$12),MATCH($B27,OFFSET(F!$A$3:$A$201,200*($U$1-1),0),0)),\"\"))","v":""},{"$f":"IF($X27=\"\",\"\",INDEX(OFFSET(F!$A$3:$A$201,200*($U$1-1),M$12),MATCH($B27,OFFSET(F!$A$3:$A$201,200*($U$1-1),0),0)))","v":14},{"$f":"IF($X27=\"\",\"\",INDEX(OFFSET(F!$A$3:$A$201,200*($U$1-1),N$12),MATCH($B27,OFFSET(F!$A$3:$A$201,200*($U$1-1),0),0)))","v":20},{"$f":"IF($X27=\"\",\"\",INDEX(OFFSET(F!$A$3:$A$201,200*($U$1-1),O$12),MATCH($B27,OFFSET(F!$A$3:$A$201,200*($U$1-1),0),0)))","v":15},{"$f":"IF($X27=\"\",\"\",INDEX(OFFSET(F!$A$3:$A$201,200*($U$1-1),P$12),MATCH($B27,OFFSET(F!$A$3:$A$201,200*($U$1-1),0),0)))","v":25},{"$f":"IF(OR($X27=\"\",$Y$1=$AC$1,$Y$1=$AC$2),\"\",INDEX(OFFSET(F!$A$3:$A$201,200*($U$1-1),Q$12),MATCH($B27,OFFSET(F!$A$3:$A$201,200*($U$1-1),0),0)))","v":""},{"$f":"IF(OR($X27=\"\",$Y$1=$AC$1,$Y$1=$AC$2),\"\",INDEX(OFFSET(F!$A$3:$A$201,200*($U$1-1),R$12),MATCH($B27,OFFSET(F!$A$3:$A$201,200*($U$1-1),0),0)))","v":""},{"$f":"IF($X27=\"\",\"\",INDEX(OFFSET(F!$A$3:$A$201,200*($U$1-1),S$12),MATCH($B27,OFFSET(F!$A$3:$A$201,200*($U$1-1),0),0)))","v":16},{"$f":"IF($X27=\"\",\"\",INDEX(OFFSET(F!$A$3:$A$201,200*($U$1-1),T$12),MATCH($B27,OFFSET(F!$A$3:$A$201,200*($U$1-1),0),0)))","v":25},{"$f":"IF($X27=\"\",\"\",INDEX(OFFSET(F!$A$3:$A$201,200*($U$1-1),U$12),MATCH($B27,OFFSET(F!$A$3:$A$201,200*($U$1-1),0),0)))","v":218},{"$f":"IF($X27=\"\",\"\",INDEX(OFFSET(F!$A$3:$A$201,200*($U$1-1),V$12),MATCH($B27,OFFSET(F!$A$3:$A$201,200*($U$1-1),0),0)))","v":"ناجح"},null,13,null,null,null,null,null,null,null,null,null,null,null,null,null,null,null,null,null,null,null,null,null,null,null,null,null,null,null,null,null,31,31,25,"",35,35,"",28,185,185,185]
[null,14,{"$f":"IF($X28=\"\",\"\",INDEX(OFFSET(F!$A$3:$A$201,200*($U$1-1),C$12),MATCH($B28,OFFSET(F!$A$3:$A$201,200*($U$1-1),0),0)))","v":14},{"$f":"IF($X28=\"\",\"\",INDEX(OFFSET(F!$A$3:$A$201,200*($U$1-1),D$12),MATCH($B28,OFFSET(F!$A$3:$A$201,200*($U$1-1),0),0)))","v":"صالح14"},{"$f":"IF($X28=\"\",\"\",INDEX(OFFSET(F!$A$3:$A$201,200*($U$1-1),E$12),MATCH($B28,OFFSET(F!$A$3:$A$201,200*($U$1-1),0),0)))","v":15},{"$f":"IF($X28=\"\",\"\",INDEX(OFFSET(F!$A$3:$A$201,200*($U$1-1),F$12),MATCH($B28,OFFSET(F!$A$3:$A$201,200*($U$1-1),0),0)))","v":20},{"$f":"IF($X28=\"\",\"\",INDEX(OFFSET(F!$A$3:$A$201,200*($U$1-1),G$12),MATCH($B28,OFFSET(F!$A$3:$A$201,200*($U$1-1),0),0)))","v":16},{"$f":"IF($X28=\"\",\"\",INDEX(OFFSET(F!$A$3:$A$201,200*($U$1-1),H$12),MATCH($B28,OFFSET(F!$A$3:$A$201,200*($U$1-1),0),0)))","v":20},{"$f":"IF($X28=\"\",\"\",INDEX(OFFSET(F!$A$3:$A$201,200*($U$1-1),I$12),MATCH($B28,OFFSET(F!$A$3:$A$201,200*($U$1-1),0),0)))","v":14},{"$f":"IF($X28=\"\",\"\",INDEX(OFFSET(F!$A$3:$A$201,200*($U$1-1),J$12),MATCH($B28,OFFSET(F!$A$3:$A$201,200*($U$1-1),0),0)))","v":18},{"$f":"IF($X28=\"\",\"\",IF(OR($Y$1=$AC$7,$Y$1=$AC$8),INDEX(OFFSET(F!$A$3:$A$201,200*($U$1-1),K$12),MATCH($B28,OFFSET(F!$A$3:$A$201,200*($U$1-1),0),0)),\"\"))","v":""},{"$f":"IF($X28=\"\",\"\",IF(OR($Y$1=$AC$7,$Y$1=$AC$8),INDEX(OFFSET(F!$A$3:$A$201,200*($U$1-1),L$12),MATCH($B28,OFFSET(F!$A$3:$A$201,200*($U$1-1),0),0)),\"\"))","v":""},{"$f":"IF($X28=\"\",\"\",INDEX(OFFSET(F!$A$3:$A$201,200*($U$1-1),M$12),MATCH($B28,OFFSET(F!$A$3:$A$201,200*($U$1-1),0),0)))","v":14},{"$f":"IF($X28=\"\",\"\",INDEX(OFFSET(F!$A$3:$A$201,200*($U$1-1),N$12),MATCH($B28,OFFSET(F!$A$3:$A$201,200*($U$1-1),0),0)))","v":20},{"$f":"IF($X28=\"\",\"\",INDEX(OFFSET(F!$A$3:$A$201,200*($U$1-1),O$12),MATCH($B28,OFFSET(F!$A$3:$A$201,200*($U$1-1),0),0)))","v":15},{"$f":"IF($X28=\"\",\"\",INDEX(OFFSET(F!$A$3:$A$201,200*($U$1-1),P$12),MATCH($B28,OFFSET(F!$A$3:$A$201,200*($U$1-1),0),0)))","v":20},{"$f":"IF(OR($X28=\"\",$Y$1=$AC$1,$Y$1=$AC$2),\"\",INDEX(OFFSET(F!$A$3:$A$201,200*($U$1-1),Q$12),MATCH($B28,OFFSET(F!$A$3:$A$201,200*($U$1-1),0),0)))","v":""},{"$f":"IF(OR($X28=\"\",$Y$1=$AC$1,$Y$1=$AC$2),\"\",INDEX(OFFSET(F!$A$3:$A$201,200*($U$1-1),R$12),MATCH($B28,OFFSET(F!$A$3:$A$201,200*($U$1-1),0),0)))","v":""},{"$f":"IF($X28=\"\",\"\",INDEX(OFFSET(F!$A$3:$A$201,200*($U$1-1),S$12),MATCH($B28,OFFSET(F!$A$3:$A$201,200*($U$1-1),0),0)))","v":17},{"$f":"IF($X28=\"\",\"\",INDEX(OFFSET(F!$A$3:$A$201,200*($U$1-1),T$12),MATCH($B28,OFFSET(F!$A$3:$A$201,200*($U$1-1),0),0)))","v":28},{"$f":"IF($X28=\"\",\"\",INDEX(OFFSET(F!$A$3:$A$201,200*($U$1-1),U$12),MATCH($B28,OFFSET(F!$A$3:$A$201,200*($U$1-1),0),0)))","v":217},{"$f":"IF($X28=\"\",\"\",INDEX(OFFSET(F!$A$3:$A$201,200*($U$1-1),V$12),MATCH($B28,OFFSET(F!$A$3:$A$201,200*($U$1-1),0),0)))","v":"ناجح"},null,14,null,null,null,null,null,null,null,null,null,null,null,null,null,null,null,null,null,null,null,null,null,null,null,null,null,null,null,null,null,29,29,28,"",26,26,"",33,171,171,171]
[null,15,{"$f":"IF($X29=\"\",\"\",INDEX(OFFSET(F!$A$3:$A$201,200*($U$1-1),C$12),MATCH($B29,OFFSET(F!$A$3:$A$201,200*($U$1-1),0),0)))","v":15},{"$f":"IF($X29=\"\",\"\",INDEX(OFFSET(F!$A$3:$A$201,200*($U$1-1),D$12),MATCH($B29,OFFSET(F!$A$3:$A$201,200*($U$1-1),0),0)))","v":"صالح15"},{"$f":"IF($X29=\"\",\"\",INDEX(OFFSET(F!$A$3:$A$201,200*($U$1-1),E$12),MATCH($B29,OFFSET(F!$A$3:$A$201,200*($U$1-1),0),0)))","v":17},{"$f":"IF($X29=\"\",\"\",INDEX(OFFSET(F!$A$3:$A$201,200*($U$1-1),F$12),MATCH($B29,OFFSET(F!$A$3:$A$201,200*($U$1-1),0),0)))","v":25},{"$f":"IF($X29=\"\",\"\",INDEX(OFFSET(F!$A$3:$A$201,200*($U$1-1),G$12),MATCH($B29,OFFSET(F!$A$3:$A$201,200*($U$1-1),0),0)))","v":18},{"$f":"IF($X29=\"\",\"\",INDEX(OFFSET(F!$A$3:$A$201,200*($U$1-1),H$12),MATCH($B29,OFFSET(F!$A$3:$A$201,200*($U$1-1),0),0)))","v":25},{"$f":"IF($X29=\"\",\"\",INDEX(OFFSET(F!$A$3:$A$201,200*($U$1-1),I$12),MATCH($B29,OFFSET(F!$A$3:$A$201,200*($U$1-1),0),0)))","v":16},{"$f":"IF($X29=\"\",\"\",INDEX(OFFSET(F!$A$3:$A$201,200*($U$1-1),J$12),MATCH($B29,OFFSET(F!$A$3:$A$201,200*($U$1-1),0),0)))","v":24},{"$f":"IF($X29=\"\",\"\",IF(OR($Y$1=$AC$7,$Y$1=$AC$8),INDEX(OFFSET(F!$A$3:$A$201,200*($U$1-1),K$12),MATCH($B29,OFFSET(F!$A$3:$A$201,200*($U$1-1),0),0)),\"\"))","v":""},{"$f":"IF($X29=\"\",\"\",IF(OR($Y$1=$AC$7,$Y$1=$AC$8),INDEX(OFFSET(F!$A$3:$A$201,200*($U$1-1),L$12),MATCH($B29,OFFSET(F!$A$3:$A$201,200*($U$1-1),0),0)),\"\"))","v":""},{"$f":"IF($X29=\"\",\"\",INDEX(OFFSET(F!$A$3:$A$201,200*($U$1-1),M$12),MATCH($B29,OFFSET(F!$A$3:$A$201,200*($U$1-1),0),0)))","v":15},{"$f":"IF($X29=\"\",\"\",INDEX(OFFSET(F!$A$3:$A$201,200*($U$1-1),N$12),MATCH($B29,OFFSET(F!$A$3:$A$201,200*($U$1-1),0),0)))","v":25},{"$f":"IF($X29=\"\",\"\",INDEX(OFFSET(F!$A$3:$A$201,200*($U$1-1),O$12),MATCH($B29,OFFSET(F!$A$3:$A$201,200*($U$1-1),0),0)))","v":15},{"$f":"IF($X29=\"\",\"\",INDEX(OFFSET(F!$A$3:$A$201,200*($U$1-1),P$12),MATCH($B29,OFFSET(F!$A$3:$A$201,200*($U$1-1),0),0)))","v":20},{"$f":"IF(OR($X29=\"\",$Y$1=$AC$1,$Y$1=$AC$2),\"\",INDEX(OFFSET(F!$A$3:$A$201,200*($U$1-1),Q$12),MATCH($B29,OFFSET(F!$A$3:$A$201,200*($U$1-1),0),0)))","v":""},{"$f":"IF(OR($X29=\"\",$Y$1=$AC$1,$Y$1=$AC$2),\"\",INDEX(OFFSET(F!$A$3:$A$201,200*($U$1-1),R$12),MATCH($B29,OFFSET(F!$A$3:$A$201,200*($U$1-1),0),0)))","v":""},{"$f":"IF($X29=\"\",\"\",INDEX(OFFSET(F!$A$3:$A$201,200*($U$1-1),S$12),MATCH($B29,OFFSET(F!$A$3:$A$201,200*($U$1-1),0),0)))","v":17},{"$f":"IF($X29=\"\",\"\",INDEX(OFFSET(F!$A$3:$A$201,200*($U$1-1),T$12),MATCH($B29,OFFSET(F!$A$3:$A$201,200*($U$1-1),0),0)))","v":27},{"$f":"IF($X29=\"\",\"\",INDEX(OFFSET(F!$A$3:$A$201,200*($U$1-1),U$12),MATCH($B29,OFFSET(F!$A$3:$A$201,200*($U$1-1),0),0)))","v":244},{"$f":"IF($X29=\"\",\"\",INDEX(OFFSET(F!$A$3:$A$201,200*($U$1-1),V$12),MATCH($B29,OFFSET(F!$A$3:$A$201,200*($U$1-1),0),0)))","v":"ناجح"},null,15,null,null,null,null,null,null,null,null,null,null,null,null,null,null,null,null,null,null,null,null,null,null,null,null,null,null,null,null,null,42,42,28,"",28,28,"",33,201,201,201]
[null,16,{"$f":"IF($X30=\"\",\"\",INDEX(OFFSET(F!$A$3:$A$201,200*($U$1-1),C$12),MATCH($B30,OFFSET(F!$A$3:$A$201,200*($U$1-1),0),0)))","v":16},{"$f":"IF($X30=\"\",\"\",INDEX(OFFSET(F!$A$3:$A$201,200*($U$1-1),D$12),MATCH($B30,OFFSET(F!$A$3:$A$201,200*($U$1-1),0),0)))","v":"صالح16"},{"$f":"IF($X30=\"\",\"\",INDEX(OFFSET(F!$A$3:$A$201,200*($U$1-1),E$12),MATCH($B30,OFFSET(F!$A$3:$A$201,200*($U$1-1),0),0)))","v":12},{"$f":"IF($X30=\"\",\"\",INDEX(OFFSET(F!$A$3:$A$201,200*($U$1-1),F$12),MATCH($B30,OFFSET(F!$A$3:$A$201,200*($U$1-1),0),0)))","v":15},{"$f":"IF($X30=\"\",\"\",INDEX(OFFSET(F!$A$3:$A$201,200*($U$1-1),G$12),MATCH($B30,OFFSET(F!$A$3:$A$201,200*($U$1-1),0),0)))","v":13},{"$f":"IF($X30=\"\",\"\",INDEX(OFFSET(F!$A$3:$A$201,200*($U$1-1),H$12),MATCH($B30,OFFSET(F!$A$3:$A$201,200*($U$1-1),0),0)))","v":15},{"$f":"IF($X30=\"\",\"\",INDEX(OFFSET(F!$A$3:$A$201,200*($U$1-1),I$12),MATCH($B30,OFFSET(F!$A$3:$A$201,200*($U$1-1),0),0)))","v":12},{"$f":"IF($X30=\"\",\"\",INDEX(OFFSET(F!$A$3:$A$201,200*($U$1-1),J$12),MATCH($B30,OFFSET(F!$A$3:$A$201,200*($U$1-1),0),0)))","v":15},{"$f":"IF($X30=\"\",\"\",IF(OR($Y$1=$AC$7,$Y$1=$AC$8),INDEX(OFFSET(F!$A$3:$A$201,200*($U$1-1),K$12),MATCH($B30,OFFSET(F!$A$3:$A$201,200*($U$1-1),0),0)),\"\"))","v":""},{"$f":"IF($X30=\"\",\"\",IF(OR($Y$1=$AC$7,$Y$1=$AC$8),INDEX(OFFSET(F!$A$3:$A$201,200*($U$1-1),L$12),MATCH($B30,OFFSET(F!$A$3:$A$201,200*($U$1-1),0),0)),\"\"))","v":""},{"$f":"IF($X30=\"\",\"\",INDEX(OFFSET(F!$A$3:$A$201,200*($U$1-1),M$12),MATCH($B30,OFFSET(F!$A$3:$A$201,200*($U$1-1),0),0)))","v":14},{"$f":"IF($X30=\"\",\"\",INDEX(OFFSET(F!$A$3:$A$201,200*($U$1-1),N$12),MATCH($B30,OFFSET(F!$A$3:$A$201,200*($U$1-1),0),0)))","v":16},{"$f":"IF($X30=\"\",\"\",INDEX(OFFSET(F!$A$3:$A$201,200*($U$1-1),O$12),MATCH($B30,OFFSET(F!$A$3:$A$201,200*($U$1-1),0),0)))","v":14},{"$f":"IF($X30=\"\",\"\",INDEX(OFFSET(F!$A$3:$A$201,200*($U$1-1),P$12),MATCH($B30,OFFSET(F!$A$3:$A$201,200*($U$1-1),0),0)))","v":20},{"$f":"IF(OR($X30=\"\",$Y$1=$AC$1,$Y$1=$AC$2),\"\",INDEX(OFFSET(F!$A$3:$A$201,200*($U$1-1),Q$12),MATCH($B30,OFFSET(F!$A$3:$A$201,200*($U$1-1),0),0)))","v":""},{"$f":"IF(OR($X30=\"\",$Y$1=$AC$1,$Y$1=$AC$2),\"\",INDEX(OFFSET(F!$A$3:$A$201,200*($U$1-1),R$12),MATCH($B30,OFFSET(F!$A$3:$A$201,200*($U$1-1),0),0)))","v":""},{"$f":"IF($X30=\"\",\"\",INDEX(OFFSET(F!$A$3:$A$201,200*($U$1-1),S$12),MATCH($B30,OFFSET(F!$A$3:$A$201,200*($U$1-1),0),0)))","v":15},{"$f":"IF($X30=\"\",\"\",INDEX(OFFSET(F!$A$3:$A$201,200*($U$1-1),T$12),MATCH($B30,OFFSET(F!$A$3:$A$201,200*($U$1-1),0),0)))","v":20},{"$f":"IF($X30=\"\",\"\",INDEX(OFFSET(F!$A$3:$A$201,200*($U$1-1),U$12),MATCH($B30,OFFSET(F!$A$3:$A$201,200*($U$1-1),0),0)))","v":181},{"$f":"IF($X30=\"\",\"\",INDEX(OFFSET(F!$A$3:$A$201,200*($U$1-1),V$12),MATCH($B30,OFFSET(F!$A$3:$A$201,200*($U$1-1),0),0)))","v":"ناجح"},null,16,null,null,null,null,null,null,null,null,null,null,null,null,null,null,null,null,null,null,null,null,null,null,null,null,null,null,null,null,null,39,39,26,"",28,26,"",31,189,189,189]
[null,17,{"$f":"IF($X31=\"\",\"\",INDEX(OFFSET(F!$A$3:$A$201,200*($U$1-1),C$12),MATCH($B31,OFFSET(F!$A$3:$A$201,200*($U$1-1),0),0)))","v":17},{"$f":"IF($X31=\"\",\"\",INDEX(OFFSET(F!$A$3:$A$201,200*($U$1-1),D$12),MATCH($B31,OFFSET(F!$A$3:$A$201,200*($U$1-1),0),0)))","v":"صالح17"},{"$f":"IF($X31=\"\",\"\",INDEX(OFFSET(F!$A$3:$A$201,200*($U$1-1),E$12),MATCH($B31,OFFSET(F!$A$3:$A$201,200*($U$1-1),0),0)))","v":19},{"$f":"IF($X31=\"\",\"\",INDEX(OFFSET(F!$A$3:$A$201,200*($U$1-1),F$12),MATCH($B31,OFFSET(F!$A$3:$A$201,200*($U$1-1),0),0)))","v":30},{"$f":"IF($X31=\"\",\"\",INDEX(OFFSET(F!$A$3:$A$201,200*($U$1-1),G$12),MATCH($B31,OFFSET(F!$A$3:$A$201,200*($U$1-1),0),0)))","v":17},{"$f":"IF($X31=\"\",\"\",INDEX(OFFSET(F!$A$3:$A$201,200*($U$1-1),H$12),MATCH($B31,OFFSET(F!$A$3:$A$201,200*($U$1-1),0),0)))","v":25},{"$f":"IF($X31=\"\",\"\",INDEX(OFFSET(F!$A$3:$A$201,200*($U$1-1),I$12),MATCH($B31,OFFSET(F!$A$3:$A$201,200*($U$1-1),0),0)))","v":17},{"$f":"IF($X31=\"\",\"\",INDEX(OFFSET(F!$A$3:$A$201,200*($U$1-1),J$12),MATCH($B31,OFFSET(F!$A$3:$A$201,200*($U$1-1),0),0)))","v":23},{"$f":"IF($X31=\"\",\"\",IF(OR($Y$1=$AC$7,$Y$1=$AC$8),INDEX(OFFSET(F!$A$3:$A$201,200*($U$1-1),K$12),MATCH($B31,OFFSET(F!$A$3:$A$201,200*($U$1-1),0),0)),\"\"))","v":""},{"$f":"IF($X31=\"\",\"\",IF(OR($Y$1=$AC$7,$Y$1=$AC$8),INDEX(OFFSET(F!$A$3:$A$201,200*($U$1-1),L$12),MATCH($B31,OFFSET(F!$A$3:$A$201,200*($U$1-1),0),0)),\"\"))","v":""},{"$f":"IF($X31=\"\",\"\",INDEX(OFFSET(F!$A$3:$A$201,200*($U$1-1),M$12),MATCH($B31,OFFSET(F!$A$3:$A$201,200*($U$1-1),0),0)))","v":15},{"$f":"IF($X31=\"\",\"\",INDEX(OFFSET(F!$A$3:$A$201,200*($U$1-1),N$12),MATCH($B31,OFFSET(F!$A$3:$A$201,200*($U$1-1),0),0)))","v":25},{"$f":"IF($X31=\"\",\"\",INDEX(OFFSET(F!$A$3:$A$201,200*($U$1-1),O$12),MATCH($B31,OFFSET(F!$A$3:$A$201,200*($U$1-1),0),0)))","v":18},{"$f":"IF($X31=\"\",\"\",INDEX(OFFSET(F!$A$3:$A$201,200*($U$1-1),P$12),MATCH($B31,OFFSET(F!$A$3:$A$201,200*($U$1-1),0),0)))","v":30},{"$f":"IF(OR($X31=\"\",$Y$1=$AC$1,$Y$1=$AC$2),\"\",INDEX(OFFSET(F!$A$3:$A$201,200*($U$1-1),Q$12),MATCH($B31,OFFSET(F!$A$3:$A$201,200*($U$1-1),0),0)))","v":""},{"$f":"IF(OR($X31=\"\",$Y$1=$AC$1,$Y$1=$AC$2),\"\",INDEX(OFFSET(F!$A$3:$A$201,200*($U$1-1),R$12),MATCH($B31,OFFSET(F!$A$3:$A$201,200*($U$1-1),0),0)))","v":""},{"$f":"IF($X31=\"\",\"\",INDEX(OFFSET(F!$A$3:$A$201,200*($U$1-1),S$12),MATCH($B31,OFFSET(F!$A$3:$A$201,200*($U$1-1),0),0)))","v":20},{"$f":"IF($X31=\"\",\"\",INDEX(OFFSET(F!$A$3:$A$201,200*($U$1-1),T$12),MATCH($B31,OFFSET(F!$A$3:$A$201,200*($U$1-1),0),0)))","v":30},{"$f":"IF($X31=\"\",\"\",INDEX(OFFSET(F!$A$3:$A$201,200*($U$1-1),U$12),MATCH($B31,OFFSET(F!$A$3:$A$201,200*($U$1-1),0),0)))","v":269},{"$f":"IF($X31=\"\",\"\",INDEX(OFFSET(F!$A$3:$A$201,200*($U$1-1),V$12),MATCH($B31,OFFSET(F!$A$3:$A$201,200*($U$1-1),0),0)))","v":"ناجح"},null,17,null,null,null,null,null,null,null,null,null,null,null,null,null,null,null,null,null,null,null,null,null,null,null,null,null,null,null,null,null,32,32,29,"",28,27,"",34,182,182,182]
[null,18,{"$f":"IF($X32=\"\",\"\",INDEX(OFFSET(F!$A$3:$A$201,200*($U$1-1),C$12),MATCH($B32,OFFSET(F!$A$3:$A$201,200*($U$1-1),0),0)))","v":18},{"$f":"IF($X32=\"\",\"\",INDEX(OFFSET(F!$A$3:$A$201,200*($U$1-1),D$12),MATCH($B32,OFFSET(F!$A$3:$A$201,200*($U$1-1),0),0)))","v":"صالح18"},{"$f":"IF($X32=\"\",\"\",INDEX(OFFSET(F!$A$3:$A$201,200*($U$1-1),E$12),MATCH($B32,OFFSET(F!$A$3:$A$201,200*($U$1-1),0),0)))","v":19},{"$f":"IF($X32=\"\",\"\",INDEX(OFFSET(F!$A$3:$A$201,200*($U$1-1),F$12),MATCH($B32,OFFSET(F!$A$3:$A$201,200*($U$1-1),0),0)))","v":30},{"$f":"IF($X32=\"\",\"\",INDEX(OFFSET(F!$A$3:$A$201,200*($U$1-1),G$12),MATCH($B32,OFFSET(F!$A$3:$A$201,200*($U$1-1),0),0)))","v":18},{"$f":"IF($X32=\"\",\"\",INDEX(OFFSET(F!$A$3:$A$201,200*($U$1-1),H$12),MATCH($B32,OFFSET(F!$A$3:$A$201,200*($U$1-1),0),0)))","v":25},{"$f":"IF($X32=\"\",\"\",INDEX(OFFSET(F!$A$3:$A$201,200*($U$1-1),I$12),MATCH($B32,OFFSET(F!$A$3:$A$201,200*($U$1-1),0),0)))","v":17},{"$f":"IF($X32=\"\",\"\",INDEX(OFFSET(F!$A$3:$A$201,200*($U$1-1),J$12),MATCH($B32,OFFSET(F!$A$3:$A$201,200*($U$1-1),0),0)))","v":23},{"$f":"IF($X32=\"\",\"\",IF(OR($Y$1=$AC$7,$Y$1=$AC$8),INDEX(OFFSET(F!$A$3:$A$201,200*($U$1-1),K$12),MATCH($B32,OFFSET(F!$A$3:$A$201,200*($U$1-1),0),0)),\"\"))","v":""},{"$f":"IF($X32=\"\",\"\",IF(OR($Y$1=$AC$7,$Y$1=$AC$8),INDEX(OFFSET(F!$A$3:$A$201,200*($U$1-1),L$12),MATCH($B32,OFFSET(F!$A$3:$A$201,200*($U$1-1),0),0)),\"\"))","v":""},{"$f":"IF($X32=\"\",\"\",INDEX(OFFSET(F!$A$3:$A$201,200*($U$1-1),M$12),MATCH($B32,OFFSET(F!$A$3:$A$201,200*($U$1-1),0),0)))","v":16},{"$f":"IF($X32=\"\",\"\",INDEX(OFFSET(F!$A$3:$A$201,200*($U$1-1),N$12),MATCH($B32,OFFSET(F!$A$3:$A$201,200*($U$1-1),0),0)))","v":24},{"$f":"IF($X32=\"\",\"\",INDEX(OFFSET(F!$A$3:$A$201,200*($U$1-1),O$12),MATCH($B32,OFFSET(F!$A$3:$A$201,200*($U$1-1),0),0)))","v":15},{"$f":"IF($X32=\"\",\"\",INDEX(OFFSET(F!$A$3:$A$201,200*($U$1-1),P$12),MATCH($B32,OFFSET(F!$A$3:$A$201,200*($U$1-1),0),0)))","v":25},{"$f":"IF(OR($X32=\"\",$Y$1=$AC$1,$Y$1=$AC$2),\"\",INDEX(OFFSET(F!$A$3:$A$201,200*($U$1-1),Q$12),MATCH($B32,OFFSET(F!$A$3:$A$201,200*($U$1-1),0),0)))","v":""},{"$f":"IF(OR($X32=\"\",$Y$1=$AC$1,$Y$1=$AC$2),\"\",INDEX(OFFSET(F!$A$3:$A$201,200*($U$1-1),R$12),MATCH($B32,OFFSET(F!$A$3:$A$201,200*($U$1-1),0),0)))","v":""},{"$f":"IF($X32=\"\",\"\",INDEX(OFFSET(F!$A$3:$A$201,200*($U$1-1),S$12),MATCH($B32,OFFSET(F!$A$3:$A$201,200*($U$1-1),0),0)))","v":18},{"$f":"IF($X32=\"\",\"\",INDEX(OFFSET(F!$A$3:$A$201,200*($U$1-1),T$12),MATCH($B32,OFFSET(F!$A$3:$A$201,200*($U$1-1),0),0)))","v":27},{"$f":"IF($X32=\"\",\"\",INDEX(OFFSET(F!$A$3:$A$201,200*($U$1-1),U$12),MATCH($B32,OFFSET(F!$A$3:$A$201,200*($U$1-1),0),0)))","v":257},{"$f":"IF($X32=\"\",\"\",INDEX(OFFSET(F!$A$3:$A$201,200*($U$1-1),V$12),MATCH($B32,OFFSET(F!$A$3:$A$201,200*($U$1-1),0),0)))","v":"ناجح"},null,18]
[null,19,{"$f":"IF($X33=\"\",\"\",INDEX(OFFSET(F!$A$3:$A$201,200*($U$1-1),C$12),MATCH($B33,OFFSET(F!$A$3:$A$201,200*($U$1-1),0),0)))","v":19},{"$f":"IF($X33=\"\",\"\",INDEX(OFFSET(F!$A$3:$A$201,200*($U$1-1),D$12),MATCH($B33,OFFSET(F!$A$3:$A$201,200*($U$1-1),0),0)))","v":"صالح19"},{"$f":"IF($X33=\"\",\"\",INDEX(OFFSET(F!$A$3:$A$201,200*($U$1-1),E$12),MATCH($B33,OFFSET(F!$A$3:$A$201,200*($U$1-1),0),0)))","v":14},{"$f":"IF($X33=\"\",\"\",INDEX(OFFSET(F!$A$3:$A$201,200*($U$1-1),F$12),MATCH($B33,OFFSET(F!$A$3:$A$201,200*($U$1-1),0),0)))","v":20},{"$f":"IF($X33=\"\",\"\",INDEX(OFFSET(F!$A$3:$A$201,200*($U$1-1),G$12),MATCH($B33,OFFSET(F!$A$3:$A$201,200*($U$1-1),0),0)))","v":15},{"$f":"IF($X33=\"\",\"\",INDEX(OFFSET(F!$A$3:$A$201,200*($U$1-1),H$12),MATCH($B33,OFFSET(F!$A$3:$A$201,200*($U$1-1),0),0)))","v":20},{"$f":"IF($X33=\"\",\"\",INDEX(OFFSET(F!$A$3:$A$201,200*($U$1-1),I$12),MATCH($B33,OFFSET(F!$A$3:$A$201,200*($U$1-1),0),0)))","v":14},{"$f":"IF($X33=\"\",\"\",INDEX(OFFSET(F!$A$3:$A$201,200*($U$1-1),J$12),MATCH($B33,OFFSET(F!$A$3:$A$201,200*($U$1-1),0),0)))","v":18},{"$f":"IF($X33=\"\",\"\",IF(OR($Y$1=$AC$7,$Y$1=$AC$8),INDEX(OFFSET(F!$A$3:$A$201,200*($U$1-1),K$12),MATCH($B33,OFFSET(F!$A$3:$A$201,200*($U$1-1),0),0)),\"\"))","v":""},{"$f":"IF($X33=\"\",\"\",IF(OR($Y$1=$AC$7,$Y$1=$AC$8),INDEX(OFFSET(F!$A$3:$A$201,200*($U$1-1),L$12),MATCH($B33,OFFSET(F!$A$3:$A$201,200*($U$1-1),0),0)),\"\"))","v":""},{"$f":"IF($X33=\"\",\"\",INDEX(OFFSET(F!$A$3:$A$201,200*($U$1-1),M$12),MATCH($B33,OFFSET(F!$A$3:$A$201,200*($U$1-1),0),0)))","v":14},{"$f":"IF($X33=\"\",\"\",INDEX(OFFSET(F!$A$3:$A$201,200*($U$1-1),N$12),MATCH($B33,OFFSET(F!$A$3:$A$201,200*($U$1-1),0),0)))","v":20},{"$f":"IF($X33=\"\",\"\",INDEX(OFFSET(F!$A$3:$A$201,200*($U$1-1),O$12),MATCH($B33,OFFSET(F!$A$3:$A$201,200*($U$1-1),0),0)))","v":15},{"$f":"IF($X33=\"\",\"\",INDEX(OFFSET(F!$A$3:$A$201,200*($U$1-1),P$12),MATCH($B33,OFFSET(F!$A$3:$A$201,200*($U$1-1),0),0)))","v":20},{"$f":"IF(OR($X33=\"\",$Y$1=$AC$1,$Y$1=$AC$2),\"\",INDEX(OFFSET(F!$A$3:$A$201,200*($U$1-1),Q$12),MATCH($B33,OFFSET(F!$A$3:$A$201,200*($U$1-1),0),0)))","v":""},{"$f":"IF(OR($X33=\"\",$Y$1=$AC$1,$Y$1=$AC$2),\"\",INDEX(OFFSET(F!$A$3:$A$201,200*($U$1-1),R$12),MATCH($B33,OFFSET(F!$A$3:$A$201,200*($U$1-1),0),0)))","v":""},{"$f":"IF($X33=\"\",\"\",INDEX(OFFSET(F!$A$3:$A$201,200*($U$1-1),S$12),MATCH($B33,OFFSET(F!$A$3:$A$201,200*($U$1-1),0),0)))","v":16},{"$f":"IF($X33=\"\",\"\",INDEX(OFFSET(F!$A$3:$A$201,200*($U$1-1),T$12),MATCH($B33,OFFSET(F!$A$3:$A$201,200*($U$1-1),0),0)))","v":24},{"$f":"IF($X33=\"\",\"\",INDEX(OFFSET(F!$A$3:$A$201,200*($U$1-1),U$12),MATCH($B33,OFFSET(F!$A$3:$A$201,200*($U$1-1),0),0)))","v":210},{"$f":"IF($X33=\"\",\"\",INDEX(OFFSET(F!$A$3:$A$201,200*($U$1-1),V$12),MATCH($B33,OFFSET(F!$A$3:$A$201,200*($U$1-1),0),0)))","v":"ناجح"},null,19]
[null,20,{"$f":"IF($X34=\"\",\"\",INDEX(OFFSET(F!$A$3:$A$201,200*($U$1-1),C$12),MATCH($B34,OFFSET(F!$A$3:$A$201,200*($U$1-1),0),0)))","v":20},{"$f":"IF($X34=\"\",\"\",INDEX(OFFSET(F!$A$3:$A$201,200*($U$1-1),D$12),MATCH($B34,OFFSET(F!$A$3:$A$201,200*($U$1-1),0),0)))","v":"صالح20"},{"$f":"IF($X34=\"\",\"\",INDEX(OFFSET(F!$A$3:$A$201,200*($U$1-1),E$12),MATCH($B34,OFFSET(F!$A$3:$A$201,200*($U$1-1),0),0)))","v":12},{"$f":"IF($X34=\"\",\"\",INDEX(OFFSET(F!$A$3:$A$201,200*($U$1-1),F$12),MATCH($B34,OFFSET(F!$A$3:$A$201,200*($U$1-1),0),0)))","v":15},{"$f":"IF($X34=\"\",\"\",INDEX(OFFSET(F!$A$3:$A$201,200*($U$1-1),G$12),MATCH($B34,OFFSET(F!$A$3:$A$201,200*($U$1-1),0),0)))","v":12},{"$f":"IF($X34=\"\",\"\",INDEX(OFFSET(F!$A$3:$A$201,200*($U$1-1),H$12),MATCH($B34,OFFSET(F!$A$3:$A$201,200*($U$1-1),0),0)))","v":18},{"$f":"IF($X34=\"\",\"\",INDEX(OFFSET(F!$A$3:$A$201,200*($U$1-1),I$12),MATCH($B34,OFFSET(F!$A$3:$A$201,200*($U$1-1),0),0)))","v":12},{"$f":"IF($X34=\"\",\"\",INDEX(OFFSET(F!$A$3:$A$201,200*($U$1-1),J$12),MATCH($B34,OFFSET(F!$A$3:$A$201,200*($U$1-1),0),0)))","v":15},{"$f":"IF($X34=\"\",\"\",IF(OR($Y$1=$AC$7,$Y$1=$AC$8),INDEX(OFFSET(F!$A$3:$A$201,200*($U$1-1),K$12),MATCH($B34,OFFSET(F!$A$3:$A$201,200*($U$1-1),0),0)),\"\"))","v":""},{"$f":"IF($X34=\"\",\"\",IF(OR($Y$1=$AC$7,$Y$1=$AC$8),INDEX(OFFSET(F!$A$3:$A$201,200*($U$1-1),L$12),MATCH($B34,OFFSET(F!$A$3:$A$201,200*($U$1-1),0),0)),\"\"))","v":""},{"$f":"IF($X34=\"\",\"\",INDEX(OFFSET(F!$A$3:$A$201,200*($U$1-1),M$12),MATCH($B34,OFFSET(F!$A$3:$A$201,200*($U$1-1),0),0)))","v":13},{"$f":"IF($X34=\"\",\"\",INDEX(OFFSET(F!$A$3:$A$201,200*($U$1-1),N$12),MATCH($B34,OFFSET(F!$A$3:$A$201,200*($U$1-1),0),0)))","v":15},{"$f":"IF($X34=\"\",\"\",INDEX(OFFSET(F!$A$3:$A$201,200*($U$1-1),O$12),MATCH($B34,OFFSET(F!$A$3:$A$201,200*($U$1-1),0),0)))","v":14},{"$f":"IF($X34=\"\",\"\",INDEX(OFFSET(F!$A$3:$A$201,200*($U$1-1),P$12),MATCH($B34,OFFSET(F!$A$3:$A$201,200*($U$1-1),0),0)))","v":20},{"$f":"IF(OR($X34=\"\",$Y$1=$AC$1,$Y$1=$AC$2),\"\",INDEX(OFFSET(F!$A$3:$A$201,200*($U$1-1),Q$12),MATCH($B34,OFFSET(F!$A$3:$A$201,200*($U$1-1),0),0)))","v":""},{"$f":"IF(OR($X34=\"\",$Y$1=$AC$1,$Y$1=$AC$2),\"\",INDEX(OFFSET(F!$A$3:$A$201,200*($U$1-1),R$12),MATCH($B34,OFFSET(F!$A$3:$A$201,200*($U$1-1),0),0)))","v":""},{"$f":"IF($X34=\"\",\"\",INDEX(OFFSET(F!$A$3:$A$201,200*($U$1-1),S$12),MATCH($B34,OFFSET(F!$A$3:$A$201,200*($U$1-1),0),0)))","v":15},{"$f":"IF($X34=\"\",\"\",INDEX(OFFSET(F!$A$3:$A$201,200*($U$1-1),T$12),MATCH($B34,OFFSET(F!$A$3:$A$201,200*($U$1-1),0),0)))","v":20},{"$f":"IF($X34=\"\",\"\",INDEX(OFFSET(F!$A$3:$A$201,200*($U$1-1),U$12),MATCH($B34,OFFSET(F!$A$3:$A$201,200*($U$1-1),0),0)))","v":181},{"$f":"IF($X34=\"\",\"\",INDEX(OFFSET(F!$A$3:$A$201,200*($U$1-1),V$12),MATCH($B34,OFFSET(F!$A$3:$A$201,200*($U$1-1),0),0)))","v":"ناجح"},null,20]
[null,21,{"$f":"IF($X35=\"\",\"\",INDEX(OFFSET(F!$A$3:$A$201,200*($U$1-1),C$12),MATCH($B35,OFFSET(F!$A$3:$A$201,200*($U$1-1),0),0)))","v":21},{"$f":"IF($X35=\"\",\"\",INDEX(OFFSET(F!$A$3:$A$201,200*($U$1-1),D$12),MATCH($B35,OFFSET(F!$A$3:$A$201,200*($U$1-1),0),0)))","v":"غنية1"},{"$f":"IF($X35=\"\",\"\",INDEX(OFFSET(F!$A$3:$A$201,200*($U$1-1),E$12),MATCH($B35,OFFSET(F!$A$3:$A$201,200*($U$1-1),0),0)))","v":20},{"$f":"IF($X35=\"\",\"\",INDEX(OFFSET(F!$A$3:$A$201,200*($U$1-1),F$12),MATCH($B35,OFFSET(F!$A$3:$A$201,200*($U$1-1),0),0)))","v":30},{"$f":"IF($X35=\"\",\"\",INDEX(OFFSET(F!$A$3:$A$201,200*($U$1-1),G$12),MATCH($B35,OFFSET(F!$A$3:$A$201,200*($U$1-1),0),0)))","v":20},{"$f":"IF($X35=\"\",\"\",INDEX(OFFSET(F!$A$3:$A$201,200*($U$1-1),H$12),MATCH($B35,OFFSET(F!$A$3:$A$201,200*($U$1-1),0),0)))","v":30},{"$f":"IF($X35=\"\",\"\",INDEX(OFFSET(F!$A$3:$A$201,200*($U$1-1),I$12),MATCH($B35,OFFSET(F!$A$3:$A$201,200*($U$1-1),0),0)))","v":20},{"$f":"IF($X35=\"\",\"\",INDEX(OFFSET(F!$A$3:$A$201,200*($U$1-1),J$12),MATCH($B35,OFFSET(F!$A$3:$A$201,200*($U$1-1),0),0)))","v":30},{"$f":"IF($X35=\"\",\"\",IF(OR($Y$1=$AC$7,$Y$1=$AC$8),INDEX(OFFSET(F!$A$3:$A$201,200*($U$1-1),K$12),MATCH($B35,OFFSET(F!$A$3:$A$201,200*($U$1-1),0),0)),\"\"))","v":""},{"$f":"IF($X35=\"\",\"\",IF(OR($Y$1=$AC$7,$Y$1=$AC$8),INDEX(OFFSET(F!$A$3:$A$201,200*($U$1-1),L$12),MATCH($B35,OFFSET(F!$A$3:$A$201,200*($U$1-1),0),0)),\"\"))","v":""},{"$f":"IF($X35=\"\",\"\",INDEX(OFFSET(F!$A$3:$A$201,200*($U$1-1),M$12),MATCH($B35,OFFSET(F!$A$3:$A$201,200*($U$1-1),0),0)))","v":17},{"$f":"IF($X35=\"\",\"\",INDEX(OFFSET(F!$A$3:$A$201,200*($U$1-1),N$12),MATCH($B35,OFFSET(F!$A$3:$A$201,200*($U$1-1),0),0)))","v":28},{"$f":"IF($X35=\"\",\"\",INDEX(OFFSET(F!$A$3:$A$201,200*($U$1-1),O$12),MATCH($B35,OFFSET(F!$A$3:$A$201,200*($U$1-1),0),0)))","v":20},{"$f":"IF($X35=\"\",\"\",INDEX(OFFSET(F!$A$3:$A$201,200*($U$1-1),P$12),MATCH($B35,OFFSET(F!$A$3:$A$201,200*($U$1-1),0),0)))","v":28},{"$f":"IF(OR($X35=\"\",$Y$1=$AC$1,$Y$1=$AC$2),\"\",INDEX(OFFSET(F!$A$3:$A$201,200*($U$1-1),Q$12),MATCH($B35,OFFSET(F!$A$3:$A$201,200*($U$1-1),0),0)))","v":""},{"$f":"IF(OR($X35=\"\",$Y$1=$AC$1,$Y$1=$AC$2),\"\",INDEX(OFFSET(F!$A$3:$A$201,200*($U$1-1),R$12),MATCH($B35,OFFSET(F!$A$3:$A$201,200*($U$1-1),0),0)))","v":""},{"$f":"IF($X35=\"\",\"\",INDEX(OFFSET(F!$A$3:$A$201,200*($U$1-1),S$12),MATCH($B35,OFFSET(F!$A$3:$A$201,200*($U$1-1),0),0)))","v":20},{"$f":"IF($X35=\"\",\"\",INDEX(OFFSET(F!$A$3:$A$201,200*($U$1-1),T$12),MATCH($B35,OFFSET(F!$A$3:$A$201,200*($U$1-1),0),0)))","v":30},{"$f":"IF($X35=\"\",\"\",INDEX(OFFSET(F!$A$3:$A$201,200*($U$1-1),U$12),MATCH($B35,OFFSET(F!$A$3:$A$201,200*($U$1-1),0),0)))","v":293},{"$f":"IF($X35=\"\",\"\",INDEX(OFFSET(F!$A$3:$A$201,200*($U$1-1),V$12),MATCH($B35,OFFSET(F!$A$3:$A$201,200*($U$1-1),0),0)))","v":"ناجحة"},null,21]
[null,22,{"$f":"IF($X36=\"\",\"\",INDEX(OFFSET(F!$A$3:$A$201,200*($U$1-1),C$12),MATCH($B36,OFFSET(F!$A$3:$A$201,200*($U$1-1),0),0)))","v":22},{"$f":"IF($X36=\"\",\"\",INDEX(OFFSET(F!$A$3:$A$201,200*($U$1-1),D$12),MATCH($B36,OFFSET(F!$A$3:$A$201,200*($U$1-1),0),0)))","v":"غنية2"},{"$f":"IF($X36=\"\",\"\",INDEX(OFFSET(F!$A$3:$A$201,200*($U$1-1),E$12),MATCH($B36,OFFSET(F!$A$3:$A$201,200*($U$1-1),0),0)))","v":18},{"$f":"IF($X36=\"\",\"\",INDEX(OFFSET(F!$A$3:$A$201,200*($U$1-1),F$12),MATCH($B36,OFFSET(F!$A$3:$A$201,200*($U$1-1),0),0)))","v":29},{"$f":"IF($X36=\"\",\"\",INDEX(OFFSET(F!$A$3:$A$201,200*($U$1-1),G$12),MATCH($B36,OFFSET(F!$A$3:$A$201,200*($U$1-1),0),0)))","v":18},{"$f":"IF($X36=\"\",\"\",INDEX(OFFSET(F!$A$3:$A$201,200*($U$1-1),H$12),MATCH($B36,OFFSET(F!$A$3:$A$201,200*($U$1-1),0),0)))","v":29},{"$f":"IF($X36=\"\",\"\",INDEX(OFFSET(F!$A$3:$A$201,200*($U$1-1),I$12),MATCH($B36,OFFSET(F!$A$3:$A$201,200*($U$1-1),0),0)))","v":18},{"$f":"IF($X36=\"\",\"\",INDEX(OFFSET(F!$A$3:$A$201,200*($U$1-1),J$12),MATCH($B36,OFFSET(F!$A$3:$A$201,200*($U$1-1),0),0)))","v":29},{"$f":"IF($X36=\"\",\"\",IF(OR($Y$1=$AC$7,$Y$1=$AC$8),INDEX(OFFSET(F!$A$3:$A$201,200*($U$1-1),K$12),MATCH($B36,OFFSET(F!$A$3:$A$201,200*($U$1-1),0),0)),\"\"))","v":""},{"$f":"IF($X36=\"\",\"\",IF(OR($Y$1=$AC$7,$Y$1=$AC$8),INDEX(OFFSET(F!$A$3:$A$201,200*($U$1-1),L$12),MATCH($B36,OFFSET(F!$A$3:$A$201,200*($U$1-1),0),0)),\"\"))","v":""},{"$f":"IF($X36=\"\",\"\",INDEX(OFFSET(F!$A$3:$A$201,200*($U$1-1),M$12),MATCH($B36,OFFSET(F!$A$3:$A$201,200*($U$1-1),0),0)))","v":17},{"$f":"IF($X36=\"\",\"\",INDEX(OFFSET(F!$A$3:$A$201,200*($U$1-1),N$12),MATCH($B36,OFFSET(F!$A$3:$A$201,200*($U$1-1),0),0)))","v":25},{"$f":"IF($X36=\"\",\"\",INDEX(OFFSET(F!$A$3:$A$201,200*($U$1-1),O$12),MATCH($B36,OFFSET(F!$A$3:$A$201,200*($U$1-1),0),0)))","v":17},{"$f":"IF($X36=\"\",\"\",INDEX(OFFSET(F!$A$3:$A$201,200*($U$1-1),P$12),MATCH($B36,OFFSET(F!$A$3:$A$201,200*($U$1-1),0),0)))","v":25},{"$f":"IF(OR($X36=\"\",$Y$1=$AC$1,$Y$1=$AC$2),\"\",INDEX(OFFSET(F!$A$3:$A$201,200*($U$1-1),Q$12),MATCH($B36,OFFSET(F!$A$3:$A$201,200*($U$1-1),0),0)))","v":""},{"$f":"IF(OR($X36=\"\",$Y$1=$AC$1,$Y$1=$AC$2),\"\",INDEX(OFFSET(F!$A$3:$A$201,200*($U$1-1),R$12),MATCH($B36,OFFSET(F!$A$3:$A$201,200*($U$1-1),0),0)))","v":""},{"$f":"IF($X36=\"\",\"\",INDEX(OFFSET(F!$A$3:$A$201,200*($U$1-1),S$12),MATCH($B36,OFFSET(F!$A$3:$A$201,200*($U$1-1),0),0)))","v":17},{"$f":"IF($X36=\"\",\"\",INDEX(OFFSET(F!$A$3:$A$201,200*($U$1-1),T$12),MATCH($B36,OFFSET(F!$A$3:$A$201,200*($U$1-1),0),0)))","v":17},{"$f":"IF($X36=\"\",\"\",INDEX(OFFSET(F!$A$3:$A$201,200*($U$1-1),U$12),MATCH($B36,OFFSET(F!$A$3:$A$201,200*($U$1-1),0),0)))","v":259},{"$f":"IF($X36=\"\",\"\",INDEX(OFFSET(F!$A$3:$A$201,200*($U$1-1),V$12),MATCH($B36,OFFSET(F!$A$3:$A$201,200*($U$1-1),0),0)))","v":"ناجحة"},null,22]
[null,23,{"$f":"IF($X37=\"\",\"\",INDEX(OFFSET(F!$A$3:$A$201,200*($U$1-1),C$12),MATCH($B37,OFFSET(F!$A$3:$A$201,200*($U$1-1),0),0)))","v":23},{"$f":"IF($X37=\"\",\"\",INDEX(OFFSET(F!$A$3:$A$201,200*($U$1-1),D$12),MATCH($B37,OFFSET(F!$A$3:$A$201,200*($U$1-1),0),0)))","v":"غنية3"},{"$f":"IF($X37=\"\",\"\",INDEX(OFFSET(F!$A$3:$A$201,200*($U$1-1),E$12),MATCH($B37,OFFSET(F!$A$3:$A$201,200*($U$1-1),0),0)))","v":10},{"$f":"IF($X37=\"\",\"\",INDEX(OFFSET(F!$A$3:$A$201,200*($U$1-1),F$12),MATCH($B37,OFFSET(F!$A$3:$A$201,200*($U$1-1),0),0)))","v":10},{"$f":"IF($X37=\"\",\"\",INDEX(OFFSET(F!$A$3:$A$201,200*($U$1-1),G$12),MATCH($B37,OFFSET(F!$A$3:$A$201,200*($U$1-1),0),0)))","v":10},{"$f":"IF($X37=\"\",\"\",INDEX(OFFSET(F!$A$3:$A$201,200*($U$1-1),H$12),MATCH($B37,OFFSET(F!$A$3:$A$201,200*($U$1-1),0),0)))","v":10},{"$f":"IF($X37=\"\",\"\",INDEX(OFFSET(F!$A$3:$A$201,200*($U$1-1),I$12),MATCH($B37,OFFSET(F!$A$3:$A$201,200*($U$1-1),0),0)))","v":15},{"$f":"IF($X37=\"\",\"\",INDEX(OFFSET(F!$A$3:$A$201,200*($U$1-1),J$12),MATCH($B37,OFFSET(F!$A$3:$A$201,200*($U$1-1),0),0)))","v":"غ"},{"$f":"IF($X37=\"\",\"\",IF(OR($Y$1=$AC$7,$Y$1=$AC$8),INDEX(OFFSET(F!$A$3:$A$201,200*($U$1-1),K$12),MATCH($B37,OFFSET(F!$A$3:$A$201,200*($U$1-1),0),0)),\"\"))","v":""},{"$f":"IF($X37=\"\",\"\",IF(OR($Y$1=$AC$7,$Y$1=$AC$8),INDEX(OFFSET(F!$A$3:$A$201,200*($U$1-1),L$12),MATCH($B37,OFFSET(F!$A$3:$A$201,200*($U$1-1),0),0)),\"\"))","v":""},{"$f":"IF($X37=\"\",\"\",INDEX(OFFSET(F!$A$3:$A$201,200*($U$1-1),M$12),MATCH($B37,OFFSET(F!$A$3:$A$201,200*($U$1-1),0),0)))","v":10},{"$f":"IF($X37=\"\",\"\",INDEX(OFFSET(F!$A$3:$A$201,200*($U$1-1),N$12),MATCH($B37,OFFSET(F!$A$3:$A$201,200*($U$1-1),0),0)))","v":11},{"$f":"IF($X37=\"\",\"\",INDEX(OFFSET(F!$A$3:$A$201,200*($U$1-1),O$12),MATCH($B37,OFFSET(F!$A$3:$A$201,200*($U$1-1),0),0)))","v":10},{"$f":"IF($X37=\"\",\"\",INDEX(OFFSET(F!$A$3:$A$201,200*($U$1-1),P$12),MATCH($B37,OFFSET(F!$A$3:$A$201,200*($U$1-1),0),0)))","v":"غ"},{"$f":"IF(OR($X37=\"\",$Y$1=$AC$1,$Y$1=$AC$2),\"\",INDEX(OFFSET(F!$A$3:$A$201,200*($U$1-1),Q$12),MATCH($B37,OFFSET(F!$A$3:$A$201,200*($U$1-1),0),0)))","v":""},{"$f":"IF(OR($X37=\"\",$Y$1=$AC$1,$Y$1=$AC$2),\"\",INDEX(OFFSET(F!$A$3:$A$201,200*($U$1-1),R$12),MATCH($B37,OFFSET(F!$A$3:$A$201,200*($U$1-1),0),0)))","v":""},{"$f":"IF($X37=\"\",\"\",INDEX(OFFSET(F!$A$3:$A$201,200*($U$1-1),S$12),MATCH($B37,OFFSET(F!$A$3:$A$201,200*($U$1-1),0),0)))","v":10},{"$f":"IF($X37=\"\",\"\",INDEX(OFFSET(F!$A$3:$A$201,200*($U$1-1),T$12),MATCH($B37,OFFSET(F!$A$3:$A$201,200*($U$1-1),0),0)))","v":10},{"$f":"IF($X37=\"\",\"\",INDEX(OFFSET(F!$A$3:$A$201,200*($U$1-1),U$12),MATCH($B37,OFFSET(F!$A$3:$A$201,200*($U$1-1),0),0)))","v":"-"},{"$f":"IF($X37=\"\",\"\",INDEX(OFFSET(F!$A$3:$A$201,200*($U$1-1),V$12),MATCH($B37,OFFSET(F!$A$3:$A$201,200*($U$1-1),0),0)))","v":"غائبة"},null,23]
[null,24,{"$f":"IF($X38=\"\",\"\",INDEX(OFFSET(F!$A$3:$A$201,200*($U$1-1),C$12),MATCH($B38,OFFSET(F!$A$3:$A$201,200*($U$1-1),0),0)))","v":24},{"$f":"IF($X38=\"\",\"\",INDEX(OFFSET(F!$A$3:$A$201,200*($U$1-1),D$12),MATCH($B38,OFFSET(F!$A$3:$A$201,200*($U$1-1),0),0)))","v":"غنية4"},{"$f":"IF($X38=\"\",\"\",INDEX(OFFSET(F!$A$3:$A$201,200*($U$1-1),E$12),MATCH($B38,OFFSET(F!$A$3:$A$201,200*($U$1-1),0),0)))","v":14},{"$f":"IF($X38=\"\",\"\",INDEX(OFFSET(F!$A$3:$A$201,200*($U$1-1),F$12),MATCH($B38,OFFSET(F!$A$3:$A$201,200*($U$1-1),0),0)))","v":18},{"$f":"IF($X38=\"\",\"\",INDEX(OFFSET(F!$A$3:$A$201,200*($U$1-1),G$12),MATCH($B38,OFFSET(F!$A$3:$A$201,200*($U$1-1),0),0)))","v":14},{"$f":"IF($X38=\"\",\"\",INDEX(OFFSET(F!$A$3:$A$201,200*($U$1-1),H$12),MATCH($B38,OFFSET(F!$A$3:$A$201,200*($U$1-1),0),0)))","v":18},{"$f":"IF($X38=\"\",\"\",INDEX(OFFSET(F!$A$3:$A$201,200*($U$1-1),I$12),MATCH($B38,OFFSET(F!$A$3:$A$201,200*($U$1-1),0),0)))","v":12},{"$f":"IF($X38=\"\",\"\",INDEX(OFFSET(F!$A$3:$A$201,200*($U$1-1),J$12),MATCH($B38,OFFSET(F!$A$3:$A$201,200*($U$1-1),0),0)))","v":14},{"$f":"IF($X38=\"\",\"\",IF(OR($Y$1=$AC$7,$Y$1=$AC$8),INDEX(OFFSET(F!$A$3:$A$201,200*($U$1-1),K$12),MATCH($B38,OFFSET(F!$A$3:$A$201,200*($U$1-1),0),0)),\"\"))","v":""},{"$f":"IF($X38=\"\",\"\",IF(OR($Y$1=$AC$7,$Y$1=$AC$8),INDEX(OFFSET(F!$A$3:$A$201,200*($U$1-1),L$12),MATCH($B38,OFFSET(F!$A$3:$A$201,200*($U$1-1),0),0)),\"\"))","v":""},{"$f":"IF($X38=\"\",\"\",INDEX(OFFSET(F!$A$3:$A$201,200*($U$1-1),M$12),MATCH($B38,OFFSET(F!$A$3:$A$201,200*($U$1-1),0),0)))","v":14},{"$f":"IF($X38=\"\",\"\",INDEX(OFFSET(F!$A$3:$A$201,200*($U$1-1),N$12),MATCH($B38,OFFSET(F!$A$3:$A$201,200*($U$1-1),0),0)))","v":14},{"$f":"IF($X38=\"\",\"\",INDEX(OFFSET(F!$A$3:$A$201,200*($U$1-1),O$12),MATCH($B38,OFFSET(F!$A$3:$A$201,200*($U$1-1),0),0)))","v":14},{"$f":"IF($X38=\"\",\"\",INDEX(OFFSET(F!$A$3:$A$201,200*($U$1-1),P$12),MATCH($B38,OFFSET(F!$A$3:$A$201,200*($U$1-1),0),0)))","v":14},{"$f":"IF(OR($X38=\"\",$Y$1=$AC$1,$Y$1=$AC$2),\"\",INDEX(OFFSET(F!$A$3:$A$201,200*($U$1-1),Q$12),MATCH($B38,OFFSET(F!$A$3:$A$201,200*($U$1-1),0),0)))","v":""},{"$f":"IF(OR($X38=\"\",$Y$1=$AC$1,$Y$1=$AC$2),\"\",INDEX(OFFSET(F!$A$3:$A$201,200*($U$1-1),R$12),MATCH($B38,OFFSET(F!$A$3:$A$201,200*($U$1-1),0),0)))","v":""},{"$f":"IF($X38=\"\",\"\",INDEX(OFFSET(F!$A$3:$A$201,200*($U$1-1),S$12),MATCH($B38,OFFSET(F!$A$3:$A$201,200*($U$1-1),0),0)))","v":15},{"$f":"IF($X38=\"\",\"\",INDEX(OFFSET(F!$A$3:$A$201,200*($U$1-1),T$12),MATCH($B38,OFFSET(F!$A$3:$A$201,200*($U$1-1),0),0)))","v":20},{"$f":"IF($X38=\"\",\"\",INDEX(OFFSET(F!$A$3:$A$201,200*($U$1-1),U$12),MATCH($B38,OFFSET(F!$A$3:$A$201,200*($U$1-1),0),0)))","v":181},{"$f":"IF($X38=\"\",\"\",INDEX(OFFSET(F!$A$3:$A$201,200*($U$1-1),V$12),MATCH($B38,OFFSET(F!$A$3:$A$201,200*($U$1-1),0),0)))","v":"ناجحة"},null,24]
[null,25,{"$f":"IF($X39=\"\",\"\",INDEX(OFFSET(F!$A$3:$A$201,200*($U$1-1),C$12),MATCH($B39,OFFSET(F!$A$3:$A$201,200*($U$1-1),0),0)))","v":25},{"$f":"IF($X39=\"\",\"\",INDEX(OFFSET(F!$A$3:$A$201,200*($U$1-1),D$12),MATCH($B39,OFFSET(F!$A$3:$A$201,200*($U$1-1),0),0)))","v":"غنية5"},{"$f":"IF($X39=\"\",\"\",INDEX(OFFSET(F!$A$3:$A$201,200*($U$1-1),E$12),MATCH($B39,OFFSET(F!$A$3:$A$201,200*($U$1-1),0),0)))","v":19},{"$f":"IF($X39=\"\",\"\",INDEX(OFFSET(F!$A$3:$A$201,200*($U$1-1),F$12),MATCH($B39,OFFSET(F!$A$3:$A$201,200*($U$1-1),0),0)))","v":29},{"$f":"IF($X39=\"\",\"\",INDEX(OFFSET(F!$A$3:$A$201,200*($U$1-1),G$12),MATCH($B39,OFFSET(F!$A$3:$A$201,200*($U$1-1),0),0)))","v":19},{"$f":"IF($X39=\"\",\"\",INDEX(OFFSET(F!$A$3:$A$201,200*($U$1-1),H$12),MATCH($B39,OFFSET(F!$A$3:$A$201,200*($U$1-1),0),0)))","v":29},{"$f":"IF($X39=\"\",\"\",INDEX(OFFSET(F!$A$3:$A$201,200*($U$1-1),I$12),MATCH($B39,OFFSET(F!$A$3:$A$201,200*($U$1-1),0),0)))","v":18},{"$f":"IF($X39=\"\",\"\",INDEX(OFFSET(F!$A$3:$A$201,200*($U$1-1),J$12),MATCH($B39,OFFSET(F!$A$3:$A$201,200*($U$1-1),0),0)))","v":29},{"$f":"IF($X39=\"\",\"\",IF(OR($Y$1=$AC$7,$Y$1=$AC$8),INDEX(OFFSET(F!$A$3:$A$201,200*($U$1-1),K$12),MATCH($B39,OFFSET(F!$A$3:$A$201,200*($U$1-1),0),0)),\"\"))","v":""},{"$f":"IF($X39=\"\",\"\",IF(OR($Y$1=$AC$7,$Y$1=$AC$8),INDEX(OFFSET(F!$A$3:$A$201,200*($U$1-1),L$12),MATCH($B39,OFFSET(F!$A$3:$A$201,200*($U$1-1),0),0)),\"\"))","v":""},{"$f":"IF($X39=\"\",\"\",INDEX(OFFSET(F!$A$3:$A$201,200*($U$1-1),M$12),MATCH($B39,OFFSET(F!$A$3:$A$201,200*($U$1-1),0),0)))","v":17},{"$f":"IF($X39=\"\",\"\",INDEX(OFFSET(F!$A$3:$A$201,200*($U$1-1),N$12),MATCH($B39,OFFSET(F!$A$3:$A$201,200*($U$1-1),0),0)))","v":20},{"$f":"IF($X39=\"\",\"\",INDEX(OFFSET(F!$A$3:$A$201,200*($U$1-1),O$12),MATCH($B39,OFFSET(F!$A$3:$A$201,200*($U$1-1),0),0)))","v":17},{"$f":"IF($X39=\"\",\"\",INDEX(OFFSET(F!$A$3:$A$201,200*($U$1-1),P$12),MATCH($B39,OFFSET(F!$A$3:$A$201,200*($U$1-1),0),0)))","v":20},{"$f":"IF(OR($X39=\"\",$Y$1=$AC$1,$Y$1=$AC$2),\"\",INDEX(OFFSET(F!$A$3:$A$201,200*($U$1-1),Q$12),MATCH($B39,OFFSET(F!$A$3:$A$201,200*($U$1-1),0),0)))","v":""},{"$f":"IF(OR($X39=\"\",$Y$1=$AC$1,$Y$1=$AC$2),\"\",INDEX(OFFSET(F!$A$3:$A$201,200*($U$1-1),R$12),MATCH($B39,OFFSET(F!$A$3:$A$201,200*($U$1-1),0),0)))","v":""},{"$f":"IF($X39=\"\",\"\",INDEX(OFFSET(F!$A$3:$A$201,200*($U$1-1),S$12),MATCH($B39,OFFSET(F!$A$3:$A$201,200*($U$1-1),0),0)))","v":18},{"$f":"IF($X39=\"\",\"\",INDEX(OFFSET(F!$A$3:$A$201,200*($U$1-1),T$12),MATCH($B39,OFFSET(F!$A$3:$A$201,200*($U$1-1),0),0)))","v":28},{"$f":"IF($X39=\"\",\"\",INDEX(OFFSET(F!$A$3:$A$201,200*($U$1-1),U$12),MATCH($B39,OFFSET(F!$A$3:$A$201,200*($U$1-1),0),0)))","v":263},{"$f":"IF($X39=\"\",\"\",INDEX(OFFSET(F!$A$3:$A$201,200*($U$1-1),V$12),MATCH($B39,OFFSET(F!$A$3:$A$201,200*($U$1-1),0),0)))","v":"ناجحة"},null,25]
[null,26,{"$f":"IF($X40=\"\",\"\",INDEX(OFFSET(F!$A$3:$A$201,200*($U$1-1),C$12),MATCH($B40,OFFSET(F!$A$3:$A$201,200*($U$1-1),0),0)))","v":26},{"$f":"IF($X40=\"\",\"\",INDEX(OFFSET(F!$A$3:$A$201,200*($U$1-1),D$12),MATCH($B40,OFFSET(F!$A$3:$A$201,200*($U$1-1),0),0)))","v":"غنية6"},{"$f":"IF($X40=\"\",\"\",INDEX(OFFSET(F!$A$3:$A$201,200*($U$1-1),E$12),MATCH($B40,OFFSET(F!$A$3:$A$201,200*($U$1-1),0),0)))","v":15},{"$f":"IF($X40=\"\",\"\",INDEX(OFFSET(F!$A$3:$A$201,200*($U$1-1),F$12),MATCH($B40,OFFSET(F!$A$3:$A$201,200*($U$1-1),0),0)))","v":16},{"$f":"IF($X40=\"\",\"\",INDEX(OFFSET(F!$A$3:$A$201,200*($U$1-1),G$12),MATCH($B40,OFFSET(F!$A$3:$A$201,200*($U$1-1),0),0)))","v":15},{"$f":"IF($X40=\"\",\"\",INDEX(OFFSET(F!$A$3:$A$201,200*($U$1-1),H$12),MATCH($B40,OFFSET(F!$A$3:$A$201,200*($U$1-1),0),0)))","v":16},{"$f":"IF($X40=\"\",\"\",INDEX(OFFSET(F!$A$3:$A$201,200*($U$1-1),I$12),MATCH($B40,OFFSET(F!$A$3:$A$201,200*($U$1-1),0),0)))","v":11},{"$f":"IF($X40=\"\",\"\",INDEX(OFFSET(F!$A$3:$A$201,200*($U$1-1),J$12),MATCH($B40,OFFSET(F!$A$3:$A$201,200*($U$1-1),0),0)))","v":14},{"$f":"IF($X40=\"\",\"\",IF(OR($Y$1=$AC$7,$Y$1=$AC$8),INDEX(OFFSET(F!$A$3:$A$201,200*($U$1-1),K$12),MATCH($B40,OFFSET(F!$A$3:$A$201,200*($U$1-1),0),0)),\"\"))","v":""},{"$f":"IF($X40=\"\",\"\",IF(OR($Y$1=$AC$7,$Y$1=$AC$8),INDEX(OFFSET(F!$A$3:$A$201,200*($U$1-1),L$12),MATCH($B40,OFFSET(F!$A$3:$A$201,200*($U$1-1),0),0)),\"\"))","v":""},{"$f":"IF($X40=\"\",\"\",INDEX(OFFSET(F!$A$3:$A$201,200*($U$1-1),M$12),MATCH($B40,OFFSET(F!$A$3:$A$201,200*($U$1-1),0),0)))","v":17},{"$f":"IF($X40=\"\",\"\",INDEX(OFFSET(F!$A$3:$A$201,200*($U$1-1),N$12),MATCH($B40,OFFSET(F!$A$3:$A$201,200*($U$1-1),0),0)))","v":18},{"$f":"IF($X40=\"\",\"\",INDEX(OFFSET(F!$A$3:$A$201,200*($U$1-1),O$12),MATCH($B40,OFFSET(F!$A$3:$A$201,200*($U$1-1),0),0)))","v":17},{"$f":"IF($X40=\"\",\"\",INDEX(OFFSET(F!$A$3:$A$201,200*($U$1-1),P$12),MATCH($B40,OFFSET(F!$A$3:$A$201,200*($U$1-1),0),0)))","v":18},{"$f":"IF(OR($X40=\"\",$Y$1=$AC$1,$Y$1=$AC$2),\"\",INDEX(OFFSET(F!$A$3:$A$201,200*($U$1-1),Q$12),MATCH($B40,OFFSET(F!$A$3:$A$201,200*($U$1-1),0),0)))","v":""},{"$f":"IF(OR($X40=\"\",$Y$1=$AC$1,$Y$1=$AC$2),\"\",INDEX(OFFSET(F!$A$3:$A$201,200*($U$1-1),R$12),MATCH($B40,OFFSET(F!$A$3:$A$201,200*($U$1-1),0),0)))","v":""},{"$f":"IF($X40=\"\",\"\",INDEX(OFFSET(F!$A$3:$A$201,200*($U$1-1),S$12),MATCH($B40,OFFSET(F!$A$3:$A$201,200*($U$1-1),0),0)))","v":13},{"$f":"IF($X40=\"\",\"\",INDEX(OFFSET(F!$A$3:$A$201,200*($U$1-1),T$12),MATCH($B40,OFFSET(F!$A$3:$A$201,200*($U$1-1),0),0)))","v":15},{"$f":"IF($X40=\"\",\"\",INDEX(OFFSET(F!$A$3:$A$201,200*($U$1-1),U$12),MATCH($B40,OFFSET(F!$A$3:$A$201,200*($U$1-1),0),0)))","v":185},{"$f":"IF($X40=\"\",\"\",INDEX(OFFSET(F!$A$3:$A$201,200*($U$1-1),V$12),MATCH($B40,OFFSET(F!$A$3:$A$201,200*($U$1-1),0),0)))","v":"ناجحة"},null,26]
[null,27,{"$f":"IF($X41=\"\",\"\",INDEX(OFFSET(F!$A$3:$A$201,200*($U$1-1),C$12),MATCH($B41,OFFSET(F!$A$3:$A$201,200*($U$1-1),0),0)))","v":27},{"$f":"IF($X41=\"\",\"\",INDEX(OFFSET(F!$A$3:$A$201,200*($U$1-1),D$12),MATCH($B41,OFFSET(F!$A$3:$A$201,200*($U$1-1),0),0)))","v":"غنية7"},{"$f":"IF($X41=\"\",\"\",INDEX(OFFSET(F!$A$3:$A$201,200*($U$1-1),E$12),MATCH($B41,OFFSET(F!$A$3:$A$201,200*($U$1-1),0),0)))","v":14},{"$f":"IF($X41=\"\",\"\",INDEX(OFFSET(F!$A$3:$A$201,200*($U$1-1),F$12),MATCH($B41,OFFSET(F!$A$3:$A$201,200*($U$1-1),0),0)))","v":15},{"$f":"IF($X41=\"\",\"\",INDEX(OFFSET(F!$A$3:$A$201,200*($U$1-1),G$12),MATCH($B41,OFFSET(F!$A$3:$A$201,200*($U$1-1),0),0)))","v":14},{"$f":"IF($X41=\"\",\"\",INDEX(OFFSET(F!$A$3:$A$201,200*($U$1-1),H$12),MATCH($B41,OFFSET(F!$A$3:$A$201,200*($U$1-1),0),0)))","v":15},{"$f":"IF($X41=\"\",\"\",INDEX(OFFSET(F!$A$3:$A$201,200*($U$1-1),I$12),MATCH($B41,OFFSET(F!$A$3:$A$201,200*($U$1-1),0),0)))","v":13},{"$f":"IF($X41=\"\",\"\",INDEX(OFFSET(F!$A$3:$A$201,200*($U$1-1),J$12),MATCH($B41,OFFSET(F!$A$3:$A$201,200*($U$1-1),0),0)))","v":15},{"$f":"IF($X41=\"\",\"\",IF(OR($Y$1=$AC$7,$Y$1=$AC$8),INDEX(OFFSET(F!$A$3:$A$201,200*($U$1-1),K$12),MATCH($B41,OFFSET(F!$A$3:$A$201,200*($U$1-1),0),0)),\"\"))","v":""},{"$f":"IF($X41=\"\",\"\",IF(OR($Y$1=$AC$7,$Y$1=$AC$8),INDEX(OFFSET(F!$A$3:$A$201,200*($U$1-1),L$12),MATCH($B41,OFFSET(F!$A$3:$A$201,200*($U$1-1),0),0)),\"\"))","v":""},{"$f":"IF($X41=\"\",\"\",INDEX(OFFSET(F!$A$3:$A$201,200*($U$1-1),M$12),MATCH($B41,OFFSET(F!$A$3:$A$201,200*($U$1-1),0),0)))","v":12},{"$f":"IF($X41=\"\",\"\",INDEX(OFFSET(F!$A$3:$A$201,200*($U$1-1),N$12),MATCH($B41,OFFSET(F!$A$3:$A$201,200*($U$1-1),0),0)))","v":14},{"$f":"IF($X41=\"\",\"\",INDEX(OFFSET(F!$A$3:$A$201,200*($U$1-1),O$12),MATCH($B41,OFFSET(F!$A$3:$A$201,200*($U$1-1),0),0)))","v":12},{"$f":"IF($X41=\"\",\"\",INDEX(OFFSET(F!$A$3:$A$201,200*($U$1-1),P$12),MATCH($B41,OFFSET(F!$A$3:$A$201,200*($U$1-1),0),0)))","v":14},{"$f":"IF(OR($X41=\"\",$Y$1=$AC$1,$Y$1=$AC$2),\"\",INDEX(OFFSET(F!$A$3:$A$201,200*($U$1-1),Q$12),MATCH($B41,OFFSET(F!$A$3:$A$201,200*($U$1-1),0),0)))","v":""},{"$f":"IF(OR($X41=\"\",$Y$1=$AC$1,$Y$1=$AC$2),\"\",INDEX(OFFSET(F!$A$3:$A$201,200*($U$1-1),R$12),MATCH($B41,OFFSET(F!$A$3:$A$201,200*($U$1-1),0),0)))","v":""},{"$f":"IF($X41=\"\",\"\",INDEX(OFFSET(F!$A$3:$A$201,200*($U$1-1),S$12),MATCH($B41,OFFSET(F!$A$3:$A$201,200*($U$1-1),0),0)))","v":15},{"$f":"IF($X41=\"\",\"\",INDEX(OFFSET(F!$A$3:$A$201,200*($U$1-1),T$12),MATCH($B41,OFFSET(F!$A$3:$A$201,200*($U$1-1),0),0)))","v":18},{"$f":"IF($X41=\"\",\"\",INDEX(OFFSET(F!$A$3:$A$201,200*($U$1-1),U$12),MATCH($B41,OFFSET(F!$A$3:$A$201,200*($U$1-1),0),0)))","v":171},{"$f":"IF($X41=\"\",\"\",INDEX(OFFSET(F!$A$3:$A$201,200*($U$1-1),V$12),MATCH($B41,OFFSET(F!$A$3:$A$201,200*($U$1-1),0),0)))","v":"ناجحة"},null,27]
[null,28,{"$f":"IF($X42=\"\",\"\",INDEX(OFFSET(F!$A$3:$A$201,200*($U$1-1),C$12),MATCH($B42,OFFSET(F!$A$3:$A$201,200*($U$1-1),0),0)))","v":28},{"$f":"IF($X42=\"\",\"\",INDEX(OFFSET(F!$A$3:$A$201,200*($U$1-1),D$12),MATCH($B42,OFFSET(F!$A$3:$A$201,200*($U$1-1),0),0)))","v":"غنية8"},{"$f":"IF($X42=\"\",\"\",INDEX(OFFSET(F!$A$3:$A$201,200*($U$1-1),E$12),MATCH($B42,OFFSET(F!$A$3:$A$201,200*($U$1-1),0),0)))","v":17},{"$f":"IF($X42=\"\",\"\",INDEX(OFFSET(F!$A$3:$A$201,200*($U$1-1),F$12),MATCH($B42,OFFSET(F!$A$3:$A$201,200*($U$1-1),0),0)))","v":25},{"$f":"IF($X42=\"\",\"\",INDEX(OFFSET(F!$A$3:$A$201,200*($U$1-1),G$12),MATCH($B42,OFFSET(F!$A$3:$A$201,200*($U$1-1),0),0)))","v":17},{"$f":"IF($X42=\"\",\"\",INDEX(OFFSET(F!$A$3:$A$201,200*($U$1-1),H$12),MATCH($B42,OFFSET(F!$A$3:$A$201,200*($U$1-1),0),0)))","v":25},{"$f":"IF($X42=\"\",\"\",INDEX(OFFSET(F!$A$3:$A$201,200*($U$1-1),I$12),MATCH($B42,OFFSET(F!$A$3:$A$201,200*($U$1-1),0),0)))","v":13},{"$f":"IF($X42=\"\",\"\",INDEX(OFFSET(F!$A$3:$A$201,200*($U$1-1),J$12),MATCH($B42,OFFSET(F!$A$3:$A$201,200*($U$1-1),0),0)))","v":15},{"$f":"IF($X42=\"\",\"\",IF(OR($Y$1=$AC$7,$Y$1=$AC$8),INDEX(OFFSET(F!$A$3:$A$201,200*($U$1-1),K$12),MATCH($B42,OFFSET(F!$A$3:$A$201,200*($U$1-1),0),0)),\"\"))","v":""},{"$f":"IF($X42=\"\",\"\",IF(OR($Y$1=$AC$7,$Y$1=$AC$8),INDEX(OFFSET(F!$A$3:$A$201,200*($U$1-1),L$12),MATCH($B42,OFFSET(F!$A$3:$A$201,200*($U$1-1),0),0)),\"\"))","v":""},{"$f":"IF($X42=\"\",\"\",INDEX(OFFSET(F!$A$3:$A$201,200*($U$1-1),M$12),MATCH($B42,OFFSET(F!$A$3:$A$201,200*($U$1-1),0),0)))","v":14},{"$f":"IF($X42=\"\",\"\",INDEX(OFFSET(F!$A$3:$A$201,200*($U$1-1),N$12),MATCH($B42,OFFSET(F!$A$3:$A$201,200*($U$1-1),0),0)))","v":14},{"$f":"IF($X42=\"\",\"\",INDEX(OFFSET(F!$A$3:$A$201,200*($U$1-1),O$12),MATCH($B42,OFFSET(F!$A$3:$A$201,200*($U$1-1),0),0)))","v":14},{"$f":"IF($X42=\"\",\"\",INDEX(OFFSET(F!$A$3:$A$201,200*($U$1-1),P$12),MATCH($B42,OFFSET(F!$A$3:$A$201,200*($U$1-1),0),0)))","v":14},{"$f":"IF(OR($X42=\"\",$Y$1=$AC$1,$Y$1=$AC$2),\"\",INDEX(OFFSET(F!$A$3:$A$201,200*($U$1-1),Q$12),MATCH($B42,OFFSET(F!$A$3:$A$201,200*($U$1-1),0),0)))","v":""},{"$f":"IF(OR($X42=\"\",$Y$1=$AC$1,$Y$1=$AC$2),\"\",INDEX(OFFSET(F!$A$3:$A$201,200*($U$1-1),R$12),MATCH($B42,OFFSET(F!$A$3:$A$201,200*($U$1-1),0),0)))","v":""},{"$f":"IF($X42=\"\",\"\",INDEX(OFFSET(F!$A$3:$A$201,200*($U$1-1),S$12),MATCH($B42,OFFSET(F!$A$3:$A$201,200*($U$1-1),0),0)))","v":15},{"$f":"IF($X42=\"\",\"\",INDEX(OFFSET(F!$A$3:$A$201,200*($U$1-1),T$12),MATCH($B42,OFFSET(F!$A$3:$A$201,200*($U$1-1),0),0)))","v":18},{"$f":"IF($X42=\"\",\"\",INDEX(OFFSET(F!$A$3:$A$201,200*($U$1-1),U$12),MATCH($B42,OFFSET(F!$A$3:$A$201,200*($U$1-1),0),0)))","v":201},{"$f":"IF($X42=\"\",\"\",INDEX(OFFSET(F!$A$3:$A$201,200*($U$1-1),V$12),MATCH($B42,OFFSET(F!$A$3:$A$201,200*($U$1-1),0),0)))","v":"ناجحة"},null,28]
[null,29,{"$f":"IF($X43=\"\",\"\",INDEX(OFFSET(F!$A$3:$A$201,200*($U$1-1),C$12),MATCH($B43,OFFSET(F!$A$3:$A$201,200*($U$1-1),0),0)))","v":29},{"$f":"IF($X43=\"\",\"\",INDEX(OFFSET(F!$A$3:$A$201,200*($U$1-1),D$12),MATCH($B43,OFFSET(F!$A$3:$A$201,200*($U$1-1),0),0)))","v":"غنية9"},{"$f":"IF($X43=\"\",\"\",INDEX(OFFSET(F!$A$3:$A$201,200*($U$1-1),E$12),MATCH($B43,OFFSET(F!$A$3:$A$201,200*($U$1-1),0),0)))","v":15},{"$f":"IF($X43=\"\",\"\",INDEX(OFFSET(F!$A$3:$A$201,200*($U$1-1),F$12),MATCH($B43,OFFSET(F!$A$3:$A$201,200*($U$1-1),0),0)))","v":24},{"$f":"IF($X43=\"\",\"\",INDEX(OFFSET(F!$A$3:$A$201,200*($U$1-1),G$12),MATCH($B43,OFFSET(F!$A$3:$A$201,200*($U$1-1),0),0)))","v":15},{"$f":"IF($X43=\"\",\"\",INDEX(OFFSET(F!$A$3:$A$201,200*($U$1-1),H$12),MATCH($B43,OFFSET(F!$A$3:$A$201,200*($U$1-1),0),0)))","v":24},{"$f":"IF($X43=\"\",\"\",INDEX(OFFSET(F!$A$3:$A$201,200*($U$1-1),I$12),MATCH($B43,OFFSET(F!$A$3:$A$201,200*($U$1-1),0),0)))","v":12},{"$f":"IF($X43=\"\",\"\",INDEX(OFFSET(F!$A$3:$A$201,200*($U$1-1),J$12),MATCH($B43,OFFSET(F!$A$3:$A$201,200*($U$1-1),0),0)))","v":14},{"$f":"IF($X43=\"\",\"\",IF(OR($Y$1=$AC$7,$Y$1=$AC$8),INDEX(OFFSET(F!$A$3:$A$201,200*($U$1-1),K$12),MATCH($B43,OFFSET(F!$A$3:$A$201,200*($U$1-1),0),0)),\"\"))","v":""},{"$f":"IF($X43=\"\",\"\",IF(OR($Y$1=$AC$7,$Y$1=$AC$8),INDEX(OFFSET(F!$A$3:$A$201,200*($U$1-1),L$12),MATCH($B43,OFFSET(F!$A$3:$A$201,200*($U$1-1),0),0)),\"\"))","v":""},{"$f":"IF($X43=\"\",\"\",INDEX(OFFSET(F!$A$3:$A$201,200*($U$1-1),M$12),MATCH($B43,OFFSET(F!$A$3:$A$201,200*($U$1-1),0),0)))","v":14},{"$f":"IF($X43=\"\",\"\",INDEX(OFFSET(F!$A$3:$A$201,200*($U$1-1),N$12),MATCH($B43,OFFSET(F!$A$3:$A$201,200*($U$1-1),0),0)))","v":14},{"$f":"IF($X43=\"\",\"\",INDEX(OFFSET(F!$A$3:$A$201,200*($U$1-1),O$12),MATCH($B43,OFFSET(F!$A$3:$A$201,200*($U$1-1),0),0)))","v":13},{"$f":"IF($X43=\"\",\"\",INDEX(OFFSET(F!$A$3:$A$201,200*($U$1-1),P$12),MATCH($B43,OFFSET(F!$A$3:$A$201,200*($U$1-1),0),0)))","v":13},{"$f":"IF(OR($X43=\"\",$Y$1=$AC$1,$Y$1=$AC$2),\"\",INDEX(OFFSET(F!$A$3:$A$201,200*($U$1-1),Q$12),MATCH($B43,OFFSET(F!$A$3:$A$201,200*($U$1-1),0),0)))","v":""},{"$f":"IF(OR($X43=\"\",$Y$1=$AC$1,$Y$1=$AC$2),\"\",INDEX(OFFSET(F!$A$3:$A$201,200*($U$1-1),R$12),MATCH($B43,OFFSET(F!$A$3:$A$201,200*($U$1-1),0),0)))","v":""},{"$f":"IF($X43=\"\",\"\",INDEX(OFFSET(F!$A$3:$A$201,200*($U$1-1),S$12),MATCH($B43,OFFSET(F!$A$3:$A$201,200*($U$1-1),0),0)))","v":15},{"$f":"IF($X43=\"\",\"\",INDEX(OFFSET(F!$A$3:$A$201,200*($U$1-1),T$12),MATCH($B43,OFFSET(F!$A$3:$A$201,200*($U$1-1),0),0)))","v":16},{"$f":"IF($X43=\"\",\"\",INDEX(OFFSET(F!$A$3:$A$201,200*($U$1-1),U$12),MATCH($B43,OFFSET(F!$A$3:$A$201,200*($U$1-1),0),0)))","v":189},{"$f":"IF($X43=\"\",\"\",INDEX(OFFSET(F!$A$3:$A$201,200*($U$1-1),V$12),MATCH($B43,OFFSET(F!$A$3:$A$201,200*($U$1-1),0),0)))","v":"ناجحة"},null,29]
[null,30,{"$f":"IF($X44=\"\",\"\",INDEX(OFFSET(F!$A$3:$A$201,200*($U$1-1),C$12),MATCH($B44,OFFSET(F!$A$3:$A$201,200*($U$1-1),0),0)))","v":30},{"$f":"IF($X44=\"\",\"\",INDEX(OFFSET(F!$A$3:$A$201,200*($U$1-1),D$12),MATCH($B44,OFFSET(F!$A$3:$A$201,200*($U$1-1),0),0)))","v":"غنية10"},{"$f":"IF($X44=\"\",\"\",INDEX(OFFSET(F!$A$3:$A$201,200*($U$1-1),E$12),MATCH($B44,OFFSET(F!$A$3:$A$201,200*($U$1-1),0),0)))","v":15},{"$f":"IF($X44=\"\",\"\",INDEX(OFFSET(F!$A$3:$A$201,200*($U$1-1),F$12),MATCH($B44,OFFSET(F!$A$3:$A$201,200*($U$1-1),0),0)))","v":17},{"$f":"IF($X44=\"\",\"\",INDEX(OFFSET(F!$A$3:$A$201,200*($U$1-1),G$12),MATCH($B44,OFFSET(F!$A$3:$A$201,200*($U$1-1),0),0)))","v":15},{"$f":"IF($X44=\"\",\"\",INDEX(OFFSET(F!$A$3:$A$201,200*($U$1-1),H$12),MATCH($B44,OFFSET(F!$A$3:$A$201,200*($U$1-1),0),0)))","v":17},{"$f":"IF($X44=\"\",\"\",INDEX(OFFSET(F!$A$3:$A$201,200*($U$1-1),I$12),MATCH($B44,OFFSET(F!$A$3:$A$201,200*($U$1-1),0),0)))","v":13},{"$f":"IF($X44=\"\",\"\",INDEX(OFFSET(F!$A$3:$A$201,200*($U$1-1),J$12),MATCH($B44,OFFSET(F!$A$3:$A$201,200*($U$1-1),0),0)))","v":16},{"$f":"IF($X44=\"\",\"\",IF(OR($Y$1=$AC$7,$Y$1=$AC$8),INDEX(OFFSET(F!$A$3:$A$201,200*($U$1-1),K$12),MATCH($B44,OFFSET(F!$A$3:$A$201,200*($U$1-1),0),0)),\"\"))","v":""},{"$f":"IF($X44=\"\",\"\",IF(OR($Y$1=$AC$7,$Y$1=$AC$8),INDEX(OFFSET(F!$A$3:$A$201,200*($U$1-1),L$12),MATCH($B44,OFFSET(F!$A$3:$A$201,200*($U$1-1),0),0)),\"\"))","v":""},{"$f":"IF($X44=\"\",\"\",INDEX(OFFSET(F!$A$3:$A$201,200*($U$1-1),M$12),MATCH($B44,OFFSET(F!$A$3:$A$201,200*($U$1-1),0),0)))","v":14},{"$f":"IF($X44=\"\",\"\",INDEX(OFFSET(F!$A$3:$A$201,200*($U$1-1),N$12),MATCH($B44,OFFSET(F!$A$3:$A$201,200*($U$1-1),0),0)))","v":14},{"$f":"IF($X44=\"\",\"\",INDEX(OFFSET(F!$A$3:$A$201,200*($U$1-1),O$12),MATCH($B44,OFFSET(F!$A$3:$A$201,200*($U$1-1),0),0)))","v":13},{"$f":"IF($X44=\"\",\"\",INDEX(OFFSET(F!$A$3:$A$201,200*($U$1-1),P$12),MATCH($B44,OFFSET(F!$A$3:$A$201,200*($U$1-1),0),0)))","v":14},{"$f":"IF(OR($X44=\"\",$Y$1=$AC$1,$Y$1=$AC$2),\"\",INDEX(OFFSET(F!$A$3:$A$201,200*($U$1-1),Q$12),MATCH($B44,OFFSET(F!$A$3:$A$201,200*($U$1-1),0),0)))","v":""},{"$f":"IF(OR($X44=\"\",$Y$1=$AC$1,$Y$1=$AC$2),\"\",INDEX(OFFSET(F!$A$3:$A$201,200*($U$1-1),R$12),MATCH($B44,OFFSET(F!$A$3:$A$201,200*($U$1-1),0),0)))","v":""},{"$f":"IF($X44=\"\",\"\",INDEX(OFFSET(F!$A$3:$A$201,200*($U$1-1),S$12),MATCH($B44,OFFSET(F!$A$3:$A$201,200*($U$1-1),0),0)))","v":16},{"$f":"IF($X44=\"\",\"\",INDEX(OFFSET(F!$A$3:$A$201,200*($U$1-1),T$12),MATCH($B44,OFFSET(F!$A$3:$A$201,200*($U$1-1),0),0)))","v":18},{"$f":"IF($X44=\"\",\"\",INDEX(OFFSET(F!$A$3:$A$201,200*($U$1-1),U$12),MATCH($B44,OFFSET(F!$A$3:$A$201,200*($U$1-1),0),0)))","v":182},{"$f":"IF($X44=\"\",\"\",INDEX(OFFSET(F!$A$3:$A$201,200*($U$1-1),V$12),MATCH($B44,OFFSET(F!$A$3:$A$201,200*($U$1-1),0),0)))","v":"ناجحة"},null,30]
[]
[null,null,"أعضاء الكنترول",null,"رئيـــــــس الكنتــــــرول",null,null,null,null,"وكيل المدرســــــــــــــة",null,null,null,null,"مدير المدرســـــــــــــــة",null,null,null,null,"المفتش المالي والإداري"]
[null,"1 -","",null,"الاسم/","هلال البعداني",null,null,null,"الاسم/ ","أبو الخضر البعيثي",null,null,null,"الاسم/","عبد الولي صالح",null,null,null,"الاسم/","رفعان القشاش"]
[null,"2 -",""]
[null,"3 -",""]
[]
[]
[]
[]
["كشف رصد درجات المحصلة الأولى والإمتحان النهائي للفصل الدراسي الأول للعام الدراسي/"]